Workbook

Sheet 1-1
A1: 1. 연구개발활동 국제비교
A2: International Comparison of R&D Activities
A4: 1-1) 주요국의 연구개발 관련 주요 지표
A5: Main indicators concerning R&D activities in major countries
A7: 지표 Indicators | B7: 단위 Unit | C7: 한국 (2020) Korea | D7: 미국 (2019) United States | E7: 일본 (2019) Japan | F7: 독일 (2019) Germany | G7: 프랑스 (2019) France | H7: 영국 (2019) United Kingdom | I7: 중국 (2019) China
A8: ㅇ 연구개발비 R&D expenditure | B8: 억 달러 USD, 0.1 billions | C8: 788.5586246 | D8: 6574.59 | E8: 1647.091919 | F8: 1231.706774 | G8: 599.3294378 | H8: 497.0738214 | I8: 3205.318955
A9: - 배율(한국을 1로 본 경우) Multiplier | B9: 배 | C9: =C8/$C$8 -> 1 | D9: 8.337477767 | E9: 2.088737436 | F9: 1.561972357 | G9: 0.7600315552 | H9: 0.6303574724 | I9: 4.064782066
A10: - GDP 대비 As a percent of GDP | B10: % | C10: 4.814503321 | D10: 3.067475703 | E10: 3.198993349 | F10: 3.19002073 | G10: 2.196254168 | H10: 1.755939592 | I10: 2.234772159
A11: - 정부 : 민간 Gov't vs Business enterprise | B11: % | C11: 23 : 77 | D11: 29 : 71 | E11: 21 : 79 | F11: 28 : 72 | G11: 35 : 65 | H11: 32 : 68 (2018) | I11: 21 : 76
A12: ㅇ 연구원 Researchers | B12: 천 명(FTE) 1,000 Person | C12: 446.738854 | D12: 1554.9 (2018) | E12: 681.821 | F12: 450.69727 | G12: 314.1008765 | H12: 317.472 | I12: 2109.4598
A13: - 배율 Multiplier | B13: 배 | C13: =C12/$C$12 -> 1 | D13: 3.5 (2018) | E13: 1.526218268 | F13: 1.008860693 | G13: 0.7030972877 | H13: 0.7106433595 | I13: 4.72190807
A14: - 인구만명당 Researchers per 10,000 population | B14: 명 Person | C14: 86.14324219 | D14: 47.6 (2018) | E14: 54.0527192 | F14: 54.24010085 | G14: 46.5638159 | H14: 47.52788299 | I14: 15.06703189
A15: - 연구원 1인당 연구개발비 R&D expenditure per researcher | B15: 천 달러 1,000 USD | C15: 176.5144485 | D15: 390.7 (2018) | E15: 241.572483 | F15: 273.2891579 | G15: 190.8079482 | H15: 156.5724919 | I15: 151.949753
A16: ㅇ 특허 Patent
A17: - 삼극특허 건수(2019) Number of triadic patent families | B17: 건 Case | C17: 2558.0109 | D17: 12881.393 | E17: 17702.3757 | F17: 4620.6735 | G17: 1856.5722 | H17: 1690.1163 | I17: 5596.5988
A18: - PCT 출원건수(2020) Number of PCT Filings | B18: 건 Case | C18: 20053 | D18: 58616 | E18: 50562 | F18: 18532 | G18: 7769 | H18: 5897 | I18: 68770
A19: ㅇ 과학기술논문발표건수(2020) Number of scientific and technical papers | B19: 천 건 1,000 Case | C19: 76.408 | D19: 512.341 | E19: 97.724 | F19: 139.798 | G19: 91.229 | H19: 167.14 | I19: 553.233
A21: 주 : 1. 연구원은 상근상당 연구원 기준임
A22: 2. 중국은 정부재원과 민간재원의 비율 합이 100.0%가 되지 않음
A23: 3. 연구개발비 하위 항목 중 '정부:민간'에서 정부는 정부재원과 공공재원을, 민간은 민간재원과 외국재원을 포함함

Sheet 1-2
A1: 1-2) 주요국의 연구개발비 및 GDP 대비 연구개발비 비율
A2: R&D expenditure and as a percentage of GDP in major countries
O4: (단위 : 백만달러 Unit : US dollar, Millions)
A5: 연도별 Year | B5: 한국 Korea | D5: 미국 United States | F5: 일본 Japan | H5: 독일 Germany | J5: 프랑스 France | L5: 영국 United Kingdom | N5: 중국 China
C6: GDP 대비(%) As a percent of GDP(%) | E6: GDP 대비(%) As a percent of GDP(%) | G6: GDP 대비(%) As a percent of GDP(%) | I6: GDP 대비(%) As a percent of GDP(%) | K6: GDP 대비(%) As a percent of GDP(%) | M6: GDP 대비(%) As a percent of GDP(%) | O6: GDP 대비(%) As a percent of GDP(%)
A7: 1991 | B7: 5670.633581 | C7: 1.714954691 | D7: 161387.7967 | E7: 2.620727769 | F7: 95940.99749 | G7: 2.676610774 | H7: 44604.77779 | I7: 2.386656577 | J7: 28906.23083 | K7: 2.27747064 | L7: 21396.25936 | M7: 1.872320461 | N7: 2995.458535 | O7: 0.7246337296
A8: 1992 | B8: 6390.69732 | C8: 1.797584715 | D8: 165834.7359 | E8: 2.543349986 | F8: 102652.7846 | G8: 2.626191229 | H8: 48453.94446 | I8: 2.273039026 | J8: 31995.24063 | K8: 2.283088518 | L8: 21703.34203 | M8: 1.839713168 | N8: 3591.018157 | O8: 0.7281987167
A9: 1993 | B9: 7666.902311 | C9: 1.952204334 | D9: 166146.5015 | E9: 2.422469523 | F9: 114542.1313 | G9: 2.571585472 | H9: 45691.12957 | I9: 2.205968539 | J9: 30675.24529 | K9: 2.318812289 | L9: 19781.11966 | M9: 1.863581515 | N9: 4304.266015 | O9: 0.69522779
A10: 1994 | B10: 9822.125268 | C10: 2.119432452 | D10: 169612.5351 | E10: 2.327529054 | F10: 123541.3898 | G10: 2.471422294 | H10: 46885.30504 | I10: 2.126300029 | J10: 31621.31419 | K10: 2.268425747 | L10: 20942.20165 | M10: 1.836322256 | N10: 3553.418405 | O10: 0.6296787458
A11: 1995 | B11: 12240.58994 | C11: 2.160377108 | D11: 184076.9922 | E11: 2.409463873 | F11: 142133.8894 | G11: 2.563019132 | H11: 55208.09581 | I11: 2.135198115 | J11: 35879.58452 | K11: 2.241079151 | L11: 22146.45524 | M11: 1.650648509 | N11: 4175.219606 | O11: 0.5684554425
A12: 1996 | B12: 13522.21839 | C12: 2.216161975 | D12: 197792.1495 | E12: 2.450008182 | F12: 130126.6842 | G12: 2.643028325 | H12: 53557.65624 | I12: 2.144611477 | J12: 35692.94993 | K12: 2.222799402 | L12: 22366.52012 | M12: 1.580133699 | N12: 4864.944507 | O12: 0.563235933
A13: 1997 | B13: 12828.65069 | C13: 2.248296408 | D13: 212708.789 | E13: 2.479830947 | F13: 122273.9439 | G13: 2.721765284 | H13: 48404.94852 | I13: 2.188321291 | J13: 31193.35262 | K13: 2.146989216 | L13: 23994.32908 | M13: 1.539963226 | N13: 6141.993243 | O13: 0.6387254594
A14: 1998 | B14: 8079.212982 | C14: 2.110255795 | D14: 226934 | E14: 2.504011722 | F14: 115879.211 | G14: 2.827451354 | H14: 49618.71015 | I14: 2.216129308 | J14: 31487.36032 | K14: 2.094757636 | L14: 25594.36858 | M14: 1.549715769 | N14: 6656.876385 | O14: 0.6468886267
A15: 1999 | B15: 10023.00271 | C15: 2.015671913 | D15: 245548 | E15: 2.549647932 | F15: 131973.3268 | G15: 2.84671783 | H15: 51532.76144 | I15: 2.347792355 | J15: 31470.67459 | K15: 2.107667383 | L15: 27390.09163 | M15: 1.62814189 | N15: 8201.008667 | O15: 0.7496323059
A16: 2000 | B16: 12251.38042 | C16: 2.125194895 | D16: 269513 | E16: 2.628793192 | F16: 142015.9818 | G16: 2.858408118 | H16: 46942.81175 | I16: 2.409817362 | J16: 28589.13554 | K16: 2.093460978 | L16: 26807.63953 | M16: 1.616753353 | N16: 10819.16491 | O16: 0.8931632497
A17: 2001 | B17: 12481.13248 | C17: 2.278647331 | D17: 280238 | E17: 2.648296295 | F17: 127893.9895 | G17: 2.923484997 | H17: 46784.0655 | I17: 2.40437244 | J17: 29454.90192 | K17: 2.138042517 | L17: 26323.85861 | M17: 1.606324805 | N17: 12594.79806 | O17: 0.9403309126
A18: 2002 | B18: 13842.31895 | C18: 2.207744358 | D18: 279891 | E18: 2.559256605 | F18: 124027.105 | G18: 2.965137192 | H18: 50636.47607 | I18: 2.436220998 | J18: 32648.06455 | K18: 2.174494514 | L18: 28817.65167 | M18: 1.618950029 | N18: 15556.43994 | O18: 1.057860257
A19: 2003 | B19: 16001.97011 | C19: 2.277224627 | D19: 293852 | E19: 2.564546092 | F19: 135279.3444 | G19: 2.993195203 | H19: 61905.93497 | I19: 2.474613872 | J19: 39103.18815 | K19: 2.119937208 | L19: 32488.17905 | M19: 1.584006534 | N19: 18601.22167 | O19: 1.120366462
A20: 2004 | B20: 19354.73017 | C20: 2.44213845 | D20: 305640 | E20: 2.502429643 | F20: 145876.4049 | G20: 2.981245971 | H20: 68534.78696 | I20: 2.43518833 | J20: 44398.08942 | K20: 2.094612844 | L20: 37072.21063 | M20: 1.536905513 | N20: 23757.12549 | O20: 1.214982433
A21: 2005 | B21: 23581.70991 | C21: 2.522896183 | D21: 328128 | E21: 2.516968141 | F21: 151269.302 | G21: 3.130918982 | H21: 69518.39886 | I21: 2.441928279 | J21: 45070.47015 | K21: 2.051505823 | L21: 39420.50698 | M21: 1.556396882 | N21: 29898.44181 | O21: 1.307915592
A22: 2006 | B22: 28624.02941 | C22: 2.719338038 | D22: 353328 | E22: 2.557640249 | F22: 148525.8227 | G22: 3.227655613 | H22: 74038.49665 | I22: 2.472315478 | J22: 47592.74289 | K22: 2.050937992 | L22: 42693.0175 | M22: 1.577670514 | N22: 37663.7606 | O22: 1.368536788
A23: 2007 | B23: 33679.99914 | C23: 2.872581495 | D23: 380316 | E23: 2.631605897 | F23: 150791.5572 | G23: 3.292571953 | H23: 84285.7366 | I23: 2.460480567 | J23: 53864.04508 | K23: 2.024512996 | L23: 50016.48152 | M23: 1.616782842 | N23: 48770.63941 | O23: 1.373694104
A24: 2008 | B24: 31358.27994 | C24: 2.988872005 | D24: 407238 | E24: 2.767907906 | F24: 168124.0816 | G24: 3.292238812 | H24: 97943.59214 | I24: 2.615133026 | J24: 60398.49042 | K24: 2.061169195 | L24: 47137.52514 | M24: 1.613406688 | N24: 66430.43582 | O24: 1.445920088
A25: 2009 | B25: 29695.53806 | C25: 3.146685578 | D25: 406405 | E25: 2.812699236 | F25: 169046.8415 | G25: 3.195898318 | H25: 93559.34518 | I25: 2.742662559 | J25: 59745.36416 | K25: 2.21206518 | L25: 40291.06476 | M25: 1.67022169 | N25: 84932.71088 | O25: 1.664795447
A26: 2010 | B26: 37921.61794 | C26: 3.315776721 | D26: 410093 | E26: 2.735402732 | F26: 178816.3745 | G26: 3.104951313 | H26: 92819.00068 | I26: 2.730237388 | J26: 57627.35404 | K26: 2.178573219 | L26: 40733.70737 | M26: 1.641441894 | N26: 104317.5242 | O26: 1.713721488
A27: 2011 | B27: 45017.97362 | C27: 3.591985221 | D27: 429792 | E27: 2.765254833 | F27: 199795.1809 | G27: 3.205366018 | H27: 105188.7525 | I27: 2.805546283 | J27: 62793.20002 | K27: 2.191614526 | L27: 43867.81192 | M27: 1.649239432 | N27: 134443.4223 | O27: 1.780343022
A28: 2012 | B28: 49209.96412 | C28: 3.850404604 | D28: 434349 | E28: 2.681662112 | F28: 199066.3169 | G28: 3.173705284 | H28: 101640.1332 | I28: 2.881655551 | J28: 59767.14487 | K28: 2.227065823 | L28: 42660.3396 | M28: 1.577665224 | N28: 163147.429 | O28: 1.912141
A29: 2013 | B29: 54156.98363 | C29: 3.951238982 | D29: 455128 | E29: 2.711540305 | F29: 170909.9497 | G29: 3.27895603 | H29: 105890.2148 | I29: 2.835986547 | J29: 62902.40323 | K29: 2.237025131 | L29: 45141.25451 | M29: 1.621890475 | N29: 191204.9817 | O29: 1.99786394
A30: 2014 | B30: 60535.43444 | C30: 4.077864757 | D30: 477003 | E30: 2.721492432 | F30: 164924.6601 | G30: 3.367875199 | H30: 111921.924 | I30: 2.877840495 | J30: 64999.38889 | K30: 2.27591667 | L30: 50350.64914 | M30: 1.642483553 | N30: 211862.4483 | O30: 2.02243256
A31: 2015 | B31: 58321.96465 | C31: 3.978200252 | D31: 495893 | E31: 2.718964886 | F31: 144047.1916 | G31: 3.240707296 | H31: 98504.6189 | I31: 2.933791744 | J31: 55297.18317 | K31: 2.267030775 | L31: 48317.53355 | M31: 1.647495547 | N31: 227537.6899 | O31: 2.05701037
A32: 2016 | B32: 59792.79217 | C32: 3.987037181 | D32: 522652 | E32: 2.788209703 | F32: 155447.0742 | G32: 3.106656458 | H32: 102027.2453 | I32: 2.940389187 | J32: 54958.78776 | K32: 2.222383891 | L32: 44731.4058 | M32: 1.660871344 | N32: 235936.4936 | O32: 2.10032842
A33: 2017 | B33: 69663.24434 | C33: 4.292055599 | D33: 556343 | E33: 2.84676646 | F33: 156127.8728 | G33: 3.166356159 | H33: 112463.7836 | I33: 3.053923052 | J33: 57183.67476 | K33: 2.203482785 | L33: 44800.03913 | M33: 1.682585243 | N33: 260493.6781 | O33: 2.116029774 | S33: `
A34: 2018 | B34: 77923.62476 | C34: 4.51633384 | D34: 607474 | E34: 2.94720598 | F34: 162275.8388 | G34: 3.221745606 | H34: 123609.3321 | I34: 3.118482098 | J34: 61217.65054 | K34: 2.193429611 | L34: 49460.06308 | M34: 1.730882364 | N34: 297431.3371 | O34: 2.140578042
A35: 2019 | B35: 76411.81107 | C35: 4.62702858 | D35: 657459 | E35: 3.067475703 | F35: 164709.1919 | G35: 3.198993349 | H35: 123170.6774 | I35: 3.19002073 | J35: 59932.94378 | K35: 2.196254168 | L35: 49707.38214 | M35: 1.755939592 | N35: 320531.8955 | O35: 2.234772159
A36: 2020 | B36: 78855.86246 | C36: 4.814503321
A37: 2018
A39: 자료 : 1. 한국 GDP(한국은행, 경제통계시스템)
A40: 2. OECD, Main Science and Technology Indicators 2021-september, 2021
A41: 3. 과학기술정보통신부·한국과학기술기획평가원, 연구개발활동조사보고서, 각 연도

Sheet 1-3
A1: 1-3) 주요국의 연구원 1인당 연구개발비
A2: R&D expenditure per researcher in major countries
A5: 국가별 · 연도별 Country · Year | C5: 연구개발비(억달러) R&D expenditure (USD, 0.1 billions) | E5: 연구원(명) Researchers (person) | F5: 연구원 1인당 연구개발비(천 달러) R&D expenditure per researcher (1,000 USD)
D6: 정부·공공재원 비율(%)
A7: 한국 Korea | B7: 1991 | C7: ='1-2'!B7/100 -> 56.70633581 | D7: 19.4 | E7: 76,252(73,275) | F7: 74.4(77.4)
B8: 1992 | C8: ='1-2'!B8/100 -> 63.9069732 | D8: 17.2 | E8: 88,764(85,268) | F8: 72.0(75.0)
B9: 1993 | C9: ='1-2'!B9/100 -> 76.66902311 | D9: 16.7 | E9: 98,764(93,680) | F9: 77.6(81.8)
B10: 1994 | C10: ='1-2'!B10/100 -> 98.22125268 | D10: 23.8 | E10: 117,446(89,018) | F10: 83.7(110.4)
B11: 1995 | C11: ='1-2'!B11/100 -> 122.4058994 | D11: 23.72777764 | E11: 128,315(100,456) | F11: 95.4(121.8)
B12: 1996 | C12: ='1-2'!B12/100 -> 135.2221839 | D12: 25.00434361 | E12: 132,023(99,433) | F12: 102.4(136.0)
B13: 1997 | C13: ='1-2'!B13/100 -> 128.2865069 | D13: 27.44845705 | E13: 138,438(102,660) | F13: 92.5(124.8)
B14: 1998 | C14: ='1-2'!B14/100 -> 80.79212982 | D14: 30.7949188 | E14: 129,767(92,541) | F14: 62.3(87.4)
B15: 1999 | C15: ='1-2'!B15/100 -> 100.2300271 | D15: 29.98191876 | E15: 134,568(100,210) | F15: 74.5(100.1)
B16: 2000 | C16: ='1-2'!B16/100 -> 122.5138042 | D16: 27.56147398 | E16: 159,973(108,370) | F16: 76.5(113.0)
B17: 2001 | C17: ='1-2'!B17/100 -> 124.8113248 | D17: 27.07256953 | E17: 178,937(136,337) | F17: 69.7(91.5)
B18: 2002 | C18: ='1-2'!B18/100 -> 138.4231895 | D18: 27.35892548 | E18: 189,888(141,917) | F18: 72.9(97.6)
B19: 2003 | C19: ='1-2'!B19/100 -> 160.0197011 | D19: 25.57189981 | E19: 198,171(151,254) | F19: 80.8(105.8)
B20: 2004 | C20: ='1-2'!B20/100 -> 193.5473017 | D20: 24.54810063 | E20: 209,979(156,220) | F20: 92.2(124.0)
B21: 2005 | C21: ='1-2'!B21/100 -> 235.8170991 | D21: 24.33063907 | E21: 234,702(179,812) | F21: 100.5(131.2)
B22: 2006 | C22: ='1-2'!B22/100 -> 286.2402941 | D22: 24.25280679 | E22: 256,598(199,990) | F22: 111.6(143.2)
B23: 2007 | C23: ='1-2'!B23/100 -> 336.7999914 | D23: 26.12498208 | E23: 289,098(221,928) | F23: 116.5(151.8)
B24: 2008 | C24: ='1-2'!B24/100 -> 313.5827994 | D24: 26.81094225 | E24: 300,050(236,137) | F24: 104.3(132.6)
B25: 2009 | C25: ='1-2'!B25/100 -> 296.9553806 | D25: 28.70913319 | E25: 323,175(244,077) | F25: 91.9(121.7)
B26: 2010 | C26: ='1-2'!B26/100 -> 379.2161794 | D26: 27.97919045 | E26: 345,912(264,118) | F26: 109.7(143.6)
B27: 2011 | C27: ='1-2'!B27/100 -> 450.1797362 | D27: 26.06367557 | E27: 375,176(288,901) | F27: 120.0(155.8)
B28: 2012 | C28: ='1-2'!B28/100 -> 492.0996412 | D28: 24.92704932 | E28: 401,724(315,589) | F28: 122.5(156.0)
B29: 2013 | C29: ='1-2'!B29/100 -> 541.5698363 | D29: 24.01604791 | E29: 410,333(321,842) | F29: 132.0(168.3)
B30: 2014 | C30: ='1-2'!B30/100 -> 605.3543444 | D30: 23.96676339 | E30: 437,447(345,463) | F30: 138.4(175.2)
B31: 2015 | C31: ='1-2'!B31/100 -> 583.2196465 | D31: 24.70235445 | E31: 453,262(356,447) | F31: 128.6(163.6)
B32: 2016 | C32: ='1-2'!B32/100 -> 597.9279217 | D32: 23.64371727 | E32: 460,769(361,292) | F32: 129.8(165.5)
B33: 2017 | C33: ='1-2'!B33/100 -> 696.6324434 | D33: 22.51214178 | E33: 482,796(383,100) | F33: 144.4(181.9)
B34: 2018 | C34: ='1-2'!B34/100 -> 779.2362476 | D34: 21.41990695 | E34: 514,170(408,370) | F34: 151.5(190.8)
B35: 2019 | C35: ='1-2'!B35/100 -> 764.1181107 | D35: 21.44425263 | E35: 538,136(430,690) | F35: 142.0(177.4)
B36: 2020 | C36: ='1-2'!B36/100 -> 788.5586246 | D36: 23.18774769 | E36: 558,045(446,739) | F36: 141.3(176.5)
A37: 미국 United States | B37: 1991 | C37: ='1-2'!D7/100 -> 1613.877967 | D37: 42.80825714 | E37: 746155 | F37: =C37*100000/E37 -> 216.292589
B38: 1992 | C38: ='1-2'!D8/100 -> 1658.347359 | D38: 41.97317426 | E38: 765469 | F38: =C38*100000/E38 -> 216.6446138
B39: 1993 | C39: ='1-2'!D9/100 -> 1661.465015 | D39: 41.88924893 | E39: 781241 | F39: =C39*100000/E39 -> 212.6699719
B40: 1994 | C40: ='1-2'!D10/100 -> 1696.125351 | D40: 41.51177571 | E40: 774354 | F40: 219.0374623
B41: 1995 | C41: ='1-2'!D11/100 -> 1840.769922 | D41: 39.76969805 | E41: 796548 | F41: 231.0934083
B42: 1996 | C42: ='1-2'!D12/100 -> 1977.921495 | D42: 37.6030995 | E42: 842820 | F42: 234.6789938
B43: 1997 | C43: ='1-2'!D13/100 -> 2127.08789 | D43: 35.95603614 | E43: 881271 | F43: 241.3659237
B44: 1998 | C44: ='1-2'!D14/100 -> 2269.34 | D44: 34.85110208 | E44: 937900 | F44: 241.9596972
B45: 1999 | C45: ='1-2'!D15/100 -> 2455.48 | D45: 32.94182807 | E45: 965370 | F45: 254.3563608
B46: 2000 | C46: ='1-2'!D16/100 -> 2695.13 | D46: 30.97253194 | E46: 984965 | F46: 273.6269817
B47: 2001 | C47: ='1-2'!D17/100 -> 2802.38 | D47: 32.79391089 | E47: 1015318 | F47: 276.0100776
B48: 2002 | C48: ='1-2'!D18/100 -> 2798.91 | D48: 35.45951817 | E48: 1049197 | F48: 266.7668703
B49: 2003 | C49: ='1-2'!D19/100 -> 2938.52 | D49: 36.66437526 | E49: 1128803 | F49: 260.3217745
B50: 2004 | C50: ='1-2'!D20/100 -> 3056.4 | D50: 37.40773459 | E50: 1107758 | F50: 275.9086371
B51: 2005 | C51: ='1-2'!D21/100 -> 3281.28 | D51: 36.69421689 | E51: 1104019 | F51: 297.2122762
B52: 2006 | C52: ='1-2'!D22/100 -> 3533.28 | D52: 35.72261468 | E52: 1133369 | F52: 311.750189
B53: 2007 | C53: ='1-2'!D23/100 -> 3803.16 | D53: 35.12184604 | E53: 1136653 | F53: 334.5928793
B54: 2008 | C54: ='1-2'!D24/100 -> 4072.38 | D54: 36.4769496 | E54: 1194367 | F54: 340.9655491
B55: 2009 | C55: ='1-2'!D25/100 -> 4064.05 | D55: 39.24853287 | E55: 1252882 | F55: 324.3761184
B56: 2010 | C56: ='1-2'!D26/100 -> 4100.93 | D56: 39.34253938 | E56: 1200535 | F56: 341.5918736
B57: 2011 | C57: ='1-2'!D27/100 -> 4297.92 | D57: 37.8357438 | E57: 1254786 | F57: 342.5221512
B58: 2012 | C58: ='1-2'!D28/100 -> 4343.49 | D58: 36.38663839 | E58: 1253231 | F58: 346.5833514
B59: 2013 | C59: ='1-2'!D29/100 -> 4551.28 | D59: 34.44877046 | E59: 1294690.312 | F59: 351.5342593
B60: 2014 | C60: ='1-2'!D30/100 -> 4770.03 | D60: 33.01845062 | E60: 1340689.004 | F60: 355.7894476
B61: 2015 | C61: ='1-2'!D31/100 -> 4958.93 | D61: 32.53705941 | E61: 1370627.274 | F61: 361.8000381
B62: 2016 | C62: ='1-2'!D32/100 -> 5226.52 | D62: 30.96209332 | E62: 1373550.665 | F62: 380.5116282
B63: 2017 | C63: ='1-2'!D33/100 -> 5563.43 | D63: 30.42547493 | E63: 1435904.51 | F63: 387.4512518
B64: 2018 | C64: ='1-2'!D34/100 -> 6074.74 | D64: 29.65196864 | E64: 1554899.56 | F64: 390.6837558
B65: 2019 | C65: ='1-2'!D35/100 -> 6574.59 | D65: 29.24456126
A66: 일본 Japan | B66: 1991 | C66: ='1-2'!F7/100 -> 959.4099749 | D66: 22.47614728 | E66: 491102 | F66: 195.3585966
B67: 1992 | C67: ='1-2'!F8/100 -> 1026.527846 | D67: 23.88081112 | E67: 511407 | F67: 200.7262015
B68: 1993 | C68: ='1-2'!F9/100 -> 1145.421313 | D68: 26.54615025 | E68: 526501 | F68: 217.5534923
B69: 1994 | C69: ='1-2'!F10/100 -> 1235.413898 | D69: 26.46311353 | E69: 541015 | F69: 228.3511359
B70: 1995 | C70: ='1-2'!F11/100 -> 1421.338894 | D70: 27.559922 | E70: 551990 | F70: 257.4935948
B71: 1996 | C71: ='1-2'!F12/100 -> 1301.266842 | D71: 26.52567019 | E71: 617365 | F71: 210.7775533
B72: 1997 | C72: ='1-2'!F13/100 -> 1222.739439 | D72: 25.72075357 | E72: 625442 | F72: 195.5000527
B73: 1998 | C73: ='1-2'!F14/100 -> 1158.79211 | D73: 27.11702784 | E73: 652845 | F73: 177.4988106
B74: 1999 | C74: ='1-2'!F15/100 -> 1319.733268 | D74: 27.43414007 | E74: 658910 | F74: 200.2903686
B75: 2000 | C75: ='1-2'!F16/100 -> 1420.159818 | D75: 27.16042937 | E75: 647572 | F75: 219.3053155
B76: 2001 | C76: ='1-2'!F17/100 -> 1278.939895 | D76: 26.53267212 | E76: 653021 | F76: 195.8497345
B77: 2002 | C77: ='1-2'!F18/100 -> 1240.27105 | D77: 25.54143767 | E77: 623035 | F77: 199.0692417
B78: 2003 | C78: ='1-2'!F19/100 -> 1352.793444 | D78: 25.05823513 | E78: 652369 | F78: 207.3662979
B79: 2004 | C79: ='1-2'!F20/100 -> 1458.764049 | D79: 24.86651401 | E79: 653747 | F79: 223.1389282
B80: 2005 | C80: ='1-2'!F21/100 -> 1512.69302 | D80: 23.53134166 | E80: 680631 | F80: 222.2486223
B81: 2006 | C81: ='1-2'!F22/100 -> 1485.258227 | D81: 22.57790316 | E81: 684884 | F81: 216.8627428
B82: 2007 | C82: ='1-2'!F23/100 -> 1507.915572 | D82: 21.96078922 | E82: 684311 | F82: 220.3553021
B83: 2008 | C83: ='1-2'!F24/100 -> 1681.240816 | D83: 21.44899472 | E83: 656676 | F83: 256.0228812
B84: 2009 | C84: ='1-2'!F25/100 -> 1690.468415 | D84: 24.3077514 | E84: 655530 | F84: 257.8781161
B85: 2010 | C85: ='1-2'!F26/100 -> 1788.163745 | D85: 23.62216393 | E85: 656032 | F85: 272.5726405
B86: 2011 | C86: ='1-2'!F27/100 -> 1997.951809 | D86: 22.99726975 | E86: 656651 | F86: 304.2638798
B87: 2012 | C87: ='1-2'!F28/100 -> 1990.663169 | D87: 23.43821221 | E87: 646347 | F87: 307.9867577
B88: 2013 | C88: ='1-2'!F29/100 -> 1709.099497 | D88: 23.99719689 | E88: 660489 | F88: 258.7627496
B89: 2014 | C89: ='1-2'!F30/100 -> 1649.246601 | D89: 22.29254697 | E89: 682935 | F89: 241.4939345
B90: 2015 | C90: ='1-2'!F31/100 -> 1440.471916 | D90: 21.54838148 | E90: 662071 | F90: 217.5706103
B91: 2016 | C91: ='1-2'!F32/100 -> 1554.470742 | D91: 21.1814029 | E91: 665566 | F91: 233.5562126
B92: 2017 | C92: ='1-2'!F33/100 -> 1561.278728 | D92: 21.09041203 | E92: 676292 | F92: 230.8586718
B93: 2018 | C93: ='1-2'!F34/100 -> 1622.758388 | D93: 20.33033179 | E93: 678134 | F93: 239.2976002
B94: 2019 | C94: ='1-2'!F35/100 -> 1647.091919 | D94: 20.50293363 | E94: 681821 | F94: 241.572483
A95: 독일 Germany | B95: 1991 | C95: ='1-2'!H7/100 -> 446.0477779 | D95: 36.36353373 | E95: 241869 | F95: 184.4170927
B96: 1992 | C96: ='1-2'!H8/100 -> 484.5394446 | D96: 36.7557081
B97: 1993 | C97: ='1-2'!H9/100 -> 456.9112957 | D97: 37.50871358 | E97: 230107 | F97: 198.5647093
B98: 1994 | C98: ='1-2'!H10/100 -> 468.8530504 | D98: 37.87678462
B99: 1995 | C99: ='1-2'!H11/100 -> 552.0809581 | D99: 37.95748159 | E99: 231128 | F99: 238.8637284
B100: 1996 | C100: ='1-2'!H12/100 -> 535.5765624 | D100: 38.39860144 | E100: 230189 | F100: 232.6681824
B101: 1997 | C101: ='1-2'!H13/100 -> 484.0494852 | D101: 36.21418283 | E101: 235793 | F101: 205.285774
B102: 1998 | C102: ='1-2'!H14/100 -> 496.1871015 | D102: 35.03167341 | E102: 237712 | F102: 208.7345618
B103: 1999 | C103: ='1-2'!H15/100 -> 515.3276144 | D103: 32.63420039 | E103: 254691 | F103: =C103*100000/E103 -> 202.3344423
B104: 2000 | C104: ='1-2'!H16/100 -> 469.4281175 | D104: 32.01010435 | E104: 257874 | F104: 182.0377849
B105: 2001 | C105: ='1-2'!H17/100 -> 467.840655 | D105: 32.07660249 | E105: 264385 | F105: 176.9543109
B106: 2002 | C106: ='1-2'!H18/100 -> 506.3647607 | D106: 32.208768 | E106: 265812 | F106: 190.4973292
B107: 2003 | C107: ='1-2'!H19/100 -> 619.0593497 | D107: 31.59861407 | E107: 268942 | F107: 230.1832178
B108: 2004 | C108: ='1-2'!H20/100 -> 685.3478696 | D108: 30.92904805 | E108: 270215 | F108: 253.6305792
B109: 2005 | C109: ='1-2'!H21/100 -> 695.1839886 | D109: 28.75085616 | E109: 272148 | F109: 255.4433575
B110: 2006 | C110: ='1-2'!H22/100 -> 740.3849665 | D110: 28.12051452 | E110: 279822 | F110: 264.5914068
B111: 2007 | C111: ='1-2'!H23/100 -> 842.857366 | D111: 27.95062879 | E111: 290853 | F111: 289.7880943
B112: 2008 | C112: ='1-2'!H24/100 -> 979.4359214 | D112: 28.79317899 | E112: 302641 | F112: 323.629621
B113: 2009 | C113: ='1-2'!H25/100 -> 935.5934518 | D113: 30.07318448 | E113: 317307 | F113: 294.8543372
B114: 2010 | C114: ='1-2'!H26/100 -> 928.1900068 | D114: 30.60016156 | E114: 327996 | F114: 282.9882092
B115: 2011 | C115: ='1-2'!H27/100 -> 1051.887525 | D115: 30.23582712 | E115: 338689 | F115: 310.5762294
B116: 2012 | C116: ='1-2'!H28/100 -> 1016.401332 | D116: 29.60206182 | E116: 352419 | F116: 288.4070757
B117: 2013 | C117: ='1-2'!H29/100 -> 1058.902148 | D117: 29.40414114 | E117: 354463 | F117: 298.7341833
B118: 2014 | C118: ='1-2'!H30/100 -> 1119.21924 | D118: 29.01777974 | E118: 351923 | F118: 318.0295803
B119: 2015 | C119: ='1-2'!H31/100 -> 985.046189 | D119: 28.17472685 | E119: 387982 | F119: 253.8896622
B120: 2016 | C120: ='1-2'!H32/100 -> 1020.272453 | D120: 28.83125503 | E120: 399605 | F120: 255.3202421
B121: 2017 | C121: ='1-2'!H33/100 -> 1124.637836 | D121: 28.06597402 | E121: 419617 | F121: 268.0153177
B122: 2018 | C122: ='1-2'!H34/100 -> 1236.093321 | D122: 28.19441794 | E122: 433685.036 | F122: 285.0209758
B123: 2019 | C123: ='1-2'!H35/100 -> 1231.706774 | D123: 28.16502115 | E123: 450697.27 | F123: 273.2891579
A124: 프랑스 France | B124: 1991 | C124: ='1-2'!J7/100 -> 289.0623083 | D124: 49.5018465 | E124: 129780 | F124: 222.7325538
B125: 1992 | C125: ='1-2'!J8/100 -> 319.9524063 | D125: 44.72169692 | E125: 141710 | F125: 225.7796954
B126: 1993 | C126: ='1-2'!J9/100 -> 306.7524529 | D126: 44.81002354 | E126: 145898 | F126: 210.2513077
B127: 1994 | C127: ='1-2'!J10/100 -> 316.2131419 | D127: 43.03178916 | E127: 149193 | F127: 211.9490471
B128: 1995 | C128: ='1-2'!J11/100 -> 358.7958452 | D128: 43.61588642 | E128: 151248.85 | F128: 237.2221972
B129: 1996 | C129: ='1-2'!J12/100 -> 356.9294993 | D129: 43.14138936 | E129: 154827 | F129: 230.5344024
B130: 1997 | C130: ='1-2'!J13/100 -> 311.9335262 | D130: 40.44467391 | E130: 154742.4 | F130: 201.5824533
B131: 1998 | C131: ='1-2'!J14/100 -> 314.8736032 | D131: 39.13989064 | E131: 155727.04 | F131: 202.1958442
B132: 1999 | C132: ='1-2'!J15/100 -> 314.7067459 | D132: 38.8738709 | E132: 160424 | F132: 196.1718607
B133: 2000 | C133: ='1-2'!J16/100 -> 285.8913554 | D133: 40.29828841 | E133: 172070 | F133: 166.1482858
B134: 2001 | C134: ='1-2'!J17/100 -> 294.5490192 | D134: 38.59004232 | E134: 177372 | F134: 166.0628618
B135: 2002 | C135: ='1-2'!J18/100 -> 326.4806455 | D135: 39.91278542 | E135: 186420 | F135: 175.1317699
B136: 2003 | C136: ='1-2'!J19/100 -> 391.0318815 | D136: 40.86217379 | E136: 192789.9118 | F136: 202.8279788
B137: 2004 | C137: ='1-2'!J20/100 -> 443.9808942 | D137: 40.51060024 | E137: 202377.2 | F137: 219.3828624
B138: 2005 | C138: ='1-2'!J21/100 -> 450.7047015 | D138: 40.53699801 | E138: 202506.79 | F138: 222.5627603
B139: 2006 | C139: ='1-2'!J22/100 -> 475.9274289 | D139: 40.69496255 | E139: 210591.0899 | F139: 225.995995
B140: 2007 | C140: ='1-2'!J23/100 -> 538.6404508 | D140: 40.24529168 | E140: 221851.0428 | F140: 242.793743
B141: 2008 | C141: ='1-2'!J24/100 -> 603.9849042 | D141: 41.21622475 | E141: 227678.5299 | F141: 265.2796926
B142: 2009 | C142: ='1-2'!J25/100 -> 597.4536416 | D142: 40.69979144 | E142: 234366.0471 | F142: 254.9232916
B143: 2010 | C143: ='1-2'!J26/100 -> 576.2735404 | D143: 38.95965339 | E143: 243533.2276 | F143: 236.6303548
B144: 2011 | C144: ='1-2'!J27/100 -> 627.9320002 | D144: 37.20861375 | E144: 249246.6 | F144: 251.9320224
B145: 2012 | C145: ='1-2'!J28/100 -> 597.6714487 | D145: 37.07507722 | E145: 258913 | F145: 230.8387175
B146: 2013 | C146: ='1-2'!J29/100 -> 629.0240323 | D146: 37.04083755 | E146: 265465.8112 | F146: 236.951052
B147: 2014 | C147: ='1-2'!J30/100 -> 649.9938889 | D147: 37.86546429 | E147: 271772.2718 | F147: 239.1685821
B148: 2015 | C148: ='1-2'!J31/100 -> 552.9718317 | D148: 38.33728639 | E148: 277631.4976 | F148: 199.1747465
B149: 2016 | C149: ='1-2'!J32/100 -> 549.5878776 | D149: 36.19996954 | E149: 285488 | F149: 192.5082237
B150: 2017 | C150: ='1-2'!J33/100 -> 571.8367476 | D150: 36.09792599 | E150: 295754 | F150: 193.3487789
B151: 2018 | C151: ='1-2'!J34/100 -> 612.1765054 | D151: 35.56787421 | E151: 305243.4525 | F151: 200.5535255
B152: 2019 | C152: ='1-2'!J35/100 -> 599.3294378 | D152: 35.3042791 | E152: 314100.8765 | F152: 190.8079482
A153: 영국 United Kingdom | B153: 1991 | C153: ='1-2'!L7/100 -> 213.9625936 | D153: 38.52621167 | E153: 128000 | F153: 167.1582762
B154: 1992 | C154: ='1-2'!L8/100 -> 217.0334203 | D154: 37.38638202 | E154: 129000 | F154: 168.2429614
B155: 1993 | C155: ='1-2'!L9/100 -> 197.8111966 | D155: 36.51320778 | E155: 131000 | F155: 151.0009134
B156: 1994 | C156: ='1-2'!L10/100 -> 209.4220165 | D156: 37.33283641 | E156: 134000 | F156: 156.285087
B157: 1995 | C157: ='1-2'!L11/100 -> 221.4645524 | D157: 37.33779884 | E157: 145673 | F157: 152.0285519
B158: 1996 | C158: ='1-2'!L12/100 -> 223.6652012 | D158: 36.18512835 | E158: 144735 | F158: 154.5342876
B159: 1997 | C159: ='1-2'!L13/100 -> 239.9432908 | D159: 35.48094374 | E159: 145641.2 | F159: 164.7495975
B160: 1998 | C160: ='1-2'!L14/100 -> 255.9436858 | D160: 35.51048494 | E160: 157662 | F160: 162.3369524
B161: 1999 | C161: ='1-2'!L15/100 -> 273.9009163 | D161: 34.18441609 | E161: 167573.03 | F161: 163.4516702
B162: 2000 | C162: ='1-2'!L16/100 -> 268.0763953 | D162: 35.72017158 | E162: 170554.39 | F162: 157.1794166
B163: 2001 | C163: ='1-2'!L17/100 -> 263.2385861 | D163: 34.72601991 | E163: 182143.84 | F163: 144.5223654
B164: 2002 | C164: ='1-2'!L18/100 -> 288.1765167 | D164: 34.9701994 | E164: 198162.98 | F164: 145.4239923
B165: 2003 | C165: ='1-2'!L19/100 -> 324.8817905 | D165: 37.52267804 | E165: 216689.87 | F165: 149.9293855
B166: 2004 | C166: ='1-2'!L20/100 -> 370.7221063 | D166: 38.78882463 | E166: 228969.09 | F166: 161.9092369
B167: 2005 | C167: ='1-2'!L21/100 -> 394.2050698 | D167: 38.66852388 | E167: 248599.3 | F167: =C167*100000/E167 -> 158.5704665
B168: 2006 | C168: ='1-2'!L22/100 -> 426.930175 | D168: 37.76219557 | E168: 254009 | F168: 168.0767906
B169: 2007 | C169: ='1-2'!L23/100 -> 500.1648152 | D169: 36.76695936 | E169: 252650.8 | F169: 197.966844
B170: 2008 | C170: ='1-2'!L24/100 -> 471.3752514 | D170: 36.83136261 | E170: 251931.7 | F170: 187.1043824
B171: 2009 | C171: ='1-2'!L25/100 -> 402.9106476 | D171: 38.82328833 | E171: 256124.1127 | F171: 157.3107051
B172: 2010 | C172: ='1-2'!L26/100 -> 407.3370737 | D172: 38.32623928 | E172: 256584.957 | F172: 158.753295
B173: 2011 | C173: ='1-2'!L27/100 -> 438.6781192 | D173: 36.37914221 | E173: 251357.6 | F173: 174.5235152
B174: 2012 | C174: ='1-2'!L28/100 -> 426.603396 | D174: 34.54972969 | E174: 256156.4 | F174: 166.5402059
B175: 2013 | C175: ='1-2'!L29/100 -> 451.4125451 | D175: 35.11537622 | E175: 267698.5 | F175: 168.6272224
B176: 2014 | C176: ='1-2'!L30/100 -> 503.5064914 | D176: 34.41744337 | E176: 276583.8 | F176: 182.0448238
B177: 2015 | C177: ='1-2'!L31/100 -> 483.1753355 | D177: 33.94801745 | E177: 284483 | F177: 169.8433072
B178: 2016 | C178: ='1-2'!L32/100 -> 447.314058 | D178: 32.61433884 | E178: 288922 | F178: 154.8217366
B179: 2017 | C179: ='1-2'!L33/100 -> 448.0003913 | D179: 31.84414196 | E179: 295934 | F179: 151.3852384
B180: 2018 | C180: ='1-2'!L34/100 -> 494.6006308 | D180: 31.5292715 | E180: 305794.5 | F180: 161.7428145
B181: 2019 | C181: ='1-2'!L35/100 -> 497.0738214 | E181: 317472 | F181: 156.5724919
A182: 중국 China | B182: 1991 | C182: ='1-2'!N7/100 -> 29.95458535 | E182: 471400 | F182: 6.354388067
B183: 1992 | C183: ='1-2'!N8/100 -> 35.91018157 | E183: 471900 | F183: 7.60970154
B184: 1993 | C184: ='1-2'!N9/100 -> 43.04266015 | E184: 489200 | F184: 8.798581388
B185: 1994 | C185: ='1-2'!N10/100 -> 35.53418405 | E185: 552000 | F185: 6.437352182
B186: 1995 | C186: ='1-2'!N11/100 -> 41.75219606 | E186: 522000 | F186: 7.998504993
B187: 1996 | C187: ='1-2'!N12/100 -> 48.64944507 | E187: 548000 | F187: 8.877635962
B188: 1997 | C188: ='1-2'!N13/100 -> 61.41993243 | E188: 588700 | F188: 10.43314633
B189: 1998 | C189: ='1-2'!N14/100 -> 66.56876385 | E189: 485500 | F189: 13.71138287
B190: 1999 | C190: ='1-2'!N15/100 -> 82.01008667 | E190: 531100 | F190: 15.44155275
B191: 2000 | C191: ='1-2'!N16/100 -> 108.1916491 | D191: 33.40757984 | E191: 695062 | F191: 15.56575516
B192: 2001 | C192: ='1-2'!N17/100 -> 125.9479806 | E192: 742726 | F192: 16.95752951
B193: 2002 | C193: ='1-2'!N18/100 -> 155.5643994 | E193: 810525 | F193: 19.19304147
B194: 2003 | C194: ='1-2'!N19/100 -> 186.0122167 | D194: 29.91368056 | E194: 862108 | F194: 21.57644015
B195: 2004 | C195: ='1-2'!N20/100 -> 237.5712549 | D195: 26.62828722 | E195: 926252 | F195: 25.64866309
B196: 2005 | C196: ='1-2'!N21/100 -> 298.9844181 | D196: 26.34432598 | E196: 1118698 | F196: 26.72610643
B197: 2006 | C197: ='1-2'!N22/100 -> 376.637606 | D197: 24.71215212 | E197: 1223756.4 | F197: 30.7771715
B198: 2007 | C198: ='1-2'!N23/100 -> 487.7063941 | D198: 24.62071207 | E198: 1423381 | F198: 34.26393876
B199: 2008 | C199: ='1-2'!N24/100 -> 664.3043582 | D199: 23.58937516 | E199: 1592420 | F199: 41.71665504
B200: 2009 | C200: ='1-2'!N25/100 -> 849.3271088 | D200: 23.40996205 | E200: 1152311 | F200: 73.70641335
B201: 2010 | C201: ='1-2'!N26/100 -> 1043.175242 | D201: 24.0181169 | E201: 1210840.8 | F201: 86.15296426
B202: 2011 | C202: ='1-2'!N27/100 -> 1344.434223 | D202: 21.67564849 | E202: 1318086 | F202: 101.998976
... 11 more rows

Sheet 1-4
A1: 1-4) 주요국의 연구원 및 인구 만명당 연구원
A2: Researchers and researchers per 10,000 population in major countries
O4: (단위 : 명 Unit : person)
A5: 연도별 Year | B5: 한국 Korea | D5: 미국 United States | F5: 일본 Japan | H5: 독일 Germany | J5: 프랑스 France | L5: 영국 United Kingdom | N5: 중국 China
C6: 인구만명당 per 10,000 population | E6: 인구만명당 per 10,000 population | G6: 인구만명당 per 10,000 population | I6: 인구만명당 per 10,000 population | K6: 인구만명당 per 10,000 population | M6: 인구만명당 per 10,000 population | O6: 인구만명당 per 10,000 population
A7: 1991 | B7: 76,252(73,275) | C7: 17.6(16.9) | D7: 746155 | E7: 29.43063937 | F7: 491102 | G7: 39.57276734 | H7: 241869 | I7: 30.24383229 | J7: 129780 | K7: 22.16642755 | L7: 128000 | M7: 22.28451052 | N7: 471400 | O7: 4.070003367
A8: 1992 | B8: 88,764(85,268) | C8: 20.3(19.5) | D8: 765469 | E8: 29.79382848 | F8: 511407 | G8: 41.05477374 | J8: 141710 | K8: 24.08436581 | L8: 129000 | M8: 22.4016671 | N8: 471900 | O8: 4.027447065
A9: 1993 | B9: 98,764(93,680) | C9: 22.3(21.2) | D9: 781241 | E9: 30.01517585 | F9: 526501 | G9: 42.14098193 | H9: 230107 | I9: 28.42722309 | J9: 145898 | K9: 24.68872155 | L9: 131000 | M9: 22.69813217 | N9: 489200 | O9: 4.127677886
A10: 1994 | B10: 117,446(89,018) | C10: 26.3(19.9) | D10: 774354 | E10: 29.39226813 | F10: 541015 | G10: 43.24107228 | J10: 149193 | K10: 25.15265953 | L10: 134000 | M10: 23.15854965 | N10: 552000 | O10: 4.605757196
A11: 1995 | B11: 128,315(100,456) | C11: 28.5(22.3) | D11: 796548 | E11: 29.87936441 | F11: 551990 | G11: 44.00570809 | H11: 231128 | I11: 28.42623112 | J11: 151248.85 | K11: 25.40716445 | L11: 145673 | M11: 25.10521327 | N11: 522000 | O11: 4.309739847
A12: 1996 | B12: 132,023(99,433) | C12: 29.0(21.8) | D12: 842820 | E12: 31.24865598 | F12: 617365 | G12: 49.1098631 | H12: 230189 | I12: 28.25583679 | J12: 154827 | K12: 25.91593854 | L12: 144735 | M12: 24.88394883 | N12: 548000 | O12: 4.477526575
A13: 1997 | B13: 138,438(102,660) | C13: 30.1(22.3) | D13: 881271 | E13: 32.28595608 | F13: 625442 | G13: 49.63392085 | H13: 235793 | I13: 28.92810698 | J13: 154742.4 | K13: 25.80975732 | L13: 145641.2 | M13: 24.9753404 | N13: 588700 | O13: 4.761943281
A14: 1998 | B14: 129,767(92,541) | C14: 28.0(20.0) | D14: 937900 | E14: 33.96293373 | F14: 652845 | G14: 51.6699776 | H14: 237712 | I14: 29.18645483 | J14: 155727.04 | K14: 25.87859612 | L14: 157662 | M14: 26.96229158 | N14: 485500 | O14: 3.891440434
A15: 1999 | B15: 134,568(100,210) | C15: 28.9(21.5) | D15: 965370 | E15: 34.56044507 | F15: 658910 | G15: 52.05194846 | H15: 254691 | I15: 31.28036649 | J15: 160424 | K15: 26.52206259 | L15: 167573.03 | M15: 28.55514791 | N15: 531100 | O15: 4.222250489
A16: 2000 | B16: 159,973(108,370) | C16: 34.0(23.1) | D16: 984965 | E16: 34.87861104 | F16: 647572 | G16: 51.0578644 | H16: 257874 | I16: 31.65768442 | J16: 172070 | K16: 28.25312382 | L16: 170554.39 | M16: 28.96348708 | N16: 695062 | O16: 5.484026731
A17: 2001 | B17: 178,937(136,337) | C17: 37.8(28.8) | D17: 1015318 | E17: 35.59709002 | F17: 653021 | G17: 51.36558852 | H17: 264385 | I17: 32.43311211 | J17: 177372 | K17: 28.91243398 | L17: 182143.84 | M17: 30.8128229 | N17: 742726 | O17: 5.819505277
A18: 2002 | B18: 189,888(141,917) | C18: 39.9(29.8) | D18: 1049197 | E18: 36.43614454 | F18: 623035 | G18: 48.90384615 | H18: 265812 | I18: 32.58378484 | J18: 186420 | K18: 30.1670011 | L18: 198162.98 | M18: 33.37987737 | N18: 810525 | O18: 6.309895448
A19: 2003 | B19: 198,171(151,254) | C19: 41.4(31.6) | D19: 1128803 | E19: 38.84039969 | F19: 652369 | G19: 51.11247787 | H19: 268942 | I19: 32.97919043 | J19: 192789.9118 | K19: 30.97773147 | L19: 216689.87 | M19: 36.3348039 | N19: 862108 | O19: 6.671268388
A20: 2004 | B20: 209,979(156,220) | C20: 43.7(32.5) | D20: 1107758 | E20: 37.77366314 | F20: 653747 | G20: 51.18034353 | H20: 270215 | I20: 33.17312414 | J20: 202377.2 | K20: 32.27963952 | L20: 228969.09 | M20: 38.19334279 | N20: 926252 | O20: 7.125673139
A21: 2005 | B21: 234,702(179,812) | C21: 48.7(37.3) | D21: 1104019 | E21: 37.29882126 | F21: 680631 | G21: 53.27627099 | H21: 272148 | I21: 33.45931126 | J21: 202506.79 | K21: 32.05844573 | L21: 248599.3 | M21: 41.14996772 | N21: 1118698 | O21: 8.555615039
A22: 2006 | B22: 256,598(199,990) | C22: 53.0(41.3) | D22: 1133369 | E22: 37.92840458 | F22: 684884 | G22: 53.57436756 | H22: 279822 | I22: 34.4722999 | J22: 210591.0899 | K22: 33.10712162 | L22: 254009 | M22: 41.75925165 | N22: 1223756.4 | O22: 9.309813767
A23: 2007 | B23: 289,098(221,928) | C23: 59.4(45.6) | D23: 1136653 | E23: 37.6754415 | F23: 684311 | G23: 53.47015159 | H23: 290853 | I23: 35.91132458 | J23: 221851.0428 | K23: 34.66260063 | L23: 252650.8 | M23: 41.20269411 | N23: 1423381 | O23: 10.77266157
A24: 2008 | B24: 300,050(236,137) | C24: 61.2(48.1) | D24: 1194367 | E24: 39.21833698 | F24: 656676 | G24: 51.28478269 | H24: 302641 | I24: 37.47226487 | J24: 227678.5299 | K24: 35.37523188 | L24: 251931.7 | M24: 40.74982208 | N24: 1592420 | O24: 11.99093387
A25: 2009 | B25: 323,175(244,077) | C25: 65.5(49.5) | D25: 1252882 | E25: 40.77860956 | F25: 655530 | G25: 51.19968133 | H25: 317307 | I25: 39.42534448 | J25: 234366.0471 | K25: 36.22797983 | L25: 256124.1127 | M25: 41.13716656 | N25: 1152311 | O25: 8.63477707
A26: 2010 | B26: 345,912(264,118) | C26: 69.8(53.3) | D26: 1200535 | E26: 38.75443863 | F26: 656032 | G26: 51.23528815 | H26: 327996 | I26: 40.85446664 | J26: 243533.2276 | K26: 37.46031096 | L26: 256584.957 | M26: 40.88351769 | N26: 1210840.8 | O26: 9.029993064
A27: 2011 | B27: 375,176(288,901) | C27: 75.1(57.9) | D27: 1254786 | E27: 40.21621102 | F27: 656651 | G27: 51.36868209 | H27: 338689 | I27: 42.19109312 | J27: 249246.6 | K27: 38.15193632 | L27: 251357.6 | M27: 39.71835348 | N27: 1318086 | O27: 9.782803281
A28: 2012 | B28: 401,724(315,589) | C28: 80.0(62.9) | D28: 1253231 | E28: 39.88488664 | F28: 646347 | G28: 50.67321563 | H28: 352419 | I28: 43.81903862 | J28: 258913 | K28: 39.43778465 | L28: 256156.4 | M28: 40.20977945 | N28: 1404017 | O28: 10.36909545
A29: 2013 | B29: 410,333(321,842) | C29: 81.4(63.8) | D29: 1294690.312 | E29: 40.92497756 | F29: 660489 | G29: 51.87099966 | H29: 354463 | I29: 43.95295489 | J29: 265465.8112 | K29: 40.22757818 | L29: 267698.5 | M29: 41.75872773 | N29: 1484039.7 | O29: 10.9062827
A30: 2014 | B30: 437,447(345,463) | C30: 86.2(68.1) | D30: 1340689.004 | E30: 42.07654006 | F30: 682935 | G30: 53.66370165 | H30: 351923 | I30: 43.45640443 | J30: 271772.2718 | K30: 40.98387498 | L30: 276583.8 | M30: 42.81681812 | N30: 1524280.3 | O30: 11.14386615
A31: 2015 | B31: 453,262(356,447) | C31: 88.8(69.9) | D31: 1370627.274 | E31: 42.70957921 | F31: 662071 | G31: 52.08646055 | H31: 387982 | I31: 47.49617442 | J31: 277631.4976 | K31: 41.69830696 | L31: 284483 | M31: 43.69267394 | N31: 1619027.7 | O31: 11.77800192
A32: 2016 | B32: 460,769(361,292) | C32: 90.0(70.5) | D32: 1373550.665 | E32: 42.50031453 | F32: 665566 | G32: 52.43443391 | H32: 399605 | I32: 48.52578659 | J32: 285488 | K32: 42.71790038 | L32: 288922 | M32: 44.01078479 | N32: 1692175.8 | O32: 12.23811067
A33: 2017 | B33: 482,796(383,100) | C33: 94.0(74.6) | D33: 1435904.51 | E33: 44.15178988 | F33: 676292 | G33: 53.37489937 | H33: 419617 | I33: 50.76605732 | J33: 295754 | K33: 44.10092003 | L33: 295934 | M33: 44.81132647 | N33: 1740442.2 | O33: 12.52044631
A34: 2018 | B34: 514,170(408,370) | C34: 99.6(79.1) | D34: 1554899.56 | E34: 47.55786255 | F34: 678134 | G34: 53.63159685 | H34: 433685.036 | I34: 52.31045232 | J34: 305243.4525 | K34: 45.3792392 | L34: 305794.5 | M34: 46.02843338 | N34: 1866108.8 | O34: 13.37348106
A35: 2019 | B35: 538,136(430,690) | C35: 104.1(83.3) | F35: 681821 | G35: 54.0527192 | H35: 450697.27 | I35: 54.24010085 | J35: 314100.8765 | K35: 46.5638159 | L35: 317472 | M35: 47.52788299 | N35: 2109459.8 | O35: 15.06703189
A36: 2020 | B36: 558,045(446,739) | C36: 107.6(86.1)
A37: 2018
A39: 주 : 상근상당 연구원 기준임. 한국은 괄호 안의 수치가 상근상당 연구원
A40: 자료 : OECD, Main Science and Technology Indicators 2021-september, 2021

Sheet 1-5
A1: 1-5) 주요국의 연구개발단계별 연구개발비 비율
A2: Percentage of R&D expenditure by type of R&D in major countries
V3: (단위 : % Unit : %)
A4: 연도 Year | B4: 한국 Korea | E4: 미국 United States | I4: 일본 Japan | M4: 프랑스 France | Q4: 영국 United Kingdom | T4: 중국 China
B5: 기초 Basic research | C5: 응용 Applied research | D5: 개발 Exper-imental develop-ment | E5: 기초 Basic research | F5: 응용 Applied research | G5: 개발 Exper-imental develop-ment | H5: 기타 Others | I5: 기초 Basic research | J5: 응용 Applied research | K5: 개발 Exper-imental develop-ment | L5: 기타 Others | M5: 기초 Basic research | N5: 응용 Applied research | O5: 개발 Exper-imental develop-ment | P5: 기타 Others | Q5: 기초 Basic research | R5: 응용 Applied research | S5: 개발 Exper-imental develop-ment | T5: 기초 Basic research | U5: 응용 Applied research | V5: 개발 Exper-imental develop-ment
A6: 1991 | B6: 14.83695809 | C6: 30.7327267 | D6: 54.43031521 | E6: 16.9 | F6: 24 | G6: 59.1 | I6: 12.3 | J6: 22.7 | K6: 57.3 | L6: 7.7 | M6: 20.3 | N6: 30.9 | O6: 48.8 | T6: 4.7 | U6: 24.4 | V6: 71
A7: 1992 | B7: 12.60038272 | C7: 26.32427018 | D7: 61.0753471 | E7: 16.7 | F7: 22.9 | G7: 60.4 | I7: 12.8 | J7: 22.4 | K7: 56.8 | L7: 8 | M7: 20.8 | N7: 31.7 | O7: 47.5 | T7: 4.5 | U7: 25.4 | V7: 70.1
A8: 1993 | B8: 13.1535387 | C8: 24.33231166 | D8: 62.51414964 | E8: 17.3 | F8: 22.5 | G8: 60.2 | I8: 13.5 | J8: 21.9 | K8: 55.9 | L8: 8.6 | M8: 21.7 | N8: 29.3 | O8: 49 | T8: 4.8 | U8: 25.8 | V8: 69.4
A9: 1994 | B9: 14.3378267 | C9: 23.82374303 | D9: 61.83843027 | E9: 17.5 | F9: 21.6 | G9: 60.8 | I9: 13.7 | J9: 22.5 | K9: 55.3 | L9: 8.6 | M9: 22.2 | N9: 29.1 | O9: 48.7 | T9: 5.5 | U9: 27.3 | V9: 67.2
A10: 1995 | B10: 12.46550234 | C10: 25.02074233 | D10: 62.51375534 | E10: 16.1 | F10: 22.3 | G10: 61.6 | I10: 14.2 | J10: 22.5 | K10: 55 | L10: 8.4 | M10: 22.2 | N10: 29.6 | O10: 48.2 | T10: 5.2 | U10: 26.4 | V10: 68.4
A11: 1996 | B11: 13.22865427 | C11: 26.90987762 | D11: 60 | E11: 16.6 | F11: 21.9 | G11: 61.5 | I11: 12.2 | J11: 22.3 | K11: 59.5 | L11: 6 | M11: 22 | N11: 28.5 | O11: 49.5 | T11: 5 | U11: 24.5 | V11: 70.5
A12: 1997 | B12: 13.2653508 | C12: 28.48034337 | D12: 58 | E12: 17.4 | F12: 21.9 | G12: 60.7 | I12: 12 | J12: 22.5 | K12: 59.8 | L12: 5.7 | M12: 22 | N12: 29.6 | O12: 48.3 | T12: 5.4 | U12: 26 | V12: 68.6
A13: 1998 | B13: 13.98448034 | C13: 25.12617534 | D13: 61 | E13: 15.6 | F13: 20.5 | G13: 63.9 | I13: 12 | J13: 22.6 | K13: 59.4 | L13: 5.9 | M13: 25.1 | N13: 26.8 | O13: 48.2 | T13: 5.3 | U13: 22.6 | V13: 72.1
A14: 1999 | B14: 13.63454835 | C14: 25.71095939 | D14: 60.65449226 | E14: 15.9 | F14: 21.3 | G14: 62.9 | I14: 12.3 | J14: 21.6 | K14: 60.2 | L14: 6 | M14: 24.4 | N14: 27.5 | O14: 48.1 | T14: 5 | U14: 22.3 | V14: 72.7
A15: 2000 | B15: 12.60885897 | C15: 24.33540519 | D15: 63.05573585 | E15: 15.9 | F15: 21.1 | G15: 63 | I15: 12.4 | J15: 22 | K15: 59.8 | L15: 5.9 | M15: 23.6 | N15: 32.6 | O15: 43.8 | T15: 5.2 | U15: 17 | V15: 77.8
A16: 2001 | B16: 12.56954763 | C16: 25.29987061 | D16: 62.13058176 | E16: 17.1 | F16: 22.9 | G16: 60 | I16: 12.2 | J16: 21.2 | K16: 59.9 | L16: 6.7 | M16: 23.3 | N16: 33.5 | O16: 43.2 | T16: 5.3 | U16: 17.7 | V16: 76.9
A17: 2002 | B17: 13.69826075 | C17: 21.72343024 | D17: 64.57830901 | E17: 18.6 | F17: 18.2 | G17: 63.2 | I17: 12.6 | J17: 21 | K17: 61 | L17: 5.4 | M17: 23.4 | N17: 35.7 | O17: 40.9 | T17: 5.7 | U17: 19.2 | V17: 75.1
A18: 2003 | B18: 14.46676253 | C18: 20.84042308 | D18: 64.69281439 | E18: 19.1 | F18: 20.9 | G18: 59.9 | I18: 12.6 | J18: 21.2 | K18: 60.9 | L18: 5.2 | M18: 24.1 | N18: 36.2 | O18: 39.7 | T18: 5.7 | U18: 20.2 | V18: 74.1
A19: 2004 | B19: 15.32273018 | C19: 21.23997273 | D19: 63.4372971 | E19: 19 | F19: 22.8 | G19: 58.2 | I19: 12 | J19: 21.2 | K19: 61.6 | L19: 5.3 | M19: 23.8 | N19: 37.1 | O19: 39.1 | T19: 6 | U19: 20.4 | V19: 73.7
A20: 2005 | B20: 15.34579047 | C20: 20.8406665 | D20: 63.81354303 | E20: 18.7 | F20: 21.4 | G20: 59.9 | I20: 12 | J20: 21 | K20: 61.8 | L20: 5.2 | M20: 23.9 | N20: 38.6 | O20: 37.5 | T20: 5.4 | U20: 17.7 | V20: 76.9
A21: 2006 | B21: 15.15145805 | C21: 19.85722715 | D21: 64.9913148 | E21: 17.9 | F21: 21.8 | G21: 60.4 | I21: 11.6 | J21: 20.5 | K21: 62.9 | L21: 5 | M21: 23.9 | N21: 39 | O21: 37.1 | T21: 5.2 | U21: 16.8 | V21: 78
A22: 2007 | B22: 15.71396864 | C22: 19.8420471 | D22: 64.44398426 | E22: 17.9 | F22: 22 | G22: 60.1 | I22: 11.6 | J22: 21.5 | K22: 62 | L22: 5 | M22: 24.9 | N22: 38.5 | O22: 36.6 | Q22: 15.738015 | R22: 43.953225 | S22: 40.308759 | T22: 4.7 | U22: 13.3 | V22: 82
A23: 2008 | B23: 16.05044347 | C23: 19.63551202 | D23: 64.31404451 | E23: 17.7 | F23: 18.4 | G23: 63.9 | I23: 11.4 | J23: 21.7 | K23: 62.6 | L23: 4.3 | M23: 25.3 | N23: 39.3 | O23: 35.3 | Q23: 15.847933 | R23: 44.05293 | S23: 40.099137 | T23: 4.8 | U23: 12.5 | V23: 82.8
A24: 2009 | B24: 18.05791386 | C24: 19.96990754 | D24: 61.9721786 | E24: 18.2 | F24: 18.7 | G24: 63.1 | I24: 12.5 | J24: 22.3 | K24: 60.5 | L24: 4.7 | M24: 26.1 | N24: 39.6 | O24: 34.3 | Q24: 16.815139 | R24: 45.627059 | S24: 37.557802 | T24: 4.7 | U24: 12.6 | V24: 82.7
A25: 2010 | B25: 18.22152555 | C25: 19.93546337 | D25: 61.84301108 | E25: 18.4 | F25: 20.4 | G25: 61.2 | I25: 12.1 | J25: 21.2 | K25: 61.9 | L25: 4.7 | M25: 25.1 | N25: 38.2 | O25: 32.8 | P25: 3.9 | Q25: 17.813005 | R25: 46.229829 | S25: 35.957166 | T25: 4.6 | U25: 12.7 | V25: 82.8
A26: 2011 | B26: 18.06601663 | C26: 20.27751826 | D26: 61.65646511 | E26: 17.4 | F26: 19.6 | G26: 63 | I26: 12.3 | J26: 21 | K26: 62.1 | L26: 4.6 | M26: 24.3 | N26: 37 | O26: 34.8 | P26: 3.8 | Q26: 16.37381 | R26: 46.897518 | S26: 36.728672 | T26: 4.7 | U26: 11.8 | V26: 83.4
A27: 2012 | B27: 18.31071297 | C27: 19.06696209 | D27: 62.62232494 | E27: 16.9 | F27: 20 | G27: 62.9 | H27: 0.2 | I27: 12.5 | J27: 20.8 | K27: 62.1 | L27: 4.7 | M27: 24.1 | N27: 37.3 | O27: 35.2 | P27: 3.4 | Q27: 16.774421 | R27: 45.722802 | S27: 37.502777 | T27: 4.8 | U27: 11.3 | V27: 83.9
A28: 2013 | B28: 17.98582541 | C28: 19.08212842 | D28: 62.93204618 | E28: 17.4 | F28: 19.4 | G28: 63.1 | H28: 0.2 | I28: 12.6 | J28: 20.9 | K28: 61.8 | L28: 4.7 | M28: 24.3 | N28: 37.8 | O28: 34.5 | P28: 3.4 | Q28: 16.817257 | R28: 45.639669 | S28: 37.543074 | T28: 4.7 | U28: 10.7 | V28: 84.6
A29: 2014 | B29: 17.63984403 | C29: 18.92000189 | D29: 63.44015408 | E29: 17.3 | F29: 19.2 | G29: 63.2 | H29: 0.2 | I29: 12.3 | J29: 19.9 | K29: 63.4 | L29: 4.4 | M29: 23.9 | N29: 38.6 | O29: 34.3 | P29: 3.2 | Q29: 16.910025 | R29: 43.327037 | S29: 39.762938 | T29: 4.7 | U29: 10.7 | V29: 84.5
A30: 2015 | B30: 17.2252361 | C30: 20.8385165 | D30: 61.9362474 | E30: 17 | F30: 19.6 | G30: 63.1 | H30: 0.3 | I30: 11.9 | J30: 19.9 | K30: 63.7 | L30: 4.5 | M30: 23.8 | N30: 37.9 | O30: 35.2 | P30: 3.1 | Q30: 16.656179 | R30: 44.30423 | S30: 39.039591 | T30: 5.1 | U30: 10.8 | V30: 84.2
A31: 2016 | B31: 15.97373093 | C31: 22.5074713 | D31: 61.51879777 | E31: 17.2 | F31: 20.4 | G31: 62.2 | H31: 0.2 | I31: 12.6 | J31: 18.9 | K31: 64 | L31: 4.5 | M31: 22.3 | N31: 42.2 | O31: 35.5 | Q31: 18.098867 | R31: 43.990437 | S31: 37.910696 | T31: 5.2 | U31: 10.3 | V31: 84.5
A32: 2017 | B32: 14.45769859 | C32: 21.97751017 | D32: 63.56479124 | E32: 16.8 | F32: 20 | G32: 63.1 | H32: 0.2 | I32: 13.1 | J32: 18.7 | K32: 63.9 | L32: 4.3 | M32: 22.7 | N32: 41.9 | O32: 35.4 | Q32: 17.356343 | R32: 42.651241 | S32: 39.992416 | T32: 5.5 | U32: 10.5 | V32: 84
A33: 2018 | B33: 14.20815263 | C33: 21.95846956 | D33: 63.83337781 | E33: 16.6 | F33: 19.1 | G33: 64 | H33: 0.2 | I33: 12.6 | J33: 19 | K33: 64.3 | L33: 4.2 | M33: 22.7 | N33: 41.3 | O33: 36.1 | Q33: 18.278459 | R33: 42.056667 | S33: 39.664874 | T33: 5.5 | U33: 11.1 | V33: 83.3
A34: 2019 | B34: 14.66898367 | C34: 22.50511059 | D34: 62.82590574 | E34: 16.4 | F34: 19 | G34: 64.4 | H34: 0.2 | I34: 12.5 | J34: 18.6 | K34: 64.8 | L34: 4.1 | T34: 6 | U34: 11.3 | V34: 82.7
A35: 2020 | B35: 14.44918335 | C35: 21.57329415 | D35: 63.9775225
A37: 주 : 1. 공란은 데이터 없음
A38: 2. 프랑스는 2010년(조사대상년도)부터 '기타' 추가됨
A39: 3. 미국은 2012년(조사대상년도)부터 '기타' 추가됨
A40: 4. 사사오입으로 인해 합계(100.0%) 수치 마지막 단위에서 차이 발생할 수 도 있음
A41: 자료 : OECD, Research & Development Statistics 2021, 2021

Sheet 1-6
A1: 1-6) 주요국의 연구수행주체별 연구개발비 비율
A2: Percentage of R&D expenditure by sector of performance in major countries
F4: (단위 : % Unit : %)
A5: 국가 · 연도 Country · Year | C5: 공공연구기관 Public research institutes | E5: 대학 Higher educations | F5: 기업체 Business enterprises
C6: 국립·공립·출연(연) Government | D6: 비영리법인 Private non-profit
A7: 한국 Korea | B7: 1995 | C7: 16.95810629 | D7: 1.148485595 | E7: 8.165916468 | F7: 73.72749165
B8: 1996 | C8: 16.21583832 | D8: 1.21023529 | E8: 9.365842224 | F8: 73.20808417
B9: 1997 | C9: 15.77635359 | D9: 1.201602815 | E9: 10.43508239 | F9: 72.58696121
B10: 1998 | C10: 17.45863868 | D10: 1.060730904 | E10: 11.15918444 | F10: 70.32144598
B11: 1999 | C11: 14.45170978 | D11: 2.149658876 | E11: 12.00680068 | F11: 71.39183066
B12: 2000 | C12: 13.31462517 | D12: 1.358313077 | E12: 11.27821704 | F12: 74.04884471
B13: 2001 | C13: 12.36004099 | D13: 1.048370813 | E13: 10.4079626 | F13: 76.18362559
B14: 2002 | C14: 13.40725045 | D14: 1.326481533 | E14: 10.37279999 | F14: 74.89346803
B15: 2003 | C15: 12.59159456 | D15: 1.18153951 | E15: 10.13527365 | F15: 76.09159228
B16: 2004 | C16: 12.06139413 | D16: 1.160288557 | E16: 10.06185393 | F16: 76.71646338
B17: 2005 | C17: 11.8607284 | D17: 1.357372742 | E17: 9.928555312 | F17: 76.85334355
B18: 2006 | C18: 11.55986545 | D18: 1.22843244 | E18: 9.953570733 | F18: 77.25813138
B19: 2007 | C19: 11.6558146 | D19: 1.450208393 | E19: 10.65166731 | F19: 76.2423097
B20: 2008 | C20: 12.05731407 | D20: 1.431086235 | E20: 11.14482984 | F20: 75.36676985
B21: 2009 | C21: 13.01865539 | D21: 1.636243625 | E21: 11.0846966 | F21: 74.26040438
B22: 2010 | C22: 12.67379517 | D22: 1.705773542 | E22: 10.82083371 | F22: 74.79959757
B23: 2011 | C23: 11.72849965 | D23: 1.647437559 | E23: 10.0897459 | F23: 76.5343169
B24: 2012 | C24: 11.25369393 | D24: 1.280566076 | E24: 9.516532792 | F24: 77.9492072
B25: 2013 | C25: 10.91364587 | D25: 1.330189391 | E25: 9.24154266 | F25: 78.51462207
B26: 2014 | C26: 11.21289607 | D26: 1.516078725 | E26: 9.04846612 | F26: 78.22255909
B27: 2015 | C27: 11.74255052 | D27: 1.635501024 | E27: 9.094799301 | F27: 77.52714915
B28: 2016 | C28: 11.54450843 | D28: 1.585815206 | E28: 9.134557346 | F28: 77.73511902
B29: 2017 | C29: 10.69907722 | D29: 1.413266766 | E29: 8.481522957 | F29: 79.40613306
B30: 2018 | C30: 10.07387259 | D30: 1.40870641 | E30: 8.224099743 | F30: 80.29332125
B31: 2019 | C31: 9.992599744 | D31: 1.426939593 | E31: 8.278372787 | F31: 80.30208788
B32: 2020 | C32: 10.10799455 | D32: 1.838235735 | E32: 8.975178989 | F32: 79.07859072
A33: 미국 United States | B33: 1991 | C33: 14.78314995 | D33: 2.882557933 | E33: 11.27873381 | F33: 71.0555583
B34: 1992 | C34: 14.89442177 | D34: 3.010594158 | E34: 11.68934837 | F34: 70.4056357
B35: 1993 | C35: 15.02029822 | D35: 3.170275296 | E35: 12.33158677 | F35: 69.47783972
B36: 1994 | C36: 14.75359706 | D36: 3.300808581 | E36: 12.73372866 | F36: 69.21186569
B37: 1995 | C37: 14.02277367 | D37: 3.165410361 | E37: 12.28154574 | F37: 70.53027022
B38: 1996 | C38: 12.89454615 | D38: 3.139280063 | E38: 11.98606722 | F38: 71.98010656
B39: 1997 | C39: 12.12961715 | D39: 3.115215061 | E39: 11.69330667 | F39: 73.06186112
B40: 1998 | C40: 11.59808579 | D40: 3.234861237 | E40: 11.53242793 | F40: 73.63462505
B41: 1999 | C41: 11.01251079 | D41: 3.360646391 | E41: 11.47026243 | F41: 74.15658038
B42: 2000 | C42: 10.78834787 | D42: 3.629880562 | E42: 11.38831893 | F42: 74.19345263
B43: 2001 | C43: 11.88489784 | D43: 3.99481869 | E43: 12.03262941 | F43: 72.08765407
B44: 2002 | C44: 12.8424994 | D44: 4.355266872 | E44: 13.53669821 | F44: 69.26553551
B45: 2003 | C45: 12.9088793 | D45: 4.503967984 | E45: 14.27895675 | F45: 68.30785566
B46: 2004 | C46: 12.63610784 | D46: 4.559612616 | E46: 14.65187803 | F46: 68.15240152
B47: 2005 | C47: 12.30556368 | D47: 4.444911742 | E47: 14.32550712 | F47: 68.92401746
B48: 2006 | C48: 11.9594258 | D48: 4.090250419 | E48: 13.85426572 | F48: 70.09605805
B49: 2007 | C49: 11.75390991 | D49: 3.99615057 | E49: 13.44907919 | F49: 70.80086034
B50: 2008 | C50: 11.34962847 | D50: 4.032040232 | E50: 13.23967803 | F50: 71.37865327
B51: 2009 | C51: 12.02248988 | D51: 4.4731241 | E51: 14.01852832 | F51: 69.48561164
B52: 2010 | C52: 12.70955613 | D52: 4.540677359 | E52: 14.72202647 | F52: 68.02774005
B53: 2011 | C53: 12.79083836 | D53: 4.25577954 | E53: 14.52679436 | F53: 68.42658774
B54: 2012 | C54: 12.28090775 | D54: 4.111900799 | E54: 14.02006221 | F54: 69.58712924
B55: 2013 | C55: 11.50709251 | D55: 4.104559596 | E55: 13.52322863 | F55: 70.86533898
B56: 2014 | C56: 11.3429056 | D56: 4.154481209 | E56: 13.0716159 | F56: 71.43099729
B57: 2015 | C57: 11.02374907 | D57: 4.191428393 | E57: 13.03123859 | F57: 71.75358394
B58: 2016 | C58: 10.0447334 | D58: 4.372125238 | E58: 12.96732816 | F58: 72.6158132
B59: 2017 | C59: 9.72853078 | D59: 4.551149201 | E59: 12.78132375 | F59: 72.93899627
B60: 2018 | C60: 9.913839934 | D60: 4.397883695 | E60: 12.32925195 | F60: 73.35902442
B61: 2019 | C61: 9.88061613 | D61: 4.251824068 | E61: 11.9729139 | F61: 73.8944938
A62: 일본 Japan | B62: 1991 | C62: 8.102017566 | D62: 4.437154071 | E62: 12.07294985 | F62: 75.38787851
B63: 1992 | C63: 8.923090579 | D63: 4.710573988 | E63: 12.82890264 | F63: 73.53744049
B64: 1993 | C64: 10.03891753 | D64: 4.853475567 | E64: 14.02550088 | F64: 71.08210603
B65: 1994 | C65: 9.712815845 | D65: 5.043203656 | E65: 14.12394326 | F65: 71.12004516
B66: 1995 | C66: 10.39813304 | D66: 4.78733207 | E66: 14.53359998 | F66: 70.28093492
B67: 1996 | C67: 9.385584997 | D67: 4.79864512 | E67: 14.75699358 | F67: 71.05876218
B68: 1997 | C68: 8.834482558 | D68: 4.846326525 | E68: 14.27420385 | F68: 72.04498707
B69: 1998 | C69: 9.248435795 | D69: 4.707353445 | E69: 14.84691055 | F69: 71.19730021
B70: 1999 | C70: 9.856745247 | D70: 4.587405023 | E70: 14.84207718 | F70: 70.71377255
B71: 2000 | C71: 9.890160511 | D71: 4.620030432 | E71: 14.52853205 | F71: 70.96128355
B72: 2001 | C72: 9.535102442 | D72: 2.326282833 | E72: 14.46465127 | F72: 73.67395059
B73: 2002 | C73: 9.537406425 | D73: 2.139110195 | E73: 13.88158181 | F73: 74.44188871
B74: 2003 | C74: 9.310090419 | D74: 2.052921805 | E74: 13.66002646 | F74: 74.97696131
B75: 2004 | C75: 9.488502727 | D75: 1.893181686 | E75: 13.42684855 | F75: 75.19146703
B76: 2005 | C76: 8.29023276 | D76: 1.85798499 | E76: 13.4041044 | F76: 76.44767785
B77: 2006 | C77: 8.281147757 | D77: 1.869215364 | E77: 12.69429021 | F77: 77.15534666
B78: 2007 | C78: 7.76839103 | D78: 1.747453486 | E78: 12.59359668 | F78: 77.8905588
B79: 2008 | C79: 8.329088312 | D79: 1.57234011 | E79: 11.6367808 | F79: 78.46179078
B80: 2009 | C80: 9.214585053 | D80: 1.612987655 | E80: 13.41032037 | F80: 75.76210692
B81: 2010 | C81: 9.024437901 | D81: 1.589012415 | E81: 12.87236456 | F81: 76.51418512
B82: 2011 | C82: 8.375466555 | D82: 1.450781803 | E82: 13.21085819 | F82: 76.96289346
B83: 2012 | C83: 8.620159722 | D83: 1.400715909 | E83: 13.35618543 | F83: 76.62293894
B84: 2013 | C84: 9.168409315 | D84: 1.275228538 | E84: 13.4658196 | F84: 76.09054255
B85: 2014 | C85: 8.325804058 | D85: 1.339353549 | E85: 12.5781188 | F85: 77.75672359
B86: 2015 | C86: 7.898760568 | D86: 1.332102015 | E86: 12.27806042 | F86: 78.49107699
B87: 2016 | C87: 7.548668844 | D87: 1.38103347 | E87: 12.31760825 | F87: 78.75268944
B88: 2017 | C88: 7.813759742 | D88: 1.378017379 | E88: 12.01258364 | F88: 78.79563924
B89: 2018 | C89: 7.752268066 | D89: 1.266180159 | E89: 11.5596818 | F89: 79.42186998
B90: 2019 | C90: 7.81121849 | D90: 1.342090908 | E90: 11.69242213 | F90: 79.15426847
A91: 독일 Germany | B91: 1991 | C91: 14.41835149 | E91: 16.2363366 | F91: 69.34521608
B92: 1992 | C92: 14.21602922 | E92: 17.08394825 | F92: 68.70002252
B93: 1993 | C93: 15.20965661 | E93: 17.64829552 | F93: 67.14204787
B94: 1994 | C94: 15.24949243 | E94: 18.14677245 | F94: 66.60373512
B95: 1995 | C95: 15.48890321 | E95: 18.22145117 | F95: 66.28964779
B96: 1996 | C96: 15.30148136 | E96: 18.66223516 | F96: 66.03628159
B97: 1997 | C97: 14.61526201 | E97: 18.02147358 | F97: 67.36327438
B98: 1998 | C98: 14.66526081 | E98: 17.38451587 | F98: 67.95020997
B99: 1999 | C99: 13.71507878 | E99: 16.7483277 | F99: 69.53659779
B100: 2000 | C100: 13.52261811 | E100: 16.43341139 | F100: 70.0439705
B101: 2001 | C101: 13.68004141 | E101: 16.76652286 | F101: 69.55343573
B102: 2002 | C102: 13.69419926 | E102: 17.30623414 | F102: 68.9995666
B103: 2003 | C103: 13.35225899 | E103: 17.16022736 | F103: 69.48751364
B104: 2004 | C104: 13.63858544 | E104: 16.73282771 | F104: 69.62858686
B105: 2005 | C105: 14.0784832 | E105: 16.75221388 | F105: 69.16930292
B106: 2006 | C106: 13.83167063 | E106: 16.38657356 | F106: 69.78175581
B107: 2007 | C107: 13.88629137 | E107: 16.14079667 | F107: 69.97291196
B108: 2008 | C108: 14.03484672 | E108: 16.78034666 | F108: 69.18480662
B109: 2009 | C109: 14.80621379 | E109: 17.69785849 | F109: 67.49592762
B110: 2010 | C110: 14.78803954 | E110: 18.18413622 | F110: 67.02782424
B111: 2011 | C111: 14.52221079 | E111: 17.88770463 | F111: 67.59008458
B112: 2012 | C112: 14.33509394 | E112: 17.67117206 | F112: 67.99373402
B113: 2013 | C113: 14.87734633 | E113: 17.93778514 | F113: 67.18491243
B114: 2014 | C114: 14.62367113 | E114: 17.72209986 | F114: 67.65422901
B115: 2015 | C115: 14.06324757 | E115: 17.28305657 | F115: 68.65369587
B116: 2016 | C116: 13.80098756 | E116: 18.03846539 | F116: 68.16054704
B117: 2017 | C117: 13.54446934 | E117: 17.35979836 | F117: 69.09573229
B118: 2018 | C118: 13.536023 | E118: 17.57894992 | F118: 68.88502709
B119: 2019 | C119: 13.65339152 | E119: 17.42580191 | F119: 68.92080657
A120: 프랑스 France | B120: 1991 | C120: 22.6514066 | D120: 0.7839732471 | E120: 15.08336077 | F120: 61.48119807
B121: 1992 | C121: 20.91306343 | D121: 1.327512729 | E121: 15.27687597 | F121: 62.48390166
B122: 1993 | C122: 21.12352565 | D122: 1.350441225 | E122: 15.82825335 | F122: 61.69783733
B123: 1994 | C123: 20.62906193 | D123: 1.34937316 | E123: 16.1805164 | F123: 61.83990932
B124: 1995 | C124: 20.9896665 | D124: 1.32350666 | E124: 16.70569605 | F124: 60.98108724
B125: 1996 | C125: 20.26858282 | D125: 1.347295551 | E125: 16.83955134 | F125: 61.54457029
B126: 1997 | C126: 18.66520932 | D126: 1.385761207 | E126: 17.41456395 | F126: 62.53446553
B127: 1998 | C127: 18.64070917 | D127: 1.490632272 | E127: 17.60765633 | F127: 62.2609484
B128: 1999 | C128: 18.14205529 | D128: 1.518377479 | E128: 17.16267342 | F128: 63.17689382
B129: 2000 | C129: 17.3208609 | D129: 1.419511785 | E129: 18.75180916 | F129: 62.50781815
B130: 2001 | C130: 16.51710064 | D130: 1.386216046 | E130: 18.90479537 | F130: 63.19188795
B131: 2002 | C131: 16.53338524 | D131: 1.355245318 | E131: 18.86084369 | F131: 63.25052575
B132: 2003 | C132: 16.6812523 | D132: 1.340576015 | E132: 19.36102159 | F132: 62.6171501
B133: 2004 | C133: 16.97857779 | D133: 1.284389451 | E133: 18.63324567 | F133: 63.10378709
B134: 2005 | C134: 17.76911581 | D134: 1.2875582 | E134: 18.8274209 | F134: 62.1159051
B135: 2006 | C135: 16.49850119 | D135: 1.217037132 | E135: 19.20326149 | F135: 63.08120019
B136: 2007 | C136: 16.35222507 | D136: 1.172549163 | E136: 19.49616144 | F136: 62.97906433
B137: 2008 | C137: 15.98470365 | D137: 1.248553474 | E137: 20.03599894 | F137: 62.73074394
B138: 2009 | C138: 16.30877686 | D138: 1.195961235 | E138: 20.80275781 | F138: 61.69250409
B139: 2010 | C139: 14.01649354 | D139: 1.245264659 | E139: 21.57903401 | F139: 63.15920779
B140: 2011 | C140: 13.85231717 | D140: 1.247087384 | E140: 20.94671662 | F140: 63.95396084
B141: 2012 | C141: 13.15525858 | D141: 1.437755379 | E141: 20.82843928 | F141: 64.57871874
B142: 2013 | C142: 13.05935871 | D142: 1.473986029 | E142: 20.87979722 | F142: 64.58687916
B143: 2014 | C143: 12.73744115 | D143: 1.510213408 | E143: 22.12130515 | F143: 63.6310353
B144: 2015 | C144: 12.75531896 | D144: 1.540757232 | E144: 21.98615827 | F144: 63.71776899
B145: 2016 | C145: 12.70955426 | D145: 1.64324639 | E145: 20.54142075 | F145: 65.1057786
B146: 2017 | C146: 12.48860416 | D146: 1.577138553 | E146: 20.67480464 | F146: 65.25945265
B147: 2018 | C147: 12.45603237 | D147: 1.577905439 | E147: 20.47920232 | F147: 65.48685987
B148: 2019 | C148: 12.37490341 | D148: 1.75872009 | E148: 20.07897008 | F148: 65.78740642
A149: 영국 United Kingdom | B149: 1991 | C149: 14.4823607 | D149: 1.813386086 | E149: 16.65018134 | F149: 67.05407188
B150: 1992 | C150: 14.93126314 | D150: 1.812227074 | E150: 17.22060488 | F150: 66.0359049
B151: 1993 | C151: 14.62029539 | D151: 1.758256756 | E151: 17.52949383 | F151: 66.09195402
B152: 1994 | C152: 14.98808845 | D152: 1.229154792 | E152: 19.16809167 | F152: 64.61466509
B153: 1995 | C153: 14.56372252 | D153: 1.263405423 | E153: 19.21402359 | F153: 64.95884847
B154: 1996 | C154: 14.43708147 | D154: 1.236049107 | E154: 19.47614397 | F154: 64.85072545
B155: 1997 | C155: 13.7651297 | D155: 1.297026596 | E155: 19.74059468 | F155: 65.19656673
B156: 1998 | C156: 13.45013041 | D156: 1.313746838 | E156: 19.67055311 | F156: 65.56556964
B157: 1999 | C157: 12.23885623 | D157: 1.36433712 | E157: 19.63515196 | F157: 66.76165469
B158: 2000 | C158: 12.63235128 | D158: 1.819618467 | E158: 20.58817001 | F158: 64.96000202
B159: 2001 | C159: 10.02953079 | D159: 1.777315979 | E159: 22.68948923 | F159: 65.50366401
B160: 2002 | C160: 9.189298828 | D160: 1.943020002 | E160: 24.01834843 | F160: 64.84933274
B161: 2003 | C161: 10.39144441 | D161: 1.854950975 | E161: 24.04500932 | F161: 63.70859529
B162: 2004 | C162: 10.71507944 | D162: 2.006114154 | E162: 24.7154054 | F162: 62.56340101
B163: 2005 | C163: 10.55799494 | D163: 2.317214914 | E163: 25.73704408 | F163: 61.38774607
B164: 2006 | C164: 9.992199318 | D164: 2.23073641 | E164: 26.12323353 | F164: 61.65383074
B165: 2007 | C165: 9.160554993 | D165: 2.227885872 | E165: 26.08087215 | F165: 62.53068698
B166: 2008 | C166: 9.152995933 | D166: 2.355483522 | E166: 26.49736668 | F166: 61.99415347
B167: 2009 | C167: 9.163457523 | D167: 2.480706476 | E167: 27.94661223 | F167: 60.40922377
B168: 2010 | C168: 9.526803733 | D168: 2.478825582 | E168: 27.04529929 | F168: 60.94909339
B169: 2011 | C169: 8.578618466 | D169: 1.811926354 | E169: 26.02877314 | F169: 63.58068204
B170: 2012 | C170: 8.046360068 | D170: 1.906243057 | E170: 26.70332519 | F170: 63.34407169
B171: 2013 | C171: 7.899193423 | D171: 1.7942795 | E171: 26.41826349 | F171: 63.88826359
B172: 2014 | C172: 7.262186434 | D172: 1.810481183 | E172: 25.77974875 | F172: 65.14758363
B173: 2015 | C173: 6.630936571 | D173: 2.006260672 | E173: 25.32473281 | F173: 66.03806994
B174: 2016 | C174: 6.553655945 | D174: 2.108990148 | E174: 24.25383947 | F174: 67.08351444
B175: 2017 | C175: 6.309934901 | D175: 2.166993214 | E175: 23.48040427 | F175: 68.0429549
B176: 2018 | C176: 6.636563003 | D176: 2.221089289 | E176: 23.57580809 | F176: 67.56680936
B177: 2019 | C177: 6.586549572 | D177: 2.30850217 | E177: 23.07988599 | F177: 66.63148705
A178: 중국 China | B178: 1991 | C178: 49.55474727 | E178: 8.60403863 | F178: 39.82189891
B179: 1992 | C179: 46.26066758 | E179: 9.670251982 | F179: 41.79669747
B180: 1993 | C180: 44.88931898 | E180: 11.20116124 | F180: 41.69589936
B181: 1994 | C181: 42.06883041 | E181: 12.63305688 | F181: 43.13002024
B182: 1995 | C182: 42.05454702 | E182: 12.11964782 | F182: 43.67489747
B183: 1996 | C183: 42.80310522 | E183: 11.81269778 | F183: 43.24812104
B184: 1997 | C184: 40.59234818 | E184: 11.32453453 | F184: 46.05232147
B185: 1998 | C185: 42.5551604 | E185: 10.38793729 | F185: 44.82508347
B186: 1999 | C186: 38.47400206 | E186: 9.353365739 | F186: 49.58756812
B187: 2000 | C187: 31.4719231 | E187: 8.567488961 | F187: 59.96058794
B188: 2001 | C188: 29.74349628 | E188: 9.82081191 | F188: 60.43569181
B189: 2002 | C189: 28.68126747 | E189: 10.13513514 | F189: 61.18359739
B190: 2003 | C190: 27.08962543 | E190: 10.54214324 | F190: 62.36823133
B191: 2004 | C191: 22.95748933 | E191: 10.2190375 | F191: 66.82347317
B192: 2005 | C192: 21.79028823 | E192: 9.890071854 | F192: 68.31963992
B193: 2006 | C193: 19.70452099 | E193: 9.217529 | F193: 71.07795001
B194: 2007 | C194: 19.23359716 | E194: 8.481603087 | F194: 72.28479975
B195: 2008 | C195: 18.28781008 | E195: 8.452405922 | F195: 73.259784
B196: 2009 | C196: 18.70577253 | E196: 8.069050022 | F196: 73.22517745
B197: 2010 | C197: 18.12106261 | E197: 8.457224608 | F197: 73.42171278
B198: 2011 | C198: 16.33271649 | E198: 7.92966919 | F198: 75.73761432
B199: 2012 | C199: 16.27059287 | E199: 7.579382408 | F199: 76.15002473
B200: 2013 | C200: 16.15686375 | E200: 7.231729849 | F200: 76.6114064
B201: 2014 | C201: 15.80291511 | E201: 6.900511939 | F201: 77.29657302
... 7 more rows

Sheet 1-7,8
A1: 1-7) 주요국의 기업 연구개발비 대비 하이테크산업 연구개발비 비율
A2: Percentage of R&D expenditure for high-technology industry to BERD in major countries
N4: (단위 : % Unit : %)
A5: 연도 국가 Year Country | B5: 2008 | C5: 2009 | D5: 2010 | E5: 2011 | F5: 2012 | G5: 2013 | H5: 2014 | I5: 2015 | J5: 2016 | K5: 2017 | L5: 2018 | M5: 2019 | N5: 2020
A6: 한국 Korea | B6: 51.247522 | C6: 50.28350078 | D6: 52.76862661 | E6: 51.42114341 | F6: 52.70069602 | G6: 54.25244756 | H6: 55.57094167 | I6: 53.22320852 | J6: 53.65866186 | K6: 54.08974352 | L6: 54.47621594 | M6: 53.86642287 | N6: 53.03352271
A7: 미국 United States | B7: 50.0674281 | C7: 48.13327526 | D7: 49.87651312 | E7: 45.80421839 | F7: 45.66782465 | G7: 45.49837533 | H7: 45.98506727 | I7: 44.47432838 | J7: 45.01327782 | K7: 42.77930517 | L7: 41.39798112
A8: 일본 Japan | B8: 37.14459769 | C8: 36.46461019 | D8: 35.2180631 | E8: 35.83820535 | F8: 35.31929526 | G8: 34.65470056 | H8: 32.61986286 | I8: 32.22553832 | J8: 30.45860764 | K8: 30.59954498 | L8: 29.90916141 | M8: 28.56269655
A9: 독일 Germany | B9: 25.90844963 | C9: 25.66184428 | D9: 25.69349443 | E9: 25.32793497 | F9: 25.76849643 | G9: 24.59442708 | H9: 23.40933215 | I9: 21.66294789 | J9: 22.10311018 | K9: 20.15139423 | L9: 21.1010065
A10: 프랑스 France | B10: 27.74496018 | C10: 24.65532494 | D10: 23.19835658 | E10: 23.19226091 | F10: 23.62439754 | G10: 24.72360533 | H10: 25.08662999 | I10: 24.53100726 | J10: 23.34439853 | K10: 21.85909038
A11: 영국 United Kingdom | C11: 16.06182796 | D11: 15.00304965 | E11: 15.09403614 | F11: 16.53270356 | G11: 15.59589761 | H11: 14.54283693 | I11: 13.57037519 | J11: 14.07230759 | K11: 12.06765521 | L11: 12.69507312
A13: 주 : 하이테크산업은 제약(pharmaceutical industry), 항공우주(aerospace industry), 컴퓨터/전자/광학(computer, electronic and optical industry)의 합, 중국은 항공우주 데이터 결측으로 주요국 비교에서 제외
A14: 자료 : OECD, Main Science and Technology Indicators 2020-1, 2020
A16: 1-8) 주요국의 연구개발인력(FTE 기준)
A17: R&D personnel(FTE) in major countries
N18: (단위 : 명 Unit : person)
A19: 국가 Country | I19: 연구개발인력 R&D personnel | K19: 연구원 Researchers | M19: 연구보조원 Other R&D Personnel
A20: 한국(2020) Korea | I20: 545,435 (100.0) | K20: 446,739 (81.9) | M20: 98,696 (18.1) | P20: 한 국 (2016) Korea | Q20: 447,408 (100.0) | S20: 361,292 (80.8) | U20: 86,117 (19.2)
A21: 미국(2018) United States | K21: 1,554,900 | P21: 미 국 (2015) United States | S21: 1379977 | X21: 872340 | Y21: 665566 | Z21: =X21-Y21 -> 206774 | AA21: =Y21/X21*100 -> 76.29662746 | AB21: =Z21/X21*100 -> 23.70337254
A22: 일본(2019) Japan | I22: 903,367 (100.0) | K22: 681,821 (75.5) | M22: 221,546 (24.5) | P22: 일 본 (2015) Japan | Q22: 875,005 (100.0) | S22: 662,071 (75.7) | U22: 212,934 (24.3) | X22: 656727 | Y22: 400821 | Z22: =X22-Y22 -> 255906 | AA22: =Y22/X22*100 -> 61.03312335 | AB22: =Z22/X22*100 -> 38.96687665
A23: 독일(2019) Germany | I23: 735,584 (100.0) | K23: 450,697 (61.3) | M23: 284,887 (38.7) | P23: 독 일 (2015) Germany | Q23: 640,516 (100.0) | S23: 387,982 (60.6) | U23: 252,534 (39.4) | X23: .. | Y23: ..
A24: 프랑스(2019) France | I24: 463,738 (100.0) | K24: 314,101 (67.7) | M24: 149,638 (32.3) | P24: 프랑스 (2015) France | Q24: 428,643 (100.0) | S24: 277,631 (64.8) | U24: 151,011 (35.2) | X24: 419898 | Y24: 291416 | Z24: =X24-Y24 -> 128482 | AA24: =Y24/X24*100 -> 69.40161658 | AB24: =Z24/X24*100 -> 30.59838342
A25: 영국(2019) United Kingdom | I25: 486,088 (100.0) | K25: 317,472 (65.3) | M25: 168,616 (34.7) | P25: 영 국 (2015) United Kingdom | Q25: 416,538 (100.0) | S25: 289,330 (69.5) | U25: 127,208 (30.5) | X25: 3878056.8 | Y25: 1692175.8 | Z25: =X25-Y25 -> 2185881 | AA25: =Y25/X25*100 -> 43.63463165 | AB25: =Z25/X25*100 -> 56.36536835
A26: 중국(2019) China | I26: 4,800,768 (100.0) | K26: 2,109,460 (43.9) | M26: 2,691,309 (56.1) | P26: 중 국 (2015) China | Q26: 3,758,848 (100.0) | S26: 1,619,028 (43.1) | U26: 2,139,870 (56.9)
A28: 주 : 괄호 안의 수치는 구성비임
A29: 자료 : OECD, Main Science and Technology Indicators 2021-september, 2021

Sheet 1-9
A1: 1-9) 주요국의 정부연구개발예산
A2: Government Budget Allocations for R&D in major countries
G4: (단위 : 백만달러 Unit : US dollar, Millions)
A5: 연도 Year | B5: 한국 Korea | C5: 미국 United States | D5: 일본 Japan | E5: 독일 Germany | F5: 프랑스 France | G5: 영국 United Kingdom
A6: 1981 | B6: 309.531909 | C6: 33735 | E6: 7850.307367 | F6: 7507.806027 | G6: 6821.986131
A7: 1982 | B7: 314.9757067 | C7: 36115 | E7: 7956.012675 | F7: 7271.041049 | G7: 6146.769919
A8: 1983 | B8: 324.3319893 | C8: 38768 | E8: 7478.837336 | F8: 7276.984361 | G8: 5752.699989
A9: 1984 | B9: 340.0867485 | C9: 44214 | E9: 6821.502518 | F9: 7068.806808 | G9: 5392.607411
A10: 1985 | B10: 398.1517666 | C10: 49887 | E10: 7143.696226 | F10: 7649.222585 | G10: 5311.031433
A11: 1986 | B11: 478.1861827 | C11: 53249 | E11: 9846.677518 | F11: 9957.129436 | G11: 6236.946219
A12: 1987 | B12: 686.0255074 | C12: 57069 | E12: 12322.63175 | F12: 12337.97445 | G12: 7159.350707
A13: 1988 | B13: 848.9830891 | C13: 59106 | D13: 13388.40173 | E13: 12673.65496 | F13: 13130.8977 | G13: 7998.407955
A14: 1989 | B14: 1122.188479 | C14: 62115 | D14: 13157.00845 | E14: 12572.1687 | F14: 13123.53746 | G14: 7807.643662
A15: 1990 | B15: 1301.701717 | C15: 63781 | D15: 13266.37084 | E15: 15546.19793 | F15: 16966.08164 | G15: 8798.404409
A16: 1991 | B16: 1123.779112 | C16: 65897 | D16: 15015.07717 | E16: 17745.56606 | F16: 16506.59154 | G16: 8866.432105
A17: 1992 | B17: 1243.930167 | C17: 68398 | D17: 16854.74562 | E17: 19916.68984 | F17: 17006.2018 | G17: 8913.291937
A18: 1993 | B18: 1451.021032 | C18: 69884 | D18: 20380.48671 | E18: 18981.15509 | F18: 15792.0099 | G18: 8102.352131
A19: 1994 | B19: 1926.293329 | C19: 68331 | D19: 23075.28253 | E19: 19060.79564 | F19: 16115.09079 | G19: 7958.654907
A20: 1995 | B20: 2470.651157 | C20: 68791 | D20: 26574.10363 | E20: 22076.95417 | F20: 17336.97047 | G20: 8903.716142
A21: 1996 | B21: 2954.661993 | C21: 69049 | D21: 25836.33355 | E21: 21394.70822 | F21: 16804.41082 | G21: 9081.094237
A22: 1997 | B22: 3151.733359 | C22: 71653.28158 | D22: 24816.83266 | E22: 18056.90262 | F22: 14112.20384 | G22: 9862.876451
A23: 1998 | B23: 2367.901558 | C23: 73568.71422 | D23: 23163.14906 | E23: 17802.52319 | F23: 14124.55642 | G23: 9660.596465
A24: 1999 | B24: 3116.342645 | C24: 77637.10471 | D24: 27713.25207 | E24: 17395.94497 | F24: 13739.82913 | G24: 10236.11091
A25: 2000 | B25: 3713.322054 | C25: 72681 | D25: 30476.54454 | E25: 15011.5156 | F25: 12784.71975 | G25: 10118.15152
A26: 2001 | B26: 4442.163326 | C26: 78538 | D26: 28540.62392 | E26: 14742.16078 | F26: 13289.92515 | G26: 9719.78896
A27: 2002 | B27: 4907.069137 | C27: 88665 | D27: 28267.66886 | E27: 15825.95297 | F27: 14654.45168 | G27: 11883.8829
A28: 2003 | B28: 5467.56412 | C28: 98767 | D28: 31029.574 | E28: 19343.46778 | F28: 17876.85183 | G28: 13385.10169
A29: 2004 | B29: 6179.023029 | C29: 106246 | D29: 33351.28312 | E29: 21075.64664 | F29: 19785.27424 | G29: 15479.14607
A30: 2005 | B30: 7614.355426 | C30: 111332 | D30: 32462.37564 | E30: 21423.86166 | F30: 20773.86797 | G30: 15588.42032
A31: 2006 | B31: 9326.095664 | C31: 114442 | D31: 30733.92214 | E31: 22108.03671 | F31: 18333.75124 | G31: 16517.96639
A32: 2007 | B32: 10504.7922 | C32: 117691 | D32: 29818.70717 | E32: 25629.58562 | F32: 19335.24734 | G32: 18696.9258
A33: 2008 | B33: 9855.508956 | C33: 116710 | D33: 34547.34405 | E33: 28961.71125 | F33: 24931.47651 | G33: 16976.61251
A34: 2009 | B34: 9664.310253 | C34: 136599 | D34: 38088.33611 | E34: 30281.41118 | F34: 24426.98024 | G34: 14687.83445
A35: 2010 | B35: 11847.70766 | C35: 119382 | D35: 40886.46743 | E35: 30512.16411 | F35: 21689.1563 | G35: 14449.94352
A36: 2011 | B36: 13435.97919 | C36: 113386 | D36: 45920.20852 | E36: 33049.91913 | F36: 23403.74979 | G36: 14595.41995
A37: 2012 | B37: 14221.07312 | C37: 116796 | D37: 46279.60826 | E37: 30925.15626 | F37: 19445.1056 | G37: 14380.29088
A38: 2013 | B38: 15659.70232 | C38: 109608 | D38: 36986.96309 | E38: 33695.6803 | F38: 19896.0009 | G38: 15610.92516
A39: 2014 | B39: 16852.32324 | C39: 112502 | D39: 34464.37819 | E39: 33900.90444 | F39: 19686.00211 | G39: 16746.58154
A40: 2015 | B40: 16743.49718 | C40: 115220 | D40: 28730.43069 | E40: 29438.50855 | F40: 15725.67281 | G40: 15456.99685
A41: 2016 | B41: 16497.01598 | C41: 126093 | D41: 32785.82178 | E41: 31379.72109 | F41: 15549.97393 | G41: 13835.71373
A42: 2017 | B42: 17242.95812 | C42: 127306 | D42: 31988.23809 | E42: 34072.04375 | F42: 16660.38041 | G42: 13964.63473
A43: 2018 | B43: 17950.33465 | C43: 144459 | D43: 34776.61772 | E43: 37507.01782 | F43: 18376.0509 | G43: 15630.68688
A44: 2019 | B44: 17894.25133 | C44: 149971 | D44: 38913.02768 | E44: 37912.13466 | F44: 17111.05066 | G44: 15777.62319
A45: 2020 | B45: 20550.95487 | C45: 164453 | D45: 41008.42775 | E45: 42098.44364
A47: 자료 : 1. 한국 : 한국과학기술기획평가원, 정부연구개발예산 현황분석, 각 연도
A48: 2. 그 외 국가 : OECD, Main Science and Technology Indicators 2021-september, 2021

Sheet 1-10
A1: 1-10) 국가별 과학기술논문발표건수(SCI 기준)
A2: Number of scientific and technical papers by country (based on SCI)
U3: (단위 : 건 Unit : case)
A4: 국가 Country | B4: 2011 | D4: 2012 | F4: 2013 | H4: 2014 | J4: 2015 | L4: 2016 | N4: 2017 | P4: 2018 | R4: 2019 | T4: 2020
B5: 논문수 Papers | C5: 순위 Ranking | D5: 논문수 Papers | E5: 순위 Ranking | F5: 논문수 Papers | G5: 순위 Ranking | H5: 논문수 Papers | I5: 순위 Ranking | J5: 논문수 Papers | K5: 순위 Ranking | L5: 논문수 Papers | M5: 순위 Ranking | N5: 논문수 Papers | O5: 순위 Ranking | P5: 논문수 Papers | Q5: 순위 Ranking | R5: 논문수 Papers | S5: 순위 Ranking | T5: 논문수 Papers | U5: 순위 Ranking
A6: 중국 China | B6: 158757 | C6: 2 | D6: 183295 | E6: 2 | F6: 217254 | G6: 2 | H6: 252214 | I6: 2 | J6: 282825 | K6: 2 | L6: 313074 | M6: 2 | N6: 350148 | O6: 2 | P6: 402665 | Q6: 2 | R6: 494121 | S6: 2 | T6: 553233 | U6: 1
A7: 미국 United States | B7: 403268 | C7: 1 | D7: 409581 | E7: 1 | F7: 423192 | G7: 1 | H7: 434786 | I7: 1 | J7: 439918 | K7: 1 | L7: 455878 | M7: 1 | N7: 471103 | O7: 1 | P7: 474722 | Q7: 1 | R7: 503704 | S7: 1 | T7: 512341 | U7: 2
A8: 영국 United Kingdom | B8: 115304 | C8: 3 | D8: 118478 | E8: 3 | F8: 126558 | G8: 3 | H8: 126686 | I8: 3 | J8: 134138 | K8: 3 | L8: 141714 | M8: 3 | N8: 149087 | O8: 3 | P8: 150676 | Q8: 3 | R8: 162270 | S8: 3 | T8: 167140 | U8: 3
A9: 독일 Germany | B9: 102524 | C9: 4 | D9: 105511 | E9: 4 | F9: 109369 | G9: 4 | H9: 112098 | I9: 4 | J9: 114607 | K9: 4 | L9: 120508 | M9: 4 | N9: 124133 | O9: 4 | P9: 126029 | Q9: 4 | R9: 134393 | S9: 4 | T9: 139798 | U9: 4
A10: 인도 India | B10: 48871 | C10: 11 | D10: 51105 | E10: 11 | F10: 56258 | G10: 11 | H10: 61608 | I10: 10 | J10: 64488 | K10: 10 | L10: 69901 | M10: 10 | N10: 75609 | O10: 10 | P10: 80788 | Q10: 8 | R10: 91571 | S10: 6 | T10: 102683 | U10: 5
A11: 이탈리아 Italy | B11: 59243 | C11: 8 | D11: 61880 | E11: 8 | F11: 66720 | G11: 8 | H11: 68770 | I11: 8 | J11: 71072 | K11: 8 | L11: 75494 | M11: 8 | N11: 77946 | O11: 8 | P11: 80577 | Q11: 9 | R11: 87754 | S11: 8 | T11: 100855 | U11: 6
A12: 일본 Japan | B12: 80402 | C12: 5 | D12: 80210 | E12: 5 | F12: 82046 | G12: 5 | H12: 81020 | I12: 5 | J12: 80490 | K12: 5 | L12: 83702 | M12: 5 | N12: 86000 | O12: 5 | P12: 87398 | Q12: 5 | R12: 91839 | S12: 5 | T12: 97724 | U12: 7
A13: 캐나다 Canada | B13: 64476 | C13: 7 | D13: 65992 | E13: 7 | F13: 69411 | G13: 7 | H13: 71299 | I13: 7 | J13: 73366 | K13: 7 | L13: 76086 | M13: 7 | N13: 79847 | O13: 7 | P13: 81611 | Q13: 7 | R13: 89210 | S13: 7 | T13: 91903 | U13: 8
A14: 프랑스 France | B14: 71196 | C14: 6 | D14: 73178 | E14: 6 | F14: 75865 | G14: 6 | H14: 76667 | I14: 6 | J14: 79029 | K14: 6 | L14: 82621 | M14: 6 | N14: 83879 | O14: 6 | P14: 83722 | Q14: 6 | R14: 87169 | S14: 10 | T14: 91229 | U14: 9
A15: 호주 Australia | B15: 50062 | C15: 10 | D15: 53477 | E15: 10 | F15: 59493 | G15: 9 | H15: 63779 | I15: 9 | J15: 68540 | K15: 9 | L15: 72638 | M15: 9 | N15: 76275 | O15: 9 | P15: 79221 | Q15: 10 | R15: 87746 | S15: 9 | T15: 91002 | U15: 10
A16: 스페인 Spain | B16: 52984 | C16: 9 | D16: 56511 | E16: 9 | F16: 58654 | G16: 10 | H16: 60225 | I16: 11 | J16: 61288 | K16: 11 | L16: 63826 | M16: 11 | N16: 66140 | O16: 11 | P16: 68219 | Q16: 11 | R16: 74888 | S16: 11 | T16: 83277 | U16: 11
A17: 한국 Korea | B17: 46290 | C17: 12 | D17: 50375 | E17: 12 | F17: 52835 | G17: 12 | H17: 55837 | I17: 12 | J17: 58978 | K17: 12 | L17: 60657 | M17: 12 | N17: 61693 | O17: 12 | P17: 64472 | Q17: 12 | R17: 70430 | S17: 12 | T17: 76408 | U17: 12
A18: 브라질 Brazil | B18: 36944 | C18: 14 | D18: 39176 | E18: 13 | F18: 40904 | G18: 13 | H18: 42685 | I18: 13 | J18: 44813 | K18: 13 | L18: 48609 | M18: 13 | N18: 51455 | O18: 13 | P18: 54832 | Q18: 13 | R18: 59781 | S18: 13 | T18: 65992 | U18: 13
A19: 네덜란드 Netherlands | B19: 36958 | C19: 13 | D19: 38742 | E19: 14 | F19: 40758 | G19: 14 | H19: 41820 | I19: 14 | J19: 42875 | K19: 14 | L19: 44932 | M19: 14 | N19: 46310 | O19: 14 | P19: 47914 | Q19: 14 | R19: 52044 | S19: 14 | T19: 53287 | U19: 14
A20: 이란 Iran | B20: 22335 | C20: 20 | D20: 24892 | E20: 19 | F20: 26656 | G20: 19 | H20: 28129 | I20: 17 | J20: 30069 | K20: 17 | L20: 34136 | M20: 17 | N20: 37899 | O20: 16 | P20: 40579 | Q20: 16 | R20: 47345 | S20: 15 | T20: 52150 | U20: 15
A21: 러시아 Russia | B21: 29922 | C21: 15 | D21: 29187 | E21: 15 | F21: 30453 | G21: 15 | H21: 31726 | I21: 15 | J21: 36196 | K21: 15 | L21: 38220 | M21: 15 | N21: 40159 | O21: 15 | P21: 42471 | Q21: 15 | R21: 45649 | S21: 16 | T21: 48234 | U21: 16
A22: 터키 Turkey | B22: 24580 | C22: 18 | D22: 26143 | E22: 18 | F22: 27317 | G22: 18 | H22: 28066 | I22: 19 | J22: 29791 | K22: 18 | L22: 32386 | M22: 18 | N22: 30827 | O22: 19 | P22: 31352 | Q22: 20 | R22: 37541 | S22: 18 | T22: 43495 | U22: 17
A23: 스위스 Switzerland | B23: 26414 | C23: 17 | D23: 27847 | E23: 17 | F23: 29451 | G23: 16 | H23: 31012 | I23: 16 | J23: 32045 | K23: 16 | L23: 34424 | M23: 16 | N23: 36574 | O23: 17 | P23: 36977 | Q23: 17 | R23: 39203 | S23: 17 | T23: 41065 | U23: 18
A24: 폴란드 Poland | B24: 22259 | C24: 21 | D24: 23789 | E24: 21 | F24: 25154 | G24: 21 | H24: 26541 | I24: 21 | J24: 28890 | K24: 20 | L24: 30518 | M24: 20 | N24: 30769 | O24: 20 | P24: 32408 | Q24: 19 | R24: 35615 | S24: 20 | T24: 40768 | U24: 19
A25: 스웨덴 Sweden | B25: 23071 | C25: 19 | D25: 24671 | E25: 20 | F25: 26171 | G25: 20 | H25: 27539 | I25: 20 | J25: 28937 | K25: 19 | L25: 30970 | M25: 19 | N25: 32267 | O25: 18 | P25: 33168 | Q25: 18 | R25: 36199 | S25: 19 | T25: 37074 | U25: 20
A26: 대만 Chinese taipei | B26: 27735 | C26: 16 | D26: 28110 | E26: 16 | F26: 28697 | G26: 17 | H26: 28109 | I26: 18 | J26: 27089 | K26: 21 | L26: 27056 | M26: 21 | N26: 26047 | O26: 21 | P26: 26047 | Q26: 22 | R26: 29031 | S26: 21 | T26: 32597 | U26: 21
A27: 벨기에 Belgium | B27: 20271 | C27: 22 | D27: 21060 | E27: 22 | F27: 22371 | G27: 22 | H27: 23209 | I27: 22 | J27: 24267 | K27: 22 | L27: 25090 | M27: 22 | N27: 26001 | O27: 22 | P27: 26965 | Q27: 21 | R27: 28100 | S27: 22 | T27: 29571 | U27: 22
A28: 사우디 아라비아 Saudi Arabia | B28: 6053 | C28: 43 | D28: 7870 | E28: 39 | F28: 9730 | G28: 36 | H28: 12174 | I28: 34 | J28: 14003 | K28: 32 | L28: 15320 | M28: 30 | N28: 15667 | O28: 31 | P28: 16618 | Q28: 31 | R28: 20426 | S28: 25 | T28: 28296 | U28: 23
A29: 덴마크 Denmark | B29: 14644 | C29: 23 | D29: 15813 | E29: 23 | F29: 16784 | G29: 23 | H29: 18460 | I29: 23 | J29: 19632 | K29: 23 | L29: 21430 | M29: 23 | N29: 22193 | O29: 23 | P29: 22675 | Q29: 23 | R29: 24778 | S29: 23 | T29: 25910 | U29: 24
A30: 홍콩 Hong Kong | B30: 11612 | C30: 28 | D30: 11848 | E30: 30 | F30: 12920 | G30: 27 | H30: 13664 | I30: 28 | J30: 14075 | K30: 31 | L30: 15201 | M30: 31 | N30: 16316 | O30: 30 | P30: 17822 | Q30: 26 | R30: 20112 | S30: 26 | T30: 22361 | U30: 25
A31: 오스트리아 Austria | B31: 13811 | C31: 24 | D31: 14159 | E31: 24 | F31: 15172 | G31: 24 | H31: 15855 | I31: 24 | J31: 16670 | K31: 24 | L31: 18047 | M31: 24 | N31: 18667 | O31: 24 | P31: 19233 | Q31: 24 | R31: 20757 | S31: 24 | T31: 22338 | U31: 26
A32: 멕시코 Mexico | B32: 11149 | C32: 31 | D32: 12062 | E32: 28 | F32: 12816 | G32: 28 | H32: 13351 | I32: 30 | J32: 14528 | K32: 27 | L32: 15600 | M32: 28 | N32: 16969 | O32: 26 | P32: 18310 | Q32: 25 | R32: 20090 | S32: 27 | T32: 21767 | U32: 29
A33: 포르투갈 Portugal | B33: 11610 | C33: 29 | D33: 12813 | E33: 26 | F33: 13975 | G33: 26 | H33: 14723 | I33: 26 | J33: 15234 | K33: 26 | L33: 16501 | M33: 25 | N33: 16982 | O33: 25 | P33: 17289 | Q33: 28 | R33: 19470 | S33: 28 | T33: 21414 | U33: 30
A34: 남아프리카 South Africa | B34: 10113 | C34: 34 | D34: 10810 | E34: 34 | F34: 11675 | G34: 32 | H34: 13038 | I34: 32 | J34: 13949 | K34: 33 | L34: 15664 | M34: 27 | N34: 16843 | O34: 27 | P34: 17569 | Q34: 27 | R34: 19368 | S34: 29 | T34: 20710 | U34: 31
A35: 노르웨이 Norway | B35: 11691 | C35: 26 | D35: 12331 | E35: 27 | F35: 12774 | G35: 29 | H35: 13607 | I35: 29 | J35: 14113 | K35: 30 | L35: 15513 | M35: 29 | N35: 16673 | O35: 28 | P35: 17283 | Q35: 29 | R35: 19202 | S35: 30 | T35: 20382 | U35: 32
A36: 이스라엘 Israel | B36: 13544 | C36: 25 | D36: 13832 | E36: 25 | F36: 14187 | G36: 25 | H36: 14885 | I36: 25 | J36: 15398 | K36: 25 | L36: 16316 | M36: 26 | N36: 16524 | O36: 29 | P36: 17193 | Q36: 30 | R36: 18467 | S36: 31 | T36: 19585 | U36: 33
A37: 싱가포르 Singapore | B37: 10658 | C37: 32 | D37: 11541 | E37: 32 | F37: 12662 | G37: 31 | H37: 13274 | I37: 31 | J37: 14209 | K37: 29 | L37: 14995 | M37: 32 | N37: 15637 | O37: 32 | P37: 16174 | Q37: 32 | R37: 17506 | S37: 34 | T37: 18911 | U37: 34
A38: 체코 Czech republic | B38: 10337 | C38: 33 | D38: 10986 | E38: 33 | F38: 11429 | G38: 34 | H38: 12752 | I38: 33 | J38: 13482 | K38: 34 | L38: 14030 | M38: 34 | N38: 14769 | O38: 34 | P38: 15193 | Q38: 34 | R38: 16559 | S38: 36 | T38: 17909 | U38: 35
A39: 핀란드 Finland | B39: 11650 | C39: 27 | D39: 12030 | E39: 29 | F39: 12744 | G39: 30 | H39: 13875 | I39: 27 | J39: 14238 | K39: 28 | L39: 14821 | M39: 33 | N39: 15297 | O39: 33 | P39: 15673 | Q39: 33 | R39: 17184 | S39: 35 | T39: 17850 | U39: 36
A40: 말레이시아 Malaysia | B40: 8513 | C40: 36 | D40: 8981 | E40: 36 | F40: 10276 | G40: 35 | H40: 11736 | I40: 35 | J40: 12289 | K40: 35 | L40: 12773 | M40: 35 | N40: 13121 | O40: 35 | P40: 13249 | Q40: 37 | R40: 14638 | S40: 37 | T40: 17073 | U40: 37
A41: 그리스 Greece | B41: 11565 | C41: 30 | D41: 11773 | E41: 31 | F41: 11563 | G41: 33 | H41: 11425 | I41: 36 | J41: 11512 | K41: 36 | L41: 12097 | M41: 37 | N41: 12429 | O41: 37 | P41: 12714 | Q41: 38 | R41: 13865 | S41: 38 | T41: 14960 | U41: 38
A42: 뉴질랜드 New Zealand | B42: 9115 | C42: 35 | D42: 9345 | E42: 35 | F42: 9704 | G42: 37 | H42: 10024 | I42: 37 | J42: 10667 | K42: 37 | L42: 11122 | M42: 38 | N42: 11900 | O42: 39 | P42: 12191 | Q42: 39 | R42: 13392 | S42: 39 | T42: 13988 | U42: 39
A43: 칠레 Chile | B43: 6036 | C43: 44 | D43: 6602 | E43: 43 | F43: 6845 | G43: 45 | H43: 7859 | I43: 41 | J43: 8562 | K43: 41 | L43: 9572 | M43: 42 | N43: 9946 | O43: 42 | P43: 10955 | Q43: 41 | R43: 11901 | S43: 41 | T43: 13337 | U43: 40
A44: 아일랜드 Ireland | B44: 8342 | C44: 38 | D44: 8175 | E44: 38 | F44: 8660 | G44: 40 | H44: 8753 | I44: 40 | J44: 9074 | K44: 40 | L44: 9804 | M44: 41 | N44: 10483 | O44: 40 | P44: 11079 | Q44: 40 | R44: 12237 | S44: 40 | T44: 13226 | U44: 41
A45: 태국 Thailand | B45: 6206 | C45: 42 | D45: 6542 | E45: 44 | F45: 7077 | G45: 42 | H45: 7275 | I45: 45 | J45: 7732 | K45: 44 | L45: 8714 | M45: 43 | N45: 9413 | O45: 43 | P45: 10006 | Q45: 43 | R45: 10896 | S45: 43 | T45: 12602 | U45: 42
A46: 베트남 Vietnam | B46: 1516 | C46: 59 | D46: 1867 | E46: 57 | F46: 2382 | G46: 54 | H46: 2682 | I46: 53 | J46: 3018 | K46: 53 | L46: 3678 | M46: 53 | N46: 4486 | O46: 50 | P46: 5767 | Q46: 47 | R46: 8246 | S46: 46 | T46: 12201 | U46: 43
A47: 아르헨티나 Argentina | B47: 8463 | C47: 37 | D47: 8850 | E47: 37 | F47: 9094 | G47: 38 | H47: 9233 | I47: 39 | J47: 9653 | K47: 39 | L47: 10003 | M47: 39 | N47: 10339 | O47: 41 | P47: 10846 | Q47: 42 | R47: 11312 | S47: 42 | T47: 12134 | U47: 44
A48: 루마니아 Romania | B48: 7343 | C48: 39 | D48: 7636 | E48: 40 | F48: 8713 | G48: 39 | H48: 7806 | I48: 42 | J48: 8410 | K48: 43 | L48: 8589 | M48: 44 | N48: 8669 | O48: 44 | P48: 8775 | Q48: 44 | R48: 10084 | S48: 44 | T48: 10300 | U48: 45
A49: 헝가리 Hungary | B49: 6379 | C49: 41 | D49: 6716 | E49: 42 | F49: 7007 | G49: 43 | H49: 7356 | I49: 44 | J49: 7511 | K49: 45 | L49: 7884 | M49: 45 | N49: 8201 | O49: 45 | P49: 8492 | Q49: 45 | R49: 9130 | S49: 45 | T49: 9569 | U49: 46
A50: 콜롬비아 Colombia | B50: 3270 | C50: 50 | D50: 3553 | E50: 50 | F50: 3749 | G50: 50 | H50: 3907 | I50: 49 | J50: 4814 | K50: 47 | L50: 5534 | M50: 47 | N50: 6371 | O50: 46 | P50: 6889 | Q50: 46 | R50: 7626 | S50: 47 | T50: 8422 | U50: 47
A51: 인도네시아 Indonesia | B51: 1385 | C51: 61 | D51: 1507 | E51: 60 | F51: 1741 | G51: 59 | H51: 1901 | I51: 60 | J51: 2142 | K51: 59 | L51: 2645 | M51: 58 | N51: 2990 | O51: 57 | P51: 3702 | Q51: 57 | R51: 4867 | S51: 55 | T51: 5929 | U51: 51
A52: 슬로베니아 Slovenia | B52: 3969 | C52: 49 | D52: 4126 | E52: 48 | F52: 4269 | G52: 48 | H52: 4169 | I52: 48 | J52: 4346 | K52: 49 | L52: 4488 | M52: 50 | N52: 4407 | O52: 51 | P52: 4557 | Q52: 51 | R52: 4978 | S52: 52 | T52: 5427 | U52: 53
A53: 슬로바키아 Slovakia | B53: 3227 | C53: 51 | D53: 3361 | E53: 51 | F53: 3536 | G53: 51 | H53: 3793 | I53: 50 | J53: 3809 | K53: 51 | L53: 4058 | M53: 51 | N53: 4347 | O53: 52 | P53: 4344 | Q53: 53 | R53: 4782 | S53: 56 | T53: 5423 | U53: 54
A54: 리투아니아 Lithuania | B54: 2237 | C54: 55 | D54: 2140 | E54: 55 | F54: 2102 | G54: 57 | H54: 2257 | I54: 57 | J54: 2521 | K54: 57 | L54: 2598 | M54: 59 | N54: 2681 | O54: 59 | P54: 2875 | Q54: 58 | R54: 3320 | S54: 60 | T54: 3656 | U54: 63
A55: 에스토니아 Estonia | B55: 1596 | C55: 57 | D55: 1685 | E55: 58 | F55: 1875 | G55: 58 | H55: 2062 | I55: 58 | J55: 2068 | K55: 60 | L55: 2310 | M55: 61 | N55: 2310 | O55: 63 | P55: 2370 | Q55: 65 | R55: 2710 | S55: 67 | T55: 2738 | U55: 68
A56: 필리핀 Philippines | B56: 1102 | C56: 67 | D56: 1088 | E56: 67 | F56: 1259 | G56: 65 | H56: 1338 | I56: 66 | J56: 1451 | K56: 65 | L56: 1615 | M56: 66 | N56: 1788 | O56: 68 | P56: 1875 | Q56: 70 | R56: 2149 | S56: 71 | T56: 2542 | U56: 70
A57: 마카오 Macau | B57: 166 | C57: 118 | D57: 256 | E57: 105 | F57: 366 | G57: 96 | H57: 636 | I57: 89 | J57: 1063 | K57: 77 | L57: 1393 | M57: 72 | N57: 1553 | O57: 73 | P57: 1673 | Q57: 73 | R57: 1974 | S57: 74 | T57: 2339 | U57: 74
A58: 카자흐스탄 Kazakhstan | B58: 298 | C58: 100 | D58: 456 | E58: 91 | F58: 570 | G58: 87 | H58: 732 | I58: 83 | J58: 850 | K58: 83 | L58: 975 | M58: 83 | N58: 1188 | O58: 82 | P58: 1336 | Q58: 79 | R58: 1703 | S58: 75 | T58: 1975 | U58: 75
A59: 룩셈부르크 Luxembourg | B59: 741 | C59: 75 | D59: 781 | E59: 74 | F59: 1095 | G59: 70 | H59: 1218 | I59: 68 | J59: 1230 | K59: 70 | L59: 1354 | M59: 75 | N59: 1359 | O59: 77 | P59: 1494 | Q59: 75 | R59: 1655 | S59: 76 | T59: 1731 | U59: 78
A60: 쿠웨이트 Kuwait | B60: 709 | C60: 77 | D60: 638 | E60: 81 | F60: 742 | G60: 81 | H60: 748 | I60: 82 | J60: 796 | K60: 89 | L60: 898 | M60: 86 | N60: 1019 | O60: 84 | P60: 1079 | Q60: 85 | R60: 1404 | S60: 82 | T60: 1619 | U60: 81
A61: 아이슬란드 Iceland | B61: 918 | C61: 68 | D61: 1008 | E61: 70 | F61: 1069 | G61: 71 | H61: 1082 | I61: 72 | J61: 1186 | K61: 72 | L61: 1372 | M61: 74 | N61: 1378 | O61: 76 | P61: 1394 | Q61: 76 | R61: 1607 | S61: 78 | T61: 1556 | U61: 84
A62: 라트비아 Latvia | B62: 635 | C62: 81 | D62: 611 | E62: 84 | F62: 654 | G62: 84 | H62: 691 | I62: 87 | J62: 824 | K62: 85 | L62: 969 | M62: 84 | N62: 1014 | O62: 85 | P62: 1069 | Q62: 86 | R62: 1187 | S62: 87 | T62: 1327 | U62: 87
A63: 코스타리카 Costa Rica | B63: 485 | C63: 88 | D63: 490 | E63: 89 | F63: 468 | G63: 91 | H63: 613 | I63: 91 | J63: 624 | K63: 92 | L63: 725 | M63: 92 | N63: 774 | O63: 91 | P63: 825 | Q63: 92 | R63: 893 | S63: 91 | T63: 1068 | U63: 88
A64: 세계 논문 수 합 Total | B64: 1443995 | D64: 1496169 | F64: 1574954 | H64: 1627496 | J64: 1681722 | L64: 1750982 | N64: 1826666 | P64: 1885247 | R64: 2084211 | T64: 2215129
A66: 주 : 논문 1편을 여러 국가의 과학자가 공저하는 경우가 있어 국가별 논문 수 합이 세계 논문 수 합보다 많음
A67: 자료 : KISTEP, 과학기술 논문성과 분석연구(2011-2020), 2021

Sheet 1-11
A1: 1-11) 국가별 PCT 출원건수(WIPO)
A2: Number of PCT Filings by country of origin (WIPO)
V4: (단위 : 건 Unit : case)
A5: 국가 Country | B5: 2000 | C5: 2001 | D5: 2002 | E5: 2003 | F5: 2004 | G5: 2005 | H5: 2006 | I5: 2007 | J5: 2008 | K5: 2009 | L5: 2010 | M5: 2011 | N5: 2012 | O5: 2013 | P5: 2014 | Q5: 2015 | R5: 2016 | S5: 2017 | T5: 2018 | U5: 2019 | V5: 2020
A6: 그리스 Greece | B6: 49 | C6: 55 | D6: 75 | E6: 67 | F6: 79 | G6: 55 | H6: 84 | I6: 87 | J6: 107 | K6: 100 | L6: 90 | M6: 92 | N6: 95 | O6: 111 | P6: 133 | Q6: 122 | R6: 111 | S6: 110 | T6: 115 | U6: 123 | V6: 98
A7: 남아프리카 South Africa | B7: 390 | C7: 419 | D7: 385 | E7: 357 | F7: 412 | G7: 360 | H7: 424 | I7: 406 | J7: 394 | K7: 375 | L7: 291 | M7: 309 | N7: 313 | O7: 351 | P7: 313 | Q7: 313 | R7: 287 | S7: 295 | T7: 275 | U7: 275 | V7: 241
A8: 네덜란드 Netherlands | B8: 2930 | C8: 3411 | D8: 3977 | E8: 4479 | F8: 4284 | G8: 4499 | H8: 4552 | I8: 4421 | J8: 4361 | K8: 4421 | L8: 4010 | M8: 3511 | N8: 4080 | O8: 4190 | P8: 4206 | Q8: 4335 | R8: 4675 | S8: 4429 | T8: 4132 | U8: 4038 | V8: 3997
A9: 노르웨이 Norway | B9: 529 | C9: 592 | D9: 550 | E9: 535 | F9: 476 | G9: 584 | H9: 609 | I9: 601 | J9: 644 | K9: 633 | L9: 707 | M9: 705 | N9: 664 | O9: 708 | P9: 687 | Q9: 679 | R9: 653 | S9: 820 | T9: 767 | U9: 784 | V9: 703
A10: 뉴질랜드 New Zealand | B10: 258 | C10: 288 | D10: 299 | E10: 300 | F10: 340 | G10: 350 | H10: 354 | I10: 399 | J10: 358 | K10: 302 | L10: 309 | M10: 329 | N10: 303 | O10: 322 | P10: 348 | Q10: 358 | R10: 307 | S10: 273 | T10: 275 | U10: 249 | V10: 298
A11: 덴마크 Denmark | B11: 795 | C11: 919 | D11: 979 | E11: 1036 | F11: 1049 | G11: 1122 | H11: 1158 | I11: 1153 | J11: 1357 | K11: 1339 | L11: 1156 | M11: 1288 | N11: 1409 | O11: 1264 | P11: 1299 | Q11: 1327 | R11: 1356 | S11: 1430 | T11: 1445 | U11: 1443 | V11: 1571
A12: 독일 Germany | B12: 12581 | C12: 14029 | D12: 14323 | E12: 14653 | F12: 15216 | G12: 15986 | H12: 16734 | I12: 17825 | J12: 18856 | K12: 16793 | L12: 17560 | M12: 18846 | N12: 18749 | O12: 17922 | P12: 17983 | Q12: 18004 | R12: 18308 | S12: 18955 | T12: 19758 | U12: 19346 | V12: 18532
A13: 라트비아 Latvia | B13: 3 | C13: 8 | D13: 10 | E13: 12 | F13: 12 | G13: 16 | H13: 17 | I13: 21 | J13: 19 | K13: 24 | L13: 26 | M13: 17 | N13: 36 | O13: 25 | P13: 29 | Q13: 28 | R13: 24 | S13: 26 | T13: 31 | U13: 36 | V13: 29
A14: 러시아 Russian Federation | B14: 533 | C14: 557 | D14: 540 | E14: 587 | F14: 522 | G14: 658 | H14: 695 | I14: 735 | J14: 802 | K14: 736 | L14: 814 | M14: 1009 | N14: 1111 | O14: 1187 | P14: 952 | Q14: 877 | R14: 893 | S14: 1059 | T14: 1031 | U14: 1179 | V14: 1081
A15: 루마니아 Romania | B15: 24 | C15: 21 | D15: 25 | E15: 16 | F15: 18 | G15: 15 | H15: 26 | I15: 31 | J15: 14 | K15: 26 | L15: 19 | M15: 27 | N15: 29 | O15: 29 | P15: 28 | Q15: 35 | R15: 44 | S15: 32 | T15: 32 | U15: 39 | V15: 38
A16: 룩셈부르크 Luxembourg | B16: 138 | C16: 128 | D16: 143 | E16: 117 | F16: 125 | G16: 119 | H16: 128 | I16: 165 | J16: 227 | K16: 245 | L16: 259 | M16: 280 | N16: 335 | O16: 372 | P16: 392 | Q16: 403 | R16: 431 | S16: 499 | T16: 387 | U16: 350 | V16: 320
A17: 리투아니아 Lithuania | B17: 1 | C17: 3 | D17: 10 | E17: 4 | F17: 9 | G17: 8 | H17: 10 | I17: 13 | J17: 18 | K17: 25 | L17: 11 | M17: 25 | N17: 30 | O17: 40 | P17: 54 | Q17: 39 | R17: 28 | S17: 30 | T17: 37 | U17: 32 | V17: 39
A18: 멕시코 Mexico | B18: 73 | C18: 104 | D18: 132 | E18: 131 | F18: 118 | G18: 141 | H18: 168 | I18: 186 | J18: 202 | K18: 194 | L18: 191 | M18: 226 | N18: 188 | O18: 233 | P18: 284 | Q18: 317 | R18: 289 | S18: 270 | T18: 273 | U18: 216 | V18: 178
A19: 미국 United States | B19: 38015 | C19: 43059 | D19: 41316 | E19: 41046 | F19: 43395 | G19: 46879 | H19: 51301 | I19: 54062 | J19: 51667 | K19: 45655 | L19: 45089 | M19: 49206 | N19: 51857 | O19: 57451 | P19: 61488 | Q19: 57132 | R19: 56593 | S19: 56687 | T19: 56160 | U19: 57454 | V19: 58616
A20: 벨기에 Belgium | B20: 581 | C20: 689 | D20: 694 | E20: 775 | F20: 831 | G20: 1075 | H20: 1030 | I20: 1123 | J20: 1135 | K20: 1005 | L20: 1066 | M20: 1188 | N20: 1212 | O20: 1103 | P20: 1196 | Q20: 1180 | R20: 1219 | S20: 1354 | T20: 1301 | U20: 1355 | V20: 1313
A21: 불가리아 Bulgaria | B21: 35 | C21: 20 | D21: 31 | E21: 45 | F21: 24 | G21: 21 | H21: 25 | I21: 30 | J21: 27 | K21: 25 | L21: 33 | M21: 28 | N21: 33 | O21: 58 | P21: 52 | Q21: 57 | R21: 58 | S21: 50 | T21: 59 | U21: 49 | V21: 52
A22: 브라질 Brazil | B22: 178 | C22: 173 | D22: 201 | E22: 219 | F22: 279 | G22: 270 | H22: 333 | I22: 398 | J22: 471 | K22: 492 | L22: 487 | M22: 562 | N22: 588 | O22: 657 | P22: 580 | Q22: 548 | R22: 567 | S22: 589 | T22: 615 | U22: 642 | V22: 692
A23: 스웨덴 Sweden | B23: 3090 | C23: 3421 | D23: 2990 | E23: 2608 | F23: 2851 | G23: 2884 | H23: 3333 | I23: 3654 | J23: 4135 | K23: 3567 | L23: 3303 | M23: 3476 | N23: 3600 | O23: 3947 | P23: 3913 | Q23: 3843 | R23: 3719 | S23: 3975 | T23: 4175 | U23: 4201 | V23: 4345
A24: 스위스 Switzerland | B24: 1997 | C24: 2354 | D24: 2755 | E24: 2862 | F24: 2897 | G24: 3290 | H24: 3614 | I24: 3816 | J24: 3778 | K24: 3677 | L24: 3762 | M24: 4046 | N24: 4225 | O24: 4377 | P24: 4100 | Q24: 4257 | R24: 4368 | S24: 4485 | T24: 4595 | U24: 4651 | V24: 5108
A25: 스페인 Spain | B25: 555 | C25: 616 | D25: 719 | E25: 785 | F25: 822 | G25: 1124 | H25: 1202 | I25: 1295 | J25: 1391 | K25: 1563 | L25: 1770 | M25: 1732 | N25: 1705 | O25: 1705 | P25: 1703 | Q25: 1530 | R25: 1507 | S25: 1418 | T25: 1399 | U25: 1495 | V25: 1459
A26: 슬로바키아 Slovakia | B26: 31 | C26: 28 | D26: 26 | E26: 26 | F26: 26 | G26: 31 | H26: 31 | I26: 38 | J26: 41 | K26: 33 | L26: 44 | M26: 59 | N26: 42 | O26: 41 | P26: 65 | Q26: 38 | R26: 55 | S26: 52 | T26: 50 | U26: 42 | V26: 48
A27: 슬로베니아 Slovenia | B27: 39 | C27: 42 | D27: 44 | E27: 65 | F27: 62 | G27: 85 | H27: 79 | I27: 87 | J27: 108 | K27: 137 | L27: 125 | M27: 127 | N27: 114 | O27: 124 | P27: 156 | Q27: 84 | R27: 69 | S27: 99 | T27: 115 | U27: 89 | V27: 81
A28: 싱가포르 Singapore | B28: 222 | C28: 289 | D28: 330 | E28: 282 | F28: 432 | G28: 448 | H28: 473 | I28: 523 | J28: 580 | K28: 583 | L28: 643 | M28: 668 | N28: 714 | O28: 838 | P28: 940 | Q28: 907 | R28: 864 | S28: 872 | T28: 900 | U28: 1160 | V28: 1306
A29: 아르헨티나 Argentina | B29: 9 | C29: 9 | D29: 9 | E29: 14 | F29: 10 | G29: 20 | H29: 20 | I29: 32 | J29: 23 | K29: 9 | L29: 16 | M29: 24 | N29: 25 | O29: 26 | P29: 33 | Q29: 29 | R29: 46 | S29: 36 | T29: 42 | U29: 34 | V29: 38
A30: 아이슬란드 Iceland | B30: 24 | C30: 37 | D30: 39 | E30: 58 | F30: 46 | G30: 44 | H30: 55 | I30: 51 | J30: 66 | K30: 58 | L30: 54 | M30: 42 | N30: 44 | O30: 43 | P30: 43 | Q30: 46 | R30: 56 | S30: 39 | T30: 49 | U30: 41 | V30: 49
A31: 아일랜드 Ireland | B31: 243 | C31: 242 | D31: 309 | E31: 311 | F31: 323 | G31: 340 | H31: 422 | I31: 418 | J31: 481 | K31: 477 | L31: 448 | M31: 408 | N31: 391 | O31: 433 | P31: 439 | Q31: 455 | R31: 441 | S31: 489 | T31: 623 | U31: 640 | V31: 757
A32: 에스토니아 Estonia | B32: 6 | C32: 11 | D32: 11 | E32: 8 | F32: 12 | G32: 13 | H32: 17 | I32: 29 | J32: 35 | K32: 30 | L32: 49 | M32: 35 | N32: 34 | O32: 21 | P32: 33 | Q32: 36 | R32: 24 | S32: 47 | T32: 49 | U32: 38 | V32: 57
A33: 영국 United Kingdom | B33: 4808 | C33: 5500 | D33: 5389 | E33: 5210 | F33: 5035 | G33: 5093 | H33: 5095 | I33: 5542 | J33: 5480 | K33: 5039 | L33: 4892 | M33: 4874 | N33: 4918 | O33: 4849 | P33: 5267 | Q33: 5291 | R33: 5504 | S33: 5569 | T33: 5636 | U33: 5776 | V33: 5897
A34: 오스트리아 Austria | B34: 484 | C34: 620 | D34: 552 | E34: 644 | F34: 709 | G34: 851 | H34: 913 | I34: 1008 | J34: 951 | K34: 1029 | L34: 1144 | M34: 1343 | N34: 1319 | O34: 1262 | P34: 1387 | Q34: 1399 | R34: 1422 | S34: 1397 | T34: 1484 | U34: 1434 | V34: 1516
A35: 우루과이 Uruguay | B35: 4 | C35: 4 | D35: 9 | E35: 11 | F35: 6 | G35: 5 | H35: 4 | I35: 4 | J35: 8 | K35: 10 | L35: 5 | M35: 5 | N35: 5 | O35: 4 | P35: 6 | Q35: 6 | R35: 14 | S35: 14 | T35: 8 | U35: 11 | V35: 8
A36: 우크라이나 Ukraine | B36: 40 | C36: 58 | D36: 75 | E36: 58 | F36: 89 | G36: 60 | H36: 77 | I36: 94 | J36: 98 | K36: 79 | L36: 106 | M36: 139 | N36: 120 | O36: 152 | P36: 147 | Q36: 139 | R36: 162 | S36: 141 | T36: 155 | U36: 181 | V36: 127
A37: 이스라엘 Israel | B37: 964 | C37: 1314 | D37: 1175 | E37: 1128 | F37: 1227 | G37: 1454 | H37: 1593 | I37: 1742 | J37: 1902 | K37: 1555 | L37: 1476 | M37: 1449 | N37: 1374 | O37: 1607 | P37: 1581 | Q37: 1685 | R37: 1838 | S37: 1816 | T37: 1896 | U37: 2001 | V37: 1932
A38: 이탈리아 Italy | B38: 1394 | C38: 1623 | D38: 1980 | E38: 2163 | F38: 2190 | G38: 2349 | H38: 2701 | I38: 2949 | J38: 2884 | K38: 2653 | L38: 2658 | M38: 2684 | N38: 2845 | O38: 2869 | P38: 3059 | Q38: 3072 | R38: 3362 | S38: 3223 | T38: 3328 | U38: 3385 | V38: 3404
A39: 인도 India | B39: 190 | C39: 295 | D39: 525 | E39: 763 | F39: 724 | G39: 679 | H39: 832 | I39: 904 | J39: 1073 | K39: 960 | L39: 1276 | M39: 1324 | N39: 1310 | O39: 1321 | P39: 1429 | Q39: 1412 | R39: 1528 | S39: 1583 | T39: 2009 | U39: 2043 | V39: 1909
A40: 인도네시아 Indonesia | B40: 9 | C40: 6 | D40: 16 | E40: 2 | F40: 6 | G40: 8 | H40: 8 | I40: 9 | J40: 10 | K40: 7 | L40: 16 | M40: 13 | N40: 15 | O40: 15 | P40: 17 | Q40: 6 | R40: 9 | S40: 8 | T40: 7 | U40: 7 | V40: 16
A41: 일본 Japan | B41: 9569 | C41: 11905 | D41: 14061 | E41: 17415 | F41: 20268 | G41: 24870 | H41: 27024 | I41: 27743 | J41: 28763 | K41: 29810 | L41: 32216 | M41: 38864 | N41: 43523 | O41: 43772 | P41: 42381 | Q41: 44053 | R41: 45210 | S41: 48204 | T41: 49704 | U41: 52702 | V41: 50562
A42: 중국 China | B42: 782 | C42: 1730 | D42: 1015 | E42: 1297 | F42: 1707 | G42: 2503 | H42: 3930 | I42: 5455 | J42: 6119 | K42: 7900 | L42: 12300 | M42: 16396 | N42: 18616 | O42: 21506 | P42: 25542 | Q42: 29837 | R42: 43092 | S42: 48903 | T42: 53463 | U42: 59176 | V42: 68770
A43: 체코 Czech Republic | B43: 94 | C43: 82 | D43: 73 | E43: 83 | F43: 95 | G43: 117 | H43: 107 | I43: 132 | J43: 155 | K43: 183 | L43: 136 | M43: 147 | N43: 163 | O43: 197 | P43: 189 | Q43: 191 | R43: 199 | S43: 184 | T43: 180 | U43: 183 | V43: 208
A44: 칠레 Chile | B44: 1 | C44: 3 | D44: 6 | E44: 9 | F44: 6 | G44: 9 | H44: 12 | I44: 17 | J44: 27 | K44: 53 | L44: 89 | M44: 115 | N44: 120 | O44: 142 | P44: 142 | Q44: 166 | R44: 197 | S44: 167 | T44: 240 | U44: 224 | V44: 246
A45: 캐나다 Canada | B45: 1801 | C45: 2113 | D45: 2259 | E45: 2270 | F45: 2107 | G45: 2318 | H45: 2573 | I45: 2844 | J45: 2907 | K45: 2509 | L45: 2689 | M45: 2914 | N45: 2738 | O45: 2847 | P45: 3071 | Q45: 2822 | R45: 2336 | S45: 2402 | T45: 2417 | U45: 2725 | V45: 2614
A46: 콜롬비아 Colombia | B46: 3 | C46: 17 | D46: 36 | E46: 24 | F46: 22 | G46: 23 | H46: 29 | I46: 44 | J46: 37 | K46: 63 | L46: 46 | M46: 55 | N46: 71 | O46: 82 | P46: 101 | Q46: 87 | R46: 100 | S46: 143 | T46: 159 | U46: 128 | V46: 125
A47: 크로아티아 Croatia | B47: 43 | C47: 56 | D47: 69 | E47: 72 | F47: 76 | G47: 71 | H47: 75 | I47: 79 | J47: 56 | K47: 36 | L47: 47 | M47: 47 | N47: 29 | O47: 44 | P47: 54 | Q47: 28 | R47: 39 | S47: 35 | T47: 39 | U47: 41 | V47: 20
A48: 터키 Turkey | B48: 71 | C48: 76 | D48: 85 | E48: 111 | F48: 115 | G48: 174 | H48: 269 | I48: 359 | J48: 392 | K48: 388 | L48: 479 | M48: 539 | N48: 536 | O48: 805 | P48: 853 | Q48: 1010 | R48: 1065 | S48: 1251 | T48: 1397 | U48: 1688 | V48: 1618
A49: 포르투갈 Portugal | B49: 21 | C49: 42 | D49: 34 | E49: 36 | F49: 49 | G49: 56 | H49: 68 | I49: 92 | J49: 98 | K49: 163 | L49: 117 | M49: 89 | N49: 126 | O49: 144 | P49: 159 | Q49: 161 | R49: 184 | S49: 201 | T49: 250 | U49: 196 | V49: 251
A50: 폴란드 Poland | B50: 109 | C50: 99 | D50: 116 | E50: 154 | F50: 107 | G50: 97 | H50: 101 | I50: 107 | J50: 128 | K50: 179 | L50: 206 | M50: 237 | N50: 251 | O50: 332 | P50: 348 | Q50: 439 | R50: 344 | S50: 330 | T50: 333 | U50: 368 | V50: 344
A51: 프랑스 France | B51: 4137 | C51: 4706 | D51: 5091 | E51: 5169 | F51: 5183 | G51: 5747 | H51: 6262 | I51: 6566 | J51: 7076 | K51: 7217 | L51: 7230 | M51: 7406 | N51: 7801 | O51: 7905 | P51: 8260 | Q51: 8420 | R51: 8210 | S51: 8015 | T51: 7922 | U51: 7922 | V51: 7769
A52: 핀란드 Finland | B52: 1579 | C52: 1696 | D52: 1761 | E52: 1557 | F52: 1672 | G52: 1893 | H52: 1845 | I52: 1994 | J52: 2212 | K52: 2123 | L52: 2136 | M52: 2075 | N52: 2312 | O52: 2095 | P52: 1811 | Q52: 1584 | R52: 1525 | S52: 1603 | T52: 1833 | U52: 1661 | V52: 1676
A53: 한국 Korea | B53: 1582 | C53: 2324 | D53: 2520 | E53: 2945 | F53: 3555 | G53: 4689 | H53: 5946 | I53: 7064 | J53: 7902 | K53: 8040 | L53: 9604 | M53: 10357 | N53: 11787 | O53: 12381 | P53: 13119 | Q53: 14564 | R53: 15555 | S53: 15751 | T53: 16920 | U53: 19074 | V53: 20053
A54: 헝가리 Hungary | B54: 135 | C54: 127 | D54: 185 | E54: 114 | F54: 136 | G54: 158 | H54: 145 | I54: 167 | J54: 173 | K54: 143 | L54: 173 | M54: 140 | N54: 162 | O54: 163 | P54: 158 | Q54: 148 | R54: 177 | S54: 147 | T54: 153 | U54: 153 | V54: 133
A55: 호주 Australia | B55: 1576 | C55: 1664 | D55: 1762 | E55: 1680 | F55: 1835 | G55: 2004 | H55: 2000 | I55: 2051 | J55: 1937 | K55: 1736 | L55: 1770 | M55: 1748 | N55: 1710 | O55: 1603 | P55: 1722 | Q55: 1741 | R55: 1835 | S55: 1852 | T55: 1827 | U55: 1768 | V55: 1718
A57: 자료 : WIPO statistics database, 2021.11. (ipstats.wipo.int)

Sheet 2-1
A1: 2. 국내 연구개발활동
A2: R&D Activities in Korea
A3: 2-1) 연구개발비 및 GDP 대비 연구개발비 비율
A4: R&D expenditure and as a percentage of GDP
A6: 연도 Year | B6: 연구개발비(백만원) R&D expenditure(Won, Millions) | E6: 정부 : 민간 Gov't : Business enterprises | F6: 국내총생산(B)(십억원) GDP(Won, Billions) | G6: 국내총생산대비(A/B) As a percent of GDP
B7: 총계(A) Total | C7: 정부·공공재원 Gov't & Other national sources | D7: 민간·외국재원 Business enterprises sector & Rest of the world
A8: 1991 | B8: 4158441 | C8: 808464 | D8: 3349977 | E8: 19 : 81 | F8: 242481.1 | G8: =B8/(F8*1000) -> 0.01714954691
A9: 1992 | B9: 4989031 | C9: 856882 | D9: 4132149 | E9: 17 : 83 | F9: 277540.8 | G9: 0.01797584715
A10: 1993 | B10: 6152983 | C10: 1026617 | D10: 5126366 | E10: 17 : 83 | F10: 315181.3 | G10: 0.01952204334
A11: 1994 | B11: 7894746 | C11: 1880222 | D11: 6014524 | E11: 24 : 76 | F11: 372493.4 | G11: 0.02119432452
A12: 1995 | B12: 9440606 | C12: 2289131 | D12: 7151475 | E12: 24 : 76 | F12: 436988.8 | G12: 0.02160377108
A13: 1996 | B13: 10878051 | C13: 2850638 | D13: 8027414 | E13: 26 : 74 | F13: 490850.9 | G13: 0.02216161975
A14: 1997 | B14: 12185807 | C14: 3344814 | D14: 8840992 | E14: 27 : 73 | F14: 542001.8 | G14: 0.02248296408
A15: 1998 | B15: 11336617 | C15: 3491103 | D15: 7845514 | E15: 31 : 69 | F15: 537215.3 | G15: 0.02110255795
A16: 1999 | B16: 11921752 | C16: 3574370 | D16: 8347382 | E16: 30 : 70 | F16: 591453 | G16: 0.02015671913
A17: 2000 | B17: 13848501 | C17: 3816850 | D17: 10031650 | E17: 28 : 72 | F17: 651634.426 | G17: 0.0212519481
A18: 2001 | B18: 16110521.98 | C18: 4361534 | D18: 11748988 | E18: 27 : 73 | F18: 707021.316 | G18: 0.02278647279
A19: 2002 | B19: 17325081.78 | C19: 4739957 | D19: 12585125 | E19: 27 : 73 | F19: 784741.2502 | G19: 0.02207744499
A20: 2003 | B20: 19068682 | C20: 4876225 | D20: 14192457 | E20: 26 : 74 | F20: 837364.9986 | G20: 0.02277224631
A21: 2004 | B21: 22185343 | C21: 5446050 | D21: 16739293 | E21: 25 : 75 | F21: 908439.1448 | G21: 0.02442138599
A22: 2005 | B22: 24155413.6 | C22: 5973784.01 | D22: 18181629.59 | E22: 24 : 76 | F22: 957447.785 | G22: 0.02522896181
A23: 2006 | B23: 27345704.1 | C23: 6786698.363 | D23: 20559005.74 | E23: 24 : 76 | F23: 1005601.505 | G23: 0.02719338024
A24: 2007 | B24: 31301377.26 | C24: 8175935.845 | D24: 23125441.41 | E24: 26 : 74 | F24: 1089660.171 | G24: 0.0287258157
A25: 2008 | B25: 34498053.84 | C25: 9248057.258 | D25: 25249996.58 | E25: 27 : 73 | F25: 1154216.49 | G25: 0.02988872031
A26: 2009 | B26: 37928502.24 | C26: 10887135.84 | D26: 27041366.4 | E26: 29 : 71 | F26: 1205347.749 | G26: 0.0314668545
A27: 2010 | B27: 43854834.28 | C27: 12270227.61 | D27: 31584606.68 | E27: 28 : 72 | F27: 1322611.152 | G27: 0.03315776841
A28: 2011 | B28: 49890418.95 | C28: 13002403.59 | D28: 36888015.36 | E28: 26 : 74 | F28: 1388937.2 | G28: 0.03591985221
A29: 2012 | B29: 55450115.65 | C29: 13822077.68 | D29: 41628037.97 | E29: 25 : 75 | F29: 1440111.43 | G29: 0.03850404525
A30: 2013 | B30: 59300949.33 | C30: 14241744.4 | D30: 45059204.93 | E30: 24 : 76 | F30: 1500819.149 | G30: 0.03951238853
A31: 2014 | B31: 63734126.79 | C31: 15275007.37 | D31: 48459119.43 | E31: 24 : 76 | F31: 1562928.872 | G31: 0.04077864829
A32: 2015 | B32: 65959371.73 | C32: 16293517.79 | D32: 49665853.93 | E32: 25 : 75 | F32: 1658020.359 | G32: 0.0397820035
A33: 2016 | B33: 69405529.89 | C33: 16410047.25 | D33: 52995482.63 | E33: 24 : 76 | F33: 1740779.572 | G33: 0.03987037244
A34: 2017 | B34: 78789187.37 | C34: 17737133.57 | D34: 61052053.81 | E34: 23 : 77 | F34: 1835698.159 | G34: 0.04292055695
A35: 2018 | B35: 85728714.74 | C35: 18363010.93 | D35: 67365703.81 | E35: 21 : 79 | F35: 1898192.55 | G35: 0.04516333958
A36: 2019 | B36: 89047077.12 | C36: 19095480.17 | D36: 69951596.95 | E36: 21 : 79 | F36: 1924498.062 | G36: 0.04627028671
A37: 2020 | B37: 93071686.49 | C37: 21581227.83 | D37: 71490458.66 | E37: 23 : 77 | F37: 1933152.438 | G37: 0.04814503225
A38: 전년대비 증가율(%) Percent change from previous year
A39: 1991 | B39: =(B8/B7-1)*100 ->  | E39: 0 | F39: =(F8/F7-1)*100 ->  | G39: 0
A40: 1992 | B40: 19.97359106 | C40: 5.98888757 | D40: 23.34857821 | E40: 0 | F40: 14.45873513 | G40: 0
A41: 1993 | B41: 23.33022184 | C41: 19.80844504 | D41: 24.06053122 | E41: 0 | F41: 13.56215014 | G41: 0
A42: 1994 | B42: 28.30761925 | C42: 83.14736654 | D42: 17.32529437 | E42: 0 | F42: 18.18385164 | G42: 0
A43: 1995 | B43: 19.58087062 | C43: 21.74791062 | D43: 18.90342444 | E43: 0 | F43: 17.31450812 | G43: 0
A44: 1996 | B44: 15.22619417 | C44: 24.5292646 | D44: 12.24836834 | E44: 0 | F44: 12.32573924 | G44: 0
A45: 1997 | B45: 12.02196974 | C45: 17.33562802 | D45: 10.13499491 | E45: 0 | F45: 10.42086304 | G45: 0
A46: 1998 | B46: -6.96868086 | C46: 4.373606425 | D46: -11.25979981 | E46: 0 | F46: -0.8831151483 | G46: 0
A47: 1999 | B47: 5.161460425 | C47: 2.385120118 | D47: 6.396878522 | E47: 0 | F47: 10.09608252 | G47: 0
A48: 2000 | B48: 16.16162624 | C48: 6.783852819 | D48: 20.17720047 | E48: 0 | F48: 10.17518315 | G48: 0
A49: 2001 | B49: 16.3340493 | C49: 14.27051102 | D49: 17.11919774 | E49: 0 | F49: 8.499687534 | G49: 0
A50: 2002 | B50: 7.538922702 | C50: 8.676373955 | D50: 7.116672517 | E50: 0 | F50: 10.99258712 | G50: 0
A51: 2003 | B51: 10.06402303 | C51: 2.874878401 | D51: 12.77168085 | E51: 0 | F51: 6.70587259 | G51: 0
A52: 2004 | B52: 16.34439653 | C52: 11.68578152 | D52: 17.94499712 | E52: 0 | F52: 8.487833423 | G52: 0
A53: 2005 | B53: 8.880054728 | C53: 9.690216033 | D53: 8.61647257 | E53: 0 | F53: 5.39481819 | G53: 0
A54: 2006 | B54: 13.20735199 | C54: 13.60803055 | D54: 13.07570444 | E54: 0 | F54: 5.029383429 | G54: 0
A55: 2007 | B55: 14.46542808 | C55: 20.47000482 | D55: 12.48326748 | E55: 0 | F55: 8.35904338 | G55: 0
A56: 2008 | B56: 10.21257484 | C56: 13.11313388 | D56: 9.187090222 | E56: 0 | F56: 5.924445095 | G56: 0
A57: 2009 | B57: 9.943889635 | C57: 17.7234908 | D57: 7.094534911 | E57: 0 | F57: 4.429953975 | G57: 0
A58: 2010 | B58: 15.62500941 | C58: 12.70390848 | D58: 16.80107507 | E58: 0 | F58: 9.728595196 | G58: 0
A59: 2011 | B59: 13.76264388 | C59: 5.967093689 | D59: 16.79111836 | E59: 0 | F59: 5.014780593 | G59: 0
A60: 2012 | B60: 11.14381642 | C60: 6.304019763 | D60: 12.84976316 | E60: 0 | F60: 3.684416389 | G60: 0
A61: 2013 | B61: 6.944681062 | C61: 3.036205824 | D61: 8.242442161 | E61: 0 | F61: 4.215487639 | G61: 0
A62: 2014 | B62: 7.475727646 | C62: 7.255171375 | D62: 7.545438287 | E62: 0 | F62: 4.138388257 | G62: 0
A63: 2015 | B63: 3.49144963 | C63: 6.667822822 | D63: 2.49021138 | E63: 0 | F63: 6.084185173 | G63: 0
A64: 2016 | B64: 5.224667956 | C64: 0.7151890667 | D64: 6.704060109 | E64: 0 | F64: 4.991447345 | G64: 0
A65: 2017 | B65: 13.52004301 | C65: 8.087035292 | D65: 15.20237344 | E65: 0 | F65: 5.45264825 | G65: 0
A66: 2018 | B66: 8.807715366 | C66: 3.528627448 | D66: 10.34142114 | E66: 0 | F66: 3.404393635 | G66: 0
A67: 2019 | B67: =(B36/B35-1)*100 -> 3.870771176 | C67: =(C36/C35-1)*100 -> 3.988829754 | D67: 3.83858995 | E67: 0 | F67: =(F36/F35-1)*100 -> 1.385818934 | G67: 0
A68: 2020 | B68: 4.519642309 | C68: 13.01746611 | D68: 2.199895042 | E68: 0 | F68: 0.4496952375 | G68: 0
A70: 주 : '정부 : 민간'에서 정부는 정부재원과 공공재원의 합이며, 민간은 민간재원과 외국재원의 합
A71: 자료 : GDP(한국은행, 경제통계시스템)

Sheet 2-2
A1: 2-2) 재원별 연구개발비
A2: R&D expenditure by source of funds
I4: (단위 : 백만원 Unit : Won, Millions)
A5: 연도 Year | B5: 총계 Total | D5: 정부〮공공부문 Gov't & Other national sources | F5: 민간부문 Business enterprise | H5: 외국부문 Rest of the world
C6: 구성비(%) | E6: 구성비(%) | G6: 구성비(%) | I6: 구성비(%)
A7: 1991 | B7: 4158441 | C7: =B7/$B7*100 -> 100 | D7: 808464 | E7: =D7/$B7*100 -> 19.44151666 | F7: 3342601 | G7: =F7/$B7*100 -> 80.38110917 | H7: 7376 | I7: =H7/$B7*100 -> 0.177374165
A8: 1992 | B8: 4989031 | C8: =B8/$B8*100 -> 100 | D8: 856882 | E8: =D8/$B8*100 -> 17.17531922 | F8: 4110546 | G8: =F8/$B8*100 -> 82.39167085 | H8: 21603 | I8: 0.4330099372
A9: 1993 | B9: 6152983 | C9: 100 | D9: 1026617 | E9: 16.68486651 | F9: 5113985 | G9: 83.11391402 | H9: 12381 | I9: 0.2012194735
A10: 1994 | B10: 7894746 | C10: 100 | D10: 1880222 | E10: 23.81611771 | F10: 6011453 | G10: 76.14498301 | H10: 3071 | I10: 0.03889928821
A11: 1995 | B11: 9440606 | C11: 100 | D11: 2289131 | E11: 24.24771249 | F11: 7150144 | G11: 75.73818884 | H11: 1331 | I11: 0.01409867121
A12: 1996 | B12: 10878051 | C12: 100 | D12: 2850638 | E12: 26.20541125 | F12: 8013779 | G12: 73.6692538 | H12: 13635 | I12: 0.1253441448
A13: 1997 | B13: 12185807 | C13: 100 | D13: 3344814 | E13: 27.44844063 | F13: 8829196 | G13: 72.45475002 | H13: 11796 | I13: 0.09680113923
A14: 1998 | B14: 11336617 | C14: 100 | D14: 3491103 | E14: 30.79492762 | F14: 7837081 | G14: 69.13068511 | H14: 8433 | I14: 0.07438727091
A15: 1999 | B15: 11921752 | C15: 100 | D15: 3574370 | E15: 29.98191876 | F15: 8340040 | G15: 69.95649633 | H15: 7342 | I15: 0.06158490799
A16: 2000 | B16: 13848501 | C16: 100 | D16: 3816850 | E16: 27.56146676 | F16: 10023405 | G16: 72.37898889 | H16: 8245 | I16: 0.05953712969
A17: 2001 | B17: 16110521.98 | C17: 100 | D17: 4361534 | E17: 27.0725803 | F17: 11673266 | G17: 72.45740402 | H17: 75722 | I17: 0.4700158076
A18: 2002 | B18: 17325081.78 | C18: 100 | D18: 4739957 | E18: 27.35893002 | F18: 12508848 | G18: 72.20080205 | H18: 76277 | I18: 0.4402692061
A19: 2003 | B19: 19068682 | C19: 100 | D19: 4876225 | E19: 25.57190371 | F19: 14113599 | G19: 74.01454909 | H19: 78858 | I19: 0.4135471974
A20: 2004 | B20: 22185343 | C20: 100 | D20: 5446050 | E20: 24.54796394 | F20: 16630869 | G20: 74.963317 | H20: 108424 | I20: 0.488719061
A21: 2005 | B21: 24155413.6 | C21: 100 | D21: 5973784.01 | E21: 24.73062192 | F21: 18004157.27 | G21: 74.53466777 | H21: 177472.3151 | I21: 0.734710314
A22: 2006 | B22: 27345704.1 | C22: 100 | D22: 6786698.363 | E22: 24.81815183 | F22: 20469436.27 | G22: 74.85430324 | H22: 89569.46656 | I22: 0.3275449271
A23: 2007 | B23: 31301377.26 | C23: =B23/$B23*100 -> 100 | D23: 8175935.845 | E23: =D23/$B23*100 -> 26.12005145 | F23: 23055735.07 | G23: =F23/$B23*100 -> 73.65725437 | H23: 69706.3465 | I23: =H23/$B23*100 -> 0.2226941834
A24: 2008 | B24: 34498053.84 | C24: 100 | D24: 9248057.258 | E24: 26.80747529 | F24: 25143874.54 | G24: =F24/$B24*100 -> 72.88490723 | H24: 106122.0443 | I24: 0.3076174813
A25: 2009 | B25: 37928502.24 | C25: 100 | D25: 10887135.84 | E25: 28.7043653 | F25: 26963044.97 | G25: 71.08913713 | H25: 78321.43648 | I25: 0.2064975727
A26: 2010 | B26: 43854834.28 | C26: 100 | D26: 12270227.61 | E26: 27.97919046 | F26: 31489621.01 | G26: 71.80421844 | H26: 94985.6683 | I26: 0.2165911007
A27: 2011 | B27: 49890418.95 | C27: 100 | D27: 13002403.59 | E27: 26.06192503 | F27: 36776186.95 | G27: 73.71392688 | H27: 111828.4193 | I27: 0.2241480863
A28: 2012 | B28: 55450115.65 | C28: 100 | D28: 13822077.68 | E28: 24.92704932 | F28: 41437794.51 | G28: 74.72986129 | H28: 190243.4608 | I28: 0.3430893851
A29: 2013 | B29: 59300949.33 | C29: 100 | D29: 14241744.4 | E29: 24.01604791 | F29: 44879192.8 | G29: 75.68039519 | H29: 180012.1241 | I29: 0.3035569011
A30: 2014 | B30: 63734126.79 | C30: 100 | D30: 15275007.37 | E30: 23.96676339 | F30: 48008280.39 | G30: 75.32586199 | H30: 450839.0397 | I30: 0.7073746239
A31: 2015 | B31: 65959371.73 | C31: 100 | D31: 16293517.79 | E31: =D31/$B31*100 -> 24.70235445 | F31: 49169995.25 | G31: =F31/$B31*100 -> 74.54588175 | H31: 495858.6842 | I31: =H31/$B31*100 -> 0.7517638073
A32: 2016 | B32: 69405529.89 | C32: 100 | D32: 16410047.25 | E32: =D32/$B32*100 -> 23.64371727 | F32: 52345866.61 | G32: =F32/$B32*100 -> 75.42031117 | H32: 649616.0269 | I32: =H32/$B32*100 -> 0.9359715688
A33: 2017 | B33: 78789187.37 | C33: 100 | D33: 17737133.57 | E33: =D33/$B33*100 -> 22.51214178 | F33: 60064289.4 | G33: =F33/$B33*100 -> 76.23417806 | H33: 987764.4108 | I33: =H33/$B33*100 -> 1.253680161
A34: 2018 | B34: 85728714.74 | C34: 100 | D34: 18363010.93 | E34: =D34/$B34*100 -> 21.41990695 | F34: 65702767.63 | G34: 76.64032738 | H34: 1662936.178 | I34: 1.93976567
A35: 2019 | B35: 89047077.12 | C35: 100 | D35: 19095480.17 | E35: 21.44425263 | F35: 68521556.96 | G35: 76.94981034 | H35: 1430039.989 | I35: 1.605937034
A36: 2020 | B36: 93071686.49 | C36: 100 | D36: 21581227.83 | E36: 23.18774769 | F36: 71269260.33 | G36: =F36/$B36*100 -> 76.57458784 | H36: 221198.3323 | I36: =H36/$B36*100 -> 0.2376644721

Sheet 2-3
A1: 2-3) 연구수행주체별 연구개발비
A2: R&D expenditure by sector of performance
K4: (단위 : 백만원 Unit : Won, Millions)
A5: 연도 Year | B5: 총계 Total | C5: 공공연구기관 Public research institutes | F5: 대학 Higher educations | I5: 기업체 Business enterprises
C6: 계 Sub total | D6: 국립·공립·출연(연) Government | E6: 비영리법인 Non-profit | F6: 계 Sub total | G6: 국·공립 National & Pub. | H6: 사립 Private | I6: 계 Sub total | J6: 민간기업체 Private | K6: 정부투자기관 Gov't invest
A7: 1991
A8: 1992
A9: 1993
A10: 1994
A11: 1995
A12: 1996
A13: 1997
A14: 1998
A15: 1999
A16: 2000
A17: 2001
A18: 2002
A19: 2003
A20: 2004
A21: 2005 | B21: 24155413.6 | C21: 3192887 | D21: 2842252 | E21: 350635 | F21: 2398283.6 | G21: 932462 | H21: 1465821.6 | I21: 18564243 | J21: 18120101 | K21: 315878
A22: 2006 | B22: 27345704.1 | C22: 3497050.1 | D22: 3140796.6 | E22: 356253.5 | F22: 2721874 | G22: 1039265 | H22: 1682609 | I22: 21126780 | J22: 20745227 | K22: 381553
A23: 2007 | B23: 31301377.26 | C23: 4102365.7 | D23: 3630947.5 | E23: 471418.2 | F23: 3334118.57 | G23: 1311716 | H23: 2022402.57 | I23: 23864892.99 | J23: 23467579.23 | K23: 221423.76
A24: 2008 | B24: 34498053.84 | C24: 4653235.6 | D24: 4159538.7 | E24: 493696.9 | F24: 3844749.4 | G24: 1519323.6 | H24: 2325425.8 | I24: 26000068.84 | J24: 25553070.84 | K24: 446998
A25: 2009 | B25: 37928502.24 | C25: 5558383.7 | D25: 4925499 | E25: 632884.7 | F25: 4204259.4 | G25: 1771080 | H25: 2433179.4 | I25: 28165859.14 | J25: 27648365.14 | K25: 329064
A26: 2010 | B26: 43854834.28 | C26: 6306136.03 | D26: 5643330.87 | E26: 662805.16 | F26: 4745458.693 | G26: 1993071.65 | H26: 2752387.043 | I26: 32803239.56 | J26: 32238691.56 | K26: 564548
A27: 2011 | B27: 49890418.95 | C27: 6673311.11 | D27: 5870369.61 | E27: 802941.5 | F27: 5033816.5 | G27: 2068282.1 | H27: 2965534.4 | I27: 38183291.34 | J27: 37560684.34 | K27: 622607
A28: 2012 | B28: 55450115.65 | C28: 6950261.67 | D28: 6240186.3 | E28: 710075.37 | F28: 5276928.439 | G28: 2261530.768 | H28: 3015397.671 | I28: 43222925.54 | J28: 42580790.54 | K28: 642135
A29: 2013 | B29: 59300949.33 | C29: 7260710.547 | D29: 6471895.61 | E29: 788814.937 | F29: 5480322.53 | G29: 2432044.25 | H29: 3048278.28 | I29: 46559916.25 | J29: 45947538.25 | K29: 612378
A30: 2014 | B30: 63734126.79 | C30: 8112700.933 | D30: 7146441.396 | E30: 966259.537 | F30: 5766960.87 | G30: 2635650.05 | H30: 3131310.82 | I30: 49854464.99 | J30: 49218203.99 | K30: 636261
A31: 2015 | B31: 65959371.73 | C31: 8824078.748 | D31: 7745312.548 | E31: 1078766.2 | F31: 5998872.479 | G31: 2715086.65 | H31: 3283785.829 | I31: 51136420.5 | J31: 50503751.5 | K31: 632669
A32: 2016 | B32: 69405529.89 | C32: 9113170.697 | D32: 8012527.25 | E32: 1100643.447 | F32: 6339887.929 | G32: 2874488.3 | H32: 3465399.629 | I32: 53952471.26 | J32: 53147044.26 | K32: 805427
A33: 2017 | B33: 78789187.37 | C33: 9543217.4 | D33: 8429716 | E33: 1113501.4 | F33: 6682523.015 | G33: 2957915.515 | H33: 3724607.5 | I33: 62563446.96 | J33: 61673311.96 | K33: 890135
A34: 2018 | B34: 85728714.74 | C34: 9843867.4 | D34: 8636201.5 | E34: 1207665.9 | F34: 7050415.008 | G34: 3088493.055 | H34: 3961921.953 | I34: 68834432.33 | J34: 67925985.33 | K34: 908447
A35: 2019 | B35: 89047077.12 | C35: 10168766 | D35: 8898118 | E35: 1270648 | F35: 7371649 | G35: 3274570 | H35: 4097079 | I35: 71506662.12 | J35: 70637773.12 | K35: 868889
A36: 2020 | B36: 93071686.49 | C36: 11118558 | D36: 9407681 | E36: 1710877 | F36: 8353350.45 | G36: 3774963.45 | H36: 4578387 | I36: 73599778.04 | J36: 72723759.04 | K36: 876019
A37: 구성비(%) Percent distribution
A38: 1991 | B38: =B7/$B7*100 -> 
A39: 1992 | B39: =B8/$B8*100 -> 
A40: 1993 | B40: =B9/$B9*100 -> 
A41: 1994 | B41: =B10/$B10*100 -> 
A42: 1995 | B42: =B11/$B11*100 -> 
A43: 1996 | B43: =B12/$B12*100 -> 
A44: 1997 | B44: =B13/$B13*100 -> 
A45: 1998 | B45: =B14/$B14*100 -> 
A46: 1999 | B46: =B15/$B15*100 -> 
A47: 2000 | B47: =B16/$B16*100 -> 
A48: 2001 | B48: =B17/$B17*100 -> 
A49: 2002 | B49: =B18/$B18*100 -> 
A50: 2003 | B50: =B19/$B19*100 -> 
A51: 2004 | B51: =B20/$B20*100 -> 
A52: 2005 | B52: =B21/$B21*100 -> 100 | C52: 13.21810114 | D52: 11.76652177 | E52: 1.451579368 | F52: 9.928555312 | G52: 3.860260956 | H52: 6.068294355 | I52: 76.85334355 | J52: 75.01465841 | K52: 1.307690298
A53: 2006 | B53: =B22/$B22*100 -> 100 | C53: 12.78829789 | D53: 11.48552105 | E53: 1.302776841 | F53: 9.953570733 | G53: 3.800468974 | H53: 6.153101759 | I53: 77.25813138 | J53: 75.86283726 | K53: 1.395294115
A54: 2007 | B54: =B23/$B23*100 -> 100 | C54: 13.10602299 | D54: 11.59996083 | E54: 1.506062165 | F54: 10.65166731 | G54: 4.190601548 | H54: 6.461065765 | I54: 76.2423097 | J54: 74.97299251 | K54: 0.7073930267
A55: 2008 | B55: =B24/$B24*100 -> 100 | C55: 13.48840031 | D55: 12.05731407 | E55: 1.431086235 | F55: 11.14482984 | G55: 4.404084958 | H55: 6.740744886 | I55: 75.36676985 | J55: 74.07105038 | K55: 1.295719469
A56: 2009 | B56: =B25/$B25*100 -> 100 | C56: 14.65489901 | D56: 12.98627341 | E56: 1.668625605 | F56: 11.0846966 | G56: 4.669522642 | H56: 6.415173962 | I56: 74.26040438 | J56: 72.89601093 | K56: 0.8675902832
A57: 2010 | B57: =B26/$B26*100 -> 100 | C57: 14.37956871 | D57: 12.86820703 | E57: 1.51136168 | F57: 10.82083371 | G57: 4.544702272 | H57: 6.276131441 | I57: 74.79959757 | J57: 73.51228681 | K57: 1.287310759
A58: 2011 | B58: =B27/$B27*100 -> 100 | C58: 13.3759372 | D58: 11.76652699 | E58: 1.609410217 | F58: 10.0897459 | G58: 4.145649893 | H58: 5.944096006 | I58: 76.5343169 | J58: 75.28636786 | K58: 1.247949031
A59: 2012 | B59: =B28/$B28*100 -> 100 | C59: 12.53426001 | D59: 11.25369393 | E59: 1.280566076 | F59: 9.516532792 | G59: 4.078496035 | H59: 5.438036758 | I59: 77.9492072 | J59: 76.79116633 | K59: 1.158040867
A60: 2013 | B60: =B29/$B29*100 -> 100 | C60: 12.24383527 | D60: 10.91364587 | E60: 1.330189391 | F60: 9.24154266 | G60: 4.101189403 | H60: 5.140353257 | I60: 78.51462207 | J60: 77.4819607 | K60: 1.032661377
A61: 2014 | B61: =B30/$B30*100 -> 100 | C61: 12.72897479 | D61: 11.21289607 | E61: 1.516078725 | F61: 9.04846612 | G61: 4.135382695 | H61: 4.913083426 | I61: 78.22255909 | J61: 77.22425405 | K61: 0.99830504
A62: 2015 | B62: =B31/$B31*100 -> 100 | C62: 13.37805154 | D62: 11.74255052 | E62: 1.635501024 | F62: 9.094799301 | G62: 4.116301564 | H62: 4.978497737 | I62: 77.52714915 | J62: 76.56796931 | K62: 0.9591798458
A63: 2016 | B63: =B32/$B32*100 -> 100 | C63: 13.13032364 | D63: 11.54450843 | E63: 1.585815206 | F63: 9.134557346 | G63: 4.14158397 | H63: 4.992973376 | I63: 77.73511902 | J63: 76.57465385 | K63: 1.160465169
A64: 2017 | B64: =B33/$B33*100 -> 100 | C64: 12.11234399 | D64: 10.69907722 | E64: 1.413266766 | F64: 8.481522957 | G64: 3.754215031 | H64: 4.727307926 | I64: 79.40613306 | J64: 78.27636509 | K64: 1.129767966
A65: 2018 | B65: =B34/$B34*100 -> 100 | C65: 11.48257901 | D65: 10.07387259 | E65: 1.40870641 | F65: 8.224099743 | G65: 3.602635435 | H65: 4.621464307 | I65: 80.29332125 | J65: 79.2336448 | K65: 1.059676449
A66: 2019 | B66: =B35/$B35*100 -> 100 | C66: 11.41953934 | D66: 9.992599744 | E66: 1.426939593 | F66: 8.278372787 | G66: 3.677346979 | H66: 4.601025809 | I66: 80.30208788 | J66: 79.32632424 | K66: 0.9757636389
A67: 2020 | B67: =B36/$B36*100 -> 100 | C67: 11.94623029 | D67: 10.10799455 | E67: 1.838235735 | F67: 8.975178989 | G67: 4.055974048 | H67: 4.91920494 | I67: 79.07859072 | J67: 78.13736033 | K67: 0.9412303924
A68: 전년대비증가율(%) Percent change from previous year
A69: 1991 | B69: =(B7/B6-1)*100 -> 
A70: 1992 | B70: =(B8/B7-1)*100 -> 
A71: 1993 | B71: =(B9/B8-1)*100 -> 
A72: 1994 | B72: =(B10/B9-1)*100 -> 
A73: 1995 | B73: =(B11/B10-1)*100 -> 
A74: 1996 | B74: =(B12/B11-1)*100 -> 
A75: 1997 | B75: =(B13/B12-1)*100 -> 
A76: 1998 | B76: =(B14/B13-1)*100 -> 
A77: 1999 | B77: =(B15/B14-1)*100 -> 
A78: 2000 | B78: =(B16/B15-1)*100 -> 
A79: 2001 | B79: =(B17/B16-1)*100 -> 
A80: 2002 | B80: =(B18/B17-1)*100 -> 
A81: 2003 | B81: =(B19/B18-1)*100 -> 
A82: 2004 | B82: =(B20/B19-1)*100 -> 
A83: 2005 | B83: =(B21/B20-1)*100 -> 
A84: 2006 | B84: =(B22/B21-1)*100 -> 13.20735199 | C84: 9.526271991 | D84: 10.50380473 | E84: 1.602378542 | F84: 13.49258278 | G84: 11.45387158 | H84: 14.78948052 | I84: 13.80361699 | J84: 14.48736958 | K84: 20.79125485
A85: 2007 | B85: =(B23/B22-1)*100 -> 14.46542808 | C85: 17.30932022 | D85: 15.60594214 | E85: 32.32661574 | F85: 22.49349419 | G85: 26.21573901 | H85: 20.19444624 | I85: 12.96038956 | J85: 13.12278834 | K85: -41.96775808
A86: 2008 | B86: =(B24/B23-1)*100 -> 10.21257484 | C86: 13.4281032 | D86: 14.55794114 | E86: 4.725888818 | F86: 15.31531706 | G86: 15.827176 | H86: 14.98332896 | I86: 8.946932429 | J86: 8.886692528 | K86: 101.8744511
A87: 2009 | B87: =(B25/B24-1)*100 -> 9.943889635 | C87: 19.45201528 | D87: 18.41454919 | E87: 28.19296617 | F87: 9.350674455 | G87: 16.57029483 | H87: 4.633714823 | I87: 8.329940637 | J87: 8.199774943 | K87: -26.38356324
A88: 2010 | B88: =(B26/B25-1)*100 -> 15.62500941 | C88: 13.45269363 | D88: 14.57378978 | E88: 4.727632063 | F88: 12.87264275 | G88: 12.53425311 | H88: 13.11895222 | I88: 16.46454453 | J88: 16.60252386 | K88: 71.56176306
A89: 2011 | B89: =(B27/B26-1)*100 -> 13.76264388 | C89: 5.82250491 | D89: 4.023133593 | E89: 21.14291627 | F89: 6.076500201 | G89: 3.773594893 | H89: 7.74409099 | I89: 16.40097701 | J89: 16.50809174 | K89: 10.28415653
A90: 2012 | B90: =(B28/B27-1)*100 -> 11.14381642 | C90: 4.150122112 | D90: 6.299717302 | E90: -11.56574047 | F90: 4.82957492 | G90: 9.343438596 | H90: 1.68142616 | I90: 13.19853272 | J90: 13.36532145 | K90: 3.136488989
A91: 2013 | B91: =(B29/B28-1)*100 -> 6.944681062 | C91: 4.466722143 | D91: 3.713179365 | E91: 11.08890272 | F91: 3.854403052 | G91: 7.539737439 | H91: 1.090423632 | I91: 7.720418437 | J91: 7.906728996 | K91: -4.634072275
A92: 2014 | B92: =(B30/B29-1)*100 -> 7.475727646 | C92: 11.73425632 | D92: 10.42269262 | E92: 22.4950862 | F92: 5.230318808 | G92: 8.371796689 | H92: 2.723916007 | I92: 7.075933555 | J92: 7.118261091 | K92: 3.900042131
A93: 2015 | B93: =(B31/B30-1)*100 -> 3.49144963 | C93: 8.768692706 | D93: 8.379991087 | E93: 11.6435242 | F93: 4.021383433 | G93: 3.013928196 | H93: 4.869366785 | I93: 2.571395582 | J93: 2.611935028 | K93: -0.5645481964
A94: 2016 | B94: =(B32/B31-1)*100 -> 5.224667956 | C94: 3.276171454 | D94: 3.450018322 | E94: 2.027987807 | F94: 5.684659093 | G94: 5.870959956 | H94: 5.53062256 | I94: 5.506937585 | J94: 5.233854281 | K94: 27.30622174
A95: 2017 | B95: =(B33/B32-1)*100 -> 13.52004301 | C95: 4.718958059 | D95: 5.206706161 | E95: 1.168221465 | F95: 5.40443443 | G95: 2.902332736 | H95: 7.479883964 | I95: 15.96029894 | J95: 16.04278811 | K95: 10.51715425
A96: 2018 | B96: =(B34/B33-1)*100 -> 8.807715366 | C96: 3.15040502 | D96: 2.449495333 | E96: 8.456612628 | F96: 5.505285842 | G96: 4.414512176 | H96: 6.371529158 | I96: 10.02340132 | J96: 10.1383778 | K96: 2.05721604
A97: 2019 | B97: =(B35/B34-1)*100 -> 3.870771176 | C97: 3.300517843 | D97: 3.032774305 | E97: 5.215192381 | F97: 4.55624231 | G97: 6.024845812 | H97: 3.411401051 | I97: 3.882112044 | J97: 3.992268607 | K97: -4.354464267
A98: 2020 | B98: =(B36/B35-1)*100 -> 4.519642309 | C98: 9.340287701 | D98: 5.726637925 | E98: 34.64602313 | F98: 13.31725711 | G98: 15.28119571 | H98: 11.74758895 | I98: 2.927162113 | J98: 2.953074297 | K98: 0.8205881304
A100: 주 : 1. 공공연구기관: '국·공립, 출연(연)'은 '국·공립 연구기관', '국·공립 병원','정부 출연(연)', '지자체 출연(연)'을 포함하며, 나머지는 모두 '비영리법인'으로 분류
A101: 2. 대학: '국·공립'은 '국·공립대학'과 '국·공립대학 부속병원', '사립'은 '사립대학'과 '사립대학 부속병원'

Sheet 2-4
A1: 2-4) 비목별 연구개발비
A2: R&D expenditure by type of costs
K4: (단위 : 백만원 Unit : Won, Millions)
A5: 연도 Year | B5: 총계 Total | C5: 경상비 Current costs | F5: 자본적지출 Capital costs
C6: 계 Sub total | D6: 인건비 Labour costs | E6: 기타 Other current costs | F6: 계 Sub total | G6: 기계·장치 Machinery | H6: 토지 Land | I6: 건물 Buildings | J6: 컴퓨터 소프트웨어 Computer software | K6: 기타 지식재산물 Other intellectual properties
A7: 1991 | B7: 4158440 | C7: =SUM(D7,E7) -> 2884882 | D7: 1376617 | E7: 1508265 | F7: =SUM(G7:K7) -> 1273559 | G7: 854651 | H7: 418908
A8: 1992 | B8: 4989031 | C8: 3593363 | D8: 1746546 | E8: 1846817 | F8: =SUM(G8:K8) -> 1395668 | G8: 858744 | H8: 536924
A9: 1993 | B9: 6152983 | C9: 4302251 | D9: 1980083 | E9: 2322168 | F9: =SUM(G9:K9) -> 1850732 | G9: 1137882 | H9: 712850
A10: 1994 | B10: 7894746 | C10: 5561911 | D10: 2471758 | E10: 3090153 | F10: =SUM(G10:K10) -> 2332835 | G10: 1618243 | H10: 714592
A11: 1995 | B11: 9440606 | C11: 7161647 | D11: 3160442 | E11: 4001205 | F11: =SUM(G11:K11) -> 2278959 | G11: 1675833 | H11: 603126
A12: 1996 | B12: 10878051 | C12: 8233354 | D12: 3621555 | E12: 4611799 | F12: 2644697 | G12: 1950540 | H12: 694157
A13: 1997 | B13: 12185807 | C13: 9427321 | D13: 4091203 | E13: 5336118 | F13: 2758486 | G13: 2156982 | H13: 601504
A14: 1998 | B14: 11336617 | C14: 8775383 | D14: 3880492 | E14: 4894891 | F14: 2561234 | G14: 2062431 | H14: 498803
A15: 1999 | B15: 11921752 | C15: 9172514 | D15: 3860804 | E15: 5311710 | F15: 2749238 | G15: 2440146 | H15: 309092
A16: 2000 | B16: 13848501 | C16: 10941530.44 | D16: 4739129.597 | E16: 6202400.838 | F16: 2906970.565 | G16: 2491452.897 | H16: 415517.668
A17: 2001 | B17: 16110521.98 | C17: 13249438.11 | D17: 5549175.864 | E17: 7700262.242 | F17: 2861083.876 | G17: 2423719.987 | H17: 437363.889
A18: 2002 | B18: 17325081.78 | C18: 14591141.16 | D18: 6526892.098 | E18: 8064249.063 | F18: 2733940.618 | G18: 2159287.609 | H18: 301084.412 | J18: 273568.5965
A19: 2003 | B19: 19068681.99 | C19: 16461997.93 | D19: 7562177.651 | E19: 8899820.282 | F19: 2606684.061 | G19: 1964562.201 | H19: 337804.48 | J19: 304317.38
A20: 2004 | B20: 22185343 | C20: 19399393 | D20: 8859601 | E20: 10539792 | F20: 2785950 | G20: 2208399 | H20: 261887 | J20: 315664
A21: 2005 | B21: 24155413.6 | C21: 21084497.5 | D21: 9953563.1 | E21: 11130934.4 | F21: 3070916.1 | G21: 2393576.6 | H21: 299853 | J21: 377486.5
A22: 2006 | B22: 27345704.1 | C22: 23467080.71 | D22: 11165778.89 | E22: 12301301.82 | F22: 3878623.392 | G22: 2979276.788 | H22: 472471.7193 | J22: 426874.8849
A23: 2007 | B23: 31301377.26 | C23: 27241543.8 | D23: 12804076.47 | E23: 14437467.33 | F23: 4059833.456 | G23: 3031128.785 | H23: 582928.093 | J23: 445776.578
A24: 2008 | B24: 34498053.84 | C24: =SUM(D24,E24) -> 30821176.47 | D24: 13987687.63 | E24: 16833488.84 | F24: 3676877.367 | G24: 2689458.015 | H24: 645218.7123 | J24: 342200.6405
A25: 2009 | B25: 37928502.24 | C25: =SUM(D25,E25) -> 34324319.88 | D25: 14523856.24 | E25: 19800463.64 | F25: 3604182.36 | G25: 2862195.73 | H25: 460855 | J25: 281131.63
A26: 2010 | B26: 43854834.28 | C26: 39578894.79 | D26: 17342032.62 | E26: 22236862.17 | F26: 4275939.49 | G26: 3418978.97 | H26: 518209.95 | J26: 338750.57
A27: 2011 | B27: 49890418.95 | C27: 44645764.71 | D27: 19649822.9 | E27: 24995941.81 | F27: 5244654.24 | G27: 3827194.43 | H27: 1033435.52 | J27: 384024.29
A28: 2012 | B28: 55450115.65 | C28: 49748360.33 | D28: 22559549.17 | E28: 27188811.16 | F28: 5701755.32 | G28: 3849541.73 | H28: 1361486.3 | J28: 490727.29
A29: 2013 | B29: 59300949.33 | C29: 53744731.42 | D29: 24728306.13 | E29: 29016425.29 | F29: 5556217.913 | G29: 4052268.166 | H29: 1086772.66 | J29: 417177.0878
A30: 2014 | B30: 63734126.79 | C30: 58044107.06 | D30: 26698757.29 | E30: 31345349.78 | F30: 5690019.728 | G30: 4277087.102 | H30: 230960.5412 | I30: 695913.0772 | J30: 486059.0082
A31: 2015 | B31: 65959371.73 | C31: 59506111.79 | D31: 28026786.17 | E31: 31479325.62 | F31: 6453259.939 | G31: 4542379.341 | H31: 319048.5907 | I31: 1182507.565 | J31: 409324.443
A32: 2016 | B32: 69405529.89 | C32: 63216052.97 | D32: 29233901.53 | E32: 33982151.45 | F32: 6189476.911 | G32: 4660267.601 | H32: 197272.6 | I32: 908450.55 | J32: 423486.16
A33: 2017 | B33: 78789187.37 | C33: 72046073.39 | D33: 33411593.43 | E33: 38634479.96 | F33: 6743113.983 | G33: 4568794.603 | H33: 282999.2 | I33: 1262408.8 | J33: 399572.03 | K33: 229339.35
A34: 2018 | B34: 85728714.74 | C34: 78131193.63 | D34: 36317218.69 | E34: 41813974.94 | F34: 7597521.105 | G34: 5458633.248 | H34: 375874.3041 | I34: 841806.3224 | J34: 505944.4103 | K34: 415262.82
A35: 2019 | B35: 89047077.12 | C35: 80748021.15 | D35: 37372667.75 | E35: 43375353.41 | F35: 8299055.964 | G35: 5696653.812 | H35: 372657.764 | I35: 1194809.278 | J35: 546748.756 | K35: 488186.354
A36: 2020 | B36: 93071686.49 | C36: 84516135.4 | D36: 40475587.14 | E36: 44040548.26 | F36: 8555551.092 | G36: 5851287.944 | H36: 600313.82 | I36: 1092484.36 | J36: 557070.363 | K36: 454394.6051
A37: 구성비(%) Percent distribution
A38: 1991 | B38: =B7/$B7*100 -> 100 | C38: 69.3741403 | D38: 33.10416887 | E38: 36.26997143 | F38: 30.62588374 | G38: 20.55220227 | H38: 10.07368148
A39: 1992 | B39: =B8/$B8*100 -> 100 | C39: 72.02526904 | D39: 35.00771994 | E39: 37.0175491 | F39: 27.97473096 | G39: 17.21264109 | H39: 10.76208987
A40: 1993 | B40: =B9/$B9*100 -> 100 | C40: 69.9213861 | D40: 32.18086252 | E40: 37.74052358 | F40: 30.0786139 | G40: 18.4931764 | H40: 11.5854375
A41: 1994 | B41: =B10/$B10*100 -> 100 | C41: 70.45079094 | D41: 31.30889835 | E41: 39.1418926 | F41: 29.54920906 | G41: 20.49772089 | H41: 9.051488167
A42: 1995 | B42: =B11/$B11*100 -> 100 | C42: 75.86003483 | D42: 33.47710941 | E42: 42.38292542 | F42: 24.13996517 | G42: 17.75132868 | H42: 6.388636492
A43: 1996 | B43: =B12/$B12*100 -> 100 | C43: 75.68776797 | D43: 33.29231496 | E43: 42.39545301 | F43: 24.31223203 | G43: 17.93096944 | H43: 6.381262599
A44: 1997 | B44: 100 | C44: 77.36312417 | D44: 33.57350892 | E44: 43.78961525 | F44: 22.63687583 | G44: 17.70077271 | H44: 4.936103124
A45: 1998 | B45: 100 | C45: 77.40742234 | D45: 34.22971774 | E45: 43.1777046 | F45: 22.59257766 | G45: 18.19264954 | H45: 4.399928127
A46: 1999 | B46: 100 | C46: 76.93931228 | D46: 32.38453543 | E46: 44.55477685 | F46: 23.06068772 | G46: 20.4680151 | H46: 2.592672621
A47: 2000 | B47: 100 | C47: 79.00877095 | D47: 34.22124602 | E47: 44.78752493 | F47: 20.99122905 | G47: 17.99077674 | H47: 3.000452309
A48: 2001 | B48: 100 | C48: 82.24089897 | D48: 34.44442005 | E48: 47.79647891 | F48: 17.75910103 | G48: 15.04432935 | H48: 2.714771684
A49: 2002 | B49: 100 | C49: 84.21975346 | D49: 37.67308104 | E49: 46.54667243 | F49: 15.78024654 | G49: 12.46336171 | H49: 1.737852761 | J49: =J18/$B18*100 -> 1.579032065
A50: 2003 | B50: 100 | C50: 86.330025 | D50: 39.65757913 | E50: 46.67244587 | F50: 13.669975 | G50: 10.30255894 | H50: 1.771514571 | J50: 1.59590149
A51: 2004 | B51: 100 | C51: 87.44238482 | D51: 39.93447836 | E51: 47.50790646 | F51: 12.55761518 | G51: 9.954315333 | H51: 1.180450534 | J51: 1.422849311
A52: 2005 | B52: 100 | C52: 87.28684116 | D52: 41.20634515 | E52: 46.08049601 | F52: 12.71315884 | G52: 9.909068996 | H52: 1.241349061 | J52: 1.562740785
A53: 2006 | B53: =B22/$B22*100 -> 100 | C53: 85.81633379 | D53: 40.83193049 | E53: 44.9844033 | F53: 14.18366621 | G53: 10.89486223 | H53: 1.7277731 | J53: 1.561030879
A54: 2007 | B54: 100 | C54: 87.02985679 | D54: 40.90579264 | E54: 46.12406416 | F54: 12.97014321 | G54: 9.683691423 | H54: 1.862308128 | J54: 1.424143654
A55: 2008 | B55: 100 | C55: 89.34178321 | D55: 40.54630936 | E55: 48.79547385 | F55: 10.65821679 | G55: 7.795970251 | H55: 1.870304671 | J55: 0.9919418703
A56: 2009 | B56: 100 | C56: 90.4974303 | D56: 38.29272284 | E56: 52.20470746 | F56: 9.502569696 | G56: 7.546292527 | H56: 1.21506248 | J56: 0.7412146892
A57: 2010 | B57: 100 | C57: 90.2497876 | D57: 39.54417547 | E57: 50.70561213 | F57: 9.750212399 | G57: 7.796127898 | H57: 1.181648405 | J57: 0.7724360964
A58: 2011 | B58: 100 | C58: 89.48765244 | D58: 39.38596491 | E58: 50.10168753 | F58: 10.51234756 | G58: 7.671201226 | H58: 2.071410787 | J58: 0.7697355486
A59: 2012 | B59: =B28/$B28*100 -> 100 | C59: 89.71732475 | D59: 40.68440418 | E59: 49.03292057 | F59: 10.28267525 | G59: 6.942351129 | H59: 2.455335366 | J59: 0.8849887584
A60: 2013 | B60: =B29/$B29*100 -> 100 | C60: 90.63047392 | D60: 41.69968004 | E60: 48.93079388 | F60: 9.369526081 | G60: 6.8333951 | H60: 1.832639565 | J60: 0.7034914155
A61: 2014 | B61: 100 | C61: 91.07225593 | D61: 41.89083405 | E61: 49.18142188 | F61: 8.927744075 | G61: 6.710827177 | H61: 0.3623812749 | I61: =I30/$B30*100 -> 1.09190023 | J61: 0.7626353928
A62: 2015 | B62: 100 | C62: 90.21631078 | D62: 42.49098412 | E62: 47.72532666 | F62: 9.783689217 | G62: 6.886632213 | H62: 0.4837047145 | I62: =I31/$B31*100 -> 1.792781729 | J62: 0.6205705608
A63: 2016 | B63: 100 | C63: 91.08215596 | D63: 42.12042121 | E63: 48.96173475 | F63: 8.917844041 | G63: 6.714547975 | H63: 0.2842318189 | I63: =I32/$B32*100 -> 1.308902261 | J63: 0.6101619867
A64: 2017 | B64: 100 | C64: 91.4415744 | D64: 42.40631811 | E64: 49.03525629 | F64: 8.558425601 | G64: 5.798758377 | H64: 0.3591853266 | I64: =I33/$B33*100 -> 1.60226148 | J64: 0.5071406919 | K64: =K33/$B33*100 -> 0.2910797251
A65: 2018 | B65: 100 | C65: 91.13771724 | D65: 42.36295715 | E65: 48.77476009 | F65: 8.862282758 | G65: 6.367333588 | H65: 0.438446214 | I65: =I34/$B34*100 -> 0.9819420774 | J65: 0.5901691305 | K65: =K34/$B34*100 -> 0.4843917482
A66: 2019 | B66: =B35/$B35*100 -> 100 | C66: 90.68014781 | D66: 41.96956145 | E66: 48.71058637 | F66: 9.319852187 | G66: 6.397350701 | H66: 0.418495223 | I66: 1.341772596 | J66: 0.6139996659 | K66: 0.5482340014
A67: 2020 | B67: =B36/$B36*100 -> 100 | C67: 90.80756843 | D67: 43.4886147 | E67: 47.31895373 | F67: 9.192431571 | G67: 6.286861413 | H67: 0.6450015495 | I67: 1.173809567 | J67: 0.598539023 | K67: 0.4882200186
A68: 전년대비증가율(%) Percent change from previous year
A69: 1991 | B69: =(B7/B6-1)*100 -> 
A70: 1992 | B70: =(B8/B7-1)*100 -> 19.97361992 | C70: 24.55840482 | D70: 26.87232542 | E70: 22.44645338 | F70: 9.588012805 | G70: 0.4789089348 | H70: 28.17229559
A71: 1993 | B71: =(B9/B8-1)*100 -> 23.33022184 | C71: 19.72770355 | D71: 13.37136268 | E71: 25.73893353 | F71: 32.60546204 | G71: 32.50537995 | H71: 32.76553106
A72: 1994 | B72: =(B10/B9-1)*100 -> 28.30761925 | C72: 29.27909134 | D72: 24.83102981 | E72: 33.07189661 | F72: 26.04931454 | G72: 42.21536152 | H72: 0.2443711861
A73: 1995 | B73: =(B11/B10-1)*100 -> 19.58087062 | C73: 28.76234445 | D73: 27.86211271 | E73: 29.48242369 | F73: -2.309464664 | G73: 3.55879803 | H73: -15.59855134
A74: 1996 | B74: =(B12/B11-1)*100 -> 15.22619417 | C74: 14.9645326 | D74: 14.59014277 | E74: 15.26025285 | F74: 16.04846774 | G74: 16.39226582 | H74: 15.09319777
A75: 1997 | B75: 12.02196974 | C75: 14.50158708 | D75: 12.96813109 | E75: 15.70577989 | F75: 4.302534468 | G75: 10.58383832 | H75: -13.34755682
A76: 1998 | B76: -6.96868086 | C76: -6.91541107 | D76: -5.15034331 | E76: -8.268688961 | F76: -7.150734135 | G76: -4.383485815 | H76: -17.07403442
A77: 1999 | B77: 5.161460425 | C77: 4.525511878 | D77: -0.5073583453 | E77: 8.5153888 | F77: 7.340367963 | G77: 18.31406723 | H77: -38.0332516
A78: 2000 | B78: 16.16162624 | C78: 19.28605871 | D78: 22.74981058 | E78: 16.76843876 | F78: 5.737319394 | G78: 2.102615866 | H78: 34.43171224
A79: 2001 | B79: 16.33404931 | C79: 21.09309739 | D79: 17.09272243 | E79: 24.14970336 | F79: -1.578505455 | G79: -2.718610895 | H79: 5.257591346
A80: 2002 | B80: 7.538922689 | C80: 10.12649023 | D80: 17.61912503 | E80: 4.726940594 | F80: -4.443884347 | G80: -10.9101868 | H80: -31.15928873
A81: 2003 | B81: 10.064023 | C81: 12.8218674 | D81: 15.86184569 | E81: 10.36142624 | F81: -4.65469351 | G81: -9.018039431 | H81: 12.19593793 | J81: =(J19/J18-1)*100 -> 11.23988056
A82: 2004 | B82: 16.34439657 | C82: 17.84349068 | D82: 17.15674253 | E82: 18.42702061 | F82: 6.877164045 | G82: 12.41176273 | H82: -22.47379312 | J82: 3.728548136
A83: 2005 | B83: 8.880054728 | C83: 8.686377455 | D83: 12.3477581 | E83: 5.608672353 | F83: 10.2286868 | G83: 8.385151415 | H83: 14.49709226 | J83: 19.58490674
A84: 2006 | B84: =(B22/B21-1)*100 -> 13.20735199 | C84: 11.30016595 | D84: 12.17871205 | E84: 10.51454781 | F84: 26.30183521 | G84: 24.46966552 | H84: 57.56778132 | J84: 13.08348377
A85: 2007 | B85: 14.46542808 | C85: 16.084076 | D85: 14.67248816 | E85: 17.36536134 | F85: 4.672020084 | G85: 1.740422284 | H85: 23.37840958 | J85: 4.427923432
A86: 2008 | B86: 10.21257484 | C86: 13.14034437 | D86: 9.244018195 | E86: 16.59585754 | F86: -9.432802917 | G86: -11.2720638 | H86: 10.68581529 | J86: -23.23494383
A87: 2009 | B87: 9.943889635 | C87: 11.36602754 | D87: 3.833146836 | E87: 17.62543006 | F87: -1.977085447 | G87: 6.42277048 | H87: -28.57383222 | J87: -17.84596616
A88: 2010 | B88: 15.62500941 | C88: 15.30860606 | D88: 19.40377497 | E88: 12.30475496 | F88: 18.63826696 | G88: 19.45301064 | H88: 12.4453353 | J88: 20.49536013
A89: 2011 | B89: 13.76264388 | C89: 12.80194898 | D89: 13.30749589 | E89: 12.40768422 | F89: 22.6550154 | G89: 11.93968912 | H89: 99.42409828 | J89: 13.3649133
A90: 2012 | B90: 11.14381642 | C90: 11.42906982 | D90: 14.80790073 | E90: 8.772901489 | F90: 8.715561772 | G90: 0.583908145 | H90: 31.74371053 | J90: 27.78548201
A91: 2013 | B91: 6.944681062 | C91: 8.033171466 | D91: 9.613476518 | E91: 6.721934674 | F91: -2.552501789 | G91: 5.266248553 | H91: -20.17748104 | J91: -14.98799917
A92: 2014 | B92: =(B30/B29-1)*100 -> 7.475727646 | C92: 7.999622541 | D92: 7.96840328 | E92: 8.026228142 | F92: 2.408145556 | G92: 5.547977745 | H92: =((H30+I30)/H29-1)*100 -> -14.71320061 | J92: 16.5114342
A93: 2015 | B93: =(B31/B30-1)*100 -> 3.49144963 | C93: 2.518782348 | D93: 4.974122455 | E93: 0.4274185566 | F93: 13.41366546 | G93: 6.202638215 | H93: =(H31/H30-1)*100 -> 38.1398697 | I93: 69.92173356 | J93: -15.78708837
A94: 2016 | B94: =(B32/B31-1)*100 -> 5.224667956 | C94: 6.234554864 | D94: 4.307005996 | E94: 7.950697091 | F94: -4.08759341 | G94: 2.595297566 | H94: -38.16847786 | I94: -23.17592064 | J94: =(J32/J31-1)*100 -> 3.459777987
A95: 2017 | B95: 13.52004301 | C95: 13.96800338 | D95: 14.29057255 | E95: 13.69050609 | F95: 8.944811969 | G95: -1.962827165 | H95: 43.45590822 | I95: 38.96285274 | J95: =(J33/J32-1)*100 -> -5.646968487
A96: 2018 | B96: =(B34/B33-1)*100 -> 8.807715366 | C96: 8.446151129 | D96: 8.696458203 | E96: 8.229682363 | F96: 12.67080943 | G96: 19.47644232 | H96: 32.81815076 | I96: -33.3174545 | J96: 26.62157817 | K96: =(K34/K33-1)*100 -> 81.06915364
A97: 2019 | B97: =(B35/B34-1)*100 -> 3.870771176 | C97: 3.349273701 | D97: 2.90619462 | E97: 3.73410676 | F97: 9.233733601 | G97: 4.360442497 | H97: -0.8557488668 | I97: 41.93398721 | J97: 8.064985962 | K97: 17.56081462
A98: 2020 | B98: =(B36/B35-1)*100 -> 4.519642309 | C98: 4.666509705 | D98: 8.302643548 | E98: 1.533577952 | F98: 3.090654278 | G98: 2.714473044 | H98: 61.0898465 | I98: -8.564121478 | J98: 1.887815361 | K98: -6.921895431
A100: 주 : 1. 2014년(조사대상년도)부터 토지와 건물을 구분
A101: 2. 2014년(조사대상년도) 전년대비 증가율은 토지와 건물을 합하여 산출
A102: 3. 2017년(조사대상년도) 기타 지식재산물 항목 신설

Sheet 2-5
A1: 2-5) 연구개발단계별 연구개발비
A2: R&D expenditure by type of R&D
K3: (단위 : 백만원 Unit : Won, Millions)
A4: 연도·연구수행주체 Year · Sector of performance | C4: 연구개발수행기관 R&D performing inst. | D4: 총계 Total | F4: 기초연구 Basic research | H4: 응용연구 Applied research | J4: 개발연구 Experimental development
E5: 구성비(%) | G5: 구성비(%) | I5: 구성비(%) | K5: 구성비(%)
A6: 1995 | B6: 계 Total | C6: =SUM(C7:C9) -> 2587 | D6: =SUM(D7:D9) -> 9440606 | E6: =D6/$D6*100 -> 100 | F6: 1176819 | G6: =F6/$D6*100 -> 12.46550274 | H6: 2362110 | I6: =H6/$D6*100 -> 25.02074549 | J6: 5901677 | K6: =J6/$D6*100 -> 62.51375177
B7: 공공연구기관 Public research institutes | C7: 178 | D7: =F7+H7+J7 -> 1766713 | E7: 100 | F7: 249948 | G7: 14.14762896 | H7: 587561 | I7: 33.25729759 | J7: 929204 | K7: 52.59507345
B8: 대학 Higher educations | C8: 257 | D8: =F8+H8+J8 -> 770912 | E8: 100 | F8: 372851 | G8: 48.36492362 | H8: 205618 | I8: 26.67204558 | J8: 192443 | K8: 24.9630308
B9: 기업체 Business enterprises | C9: 2152 | D9: =F9+H9+J9 -> 6902981 | E9: 100 | F9: 554020 | G9: 8.025807981 | H9: 1568931 | I9: 22.72831115 | J9: 4780030 | K9: 69.24588087
A10: 1996 | B10: 계 Total | C10: =SUM(C11:C13) -> 2856 | D10: =SUM(D11:D13) -> 10878051 | E10: 100 | F10: 1439020 | G10: 13.22865649 | H10: 2927270 | I10: 26.90987568 | J10: 6511761 | K10: 59.86146783
B11: 공공연구기관 Public research institutes | C11: 163 | D11: =F11+H11+J11 -> 1895618 | E11: 100 | F11: 340156 | G11: 17.94433267 | H11: 561389 | I11: 29.61509123 | J11: 994073 | K11: 52.44057611
B12: 대학 Higher educations | C12: 258 | D12: =F12+H12+J12 -> 1018822 | E12: 100 | F12: 452063 | G12: 44.37114628 | H12: 270913 | I12: 26.59080782 | J12: 295846 | K12: 29.0380459
B13: 기업체 Business enterprises | C13: 2435 | D13: =F13+H13+J13 -> 7963611 | E13: 100 | F13: 646801 | G13: 8.121956233 | H13: 2094968 | I13: 26.30675958 | J13: 5221842 | K13: 65.57128418
A14: 1997 | B14: 계 Total | C14: =SUM(C15:C17) -> 2962 | D14: =SUM(D15:D17) -> 12185807 | E14: 100 | F14: 1616490 | G14: =F14/$D14*100 -> 13.26535042 | H14: 3470560 | I14: 28.48034603 | J14: 7098757 | K14: 58.25430355
B15: 공공연구기관 Public research institutes | C15: 184 | D15: =F15+H15+J15 -> 2068900 | E15: 100 | F15: 419311 | G15: 20.26734013 | H15: 716210 | I15: 34.6179129 | J15: 933379 | K15: 45.11474697
B16: 대학 Higher educations | C16: 271 | D16: =F16+H16+J16 -> 1271600 | E16: 100 | F16: 480168 | G16: 37.76093111 | H16: 400962 | I16: 31.53208556 | J16: 390470 | K16: 30.70698333
B17: 기업체 Business enterprises | C17: 2507 | D17: =F17+H17+J17 -> 8845307 | E17: 100 | F17: 717011 | G17: 8.106117741 | H17: 2353388 | I17: 26.60606353 | J17: 5774908 | K17: 65.28781873
A18: 1998 | B18: 계 Total | C18: =SUM(C19:C21) -> 2869 | D18: =SUM(D19:D21) -> 11336617 | E18: 100 | F18: 1585367 | G18: 13.98448056 | H18: 2848458 | I18: 25.126173 | J18: 6902792 | K18: 60.88934644
B19: 공공연구기관 Public research institutes | C19: 183 | D19: =F19+H19+J19 -> 2099470 | E19: =D19/$D19*100 -> 100 | F19: 561521 | G19: 26.74584538 | H19: 741199 | I19: =H19/$D19*100 -> 35.30410056 | J19: 796750 | K19: =J19/$D19*100 -> 37.95005406
B20: 대학 Higher educations | C20: 267 | D20: =F20+H20+J20 -> 1265074 | E20: 100 | F20: 507261 | G20: =F20/$D20*100 -> 40.09733818 | H20: 427539 | I20: 33.79557243 | J20: 330274 | K20: 26.10708939
B21: 기업체 Business enterprises | C21: 2419 | D21: =F21+H21+J21 -> 7972073 | E21: 100 | F21: 516585 | G21: 6.479933137 | H21: 1679720 | I21: 21.07005292 | J21: 5775768 | K21: 72.45001394
A22: 1999 | B22: 계 Total | C22: =SUM(C23:C25) -> 3059 | D22: =SUM(D23:D25) -> 11921752 | E22: 100 | F22: 1625477 | G22: 13.63454801 | H22: 3065197 | I22: 25.71096094 | J22: 7231078 | K22: 60.65449105
B23: 공공연구기관 Public research institutes | C23: 169 | D23: =F23+H23+J23 -> 1979174 | E23: 100 | F23: 494138 | G23: 24.96688012 | H23: 756409 | I23: 38.21841839 | J23: 728627 | K23: 36.81470149
B24: 대학 Higher educations | C24: 285 | D24: =F24+H24+J24 -> 1431421 | E24: 100 | F24: 491402 | G24: 34.32966262 | H24: 479440 | I24: 33.49398954 | J24: 460579 | K24: 32.17634784
B25: 기업체 Business enterprises | C25: 2605 | D25: =F25+H25+J25 -> 8511157 | E25: 100 | F25: 639937 | G25: 7.518801498 | H25: 1829348 | I25: 21.49352902 | J25: 6041872 | K25: 70.98766948
A26: 2000 | B26: 계 Total | C26: =SUM(C27:C29) -> 4635 | D26: =SUM(D27:D29) -> 13848501 | E26: 100 | F26: 1746138 | G26: 12.60885925 | H26: 3370088.5 | I26: 24.3354028 | J26: 8732274.5 | K26: 63.05573795
B27: 공공연구기관 Public research institutes | C27: 173 | D27: =F27+H27+J27 -> 2031981 | E27: 100 | F27: 454443 | G27: 22.36452998 | H27: 672213 | I27: 33.08165775 | J27: 905325 | K27: 44.55381226
B28: 대학 Higher educations | C28: 268 | D28: =F28+H28+J28 -> 1561865 | E28: 100 | F28: 661562 | G28: 42.35718196 | H28: 475685 | I28: 30.45621741 | J28: 424618 | K28: 27.18660063
B29: 기업체 Business enterprises | C29: 4194 | D29: =F29+H29+J29 -> 10254655 | E29: 100 | F29: 630133 | G29: 6.144848364 | H29: 2222190.5 | I29: 21.67006594 | J29: 7402331.5 | K29: 72.1850857
A30: 2001 | B30: 계 Total | C30: =SUM(C31:C33) -> 6801 | D30: =SUM(D31:D33) -> 16110521.98 | E30: 100 | F30: 2025019.904 | G30: 12.56954869 | H30: 4075940.789 | I30: 25.29986796 | J30: 10009561.29 | K30: 62.13058336
B31: 공공연구기관 Public research institutes | C31: 188 | D31: =F31+H31+J31 -> 2160166.079 | E31: 100 | F31: 438260.1848 | G31: 20.28826344 | H31: 894402.6681 | I31: 41.40434742 | J31: 827503.2261 | K31: 38.30738915
B32: 대학 Higher educations | C32: 276 | D32: =F32+H32+J32 -> 1676777.181 | E32: 100 | F32: 679826.0851 | G32: 40.54361503 | H32: 498455.4529 | I32: 29.72699406 | J32: 498495.643 | K32: 29.72939092
B33: 기업체 Business enterprises | C33: 6337 | D33: =F33+H33+J33 -> 12273578.72 | E33: 100 | F33: 906933.6342 | G33: 7.389316961 | H33: 2683082.668 | I33: 21.86063844 | J33: 8683562.42 | K33: 70.7500446
A34: 2002 | B34: 계 Total | C34: =SUM(C35:C37) -> 7210 | D34: =SUM(D35:D37) -> 17325081.78 | E34: 100 | F34: 2373234.759 | G34: 13.69826007 | H34: 3763601.721 | I34: 21.72342832 | J34: 11188245.3 | K34: 64.57831162
B35: 공공연구기관 Public research institutes | C35: 163 | D35: =F35+H35+J35 -> 2552631.59 | E35: 100 | F35: 526181.77 | G35: 20.61330636 | H35: 1015664.28 | I35: 39.78890977 | J35: 1010785.54 | K35: 39.59778387
B36: 대학 Higher educations | C36: 304 | D36: =F36+H36+J36 -> 1797096.31 | E36: 100 | F36: 666130.197 | G36: 37.06702826 | H36: 596213.366 | I36: 33.17648379 | J36: 534752.747 | K36: 29.75648795
B37: 기업체 Business enterprises | C37: 6743 | D37: =F37+H37+J37 -> 12975353.88 | E37: 100 | F37: 1180922.792 | G37: 9.101276181 | H37: 2151724.075 | I37: 16.58316293 | J37: 9642707.012 | K37: 74.31556089
A38: 2003 | B38: 계 Total | C38: =SUM(C39:C41) -> 7127 | D38: =SUM(D39:D41) -> 19068681.99 | E38: 100 | F38: 2758620.607 | G38: 14.46676078 | H38: 3973994.147 | I38: 20.84042383 | J38: 12336067.24 | K38: 64.69281539
B39: 공공연구기관 Public research institutes | C39: 169 | D39: =F39+H39+J39 -> 2626355.83 | E39: 100 | F39: 525515.4 | G39: 20.00929935 | H39: 972984.43 | I39: 37.04693853 | J39: 1127856 | K39: 42.94376212
B40: 대학 Higher educations | C40: 310 | D40: =F40+H40+J40 -> 1932662.944 | E40: 100 | F40: 695637.7575 | G40: 35.99374426 | H40: 634121.9068 | I40: 32.81078621 | J40: 602903.2797 | K40: 31.19546952
B41: 기업체 Business enterprises | C41: 6648 | D41: =F41+H41+J41 -> 14509663.22 | E41: 100 | F41: 1537467.45 | G41: 10.5961622 | H41: 2366887.81 | I41: 16.31249309 | J41: 10605307.96 | K41: 73.09134471
A42: 2004 | B42: 계 Total | C42: =SUM(C43:C45) -> 7254 | D42: =SUM(D43:D45) -> 22185343 | E42: 100 | F42: 3399400 | G42: 15.32272906 | H42: 4712161 | I42: 21.23997362 | J42: 14073782 | K42: 63.43729732
B43: 공공연구기관 Public research institutes | C43: 159 | D43: =F43+H43+J43 -> 2964646 | E43: 100 | F43: 616140 | G43: 20.78291978 | H43: 1151992 | I43: 38.85765788 | J43: 1196514 | K43: 40.35942234
B44: 대학 Higher educations | C44: 293 | D44: =F44+H44+J44 -> 2200886 | E44: 100 | F44: 736761 | G44: 33.4756548 | H44: 760983 | I44: 34.57621158 | J44: 703142 | K44: 31.94813362
B45: 기업체 Business enterprises | C45: 6802 | D45: =F45+H45+J45 -> 17019811 | E45: 100 | F45: 2046499 | G45: 12.02421696 | H45: 2799186 | I45: 16.44663387 | J45: 12174126 | K45: 71.52914918
A46: 2005 | B46: 계 Total | C46: =SUM(C47:C49) -> 7761 | D46: =SUM(D47:D49) -> 24155414 | E46: 100 | F46: 3706840 | G46: 15.3457937 | H46: 5034149 | I46: 20.84066537 | J46: 15414425 | K46: 63.81354093
B47: 공공연구기관 Public research institutes | C47: 137 | D47: =F47+H47+J47 -> 3192887 | E47: 100 | F47: 684540 | G47: 21.43953106 | H47: 1158356 | I47: 36.27926701 | J47: 1349991 | K47: 42.28120193
B48: 대학 Higher educations | C48: 256 | D48: =F48+H48+J48 -> 2398284 | E48: 100 | F48: 833799 | G48: 34.76648304 | H48: 825172 | I48: 34.40676751 | J48: 739313 | K48: 30.82674946
B49: 기업체 Business enterprises | C49: 7368 | D49: =F49+H49+J49 -> 18564243 | E49: 100 | F49: 2188501 | G49: 11.78879742 | H49: 3050621 | I49: 16.43277886 | J49: 13325121 | K49: 71.77842371
A50: 2006 | B50: 계 Total | C50: =SUM(C51:C53) -> 9443 | D50: =SUM(D51:D53) -> 27345704.1 | E50: 100 | F50: 4143273.139 | G50: 15.15145898 | H50: 5430098.263 | I50: 19.85722599 | J50: 17772332.7 | K50: 64.99131503
B51: 공공연구기관 Public research institutes | C51: 139 | D51: =F51+H51+J51 -> 3497050.1 | E51: 100 | F51: 716725 | G51: 20.49513102 | H51: 1252429.6 | I51: 35.81388783 | J51: 1527895.5 | K51: 43.69098115
B52: 대학 Higher educations | C52: 268 | D52: =F52+H52+J52 -> 2721874 | E52: 100 | F52: 909221.0082 | G52: 33.40422842 | H52: 876798.079 | I52: 32.21302966 | J52: 935854.9128 | K52: 34.38274192
B53: 기업체 Business enterprises | C53: 9036 | D53: =F53+H53+J53 -> 21126780 | E53: 100 | F53: 2517327.131 | G53: 11.91533746 | H53: 3300870.584 | I53: 15.62410639 | J53: 15308582.29 | K53: 72.46055615
A54: 2007 | B54: 계 Total | C54: =SUM(C55:C57) -> 11200 | D54: =SUM(D55:D57) -> 31301377.26 | E54: 100 | F54: 4918688.629 | G54: 15.71396871 | H54: 6210834.345 | I54: 19.84204814 | J54: 20171854.29 | K54: 64.44398315
B55: 공공연구기관 Public research institutes | C55: 188 | D55: =F55+H55+J55 -> 4102365.7 | E55: 100 | F55: 995180.1 | G55: 24.2586881 | H55: 1503405.9 | I55: 36.6472911 | J55: 1603779.7 | K55: 39.0940208
B56: 대학 Higher educations | C56: 322 | D56: =F56+H56+J56 -> 3334118.57 | E56: 100 | F56: 1369545.13 | G56: 41.07667743 | H56: 873851.5 | I56: 26.20937083 | J56: 1090721.94 | K56: 32.71395174
B57: 기업체 Business enterprises | C57: 10690 | D57: =F57+H57+J57 -> 23864892.99 | E57: 100 | F57: 2553963.399 | G57: 10.70175927 | H57: 3833576.945 | I57: 16.06366702 | J57: 17477352.65 | K57: 73.2345737
A58: 2008 | B58: 계 Total | C58: =SUM(C59:C61) -> 12822 | D58: =SUM(D59:D61) -> 34498053.84 | E58: 100 | F58: 5537090.578 | G58: 16.05044332 | H58: 6773869.412 | I58: 19.63551174 | J58: 22187093.85 | K58: 64.31404494
B59: 공공연구기관 Public research institutes | C59: 228 | D59: =F59+H59+J59 -> 4653235.6 | E59: 100 | F59: 1053146.194 | G59: 22.63255688 | H59: 1510661.241 | I59: 32.46474864 | J59: 2089428.165 | K59: 44.90269448
B60: 대학 Higher educations | C60: 338 | D60: =F60+H60+J60 -> 3844749.4 | E60: 100 | F60: 1419209.395 | G60: 36.91292325 | H60: 1201965.411 | I60: 31.26251639 | J60: 1223574.593 | K60: 31.82456036
B61: 기업체 Business enterprises | C61: 12256 | D61: =F61+H61+J61 -> 26000068.84 | E61: 100 | F61: 3064734.989 | G61: 11.78741105 | H61: 4061242.76 | I61: 15.6201231 | J61: 18874091.09 | K61: 72.59246584
A62: 2009 | B62: 계 Total | C62: =SUM(C63:C65) -> 15237 | D62: =SUM(D63:D65) -> 37928502.24 | E62: 100 | F62: 6849096.196 | G62: 18.05791368 | H62: 7574286.807 | I62: 19.96990748 | J62: 23505119.24 | K62: 61.97217883
B63: 공공연구기관 Public research institutes | C63: 252 | D63: =F63+H63+J63 -> 5558383.7 | E63: 100 | F63: 1446414.5 | G63: 26.02221398 | H63: 1602959.7 | I63: 28.83859385 | J63: 2509009.5 | K63: 45.13919217
B64: 대학 Higher educations | C64: 359 | D64: =F64+H64+J64 -> 4204259.4 | E64: 100 | F64: 1523234.6 | G64: 36.23074732 | H64: 1245293.1 | I64: 29.61979701 | J64: 1435731.7 | K64: 34.14945567
B65: 기업체 Business enterprises | C65: 14626 | D65: =F65+H65+J65 -> 28165859.14 | E65: 100 | F65: 3879447.096 | G65: 13.77357984 | H65: 4726034.007 | I65: 16.77930001 | J65: 19560378.04 | K65: 69.44712015
A66: 2010 | B66: 계 Total | C66: =SUM(C67:C69) -> 16550 | D66: =SUM(D67:D69) -> 43854834.28 | E66: 100 | F66: 7991019.6 | G66: 18.22152502 | H66: 8742664.421 | I66: 19.93546336 | J66: 27121150.26 | K66: 61.84301162
B67: 공공연구기관 Public research institutes | C67: 261 | D67: =F67+H67+J67 -> 6306136.03 | E67: 100 | F67: 1763069.36 | G67: 27.9579976 | H67: 1794518.37 | I67: 28.45670251 | J67: 2748548.3 | K67: 43.58529989
B68: 대학 Higher educations | C68: 352 | D68: =F68+H68+J68 -> 4745458.693 | E68: 100 | F68: 1677091.85 | G68: 35.34098511 | H68: 1498120.1 | I68: 31.56955306 | J68: 1570246.743 | K68: 33.08946183
B69: 기업체 Business enterprises | C69: 15937 | D69: =F69+H69+J69 -> 32803239.56 | E69: 100 | F69: 4550858.39 | G69: 13.87319805 | H69: 5450025.951 | I69: 16.61429183 | J69: 22802355.22 | K69: 69.51251012
A70: 2011 | B70: 계 Total | C70: =SUM(C71:C73) -> 20372 | D70: =SUM(D71:D73) -> 49890418.95 | E70: =D70/$D70*100 -> 100 | F70: 9013211.34 | G70: =F70/$D70*100 -> 18.06601654 | H70: 10116538.75 | I70: =H70/$D70*100 -> 20.27751813 | J70: 30760668.86 | K70: =J70/$D70*100 -> 61.65646533
B71: 공공연구기관 Public research institutes | C71: 268 | D71: =F71+H71+J71 -> 6673311.11 | E71: 100 | F71: 2072824.81 | G71: 31.06141428 | H71: 1856153.05 | I71: 27.8145739 | J71: 2744333.25 | K71: 41.12401183
B72: 대학 Higher educations | C72: 350 | D72: =F72+H72+J72 -> 5033816.5 | E72: 100 | F72: 1860682.2 | G72: 36.96364776 | H72: 1662220.3 | I72: 33.02107457 | J72: 1510914 | K72: 30.01527767
B73: 기업체 Business enterprises | C73: 19754 | D73: =F73+H73+J73 -> 38183291.34 | E73: 100 | F73: 5079704.33 | G73: 13.30347425 | H73: 6598165.396 | I73: 17.28024265 | J73: 26505421.61 | K73: 69.4162831
A74: 2012 | B74: 계 Total | C74: =SUM(C75:C77) -> 23533 | D74: =SUM(D75:D77) -> 55450115.65 | E74: 100 | F74: 10153311.53 | G74: 18.31071298 | H74: 10572652.52 | I74: 19.06696207 | J74: 34724151.6 | K74: 62.62232494
B75: 공공연구기관 Public research institutes | C75: 272 | D75: =F75+H75+J75 -> 6950261.67 | E75: 100 | F75: 2372764.13 | G75: 34.13920573 | H75: 1690754.94 | I75: 24.32649331 | J75: 2886742.6 | K75: 41.53430097
B76: 대학 Higher educations | C76: 344 | D76: =F76+H76+J76 -> 5276928.439 | E76: 100 | F76: 2112598.468 | G76: 40.03462417 | H76: 1545750.967 | I76: 29.29262704 | J76: 1618579.004 | K76: 30.67274879
B77: 기업체 Business enterprises | C77: 22917 | D77: =F77+H77+J77 -> 43222925.54 | E77: 100 | F77: 5667948.928 | G77: 13.11329313 | H77: 7336146.614 | I77: 16.97281367 | J77: 30218830 | K77: 69.9138932
A78: 2013 | B78: 계 Total | C78: =SUM(C79:C81) -> 25882 | D78: =SUM(D79:D81) -> 59300949.33 | E78: =D78/$D78*100 -> 100 | F78: 10665765.32 | G78: =F78/$D78*100 -> 17.98582559 | H78: 11315883.15 | I78: =H78/$D78*100 -> 19.08212816 | J78: 37319300.86 | K78: =J78/$D78*100 -> 62.93204625
B79: 공공연구기관 Public research institutes | C79: 326 | D79: =F79+H79+J79 -> 7260710.547 | E79: 100 | F79: 2393866.71 | G79: 32.97014382 | H79: 1674619.287 | I79: 23.06412404 | J79: 3192224.55 | K79: 43.96573213
B80: 대학 Higher educations | C80: 371 | D80: =F80+H80+J80 -> 5480322.53 | E80: 100 | F80: 2187559.25 | G80: 39.91661509 | H80: 1689983.49 | I80: 30.83729983 | J80: 1602779.79 | K80: 29.24608508
B81: 기업체 Business enterprises | C81: 25185 | D81: =F81+H81+J81 -> 46559916.25 | E81: 100 | F81: 6084339.361 | G81: 13.06776268 | H81: 7951280.376 | I81: 17.07752293 | J81: 32524296.52 | K81: 69.85471439
A82: 2014 | B82: 계 Total | C82: =SUM(C83:C85) -> 30111 | D82: =SUM(D83:D85) -> 63734126.79 | E82: 100 | F82: 11242600.29 | G82: 17.63984361 | H82: 12058498.37 | I82: 18.92000248 | J82: 40433028.13 | K82: 63.44015391
B83: 공공연구기관 Public research institutes | C83: 348 | D83: =F83+H83+J83 -> 8112700.933 | E83: 100 | F83: 2530137.297 | G83: 31.18736063 | H83: 1732691.855 | I83: 21.35776814 | J83: 3849871.781 | K83: 47.45487123
B84: 대학 Higher educations | C84: 371 | D84: =F84+H84+J84 -> 5766960.87 | E84: 100 | F84: 2171150.589 | G84: 37.64808949 | H84: 1846515.494 | I84: 32.01886637 | J84: 1749294.786 | K84: 30.33304414
B85: 기업체 Business enterprises | C85: 29392 | D85: =F85+H85+J85 -> 49854464.99 | E85: 100 | F85: 6541312.408 | G85: 13.12081558 | H85: 8479291.02 | I85: 17.00808748 | J85: 34833861.56 | K85: 69.87109694
A86: 2015 | B86: 계 Total | C86: =SUM(C87:C89) -> 35379 | D86: =SUM(D87:D89) -> 65959371.73 | E86: =D86/$D86*100 -> 100 | F86: 11361657.87 | G86: =F86/$D86*100 -> 17.22523665 | H86: 13744954.17 | I86: =H86/$D86*100 -> 20.83851591 | J86: 40852759.68 | K86: =J86/$D86*100 -> 61.93624744
B87: 공공연구기관 Public research institutes | C87: 372 | D87: =F87+H87+J87 -> 8824078.748 | E87: 100 | F87: 2879746.604 | G87: 32.63509638 | H87: 1872355.147 | I87: 21.21870396 | J87: 4071976.998 | K87: 46.14619967
B88: 대학 Higher educations | C88: 365 | D88: =F88+H88+J88 -> 5998872.479 | E88: 100 | F88: 2119484.663 | G88: 35.33138386 | H88: 1983975.404 | I88: 33.07247172 | J88: 1895412.412 | K88: 31.59614442
B89: 기업체 Business enterprises | C89: 34642 | D89: =F89+H89+J89 -> 51136420.5 | E89: 100 | F89: 6362426.604 | G89: 12.44206486 | H89: 9888623.621 | I89: 19.33773136 | J89: 34885370.27 | K89: 68.22020379
A90: 2016 | B90: 계 Total | C90: =SUM(C91:C93) -> 37218 | D90: =SUM(D91:D93) -> 69405529.89 | E90: 100 | F90: 11086652.8 | G90: 15.97373122 | H90: 15621429.66 | I90: 22.50747121 | J90: 42697447.43 | K90: 61.51879757
B91: 공공연구기관 Public research institutes | C91: 372 | D91: =F91+H91+J91 -> 9113170.697 | E91: 100 | F91: 2478945.597 | G91: 27.20179046 | H91: 2323017 | I91: 25.49076581 | J91: 4311208.1 | K91: 47.30744374
B92: 대학 Higher educations | C92: 368 | D92: =F92+H92+J92 -> 6339887.929 | E92: 100 | F92: 2209088.156 | G92: 34.8442777 | H92: 2116431.534 | I92: 33.38279095 | J92: 2014368.239 | K92: 31.77293135
B93: 기업체 Business enterprises | C93: 36478 | D93: =F93+H93+J93 -> 53952471.26 | E93: 100 | F93: 6398619.043 | G93: =F93/$D93*100 -> 11.85973301 | H93: 11181981.12 | I93: =H93/$D93*100 -> 20.72561435 | J93: 36371871.09 | K93: =J93/$D93*100 -> 67.41465265
A94: 2017 | B94: 계 Total | C94: =SUM(C95:C97) -> 42368 | D94: =SUM(D95:D97) -> 78789187.37 | E94: =D94/$D94*100 -> 100 | F94: 11391103.29 | G94: 14.45769866 | H94: 17315901.47 | I94: 21.97750992 | J94: 50082182.61 | K94: 63.56479142
B95: 공공연구기관 Public research institutes | C95: 375 | D95: =F95+H95+J95 -> 9543217.4 | E95: 100 | F95: 2322231.4 | G95: 24.33384154 | H95: 2571596.6 | I95: 26.94685128 | J95: 4649389.4 | K95: 48.71930718
B96: 대학 Higher educations | C96: 364 | D96: =F96+H96+J96 -> 6682523.015 | E96: 100 | F96: 2464891.226 | G96: 36.88563767 | H96: 2060511.228 | I96: 30.83433044 | J96: 2157120.561 | K96: 32.2800319
B97: 기업체 Business enterprises | C97: 41629 | D97: =F97+H97+J97 -> 62563446.96 | E97: 100 | F97: 6603980.664 | G97: 10.55565348 | H97: 12683793.64 | I97: 20.27348917 | J97: 43275672.65 | K97: 69.17085735
A98: 2018 | B98: 계 Total | C98: =SUM(C99:C101) -> 49302 | D98: =SUM(D99:D101) -> 85728714.74 | E98: 100 | F98: 12180466.84 | G98: 14.20815287 | H98: 18824713.4 | I98: 21.95846917 | J98: 54723534.5 | K98: 63.83337796
B99: 공공연구기관 Public research institutes | C99: 401 | D99: =F99+H99+J99 -> 9843867.4 | E99: 100 | F99: 2353558 | G99: 23.90887549 | H99: 2568973 | I99: 26.09719225 | J99: 4921336.4 | K99: 49.99393226
B100: 대학 Higher educations | C100: 365 | D100: =F100+H100+J100 -> 7050415.008 | E100: 100 | F100: 2533533.651 | G100: 35.9345322 | H100: 2302551.572 | I100: 32.6583835 | J100: 2214329.785 | K100: 31.4070843
B101: 기업체 Business enterprises | C101: 48536 | D101: =F101+H101+J101 -> 68834432.33 | E101: 100 | F101: 7293375.19 | G101: 10.59553329 | H101: 13953188.83 | I101: 20.27065286 | J101: 47587868.31 | K101: 69.13381385
A102: 2019 | B102: 계 Total | C102: =SUM(C103:C105) -> 53005 | D102: =SUM(D103:D105) -> 89047077.12 | E102: =D102/$D102*100 -> 100 | F102: 13062301.51 | G102: =F102/$D102*100 -> 14.66898402 | H102: 20040143.19 | I102: =H102/$D102*100 -> 22.5051106 | J102: 55944632.42 | K102: =J102/$D102*100 -> 62.82590538
B103: 공공연구기관 Public research institutes | C103: 419 | D103: =F103+H103+J103 -> 10168766 | E103: =D103/$D103*100 -> 100 | F103: 2516381.5 | G103: =F103/$D103*100 -> 24.74618356 | H103: 2733997.5 | I103: =H103/$D103*100 -> 26.8862269 | J103: 4918387 | K103: =J103/$D103*100 -> 48.36758954
B104: 대학 Higher educations | C104: 368 | D104: =F104+H104+J104 -> 7371649 | E104: =D104/$D104*100 -> 100 | F104: 2937469.2 | G104: =F104/$D104*100 -> 39.84819679 | H104: 2166220.4 | I104: =H104/$D104*100 -> 29.38583213 | J104: 2267959.4 | K104: =J104/$D104*100 -> 30.76597109
B105: 기업체 Business enterprises | C105: 52218 | D105: =F105+H105+J105 -> 71506662.12 | E105: =D105/$D105*100 -> 100 | F105: 7608450.814 | G105: =F105/$D105*100 -> 10.64019853 | H105: 15139925.29 | I105: =H105/$D105*100 -> 21.17274788 | J105: 48758286.02 | K105: =J105/$D105*100 -> 68.18705359
A106: 2020 | B106: 계 Total | C106: 56223 | D106: 93071686.49 | E106: =D106/$D106*100 -> 100 | F106: 13448098.63 | G106: =F106/$D106*100 -> 14.44918335 | H106: 20078628.7 | I106: =H106/$D106*100 -> 21.57329415 | J106: 59544959.16 | K106: =J106/$D106*100 -> 63.9775225
B107: 공공연구기관 Public research institutes | C107: 415 | D107: 11118558 | E107: =D107/$D107*100 -> 100 | F107: 2577697 | G107: =F107/$D107*100 -> 23.1837348 | H107: 2780583 | I107: =H107/$D107*100 -> 25.00848581 | J107: 5760278 | K107: =J107/$D107*100 -> 51.80777939
B108: 대학 Higher educations | C108: 363 | D108: 8353350.45 | E108: 100 | F108: 3132144.798 | G108: 37.49567095 | H108: 2568755.766 | I108: 30.75120315 | J108: 2652449.886 | K108: 31.75312591
B109: 기업체 Business enterprises | C109: 55445 | D109: 73599778.04 | E109: 100 | F109: 7738256.831 | G109: 10.51396762 | H109: 14729289.93 | I109: 20.01268254 | J109: 51132231.28 | K109: 69.47334984

Sheet 2-6
A1: 2-6) 연구원 1인당 연구개발비
A2: R&D expenditure per researcher
G3: (단위 : 백만원, 명 Unit : Won, Millions, person)
A4: 연도·연구수행주체 Year · Sector of performance | C4: 연구개발비(A) R&D expenditure | D4: 연구원(B) Researchers | F4: 연구원 1인당 연구개발비(A/B) R&D expenditure per researcher
D5: FTE | E5: HC | F5: FTE | G5: HC
A6: 1995 | B6: 계 Total | C6: =SUM(C7:C9) -> 9440606 | D6: =SUM(D7:D9) -> 100456 | E6: =SUM(E7:E9) -> 128315 | F6: =C6/D6 -> 93.9775225 | G6: =C6/E6 -> 73.57367416
B7: 공공연구기관 Public research institutes | C7: 1766713 | D7: 14363 | E7: 15007 | F7: 123.0044559 | G7: 117.7259279
B8: 대학 Higher educations | C8: 770912 | D8: 19406 | E8: 44683 | F8: 39.72544574 | G8: 17.25291498
B9: 기업체 Business enterprises | C9: 6902981 | D9: 66687 | E9: 68625 | F9: 103.5131435 | G9: 100.5898871
A10: 1996 | B10: 계 Total | C10: =SUM(C11:C13) -> 10878051 | D10: =SUM(D11:D13) -> 99433 | E10: =SUM(E11:E13) -> 132023 | F10: 109.4008126 | G10: 82.39512055
B11: 공공연구기관 Public research institutes | C11: 1895618 | D11: 13732 | E11: 15503 | F11: 138.0438392 | G11: 122.2742695
B12: 대학 Higher educations | C12: 1018822 | D12: 19483 | E12: 45327 | F12: 52.29287071 | G12: 22.4771549
B13: 기업체 Business enterprises | C13: 7963611 | D13: 66218 | E13: 71193 | F13: 120.2635386 | G13: 111.8594665
A14: 1997 | B14: 계 Total | C14: =SUM(C15:C17) -> 12185806 | D14: =SUM(D15:D17) -> 102660 | E14: =SUM(E15:E17) -> 138438 | F14: =C14/D14 -> 118.7006234 | G14: =C14/E14 -> 88.02356289
B15: 공공연구기관 Public research institutes | C15: 2068899 | D15: 13216 | E15: 15185 | F15: 156.5450212 | G15: 136.2462298
B16: 대학 Higher educations | C16: 1271600 | D16: 19573 | E16: 48588 | F16: 64.96704644 | G16: 26.17107105
B17: 기업체 Business enterprises | C17: 8845307 | D17: 69871 | E17: 74665 | F17: 126.5948247 | G17: 118.4665774
A18: 1998 | B18: 계 Total | C18: =SUM(C19:C21) -> 11336617 | D18: =SUM(D19:D21) -> 92541 | E18: =SUM(E19:E21) -> 129767 | F18: 122.5037227 | G18: 87.36132453
B19: 공공연구기관 Public research institutes | C19: 2099470 | D19: 10952 | E19: 12587 | F19: 191.6974069 | G19: 166.796695
B20: 대학 Higher educations | C20: 1265074 | D20: 21525 | E20: 51162 | F20: 58.77231127 | G20: 24.72682851
B21: 기업체 Business enterprises | C21: 7972073 | D21: 60064 | E21: 66018 | F21: 132.7263086 | G21: 120.7560514
A22: 1999 | B22: 계 Total | C22: =SUM(C23:C25) -> 11921752 | D22: =SUM(D23:D25) -> 100210 | E22: =SUM(E23:E25) -> 134568 | F22: 118.9676879 | G22: 88.59277094
B23: 공공연구기관 Public research institutes | C23: 1979174 | D23: 13013 | E23: 13986 | F23: 152.0920618 | G23: 141.5110825
B24: 대학 Higher educations | C24: 1431421 | D24: 21723 | E24: 50151 | F24: 65.89425954 | G24: 28.54222249
B25: 기업체 Business enterprises | C25: 8511157 | D25: 65474 | E25: 70431 | F25: 129.9929285 | G25: 120.843904
A26: 2000 | B26: 계 Total | C26: =SUM(C27:C29) -> 13848501 | D26: =SUM(D27:D29) -> 108370 | E26: =SUM(E27:E29) -> 159973 | F26: 127.7890652 | G26: 86.56773956
B27: 공공연구기관 Public research institutes | C27: 2031981 | D27: 12801.7 | E27: 13913 | F27: 158.7274346 | G27: 146.0490908
B28: 대학 Higher educations | C28: 1561865 | D28: 23674 | E28: 51727 | F28: 65.97385317 | G28: 30.19438591
B29: 기업체 Business enterprises | C29: 10254655 | D29: 71894.3 | E29: 94333 | F29: 142.6351602 | G29: 108.7069742
A30: 2001 | B30: 계 Total | C30: =SUM(C31:C33) -> 16110521.98 | D30: =SUM(D31:D33) -> 136337.393 | E30: =SUM(E31:E33) -> 178937 | F30: 118.1665692 | G30: 90.03460425
B31: 공공연구기관 Public research institutes | C31: 2160166.079 | D31: 13085.61 | E31: 13921 | F31: 165.0795094 | G31: 155.1731973
B32: 대학 Higher educations | C32: 1676777.181 | D32: 23082.683 | E32: 53717 | F32: 72.64221326 | G32: 31.2150191
B33: 기업체 Business enterprises | C33: 12273578.72 | D33: 100169.1 | E33: 111299 | F33: 122.5285914 | G33: 110.2757322
A34: 2002 | B34: 계 Total | C34: =SUM(C35:C37) -> 17325081.78 | D34: =SUM(D35:D37) -> 141917.23 | E34: =SUM(E35:E37) -> 189888 | F34: 122.0787763 | G34: 91.23842359
B35: 공공연구기관 Public research institutes | C35: 2552631.59 | D35: 12773.97 | E35: 14094 | F35: 199.8307175 | G35: 181.1147715
B36: 대학 Higher educations | C36: 1797096.31 | D36: 24952.59 | E36: 57634 | F36: 72.02043195 | G36: 31.18118316
B37: 기업체 Business enterprises | C37: 12975353.88 | D37: 104190.67 | E37: 118160 | F37: 124.5347005 | G37: 109.8117288
A38: 2003 | B38: 계 Total | C38: =SUM(C39:C41) -> 19068681.99 | D38: =SUM(D39:D41) -> 151254.2614 | E38: =SUM(E39:E41) -> 198171 | F38: 126.0703786 | G38: 96.22337271
B39: 공공연구기관 Public research institutes | C39: 2626355.83 | D39: 13447.225 | E39: 14395 | F39: 195.3083874 | G39: 182.4491719
B40: 대학 Higher educations | C40: 1932662.944 | D40: 26419.2164 | E40: 59746 | F40: 73.15368158 | G40: 32.34798889
B41: 기업체 Business enterprises | C41: 14509663.22 | D41: 111387.82 | E41: 124030 | F41: 130.2625657 | G41: 116.9851102
A42: 2004 | B42: 계 Total | C42: =SUM(C43:C45) -> 22185343 | D42: =SUM(D43:D45) -> 156220 | E42: =SUM(E43:E45) -> 209979 | F42: 142.0134618 | G42: 105.655056
B43: 공공연구기관 Public research institutes | C43: 2964646 | D43: 14848 | E43: 15722 | F43: 199.6663524 | G43: 188.5667218
B44: 대학 Higher educations | C44: 2200886 | D44: 25522 | E44: 59957 | F44: 86.2348562 | G44: 36.70774055
B45: 기업체 Business enterprises | C45: 17019811 | D45: 115850 | E45: 134300 | F45: 146.9124817 | G45: 126.7297915
A46: 2005 | B46: 계 Total | C46: =SUM(C47:C49) -> 24155414 | D46: =SUM(D47:D49) -> 179812.4276 | E46: =SUM(E47:E49) -> 234702 | F46: 134.3367326 | G46: 102.9195064
B47: 공공연구기관 Public research institutes | C47: 3192887 | D47: 14690.31 | E47: 15501 | F47: 217.3464685 | G47: 205.9794207
B48: 대학 Higher educations | C48: 2398284 | D48: 27415.6776 | E48: 64895 | F48: 87.47856008 | G48: 36.95637568
B49: 기업체 Business enterprises | C49: 18564243 | D49: 137706.44 | E49: 154306 | F49: 134.8102747 | G49: 120.307979
A50: 2006 | B50: 계 Total | C50: =SUM(C51:C53) -> 27345704.1 | D50: =SUM(D51:D53) -> 199990.0211 | E50: =SUM(E51:E53) -> 256598 | F50: 136.7353429 | G50: 106.5702153
B51: 공공연구기관 Public research institutes | C51: 3497050.1 | D51: 16097.8 | E51: 16771 | F51: 217.2377654 | G51: 208.5176853
B52: 대학 Higher educations | C52: 2721874 | D52: 28385.9788 | E52: 65923 | F52: 95.8879741 | G52: 41.28868528
B53: 기업체 Business enterprises | C53: 21126780 | D53: 155506.2423 | E53: 173904 | F53: 135.8580832 | G53: 121.4853022
A54: 2007 | B54: 계 Total | C54: =SUM(C55:C57) -> 31301377.26 | D54: =SUM(D55:D57) -> 221928.2309 | E54: =SUM(E55:E57) -> 289098 | F54: 141.0427918 | G54: 108.2725486
B55: 공공연구기관 Public research institutes | C55: 4102365.7 | D55: 18224.41 | E55: 20342 | F55: 225.1027989 | G55: 201.6697326
B56: 대학 Higher educations | C56: 3334118.57 | D56: 37414.7009 | E56: 83123 | F56: 89.11252769 | G56: 40.11066215
B57: 기업체 Business enterprises | C57: 23864892.99 | D57: 166289.12 | E57: 185633 | F57: 143.5144584 | G57: 128.5595395
A58: 2008 | B58: 계 Total | C58: =SUM(C59:C61) -> 34498053.84 | D58: =SUM(D59:D61) -> 236136.871 | E58: =SUM(E59:E61) -> 300050 | F58: 146.0934656 | G58: 114.9743504
B59: 공공연구기관 Public research institutes | C59: 4653235.6 | D59: 18462.22299 | E59: 20950 | F59: 252.0409163 | G59: 222.1114845
B60: 대학 Higher educations | C60: 3844749.4 | D60: 34773.32797 | E60: 82077 | F60: 110.5660466 | G60: 46.8432009
B61: 기업체 Business enterprises | C61: 26000068.84 | D61: 182901.32 | E61: 197023 | F61: 142.1535331 | G61: 131.9646378
A62: 2009 | B62: 계 Total | C62: =SUM(C63:C65) -> 37928502.24 | D62: =SUM(D63:D65) -> 244076.773 | E62: =SUM(E63:E65) -> 323175 | F62: 155.395787 | G62: 117.3621172
B63: 공공연구기관 Public research institutes | C63: 5558383.7 | D63: 21084.236 | E63: 24318 | F63: 263.6274656 | G63: 228.5707583
B64: 대학 Higher educations | C64: 4204259.4 | D64: 38163.0226 | E64: 88554 | F64: 110.1657865 | G64: 47.47678705
B65: 기업체 Business enterprises | C65: 28165859.14 | D65: 184829.5144 | E65: 210303 | F65: 152.3883198 | G65: 133.9298971
A66: 2010 | B66: 계 Total | C66: =SUM(C67:C69) -> 43854834.28 | D66: =SUM(D67:D69) -> 264117.936 | E66: =SUM(E67:E69) -> 345912 | F66: 166.0426208 | G66: 126.7803207
B67: 공공연구기관 Public research institutes | C67: 6306136.03 | D67: 22774.5826 | E67: 26235 | F67: 276.8935941 | G67: 240.3711084
B68: 대학 Higher educations | C68: 4745458.693 | D68: 39264.7499 | E68: 93509 | F68: 120.8579885 | G68: 50.74868401
B69: 기업체 Business enterprises | C69: 32803239.56 | D69: 202078.6035 | E69: 226168 | F69: 162.3291085 | G69: 145.0392609
A70: 2011 | B70: 계 Total | C70: =SUM(C71:C73) -> 49890418.95 | D70: =SUM(D71:D73) -> 288900.9624 | E70: =SUM(E71:E73) -> 375176 | F70: 172.6903868 | G70: 132.9787059
B71: 공공연구기관 Public research institutes | C71: 6673311.11 | D71: 24543.8346 | E71: 28800 | F71: 271.8935822 | G71: 231.7121913
B72: 대학 Higher educations | C72: 5033816.5 | D72: 40843.7979 | E72: 95750 | F72: 123.245554 | G72: 52.57249608
B73: 기업체 Business enterprises | C73: 38183291.34 | D73: 223513.3299 | E73: 250626 | F73: 170.8322781 | G73: 152.3516768
A74: 2012 | B74: 계 Total | C74: =SUM(C75:C77) -> 55450115.65 | D74: =SUM(D75:D77) -> 315589.1929 | E74: =SUM(E75:E77) -> 401724 | F74: 175.703468 | G74: 138.0303782
B75: 공공연구기관 Public research institutes | C75: 6950261.67 | D75: 24722.5896 | E75: 28822 | F75: 281.1300023 | G75: 241.1443227
B76: 대학 Higher educations | C76: 5276928.439 | D76: 43825.7833 | E76: 96916 | F76: 120.4069395 | G76: 54.44847537
B77: 기업체 Business enterprises | C77: 43222925.54 | D77: 247040.82 | E77: 275986 | F77: 174.9626865 | G77: 156.6127468
A78: 2013 | B78: 계 Total | C78: =SUM(C79:C81) -> 59300949.33 | D78: =SUM(D79:D81) -> 321841.8477 | E78: =SUM(E79:E81) -> 410333 | F78: =C78/D78 -> 184.2549369 | G78: =C78/E78 -> 144.5190841
B79: 공공연구기관 Public research institutes | C79: 7260710.547 | D79: 26611.7427 | E79: 31140 | F79: 272.8385972 | G79: 233.1634729
B80: 대학 Higher educations | C80: 5480322.53 | D80: 41783.5011 | E80: 97319 | F80: 131.1599647 | G80: 56.31297619
B81: 기업체 Business enterprises | C81: 46559916.25 | D81: 253446.6039 | E81: 281874 | F81: 183.7070039 | G81: 165.1798898
A82: 2014 | B82: 계 Total | C82: =SUM(C83:C85) -> 63734126.79 | D82: =SUM(D83:D85) -> 345463.4268 | E82: =SUM(E83:E85) -> 437447 | F82: 184.4887819 | G82: 145.6956541
B83: 공공연구기관 Public research institutes | C83: 8112700.933 | D83: 28887.65399 | E83: 33322 | F83: 280.8362678 | G83: 243.4638057
B84: 대학 Higher educations | C84: 5766960.87 | D84: 41938.21564 | E84: 99317 | F84: 137.5108784 | G84: 58.06620085
B85: 기업체 Business enterprises | C85: 49854464.99 | D85: 274637.5572 | E85: 304808 | F85: 181.528213 | G85: 163.5602248
A86: 2015 | B86: 계 Total | C86: =SUM(C87:C89) -> 65959371.73 | D86: =SUM(D87:D89) -> 356447.29 | E86: =SUM(E87:E89) -> 453262 | F86: 185.0466354 | G86: 145.5215123
B87: 공공연구기관 Public research institutes | C87: 8824078.748 | D87: 31444.69684 | E87: 35550 | F87: 280.62216 | G87: 248.2159985
B88: 대학 Higher educations | C88: 5998872.479 | D88: 40866.21758 | E88: 99870 | F88: 146.7929462 | G88: 60.06681165
B89: 기업체 Business enterprises | C89: 51136420.5 | D89: 284136.3756 | E89: 317842 | F89: 179.9713972 | G89: 160.886291
A90: 2016 | B90: 계 Total | C90: =SUM(C91:C93) -> 69405529.89 | D90: =SUM(D91:D93) -> 361291.5335 | E90: =SUM(E91:E93) -> 460769 | F90: 192.1039478 | G90: 150.629773
B91: 공공연구기관 Public research institutes | C91: 9113170.697 | D91: 32663.69847 | E91: 36280 | F91: 278.999964 | G91: 251.189931
B92: 대학 Higher educations | C92: 6339887.929 | D92: 40758.71671 | E92: 103166 | F92: 155.5467993 | G92: 61.4532688
B93: 기업체 Business enterprises | C93: 53952471.26 | D93: 287869.1184 | E93: 321323 | F93: 187.4201428 | G93: 167.907281
A94: 2017 | B94: 계 Total | C94: =SUM(C95:C97) -> 78789187.37 | D94: =SUM(D95:D97) -> 383100.2805 | E94: =SUM(E95:E97) -> 482796 | F94: 205.6620456 | G94: 163.193538
B95: 공공연구기관 Public research institutes | C95: 9543217.4 | D95: 32721.87166 | E95: 36552 | F95: 291.6464407 | G95: 261.0860527
B96: 대학 Higher educations | C96: 6682523.015 | D96: 38812.73328 | E96: 102877 | F96: 172.1734712 | G96: 64.95643356
B97: 기업체 Business enterprises | C97: 62563446.96 | D97: 311565.6756 | E97: 343367 | F97: 200.8033999 | G97: 182.2057651
A98: 2018 | B98: 계 Total | C98: =SUM(C99:C101) -> 85728714.74 | D98: =SUM(D99:D101) -> 408370.4603 | E98: =SUM(E99:E101) -> 514170 | F98: 209.9287855 | G98: 166.7322379
B99: 공공연구기관 Public research institutes | C99: 9843867.4 | D99: 32824.93431 | E99: 37404 | F99: 299.8899345 | G99: 263.1768634
B100: 대학 Higher educations | C100: 7050415.008 | D100: 40735.96095 | E100: 108529 | F100: 173.0759468 | G100: 64.96341999
B101: 기업체 Business enterprises | C101: 68834432.33 | D101: 334809.565 | E101: 368237 | F101: =C101/D101 -> 205.5927892 | G101: =C101/E101 -> 186.9297011
A102: 2019 | B102: 계 Total | C102: =SUM(C103:C105) -> 89047077.12 | D102: =SUM(D103:D105) -> 430690.0064 | E102: =SUM(E103:E105) -> 538136 | F102: 206.754454 | G102: 165.4731836
B103: 공공연구기관 Public research institutes | C103: 10168766 | D103: 34860.99082 | E103: 40069 | F103: 291.6946926 | G103: 253.7813771
B104: 대학 Higher educations | C104: 7371649 | D104: 41447.76561 | E104: 110619 | F104: 177.853954 | G104: 66.63998951
B105: 기업체 Business enterprises | C105: 71506662.12 | D105: 354381.25 | E105: 387448 | F105: 201.7789093 | G105: 184.5580881
A106: 2020 | B106: 계 Total | C106: =SUM(C107:C109) -> 93071686.49 | D106: =SUM(D107:D109) -> 446738.854 | E106: =SUM(E107:E109) -> 558045 | F106: 208.3357775 | G106: 166.7816869
B107: 공공연구기관 Public research institutes | C107: 11118558 | D107: 36285.37094 | E107: 41005 | F107: 306.4198522 | G107: 271.1512742
B108: 대학 Higher educations | C108: 8353350.45 | D108: 44894.65304 | E108: 115924 | F108: 186.0655977 | G108: 72.05885279
B109: 기업체 Business enterprises | C109: 73599778.04 | D109: 365558.83 | E109: 401116 | F109: 201.3349754 | G109: 183.4875149

Sheet 2-7
A1: 2-7) 인구 만명당 연구개발인력 및 연구원
A2: R&D personnel and researchers per 10,000 population
A4: 연도·연구수행주체 Year · Sector of performance | C4: 연구개발수행기관 R&D performing inst. | D4: 연구개발인력(명)(A) R&D personnel(Person) | E4: 연구원(명)(B) Researchers(Person) | G4: 인구(만명)(D) Population (Ten thousand) | H4: A/D(명) (person) | I4: B/D(명) (person) | J4: C/D(명) (person)
F5: 상근상당(C) FTE
A6: 1995 | B6: 계 Total | C6: =SUM(C7:C9) -> 2585 | D6: =SUM(D7:D9) -> 201661 | E6: =SUM(E7:E9) -> 128315 | F6: =SUM(F7:F9) -> 100456 | G6: 4509.3 | H6: =D6/$G6 -> 44.72113188 | I6: =E6/$G6 -> 28.45563613 | J6: =F6/$G6 -> 22.27751536
B7: 공공연구기관 Public research institutes | C7: 178 | D7: 25621 | E7: 15007 | F7: 14363
B8: 대학 Higher educations | C8: 257 | D8: 75702 | E8: 44683 | F8: 19406
B9: 기업체 Business enterprises | C9: 2150 | D9: 100338 | E9: 68625 | F9: 66687
A10: 1996 | B10: 계 Total | C10: =SUM(C11:C13) -> 2856 | D10: =SUM(D11:D13) -> 202347 | E10: =SUM(E11:E13) -> 132023 | F10: =SUM(F11:F13) -> 99433 | G10: 4552.5 | H10: =D10/$G10 -> 44.44744646 | I10: =E10/$G10 -> 29.00010983 | J10: =F10/$G10 -> 21.84140582
B11: 공공연구기관 Public research institutes | C11: 163 | D11: 24203 | E11: 15503 | F11: 13732
B12: 대학 Higher educations | C12: 258 | D12: 77220 | E12: 45327 | F12: 19483
B13: 기업체 Business enterprises | C13: 2435 | D13: 100924 | E13: 71193 | F13: 66218
A14: 1997 | B14: 계 Total | C14: =SUM(C15:C17) -> 2962 | D14: =SUM(D15:D17) -> 212117 | E14: =SUM(E15:E17) -> 138438 | F14: =SUM(F15:F17) -> 102660 | G14: 4595.4 | H14: =D14/$G14 -> 46.15854985 | I14: =E14/$G14 -> 30.12534273 | J14: =F14/$G14 -> 22.33973104
B15: 공공연구기관 Public research institutes | C15: 184 | D15: 23382 | E15: 15185 | F15: 13216
B16: 대학 Higher educations | C16: 271 | D16: 86665 | E16: 48588 | F16: 19573
B17: 기업체 Business enterprises | C17: 2507 | D17: 102070 | E17: 74665 | F17: 69871
A18: 1998 | B18: 계 Total | C18: =SUM(C19:C21) -> 2869 | D18: =SUM(D19:D21) -> 199191 | E18: =SUM(E19:E21) -> 129767 | F18: =SUM(F19:F21) -> 92541 | G18: 4628.7 | H18: =D18/$G18 -> 43.03389721 | I18: =E18/$G18 -> 28.03530149 | J18: =F18/$G18 -> 19.99287057
B19: 공공연구기관 Public research institutes | C19: 183 | D19: 19431 | E19: 12587 | F19: 10952
B20: 대학 Higher educations | C20: 267 | D20: 92591 | E20: 51162 | F20: 21525
B21: 기업체 Business enterprises | C21: 2419 | D21: 87169 | E21: 66018 | F21: 60064
A22: 1999 | B22: 계 Total | C22: =SUM(C23:C25) -> 3059 | D22: =SUM(D23:D25) -> 212510 | E22: =SUM(E23:E25) -> 134568 | F22: =SUM(F23:F25) -> 100210 | G22: 4661.7 | H22: =D22/$G22 -> 45.58637407 | I22: =E22/$G22 -> 28.86672244 | J22: =F22/$G22 -> 21.49644979
B23: 공공연구기관 Public research institutes | C23: 169 | D23: 21020 | E23: 13986 | F23: 13013
B24: 대학 Higher educations | C24: 285 | D24: 98052 | E24: 50151 | F24: 21723
B25: 기업체 Business enterprises | C25: 2605 | D25: 93438 | E25: 70431 | F25: 65474
A26: 2000 | B26: 계 Total | C26: =SUM(C27:C29) -> 4635 | D26: =SUM(D27:D29) -> 237232 | E26: =SUM(E27:E29) -> 159973 | F26: =SUM(F27:F29) -> 108370 | G26: 4700.8 | H26: =D26/$G26 -> 50.46630361 | I26: =E26/$G26 -> 34.031016 | J26: =F26/$G26 -> 23.0535228
B27: 공공연구기관 Public research institutes | C27: 173 | D27: 21563 | E27: 13913 | F27: 12801.7
B28: 대학 Higher educations | C28: 268 | D28: 100643 | E28: 51727 | F28: 23674
B29: 기업체 Business enterprises | C29: 4194 | D29: 115026 | E29: 94333 | F29: 71894.3
A30: 2001 | B30: 계 Total | C30: =SUM(C31:C33) -> 6801 | D30: =SUM(D31:D33) -> 261802 | E30: =SUM(E31:E33) -> 178937 | F30: =SUM(F31:F33) -> 136337.393 | G30: 4737 | H30: =D30/$G30 -> 55.26746886 | I30: =E30/$G30 -> 37.77432974 | J30: =F30/$G30 -> 28.78137914
B31: 공공연구기관 Public research institutes | C31: 188 | D31: 20984 | E31: 13921 | F31: 13085.61
B32: 대학 Higher educations | C32: 276 | D32: 102501 | E32: 53717 | F32: 23082.683
B33: 기업체 Business enterprises | C33: 6337 | D33: 138317 | E33: 111299 | F33: 100169.1
A34: 2002 | B34: 계 Total | C34: =SUM(C35:C37) -> 7210 | D34: =SUM(D35:D37) -> 279806 | E34: =SUM(E35:E37) -> 189888 | F34: =SUM(F35:F37) -> 141917.23 | G34: 4764.5 | H34: =D34/$G34 -> 58.72725365 | I34: =E34/$G34 -> 39.85475916 | J34: =F34/$G34 -> 29.78638472
B35: 공공연구기관 Public research institutes | C35: 163 | D35: 21702 | E35: 14094 | F35: 12773.97
B36: 대학 Higher educations | C36: 304 | D36: 111083 | E36: 57634 | F36: 24952.59
B37: 기업체 Business enterprises | C37: 6743 | D37: 147021 | E37: 118160 | F37: 104190.67
A38: 2003 | B38: 계 Total | C38: =SUM(C39:C41) -> 7127 | D38: =SUM(D39:D41) -> 297059.8 | E38: =SUM(E39:E41) -> 198171 | F38: =SUM(F39:F41) -> 151254.2614 | G38: 4789.2 | H38: =D38/$G38 -> 62.02701913 | I38: =E38/$G38 -> 41.37872714 | J38: =F38/$G38 -> 31.58236478
B39: 공공연구기관 Public research institutes | C39: 169 | D39: 22025 | E39: 14395 | F39: 13447.225
B40: 대학 Higher educations | C40: 310 | D40: 121039 | E40: 59746 | F40: 26419.2164
B41: 기업체 Business enterprises | C41: 6648 | D41: 153995.8 | E41: 124030 | F41: 111387.82
A42: 2004 | B42: 계 Total | C42: =SUM(C43:C45) -> 7254 | D42: =SUM(D43:D45) -> 312314 | E42: =SUM(E43:E45) -> 209979 | F42: =SUM(F43:F45) -> 156220 | G42: 4808.3 | H42: =D42/$G42 -> 64.95310193 | I42: =E42/$G42 -> 43.6701121 | J42: =F42/$G42 -> 32.48965331
B43: 공공연구기관 Public research institutes | C43: 159 | D43: 24057 | E43: 15722 | F43: 14848
B44: 대학 Higher educations | C44: 293 | D44: 121968 | E44: 59957 | F44: 25522
B45: 기업체 Business enterprises | C45: 6802 | D45: 166289 | E45: 134300 | F45: 115850
A46: 2005 | B46: 계 Total | C46: =SUM(C47:C49) -> 7761 | D46: =SUM(D47:D49) -> 335428 | E46: =SUM(E47:E49) -> 234702 | F46: =SUM(F47:F49) -> 179812.4276 | G46: 4818.5 | H46: =D46/$G46 -> 69.61253502 | I46: =E46/$G46 -> 48.70851925 | J46: =F46/$G46 -> 37.31709611
B47: 공공연구기관 Public research institutes | C47: 137 | D47: 22604 | E47: 15501 | F47: 14690.31
B48: 대학 Higher educations | C48: 256 | D48: 125039 | E48: 64895 | F48: 27415.6776
B49: 기업체 Business enterprises | C49: 7368 | D49: 187785 | E49: 154306 | F49: 137706.44
A50: 2006 | B50: 계 Total | C50: =SUM(C51:C53) -> 9443 | D50: =SUM(D51:D53) -> 365794 | E50: =SUM(E51:E53) -> 256598 | F50: =SUM(F51:F53) -> 199990.0211 | G50: 4843.8 | H50: =D50/$G50 -> 75.51798175 | I50: =E50/$G50 -> 52.97452413 | J50: =F50/$G50 -> 41.28783622
B51: 공공연구기관 Public research institutes | C51: 139 | D51: 23874 | E51: 16771 | F51: 16097.8
B52: 대학 Higher educations | C52: 268 | D52: 132042 | E52: 65923 | F52: 28385.9788
B53: 기업체 Business enterprises | C53: 9036 | D53: 209878 | E53: 173904 | F53: 155506.2423
A54: 2007 | B54: 계 Total | C54: =SUM(C55:C57) -> 11200 | D54: =SUM(D55:D57) -> 421549 | E54: =SUM(E55:E57) -> 289098 | F54: =SUM(F55:F57) -> 221928.2309 | G54: 4868.4 | H54: =D54/$G54 -> 86.58881768 | I54: =E54/$G54 -> 59.38254868 | J54: =F54/$G54 -> 45.58545537
B55: 공공연구기관 Public research institutes | C55: 188 | D55: 28877 | E55: 20342 | F55: 18224.41
B56: 대학 Higher educations | C56: 322 | D56: 168547 | E56: 83123 | F56: 37414.7009
B57: 기업체 Business enterprises | C57: 10690 | D57: 224125 | E57: 185633 | F57: 166289.12
A58: 2008 | B58: 계 Total | C58: =SUM(C59:C61) -> 12822 | D58: =SUM(D59:D61) -> 436228 | E58: =SUM(E59:E61) -> 300050 | F58: =SUM(F59:F61) -> 236136.871 | G58: 4905.5 | H58: =D58/$G58 -> 88.92630721 | I58: =E58/$G58 -> 61.16603812 | J58: =F58/$G58 -> 48.13716664
B59: 공공연구기관 Public research institutes | C59: 228 | D59: 30028 | E59: 20950 | F59: 18462.22299
B60: 대학 Higher educations | C60: 338 | D60: 167789 | E60: 82077 | F60: 34773.32797
B61: 기업체 Business enterprises | C61: 12256 | D61: 238411 | E61: 197023 | F61: 182901.32
A62: 2009 | B62: 계 Total | C62: =SUM(C63:C65) -> 15237 | D62: =SUM(D63:D65) -> 466824 | E62: =SUM(E63:E65) -> 323175 | F62: =SUM(F63:F65) -> 244076.773 | G62: 4930.8 | H62: =D62/$G62 -> 94.67510343 | I62: =E62/$G62 -> 65.5421027 | J62: =F62/$G62 -> 49.5004407
B63: 공공연구기관 Public research institutes | C63: 252 | D63: 36686 | E63: 24318 | F63: 21084.236
B64: 대학 Higher educations | C64: 359 | D64: 174575 | E64: 88554 | F64: 38163.0226
B65: 기업체 Business enterprises | C65: 14626 | D65: 255563 | E65: 210303 | F65: 184829.5144
A66: 2010 | B66: 계 Total | C66: =SUM(C67:C69) -> 16550 | D66: =SUM(D67:D69) -> 500124 | E66: =SUM(E67:E69) -> 345912 | F66: =SUM(F67:F69) -> 264117.936 | G66: 4955.4 | H66: =D66/$G66 -> 100.9250515 | I66: =E66/$G66 -> 69.80506115 | J66: =F66/$G66 -> 53.29901441
B67: 공공연구기관 Public research institutes | C67: 261 | D67: 39738 | E67: 26235 | F67: 22774.5826
B68: 대학 Higher educations | C68: 352 | D68: 188211 | E68: 93509 | F68: 39264.7499
B69: 기업체 Business enterprises | C69: 15937 | D69: 272175 | E69: 226168 | F69: 202078.6035
A70: 2011 | B70: 계 Total | C70: =SUM(C71:C73) -> 20372 | D70: =SUM(D71:D73) -> 531131 | E70: =SUM(E71:E73) -> 375176 | F70: =SUM(F71:F73) -> 288900.9624 | G70: 4993.7 | H70: =D70/$G70 -> 106.3602139 | I70: =E70/$G70 -> 75.12986363 | J70: =F70/$G70 -> 57.85308737
B71: 공공연구기관 Public research institutes | C71: 268 | D71: 43457 | E71: 28800 | F71: 24543.8346
B72: 대학 Higher educations | C72: 350 | D72: 186690 | E72: 95750 | F72: 40843.7979
B73: 기업체 Business enterprises | C73: 19754 | D73: 300984 | E73: 250626 | F73: 223513.3299
A74: 2012 | B74: 계 Total | C74: =SUM(C75:C77) -> 23533 | D74: =SUM(D75:D77) -> 562601 | E74: =SUM(E75:E77) -> 401724 | F74: =SUM(F75:F77) -> 315589.1929 | G74: 5020 | H74: =D74/$G74 -> 112.0719124 | I74: =E74/$G74 -> 80.0247012 | J74: =F74/$G74 -> 62.86637309
B75: 공공연구기관 Public research institutes | C75: 272 | D75: 46500 | E75: 28822 | F75: 24722.5896
B76: 대학 Higher educations | C76: 344 | D76: 184281 | E76: 96916 | F76: 43825.7833
B77: 기업체 Business enterprises | C77: 22917 | D77: 331820 | E77: 275986 | F77: 247040.82
A78: 2013 | B78: 계 Total | C78: =SUM(C79:C81) -> 25882 | D78: =SUM(D79:D81) -> 569333 | E78: =SUM(E79:E81) -> 410333 | F78: =SUM(F79:F81) -> 321841.8477 | G78: 5042.9 | H78: =D78/$G78 -> 112.8979357 | I78: =E78/$G78 -> 81.36845862 | J78: =F78/$G78 -> 63.82078719
B79: 공공연구기관 Public research institutes | C79: 326 | D79: 49782 | E79: 31140 | F79: 26611.7427
B80: 대학 Higher educations | C80: 371 | D80: 181284 | E80: 97319 | F80: 41783.5011
B81: 기업체 Business enterprises | C81: 25185 | D81: 338267 | E81: 281874 | F81: 253446.6039
A82: 2014 | B82: 계 Total | C82: =SUM(C83:C85) -> 30111 | D82: =SUM(D83:D85) -> 605604 | E82: =SUM(E83:E85) -> 437447 | F82: =SUM(F83:F85) -> 345463.4268 | G82: 5074.7 | H82: =D82/$G82 -> 119.3378919 | I82: =E82/$G82 -> 86.20154886 | J82: =F82/$G82 -> 68.07563537
B83: 공공연구기관 Public research institutes | C83: 348 | D83: 51849 | E83: 33322 | F83: 28887.65399
B84: 대학 Higher educations | C84: 371 | D84: 187087 | E84: 99317 | F84: 41938.21564
B85: 기업체 Business enterprises | C85: 29392 | D85: 366668 | E85: 304808 | F85: 274637.5572
A86: 2015 | B86: 계 Total | C86: =SUM(C87:C89) -> 35379 | D86: =SUM(D87:D89) -> 619907 | E86: =SUM(E87:E89) -> 453262 | F86: =SUM(F87:F89) -> 356447.29 | G86: 5101.5 | H86: =D86/$G86 -> 121.5146526 | I86: =E86/$G86 -> 88.84876997 | J86: =F86/$G86 -> 69.87107517
B87: 공공연구기관 Public research institutes | C87: 372 | D87: 54178 | E87: 35550 | F87: 31444.69684
B88: 대학 Higher educations | C88: 365 | D88: 185113 | E88: 99870 | F88: 40866.21758
B89: 기업체 Business enterprises | C89: 34642 | D89: 380616 | E89: 317842 | F89: 284136.3756
A90: 2016 | B90: 계 Total | C90: =SUM(C91:C93) -> 37218 | D90: =SUM(D91:D93) -> 624910 | E90: =SUM(E91:E93) -> 460769 | F90: =SUM(F91:F93) -> 361291.5335 | G90: 5121.8 | H90: =D90/$G90 -> 122.0098403 | I90: =E90/$G90 -> 89.96231794 | J90: =F90/$G90 -> 70.53995344
B91: 공공연구기관 Public research institutes | C91: 372 | D91: 55157 | E91: 36280 | F91: 32663.69847
B92: 대학 Higher educations | C92: 368 | D92: 185737 | E92: 103166 | F92: 40758.71671
B93: 기업체 Business enterprises | C93: 36478 | D93: 384016 | E93: 321323 | F93: 287869.1184
A94: 2017 | B94: 계 Total | C94: =SUM(C95:C97) -> 42368 | D94: =SUM(D95:D97) -> 650243 | E94: =SUM(E95:E97) -> 482796 | F94: =SUM(F95:F97) -> 383100.2805 | G94: 5136.2 | H94: =D94/$G94 -> 126.6000156 | I94: =E94/$G94 -> 93.99867606 | J94: =F94/$G94 -> 74.58827159
B95: 공공연구기관 Public research institutes | C95: 375 | D95: 55816 | E95: 36552 | F95: 32721.87166 | I95: `
B96: 대학 Higher educations | C96: 364 | D96: 185660 | E96: 102877 | F96: 38812.73328
B97: 기업체 Business enterprises | C97: 41629 | D97: 408767 | E97: 343367 | F97: 311565.6756
A98: 2018 | B98: 계 Total | C98: =SUM(C99:C101) -> 49302 | D98: =SUM(D99:D101) -> 691060 | E98: =SUM(E99:E101) -> 514170 | F98: =SUM(F99:F101) -> 408370.4603 | G98: 5160.7 | H98: =D98/$G98 -> 133.9081907 | I98: =E98/$G98 -> 99.63183289 | J98: =F98/$G98 -> 79.13082726
B99: 공공연구기관 Public research institutes | C99: 401 | D99: 58386 | E99: 37404 | F99: 32824.93431
B100: 대학 Higher educations | C100: 365 | D100: 192448 | E100: 108529 | F100: 40735.96095
B101: 기업체 Business enterprises | C101: 48536 | D101: 440226 | E101: 368237 | F101: 334809.565
A102: 2019 | B102: 계 Total | C102: =SUM(C103:C105) -> 53005 | D102: =SUM(D103:D105) -> 718759 | E102: =SUM(E103:E105) -> 538136 | F102: =SUM(F103:F105) -> 430690.0064 | G102: 5170.9 | H102: =D102/$G102 -> 139.0007542 | I102: =E102/$G102 -> 104.0700845 | J102: =F102/$G102 -> 83.29111111
B103: 공공연구기관 Public research institutes | C103: 419 | D103: 62412 | E103: 40069 | F103: 34860.99082
B104: 대학 Higher educations | C104: 368 | D104: 194136 | E104: 110619 | F104: 41447.76561
B105: 기업체 Business enterprises | C105: 52218 | D105: 462211 | E105: 387448 | F105: 354381.25
A106: 2020 | B106: 계 Total | C106: =SUM(C107:C109) -> 56223 | D106: =SUM(D107:D109) -> 747288 | E106: =SUM(E107:E109) -> 558045 | F106: =SUM(F107:F109) -> 446738.854 | G106: 5186 | H106: =D106/$G106 -> 144.0971847 | I106: =E106/$G106 -> 107.6060548 | J106: =F106/$G106 -> 86.14324219
B107: 공공연구기관 Public research institutes | C107: 415 | D107: 64134 | E107: 41005 | F107: 36285.37094
B108: 대학 Higher educations | C108: 363 | D108: 207025 | E108: 115924 | F108: 44894.65304
B109: 기업체 Business enterprises | C109: 55445 | D109: 476129 | E109: 401116 | F109: 365558.83
A111: 자료 : 인구(OECD, Main Science and Technology Indicators 2021-september, 2021)

Sheet 2-8
A1: 2-8) 전공별·학위별 연구원
A2: Researchers by major field of study and degree
A4: 전공·학위 Major field of study · Degree | C4: 이학 Natural sciences | H4: 공학 Engineering & technology | M4: 농업과학 Agricultural sciences | R4: 의·약·보건학 Medical & health sciences
C5: 계 Total | D5: 박사 Doctoral | E5: 석사 Master's | F5: 학사 Bachelor's | G5: 기타 Others | H5: 계 Total | I5: 박사 Doctoral | J5: 석사 Master's | K5: 학사 Bachelor's | L5: 기타 Others | M5: 계 Total | N5: 박사 Doctoral | O5: 석사 Master's | P5: 학사 Bachelor's | Q5: 기타 Others | R5: 계 Total | S5: 박사 Doctoral | T5: 석사 Master's | U5: 학사 Bachelor's | V5: 기타 Others
A6: 연구원(명) Researchers(Person) | B6: 1995 | C6: =SUM(D6:G6) -> 23383 | D6: 8707 | E6: 8479 | F6: 5954 | G6: 243 | H6: =SUM(I6:L6) -> 78936 | I6: 14748 | J6: 26875 | K6: 34631 | L6: 2682 | M6: =SUM(N6:Q6) -> 6705 | N6: 3186 | O6: 2054 | P6: 1361 | Q6: 104 | R6: =SUM(S6:V6) -> 10343 | S6: 5991 | T6: 3436 | U6: 804 | V6: 112
B7: 1996 | C7: 23483 | D7: 8688 | E7: 8958 | F7: 5455 | G7: 382 | H7: 84358 | I7: 15732 | J7: 29411 | K7: 35832 | L7: 3383 | M7: 6855 | N7: 3175 | O7: 2315 | P7: 1279 | Q7: 86 | R7: 11854 | S7: 6999 | T7: 4031 | U7: 781 | V7: 43
B8: 1997 | C8: 24539 | D8: 9170 | E8: 9587 | F8: 5511 | G8: 271 | H8: 88433 | I8: 16727 | J8: 31427 | K8: 36635 | L8: 3644 | M8: 6407 | N8: 3048 | O8: 2201 | P8: 1084 | Q8: 74 | R8: 12489 | S8: 7649 | T8: 3931 | U8: 871 | V8: 38
B9: 1998 | C9: 21548 | D9: 8449 | E9: 7947 | F9: 4858 | G9: 294 | H9: 81748 | I9: 17846 | J9: 28078 | K9: 32241 | L9: 3583 | M9: 5553 | N9: 2590 | O9: 2064 | P9: 861 | Q9: 38 | R9: 10548 | S9: 6910 | T9: 2947 | U9: 651 | V9: 40
B10: 1999 | C10: 22679 | D10: 10149 | E10: 7494 | F10: 4729 | G10: 307 | H10: 88239 | I10: 21333 | J10: 29339 | K10: 32774 | L10: 4793 | M10: 6790 | N10: 3099 | O10: 2753 | P10: 817 | Q10: 121 | R10: 11538 | S10: 6780 | T10: 3885 | U10: 732 | V10: 141
B11: 2000 | C11: 27040 | D11: 9663 | E11: 9557 | F11: 7174 | G11: 646 | H11: 109060 | I11: 22825 | J11: 34432 | K11: 44612 | L11: 7191 | M11: 7264 | N11: 3529 | O11: 2555 | P11: 1002 | Q11: 178 | R11: 12255 | S11: 7857 | T11: 3404 | U11: 867 | V11: 127
B12: 2001 | C12: 30088 | D12: 10139 | E12: 11116 | F12: 8264 | G12: 569 | H12: 118949 | I12: 22796 | J12: 37839 | K12: 51359 | L12: 6955 | M12: 6080 | N12: 3031 | O12: 2079 | P12: 834 | Q12: 136 | R12: 12487 | S12: 7067 | T12: 4546 | U12: 733 | V12: 141
B13: 2002 | C13: =SUM(D13:G13) -> 32778 | D13: 10845 | E13: 11705 | F13: 9638 | G13: 590 | H13: =SUM(I13:L13) -> 128930 | I13: 24640 | J13: 42987 | K13: 54323 | L13: 6980 | M13: =SUM(N13:Q13) -> 6040 | N13: 3010 | O13: 2240 | P13: 727 | Q13: 63 | R13: =SUM(S13:V13) -> 13096 | S13: 7642 | T13: 4677 | U13: 662 | V13: 115
B14: 2003 | C14: =SUM(D14:G14) -> 29242 | D14: 10549 | E14: 11120 | F14: 7242 | G14: 331 | H14: =SUM(I14:L14) -> 139457 | I14: 26763 | J14: 47148 | K14: 58807 | L14: 6739 | M14: =SUM(N14:Q14) -> 6247 | N14: 3437 | O14: 2070 | P14: 691 | Q14: 49 | R14: =SUM(S14:V14) -> 14080 | S14: 8367 | T14: 4989 | U14: 659 | V14: 65
B15: 2004 | C15: 30965 | D15: 11531 | E15: 11088 | F15: 7917 | G15: 429 | H15: 150628 | I15: 29813 | J15: 49179 | K15: 65919 | L15: 5717 | M15: 6219 | N15: 3555 | O15: 1941 | P15: 657 | Q15: 66 | R15: 14451 | S15: 9116 | T15: 4425 | U15: 639 | V15: 271
B16: 2005 | C16: 33248 | D16: 11619 | E16: 12635 | F16: 8442 | G16: 552 | H16: 169145 | I16: 30636 | J16: 55619 | K16: 74596 | L16: 8294 | M16: 6813 | N16: 3641 | O16: 2201 | P16: 841 | Q16: 130 | R16: 15143 | S16: 9038 | T16: 5197 | U16: 729 | V16: 179
B17: 2006 | C17: 35239 | D17: 11715 | E17: 13306 | F17: 9504 | G17: 714 | H17: 184897 | I17: 31784 | J17: 58663 | K17: 85307 | L17: 9143 | M17: 7132 | N17: 3803 | O17: 2349 | P17: 801 | Q17: 179 | R17: 17391 | S17: 9848 | T17: 5911 | U17: 1382 | V17: 250
B18: 2007 | C18: 35443 | D18: 11196 | E18: 13699 | F18: 9865 | G18: 683 | H18: 195841 | I18: 30904 | J18: 61999 | K18: 92434 | L18: 10504 | M18: 7326 | N18: 3739 | O18: 2434 | P18: 980 | Q18: 173 | R18: 16576 | S18: 9393 | T18: 5460 | U18: 1386 | V18: 337
B19: 2008 | C19: 35760 | D19: 10905 | E19: 13526 | F19: 10522 | G19: 807 | H19: 205478 | I19: 31400 | J19: 64006 | K19: 98701 | L19: 11371 | M19: 6853 | N19: 3503 | O19: 2245 | P19: 1009 | Q19: 96 | R19: 17247 | S19: 9104 | T19: 5655 | U19: 1895 | V19: 593
B20: 2009 | C20: 41687 | D20: 12210 | E20: 16113 | F20: 12121 | G20: 1243 | H20: 217911 | I20: 31990 | J20: 68321 | K20: 104986 | L20: 12614 | M20: 8713 | N20: 4193 | O20: 2982 | P20: 1363 | Q20: 175 | R20: 17227 | S20: 9031 | T20: 5902 | U20: 1582 | V20: 712
B21: 2010 | C21: 46023 | D21: 13337 | E21: 18019 | F21: 13536 | G21: 1131 | H21: 231913 | I21: 33780 | J21: 71273 | K21: 113385 | L21: 13475 | M21: 9202 | N21: 4248 | O21: 3210 | P21: 1559 | Q21: 185 | R21: 18926 | S21: 10021 | T21: 6108 | U21: 2515 | V21: 282
B22: 2011 | C22: =SUM(D22:G22) -> 48544 | D22: 13532 | E22: 19005 | F22: 14636 | G22: 1371 | H22: =SUM(I22:L22) -> 253445 | I22: 35728 | J22: 75360 | K22: 127008 | L22: 15349 | M22: =SUM(N22:Q22) -> 9841 | N22: 4435 | O22: 3334 | P22: 1814 | Q22: 258 | R22: =SUM(S22:V22) -> 20473 | S22: 10663 | T22: 7010 | U22: 2206 | V22: 594
B23: 2012 | C23: =SUM(D23:G23) -> 53654 | D23: 14573 | E23: 20668 | F23: 16716 | G23: 1697 | H23: =SUM(I23:L23) -> 273839 | I23: 37793 | J23: 80950 | K23: 137938 | L23: 17158 | M23: =SUM(N23:Q23) -> 9912 | N23: 4329 | O23: 3356 | P23: 1978 | Q23: 249 | R23: =SUM(S23:V23) -> 19945 | S23: 9836 | T23: 7004 | U23: 2603 | V23: 502
B24: 2013 | C24: 51494 | D24: 14245 | E24: 19142 | F24: 16332 | G24: 1775 | H24: 279388 | I24: 38287 | J24: 81780 | K24: 141846 | L24: 17475 | M24: 10102 | N24: 4383 | O24: 3468 | P24: 1984 | Q24: 267 | R24: 23292 | S24: 10619 | T24: 7735 | U24: 4434 | V24: 504
B25: 2014 | C25: 54772 | D25: 14621 | E25: 20595 | F25: 17817 | G25: 1739 | H25: 298436 | I25: 39333 | J25: 85908 | K25: 153951 | L25: 19244 | M25: 10662 | N25: 4729 | O25: 3775 | P25: 1959 | Q25: 199 | R25: 23522 | S25: 10961 | T25: 7301 | U25: 4137 | V25: 1123
B26: 2015 | C26: 57976 | D26: 16599 | E26: 21265 | F26: 18276 | G26: 1836 | H26: 308230 | I26: 42168 | J26: 86006 | K26: 159455 | L26: 20601 | M26: 11045 | N26: 5053 | O26: 3720 | P26: 2059 | Q26: 213 | R26: 24066 | S26: 12136 | T26: 7085 | U26: 4404 | V26: 441
B27: 2016 | C27: 56710 | D27: 16410 | E27: 20775 | F27: 17668 | G27: 1857 | H27: 312987 | I27: 43123 | J27: 88114 | K27: 160356 | L27: 21394 | M27: 11378 | N27: 5061 | O27: 3991 | P27: 2098 | Q27: 228 | R27: 26347 | S27: 13181 | T27: 8225 | U27: 4172 | V27: 769
B28: 2017 | C28: 67736 | D28: 17976 | E28: 22587 | F28: 24296 | G28: 2877 | H28: 322952 | I28: 45445 | J28: 91783 | K28: 166088 | L28: 19636 | M28: 10423 | N28: 4795 | O28: 3453 | P28: 1965 | Q28: 210 | R28: 27911 | S28: 14123 | T28: 8112 | U28: 4882 | V28: 794
B29: 2018 | C29: 72884 | D29: 18299 | E29: 23670 | F29: 27424 | G29: 3491 | H29: 344916 | I29: 46530 | J29: 96063 | K29: 180386 | L29: 21937 | M29: 10991 | N29: 4754 | O29: 3826 | P29: 2147 | Q29: 264 | R29: 29774 | S29: 14683 | T29: 8952 | U29: 5250 | V29: 889
B30: 2019 | C30: =SUM(D30:G30) -> 86248 | D30: 19586 | E30: 27263 | F30: 35824 | G30: 3575 | H30: =SUM(I30:L30) -> 350000 | I30: 48859 | J30: 96415 | K30: 183156 | L30: 21570 | M30: =SUM(N30:Q30) -> 11051 | N30: 4928 | O30: 3537 | P30: 2314 | Q30: 272 | R30: =SUM(S30:V30) -> 31848 | S30: 15846 | T30: 9913 | U30: 5152 | V30: 937
B31: 2020 | C31: 81152 | D31: 20200 | E31: 26386 | F31: 30315 | G31: 4251 | H31: 371068 | I31: 52138 | J31: 100893 | K31: 196013 | L31: 22024 | M31: 10853 | N31: 4816 | O31: 3409 | P31: 2335 | Q31: 293 | R31: 33262 | S31: 16837 | T31: 10335 | U31: 4925 | V31: 1165
A32: 전년대비증가율(%) Percent change from previous year(%) | B32: 1995 | C32: =(C6/C5-1)*100 -> 
B33: 1996 | C33: =(C7/C6-1)*100 -> 0.4276611213 | D33: -0.2182152291 | E33: 5.649251091 | F33: -8.38092039 | G33: 57.20164609 | H33: 6.868855782 | I33: 6.672091131 | J33: 9.43627907 | K33: 3.467991106 | L33: 26.13721104 | M33: 2.237136465 | N33: -0.3452605148 | O33: 12.70691334 | P33: -6.024981631 | Q33: -17.30769231 | R33: 14.60891424 | S33: 16.82523786 | T33: 17.31664726 | U33: -2.860696517 | V33: -61.60714286
B34: 1997 | C34: =(C8/C7-1)*100 -> 4.496870076 | D34: 5.547882136 | E34: 7.02165662 | F34: 1.026581118 | G34: -29.05759162 | H34: 4.830602907 | I34: 6.324688533 | J34: 6.854578219 | K34: 2.241013619 | L34: 7.715045817 | M34: -6.535375638 | N34: -4 | O34: -4.924406048 | P34: -15.24628616 | Q34: -13.95348837 | R34: 5.356841572 | S34: 9.287041006 | T34: -2.480774001 | U34: 11.52368758 | V34: -11.62790698
B35: 1998 | C35: =(C9/C8-1)*100 -> -12.18876075 | D35: -7.86259542 | E35: -17.10649838 | F35: -11.84902921 | G35: 8.487084871 | H35: -7.559395248 | I35: 6.689782986 | J35: -10.65644191 | K35: -11.99399481 | L35: -1.673984632 | M35: -13.32917122 | N35: -15.02624672 | O35: -6.224443435 | P35: -20.57195572 | Q35: -48.64864865 | R35: -15.54167668 | S35: -9.661393646 | T35: -25.03179852 | U35: -25.25832377 | V35: 5.263157895
B36: 1999 | C36: =(C10/C9-1)*100 -> 5.248746983 | D36: 20.12072435 | E36: -5.700264251 | F36: -2.655413751 | G36: 4.421768707 | H36: 7.940255419 | I36: 19.53939258 | J36: 4.491060617 | K36: 1.653174529 | L36: 33.77058331 | M36: 22.27624707 | N36: 19.65250965 | O36: 33.38178295 | P36: -5.110336818 | Q36: 218.4210526 | R36: 9.385665529 | S36: -1.881331404 | T36: 31.82897862 | U36: 12.44239631 | V36: 252.5
B37: 2000 | C37: =(C11/C10-1)*100 -> 19.22924291 | D37: -4.788649128 | E37: 27.52868962 | F37: 51.70226263 | G37: 110.4234528 | H37: 23.5961423 | I37: 6.993859279 | J37: 17.35914653 | K37: 36.1200952 | L37: 50.03129564 | M37: 6.980854197 | N37: 13.87544369 | O37: -7.192154014 | P37: 22.64381885 | Q37: 47.10743802 | R37: 6.21424857 | S37: 15.88495575 | T37: -12.38095238 | U37: 18.44262295 | V37: -9.929078014
B38: 2001 | C38: =(C12/C11-1)*100 -> 11.27218935 | D38: 4.926006416 | E38: 16.31265041 | F38: 15.19375523 | G38: -11.91950464 | H38: 9.067485788 | I38: -0.1270536692 | J38: 9.894865242 | K38: 15.12373352 | L38: -3.281880128 | M38: -16.29955947 | N38: -14.11164636 | O38: -18.63013699 | P38: -16.76646707 | Q38: -23.59550562 | R38: 1.893104855 | S38: -10.05472827 | T38: 33.54876616 | U38: -15.455594 | V38: 11.02362205
B39: 2002 | C39: =(C13/C12-1)*100 -> 8.940441372 | D39: 6.963211362 | E39: 5.298668586 | F39: 16.62633107 | G39: 3.690685413 | H39: 8.390991097 | I39: 8.089138445 | J39: 13.6050107 | K39: 5.771140404 | L39: 0.3594536305 | M39: -0.6578947368 | N39: -0.6928406467 | O39: 7.744107744 | P39: -12.82973621 | Q39: -53.67647059 | R39: 4.877072155 | S39: 8.13640866 | T39: 2.881654201 | U39: -9.68622101 | V39: -18.43971631
B40: 2003 | C40: =(C14/C13-1)*100 -> -10.78772347 | D40: -2.729368373 | E40: -4.997864161 | F40: -24.85992945 | G40: -43.89830508 | H40: 8.16489568 | I40: 8.616071429 | J40: 9.679670598 | K40: 8.254330578 | L40: -3.452722063 | M40: 3.427152318 | N40: 14.18604651 | O40: -7.589285714 | P40: -4.951856946 | Q40: -22.22222222 | R40: 7.513744655 | S40: 9.487045276 | T40: 6.670942912 | U40: -0.4531722054 | V40: -43.47826087
B41: 2004 | C41: =(C15/C14-1)*100 -> 5.892209835 | D41: 9.308939236 | E41: -0.2877697842 | F41: 9.32062966 | G41: 29.60725076 | H41: 8.010354446 | I41: 11.39633076 | J41: 4.307711886 | K41: 12.09379836 | L41: -15.16545482 | M41: -0.4482151433 | N41: 3.433226651 | O41: -6.231884058 | P41: -4.92040521 | Q41: 34.69387755 | R41: 2.634943182 | S41: 8.951834588 | T41: -11.30487072 | U41: -3.034901366 | V41: 316.9230769
B42: 2005 | C42: =(C16/C15-1)*100 -> 7.372840304 | D42: 0.7631601769 | E42: 13.9520202 | F42: 6.631299735 | G42: 28.67132867 | H42: 12.29319914 | I42: 2.760540704 | J42: 13.09502023 | K42: 13.16312444 | L42: 45.07608886 | M42: 9.551374819 | N42: 2.419127989 | O42: 13.39515714 | P42: 28.00608828 | Q42: 96.96969697 | R42: 4.788595945 | S42: -0.8556384379 | T42: 17.44632768 | U42: 14.08450704 | V42: -33.94833948
B43: 2006 | C43: =(C17/C16-1)*100 -> 5.988330125 | D43: 0.8262328944 | E43: 5.310645034 | F43: 12.57995736 | G43: 29.34782609 | H43: 9.312719856 | I43: 3.747225486 | J43: 5.472949891 | K43: 14.35867875 | L43: 10.23631541 | M43: 4.682225158 | N43: 4.449327108 | O43: 6.724216265 | P43: -4.756242568 | Q43: 37.69230769 | R43: 14.84514297 | S43: 8.96215977 | T43: 13.7386954 | U43: 89.57475995 | V43: 39.66480447
B44: 2007 | C44: =(C18/C17-1)*100 -> 0.5789040552 | D44: -4.43021767 | E44: 2.953554787 | F44: 3.798400673 | G44: -4.341736695 | H44: 5.918971103 | I44: -2.768688648 | J44: 5.686719056 | K44: 8.354531281 | L44: 14.88570491 | M44: 2.720134605 | N44: -1.682881935 | O44: 3.61856109 | P44: 22.34706617 | Q44: -3.351955307 | R44: -4.686332011 | S44: -4.620227457 | T44: -7.629842666 | U44: 0.2894356006 | V44: 34.8
B45: 2008 | C45: =(C19/C18-1)*100 -> 0.8943938154 | D45: -2.599142551 | E45: -1.262865903 | F45: 6.659908768 | G45: 18.15519766 | H45: 4.920828631 | I45: 1.60497023 | J45: 3.237148986 | K45: 6.779972737 | L45: 8.253998477 | M45: -6.456456456 | N45: -6.311848088 | O45: -7.764995892 | P45: 2.959183673 | Q45: -44.50867052 | R45: 4.048021236 | S45: -3.076759289 | T45: 3.571428571 | U45: 36.72438672 | V45: 75.96439169
B46: 2009 | C46: =(C20/C19-1)*100 -> 16.57438479 | D46: 11.96698762 | E46: 19.12612746 | F46: 15.19673066 | G46: 54.02726146 | H46: 6.050769425 | I46: 1.878980892 | J46: 6.741555479 | K46: 6.367716639 | L46: 10.93131651 | M46: 27.14139793 | N46: 19.69740223 | O46: 32.8285078 | P46: 35.08424182 | Q46: 82.29166667 | R46: -0.1159621963 | S46: -0.8018453427 | T46: 4.367816092 | U46: -16.5171504 | V46: 20.06745363
B47: 2010 | C47: =(C21/C20-1)*100 -> 10.40132415 | D47: 9.23013923 | E47: 11.82895798 | F47: 11.67395429 | G47: -9.010458568 | H47: 6.425559059 | I47: 5.595498593 | J47: 4.320779848 | K47: 8.000114301 | L47: 6.825749168 | M47: 5.612303455 | N47: 1.311709993 | O47: 7.645875252 | P47: 14.38004402 | Q47: 5.714285714 | R47: 9.862425263 | S47: 10.96224117 | T47: 3.490342257 | U47: 58.97597977 | V47: -60.39325843
B48: 2011 | C48: =(C22/C21-1)*100 -> 5.477695935 | D48: 1.462097923 | E48: 5.472001776 | F48: 8.126477541 | G48: 21.22015915 | H48: 9.284516176 | I48: 5.766725873 | J48: 5.734289282 | K48: 12.01481677 | L48: 13.90723562 | M48: 6.944142578 | N48: 4.402071563 | O48: 3.862928349 | P48: 16.35663887 | Q48: 39.45945946 | R48: 8.173940611 | S48: 6.406546253 | T48: 14.76751801 | U48: -12.28628231 | V48: 110.6382979
B49: 2012 | C49: =(C23/C22-1)*100 -> 10.52653263 | D49: 7.692876145 | E49: 8.750328861 | F49: 14.21153321 | G49: 23.77826404 | H49: 8.04671625 | I49: 5.779780564 | J49: 7.417728238 | K49: 8.605757118 | L49: 11.78578409 | M49: 0.7214713952 | N49: -2.390078918 | O49: 0.6598680264 | P49: 9.040793826 | Q49: -3.488372093 | R49: -2.579006496 | S49: -7.755791053 | T49: -0.08559201141 | U49: 17.99637353 | V49: -15.48821549
B50: 2013 | C50: =(C24/C23-1)*100 -> -4.025794908 | D50: -2.250737666 | E50: -7.38339462 | F50: -2.297200287 | G50: 4.596346494 | H50: 2.026373161 | I50: 1.307120366 | J50: 1.025324274 | K50: 2.833156926 | L50: 1.847534678 | M50: 1.916868442 | N50: 1.247401247 | O50: 3.337306317 | P50: 0.3033367037 | Q50: 7.228915663 | R50: 16.78114816 | S50: 7.96055307 | T50: 10.4368932 | U50: 70.34191318 | V50: 0.3984063745
B51: 2014 | C51: =(C25/C24-1)*100 -> 6.365790189 | D51: 2.63952264 | E51: 7.590638387 | F51: 9.092578986 | G51: -2.028169014 | H51: 6.817758816 | I51: 2.731997806 | J51: 5.047688921 | K51: 8.533902965 | L51: 10.1230329 | M51: 5.543456741 | N51: 7.894136436 | O51: 8.852364475 | P51: -1.260080645 | Q51: -25.46816479 | R51: 0.9874635068 | S51: 3.220642245 | T51: -5.610859729 | U51: -6.698240866 | V51: 122.8174603
B52: 2015 | C52: =(C26/C25-1)*100 -> 5.849704228 | D52: 13.52848642 | E52: 3.2532168 | F52: 2.576191278 | G52: 5.577918344 | H52: 3.281775657 | I52: 7.207688201 | J52: 0.1140755227 | K52: 3.575163526 | L52: 7.051548535 | M52: 3.592196586 | N52: 6.851342779 | O52: -1.456953642 | P52: 5.104645227 | Q52: 7.035175879 | R52: 2.312728509 | S52: 10.71982483 | T52: -2.958498836 | U52: 6.453952139 | V52: -60.730187
B53: 2016 | C53: =(C27/C26-1)*100 -> -2.183662205 | D53: -1.138622809 | E53: -2.304255819 | F53: -3.326767345 | G53: 1.14379085 | H53: 1.543328034 | I53: 2.264750522 | J53: 2.450991791 | K53: 0.5650497005 | L53: 3.849327703 | M53: 3.014938886 | N53: 0.158321789 | O53: 7.284946237 | P53: 1.894123361 | Q53: 7.042253521 | R53: 9.478101886 | S53: 8.610744891 | T53: 16.09033169 | U53: -5.267938238 | V53: 74.37641723
B54: 2017 | C54: =(C28/C27-1)*100 -> 19.44277905 | D54: 9.542961609 | E54: 8.722021661 | F54: 37.51414988 | G54: 54.9273021 | H54: 3.183838306 | I54: 5.384597547 | J54: 4.163924008 | K54: 3.574546634 | L54: -8.217257175 | M54: -8.393390754 | N54: -5.255878285 | O54: -13.48033074 | P54: -6.339370829 | Q54: -7.894736842 | R54: 5.936159715 | S54: 7.146650482 | T54: -1.373860182 | U54: 17.01821668 | V54: 3.250975293
B55: 2018 | C55: =(C29/C28-1)*100 -> 7.600094484 | D55: 1.796840231 | E55: 4.794793465 | F55: 12.87454725 | G55: 21.34167536 | H55: 6.801010677 | I55: 2.387501375 | J55: 4.663172919 | K55: 8.608689369 | L55: 11.71827256 | M55: 5.449486712 | N55: -0.8550573514 | O55: 10.80220098 | P55: 9.262086514 | Q55: 25.71428571 | R55: 6.674787718 | S55: 3.965163209 | T55: 10.35502959 | U55: 7.537894306 | V55: 11.96473552
B56: 2019 | C56: =(C30/C29-1)*100 -> 18.33598595 | D56: 7.033171212 | E56: 15.17955218 | F56: 30.63010502 | G56: 2.406187339 | H56: 1.473982071 | I56: 5.005372878 | J56: 0.3664261995 | K56: 1.535595889 | L56: -1.672972603 | M56: 0.5459011919 | N56: 3.660075726 | O56: -7.553580763 | P56: 7.778295296 | Q56: 3.03030303 | R56: 6.965809095 | S56: 7.920724648 | T56: 10.73503128 | U56: -1.866666667 | V56: 5.399325084
B57: 2020 | C57: =(C31/C30-1)*100 -> -5.908542807 | D57: 3.13489227 | E57: -3.216813997 | F57: -15.37795891 | G57: 18.90909091 | H57: 6.019428571 | I57: 6.711148407 | J57: 4.644505523 | K57: 7.019699054 | L57: 2.104775151 | M57: -1.791693059 | N57: -2.272727273 | O57: -3.618886062 | P57: 0.9075194468 | Q57: 7.720588235 | R57: 4.439839236 | S57: 6.253944213 | T57: 4.257036215 | U57: -4.406055901 | V57: 24.33297759
A59: 전공·학위 Major field of study · Degree | C59: 인문학 Humanities | H59: 사회과학 Social sciences | M59: 총계 Total | W59: 기타 Others
C60: 계 Total | D60: 박사 Doctoral | E60: 석사 Master's | F60: 학사 Bachelor's | G60: 기타 Others | H60: 계 Total | I60: 박사 Doctoral | J60: 석사 Master's | K60: 학사 Bachelor's | L60: 기타 Others | M60: 계 Total | N60: 박사 Doctoral | O60: 석사 Master's | P60: 학사 Bachelor's | Q60: 기타 Others | W60: 계 Total | X60: 박사 Doctoral | Y60: 석사 Master's | Z60: 학사 Bachelor's | AA60: 기타 Others
A61: 연구원(명) Researchers(Person) | B61: 1995 | M61: =SUM(C6,H6,M6,R6,C61,H61,W61) -> 128315 | N61: =SUM(D6,I6,N6,S6,D61,I61,X61) -> 35105 | O61: =SUM(E6,J6,O6,T6,E61,J61,Y61) -> 44178 | P61: =SUM(F6,K6,P6,U6,F61,K61,Z61) -> 44991 | Q61: =SUM(G6,L6,Q6,V6,G61,L61,AA61) -> 4041 | W61: =SUM(X61:AA61) -> 8948 | X61: 2473 | Y61: 3334 | Z61: 2241 | AA61: 900
B62: 1996 | M62: 132023 | N62: 36106 | O62: 46537 | P62: 45084 | Q62: 4296 | W62: 5473 | X62: 1512 | Y62: 1822 | Z62: 1737 | AA62: 402
B63: 1997 | M63: 138438 | N63: 37859 | O63: 49999 | P63: 45828 | Q63: 4752 | W63: 6570 | X63: 1265 | Y63: 2853 | Z63: 1727 | AA63: 725
B64: 1998 | M64: 129767 | N64: 40607 | O64: 44077 | P64: 40034 | Q64: 5049 | W64: 10370 | X64: 4812 | Y64: 3041 | Z64: 1423 | AA64: 1094
B65: 1999 | M65: 134568 | N65: 42134 | O65: 46231 | P65: 40340 | Q65: 5863 | W65: 5322 | X65: 773 | Y65: 2760 | Z65: 1288 | AA65: 501
B66: 2000 | M66: 159973 | N66: 46146 | O66: 51130 | P66: 54026 | Q66: 8671 | W66: 4354 | X66: 2272 | Y66: 1182 | Z66: 371 | AA66: 529
B67: 2001 | M67: 178937 | N67: 46704 | O67: 57936 | P67: 64156 | Q67: 10141 | W67: 11333 | X67: 3671 | Y67: 2356 | Z67: 2966 | AA67: 2340
B68: 2002 | M68: 189888 | N68: 49667 | O68: 64121 | P68: 67612 | Q68: 8488 | W68: 9044 | X68: 3530 | Y68: 2512 | Z68: 2262 | AA68: 740
B69: 2003 | M69: 198171 | N69: 52595 | O69: 67695 | P69: 69892 | Q69: 7989 | W69: 9145 | X69: 3479 | Y69: 2368 | Z69: 2493 | AA69: 805
B70: 2004 | M70: 209979 | N70: 56572 | O70: 68261 | P70: 77854 | Q70: 7292 | W70: 7716 | X70: 2557 | Y70: 1628 | Z70: 2722 | AA70: 809
B71: 2005 | M71: 234702 | N71: 57942 | O71: 78579 | P71: 87829 | Q71: 10352 | W71: 10353 | X71: 3008 | Y71: 2927 | Z71: 3221 | AA71: 1197
B72: 2006 | M72: 256598 | N72: 60013 | O72: 83380 | P72: 101422 | Q72: 11783 | W72: 11939 | X72: 2863 | Y72: 3151 | Z72: 4428 | AA72: 1497
B73: 2007 | C73: =SUM(D73:G73) -> 14430 | D73: 6989 | E73: 3724 | F73: 3124 | G73: 593 | H73: =SUM(I73:L73) -> 19482 | I73: 11285 | J73: 5734 | K73: 1864 | L73: 599 | M73: =SUM(C18,H18,M18,R18,C73,H73) -> 289098 | N73: =SUM(D18,I18,N18,S18,D73,I73) -> 73506 | O73: =SUM(E18,J18,O18,T18,E73,J73) -> 93050 | P73: =SUM(F18,K18,P18,U18,F73,K73) -> 109653 | Q73: =SUM(G18,L18,Q18,V18,G73,L73) -> 12889
B74: 2008 | C74: 15457 | D74: 7111 | E74: 3870 | F74: 3761 | G74: 715 | H74: 19255 | I74: 11421 | J74: 5116 | K74: 1952 | L74: 766 | M74: 300050 | N74: 73444 | O74: 94418 | P74: 117840 | Q74: 14348
B75: 2009 | C75: 16372 | D75: 7205 | E75: 4209 | F75: 4053 | G75: 905 | H75: 21265 | I75: 11851 | J75: 6137 | K75: 2181 | L75: 1096 | M75: 323175 | N75: 76480 | O75: 103664 | P75: 126286 | Q75: 16745
B76: 2010 | C76: 17568 | D76: 7462 | E76: 4217 | F76: 4742 | G76: 1147 | H76: 22280 | I76: 12594 | J76: 6397 | K76: 2548 | L76: 741 | M76: 345912 | N76: 81442 | O76: 109224 | P76: 138285 | Q76: 16961
B77: 2011 | C77: 19633 | D77: 7850 | E77: 4463 | F77: 6084 | G77: 1236 | H77: 23240 | I77: 12466 | J77: 6959 | K77: 2985 | L77: 830 | M77: 375176 | N77: 84674 | O77: 116131 | P77: 154733 | Q77: 19638
B78: 2012 | C78: 20413 | D78: 7971 | E78: 4098 | F78: 6874 | G78: 1470 | H78: 23961 | I78: 13140 | J78: 6872 | K78: 3053 | L78: 896 | M78: 401724 | N78: 87642 | O78: 122948 | P78: 169162 | Q78: 21972
B79: 2013 | C79: 20834 | D79: 7843 | E79: 3835 | F79: 7501 | G79: 1655 | H79: 25223 | I79: 13611 | J79: 7146 | K79: 3448 | L79: 1018 | M79: 410333 | N79: 88988 | O79: 123106 | P79: 175545 | Q79: 22694
B80: 2014 | C80: 22870 | D80: 8046 | E80: 4136 | F80: 8701 | G80: 1987 | H80: 27185 | I80: 14465 | J80: 7694 | K80: 3850 | L80: 1176 | M80: 437447 | N80: 92155 | O80: 129409 | P80: 190415 | Q80: 25468
B81: 2015 | C81: 23996 | D81: 8030 | E81: 3684 | F81: 10226 | G81: 2056 | H81: 27949 | I81: 14592 | J81: 7504 | K81: 4599 | L81: 1254 | M81: 453262 | N81: 98578 | O81: 129264 | P81: 199019 | Q81: 26401
B82: 2016 | C82: 24734 | D82: 7751 | E82: 3826 | F82: 10838 | G82: 2319 | H82: 28613 | I82: 14454 | J82: 7664 | K82: 5057 | L82: 1438 | M82: 460769 | N82: 99980 | O82: 132595 | P82: 200189 | Q82: 28005
B83: 2017 | C83: 26576 | D83: 8017 | E83: 4846 | F83: 11684 | G83: 2029 | H83: 27198 | I83: 13226 | J83: 7215 | K83: 5837 | L83: 920 | M83: 482796 | N83: 103582 | O83: 137996 | P83: 214752 | Q83: 26466
B84: 2018 | C84: 27931 | D84: 8386 | E84: 4480 | F84: 12919 | G84: 2146 | H84: 27674 | I84: 13278 | J84: 7408 | K84: 5796 | L84: 1192 | M84: 514170 | N84: 105930 | O84: 144399 | P84: 233922 | Q84: 29919
B85: 2019 | C85: =SUM(D85:G85) -> 28854 | D85: 8640 | E85: 4403 | F85: 13761 | G85: 2050 | H85: =SUM(I85:L85) -> 30135 | I85: 14096 | J85: 7998 | K85: 7060 | L85: 981 | M85: 538136 | N85: 111955 | O85: 149529 | P85: 247267 | Q85: 29385
B86: 2020 | C86: 30213 | D86: 8618 | E86: 4716 | F86: 14695 | G86: 2184 | H86: 31497 | I86: 14175 | J86: 8139 | K86: 7981 | L86: 1202 | M86: 558045 | N86: 116784 | O86: 153878 | P86: 256264 | Q86: 31119
A87: 전년대비증가율(%) Percent change from previous year(%) | B87: 1996 | M87: =(M61/M60-1)*100 ->  | W87: =(W61/W60-1)*100 -> 
B88: 1996 | M88: 2.889763473 | N88: 2.851445663 | O88: 5.339761872 | P88: 0.2067080083 | Q88: 6.310319228 | W88: -38.83549397 | X88: -38.85968459 | Y88: -45.35092981 | Z88: -22.48995984 | AA88: -55.33333333
B89: 1997 | M89: 4.859001841 | N89: 4.855148729 | O89: 7.439241894 | P89: 1.650252861 | Q89: 10.61452514 | W89: 20.04385164 | X89: -16.33597884 | Y89: 56.58616905 | Z89: -0.5757052389 | AA89: 80.34825871
B90: 1998 | M90: -6.263453676 | N90: 7.258511847 | O90: -11.84423688 | P90: -12.64292572 | Q90: 6.25 | W90: 57.83866058 | X90: 280.3952569 | Y90: 6.589554855 | Z90: -17.60277939 | AA90: 50.89655172
B91: 1999 | M91: 3.699707938 | N91: 3.760435393 | O91: 4.886902466 | P91: 0.7643503022 | Q91: 16.12200436 | W91: -48.67888139 | X91: -83.93599335 | Y91: -9.240381453 | Z91: -9.486999297 | AA91: -54.2047532
B92: 2000 | M92: 18.8789311 | N92: 9.522001234 | O92: 10.59678571 | P92: 33.9266237 | Q92: 47.89356984 | W92: -18.18865088 | X92: 193.919793 | Y92: -57.17391304 | Z92: -71.19565217 | AA92: 5.588822355
B93: 2001 | M93: 11.85450045 | N93: 1.209205565 | O93: 13.31116761 | P93: 18.75023137 | Q93: 16.95306193 | W93: 160.2893891 | X93: 61.57570423 | Y93: 99.32318105 | Z93: 699.4609164 | AA93: 342.3440454
B94: 2002 | M94: 6.120031072 | N94: 6.344210346 | O94: 10.67557305 | P94: 5.386869506 | Q94: -16.30016764 | W94: -20.19765287 | X94: -3.840915282 | Y94: 6.62139219 | Z94: -23.73567094 | AA94: -68.37606838
B95: 2003 | M95: 4.362044995 | N95: 5.895262448 | O95: 5.573836964 | P95: 3.372182453 | Q95: -5.878887842 | W95: 1.116762494 | X95: -1.444759207 | Y95: -5.732484076 | Z95: 10.21220159 | AA95: 8.783783784
B96: 2004 | M96: 5.958490395 | N96: 7.561555281 | O96: 0.8361031095 | P96: 11.39186173 | Q96: -8.724496182 | W96: -15.62602515 | X96: -26.50186835 | Y96: -31.25 | Z96: 9.185720016 | AA96: 0.4968944099
B97: 2005 | M97: 11.77403455 | N97: 2.42169271 | O97: 15.11551252 | P97: 12.81244381 | Q97: 41.96379594 | W97: 34.17573872 | X97: 17.63785686 | Y97: 79.79115479 | Z97: 18.33210874 | AA97: 47.96044499
B98: 2006 | M98: 9.329277126 | N98: 3.574263919 | O98: 6.109774876 | P98: 15.47666488 | Q98: 13.82341577 | W98: 15.31923114 | X98: -4.820478723 | Y98: 7.652886915 | Z98: 37.47283452 | AA98: 25.06265664
B99: 2007 | M99: 12.66572616 | N99: 22.48346192 | O99: 11.5975054 | P99: 8.115596222 | Q99: 9.386404142
B100: 2008 | C100: =(C74/C73-1)*100 -> 7.117117117 | D100: 1.745600229 | E100: 3.920515575 | F100: 20.39052497 | G100: 20.57335582 | H100: -1.165178113 | I100: 1.205139566 | J100: -10.77781653 | K100: 4.721030043 | L100: 27.87979967 | M100: =(M74/M73-1)*100 -> 3.788334752 | N100: -0.08434685604 | O100: 1.470177324 | P100: 7.466279992 | Q100: 11.31973
B101: 2009 | C101: =(C75/C74-1)*100 -> 5.919648056 | D101: 1.321895655 | E101: 8.759689922 | F101: 7.763892582 | G101: 26.57342657 | H101: 10.43884705 | I101: 3.764994309 | J101: 19.95699765 | K101: 11.73155738 | L101: 43.08093995 | M101: 7.707048825 | N101: 4.133761778 | O101: 9.792624288 | P101: 7.167345553 | Q101: 16.70616114
B102: 2010 | C102: =(C76/C75-1)*100 -> 7.305155143 | D102: 3.566967384 | E102: 0.1900689 | F102: 16.99975327 | G102: 26.74033149 | H102: 4.77310134 | I102: 6.269513121 | J102: 4.236597686 | K102: 16.82714351 | L102: -32.39051095 | M102: 7.035507078 | N102: 6.487970711 | O102: 5.363482019 | P102: 9.501449092 | Q102: 1.289937295
B103: 2011 | C103: =(C77/C76-1)*100 -> 11.75432605 | D103: 5.19967837 | E103: 5.833530946 | F103: 28.30029523 | G103: 7.759372276 | H103: 4.308797127 | I103: -1.016356995 | J103: 8.785368141 | K103: 17.15070644 | L103: 12.01079622 | M103: 8.459955133 | N103: 3.968468358 | O103: 6.323701751 | P103: 11.89427631 | Q103: 15.7832675
B104: 2012 | C104: =(C78/C77-1)*100 -> 3.972902766 | D104: 1.541401274 | E104: -8.178355366 | F104: 12.98487837 | G104: 18.93203883 | H104: 3.102409639 | I104: 5.406706241 | J104: -1.250179624 | K104: 2.278056951 | L104: 7.951807229 | M104: 7.076145596 | N104: 3.50520821 | O104: 5.870094979 | P104: 9.325095487 | Q104: 11.88512068
B105: 2013 | C105: =(C79/C78-1)*100 -> 2.062411209 | D105: -1.605821101 | E105: -6.417764763 | F105: 9.121326738 | G105: 12.58503401 | H105: 5.266892033 | I105: 3.584474886 | J105: 3.987194412 | K105: 12.93809368 | L105: 13.61607143 | M105: 2.143013611 | N105: 1.535793341 | O105: 0.1285096138 | P105: 3.773306062 | Q105: 3.286000364
B106: 2014 | C106: =(C80/C79-1)*100 -> 9.77248728 | D106: 2.588295295 | E106: 7.848761408 | F106: 15.99786695 | G106: 20.06042296 | H106: 7.778614756 | I106: 6.274336933 | J106: 7.668625805 | K106: 11.65893271 | L106: 15.52062868 | M106: 6.607803906 | N106: 3.558906819 | O106: 5.119977905 | P106: 8.470762483 | Q106: 12.2234952
B107: 2015 | C107: =(C81/C80-1)*100 -> 4.923480542 | D107: -0.1988565747 | E107: -10.92843327 | F107: 17.52672107 | G107: 3.472571716 | H107: 2.810373368 | I107: 0.8779813343 | J107: -2.46945672 | K107: 19.45454545 | L107: 6.632653061 | M107: 3.61529511 | N107: 6.969779176 | O107: -0.1120478483 | P107: 4.518551585 | Q107: 3.663420763
B108: 2016 | C108: =(C82/C81-1)*100 -> 3.075512585 | D108: -3.474470735 | E108: 3.854505972 | F108: 5.984744768 | G108: 12.79182879 | H108: 2.375755841 | I108: -0.9457236842 | J108: 2.132196162 | K108: 9.958686671 | L108: 14.67304625 | M108: =(M82/M81-1)*100 -> 1.656216493 | N108: 1.422224026 | O108: 2.576896893 | P108: 0.5878835689 | Q108: 6.075527442
B109: 2017 | C109: =(C83/C82-1)*100 -> 7.447238619 | D109: 3.43181525 | E109: 26.65969681 | F109: 7.805868241 | G109: -12.50539025 | H109: -4.945304582 | I109: -8.495918085 | J109: -5.858559499 | K109: 15.42416452 | L109: -36.02225313 | M109: 4.780486534 | N109: 3.602720544 | O109: 4.073305932 | P109: 7.274625479 | Q109: -5.495447242
B110: 2018 | C110: =(C84/C83-1)*100 -> 5.09858519 | D110: 4.602719222 | E110: -7.552620718 | F110: 10.57001027 | G110: 5.766387383 | H110: 1.750128686 | I110: 0.3931649781 | J110: 2.674982675 | K110: -0.7024156245 | L110: 29.56521739 | M110: 6.498396838 | N110: 2.266803113 | O110: 4.639989565 | P110: 8.926575771 | Q110: 13.04692813
B111: 2019 | C111: =(C85/C84-1)*100 -> 3.304571981 | D111: 3.02885762 | E111: -1.71875 | F111: 6.517532317 | G111: -4.473438956 | H111: 8.892823589 | I111: 6.16056635 | J111: 7.964362851 | K111: 21.80814355 | L111: -17.70134228 | M111: 4.661104304 | N111: 5.687718305 | O111: 3.552656182 | P111: 5.704893084 | Q111: -1.784819011
B112: 2020 | C112: =(C86/C85-1)*100 -> 4.709918902 | D112: -0.2546296296 | E112: 7.108789462 | F112: 6.787297435 | G112: 6.536585366 | H112: 4.519661523 | I112: 0.5604426788 | J112: 1.762940735 | K112: 13.04532578 | L112: 22.52803262 | M112: 3.6996224 | N112: 4.313340181 | O112: 2.908465916 | P112: 3.638576923 | Q112: 5.900969883

Sheet 2-9
A1: 2-9) 연구개발수행기관 및 성별 연구원
A2: R&D performing institutes and researchers by gender
A4: 연도 Year | B4: 연구개발수행기관 R&D performing institutes | J4: 성별 연구원(명) Researchers by gender(Person)
B5: 총계 Total | C5: 공공연구기관 Public research institutes | F5: 대학 Higher educations | I5: 기업체 Business enterprises | J5: 총계 Total
C6: 계 Sub total | D6: 국립·공립·출연(연) Government | E6: 비영리법인 Non-profit | F6: 계 Sub total | G6: 국·공립 National & Pub. | H6: 사립 Private | K6: 여성 Female
A7: 1991 | B7: 2352 | C7: 188 | F7: 221 | G7: 53 | H7: 168 | I7: 1943 | J7: 76252 | K7: 4313
A8: 1992 | B8: 3106 | C8: 212 | F8: 237 | G8: 53 | H8: 184 | I8: 2657 | J8: 88764 | K8: 5764
A9: 1993 | B9: 3318 | C9: 210 | F9: 244 | G9: 51 | H9: 193 | I9: 2864 | J9: 98764 | K9: 6590
A10: 1994 | B10: 2640 | C10: 217 | F10: 244 | G10: 50 | H10: 194 | I10: 2179 | J10: 117446 | K10: 9052
A11: 1995 | B11: 2587 | C11: 178 | F11: 257 | G11: 53 | H11: 204 | I11: 2152 | J11: 128315 | K11: 10235
A12: 1996 | B12: 2856 | C12: 163 | F12: 258 | G12: 53 | H12: 205 | I12: 2435 | J12: 132023 | K12: 11166
A13: 1997 | B13: 2962 | C13: 184 | F13: 271 | G13: 48 | H13: 223 | I13: 2507 | J13: 138434 | K13: 12545
A14: 1998 | B14: 2869 | C14: 183 | F14: 267 | G14: 49 | H14: 218 | I14: 2419 | J14: 129767 | K14: 12317
A15: 1999 | B15: 3059 | C15: 169 | F15: 285 | G15: 56 | H15: 229 | I15: 2605 | J15: 134568 | K15: 13009
A16: 2000 | B16: 4635 | C16: 173 | F16: 268 | G16: 56 | H16: 212 | I16: 4194 | J16: 159973 | K16: 16385
A17: 2001 | B17: 6801 | C17: 188 | F17: 276 | G17: 62 | H17: 214 | I17: 6337 | J17: 178937 | K17: 19930
A18: 2002 | B18: 7210 | C18: 163 | F18: 304 | G18: 61 | H18: 243 | I18: 6743 | J18: 189888 | K18: 22057
A19: 2003 | B19: 7127 | C19: 169 | F19: 310 | G19: 62 | H19: 248 | I19: 6648 | J19: 198171 | K19: 22613
A20: 2004 | B20: 7254 | C20: 159 | F20: 293 | G20: 55 | H20: 238 | I20: 6802 | J20: 209979 | K20: 25198
A21: 2005 | B21: 7761 | C21: 137 | F21: 256 | G21: 51 | H21: 205 | I21: 7368 | J21: 234702 | K21: 30174
A22: 2006 | B22: 9443 | C22: 139 | F22: 268 | G22: 51 | H22: 217 | I22: 9036 | J22: 256598 | K22: 33682
A23: 2007 | B23: 11200 | C23: 188 | F23: 322 | G23: 61 | H23: 261 | I23: 10690 | J23: 289098 | K23: 42977
A24: 2008 | B24: 12822 | C24: 228 | F24: 338 | G24: 65 | H24: 273 | I24: 12256 | J24: 300050 | K24: 46677
A25: 2009 | B25: 15237 | C25: 252 | F25: 359 | G25: 67 | H25: 292 | I25: 14626 | J25: 323175 | K25: 51073
A26: 2010 | B26: 16550 | C26: 261 | D26: 151 | E26: 110 | F26: 352 | G26: 67 | H26: 285 | I26: 15937 | J26: 345912 | K26: 57662
A27: 2011 | B27: 20372 | C27: 268 | D27: 154 | E27: 114 | F27: 350 | G27: 68 | H27: 282 | I27: 19754 | J27: 375176 | K27: 65067
A28: 2012 | B28: 23533 | C28: 272 | D28: 157 | E28: 115 | F28: 344 | G28: 71 | H28: 273 | I28: 22917 | J28: 401724 | K28: 70997
A29: 2013 | B29: 25882 | C29: 326 | D29: 177 | E29: 149 | F29: 371 | G29: 74 | H29: 297 | I29: 25185 | J29: 410333 | K29: 74617
A30: 2014 | B30: 30111 | C30: 348 | D30: 187 | E30: 161 | F30: 371 | G30: 76 | H30: 295 | I30: 29392 | J30: 437447 | K30: 80904
A31: 2015 | B31: 35379 | C31: 372 | D31: 197 | E31: 175 | F31: 365 | G31: 77 | H31: 288 | I31: 34642 | J31: 453262 | K31: 85652
A32: 2016 | B32: 37218 | C32: 372 | D32: 200 | E32: 172 | F32: 368 | G32: 77 | H32: 291 | I32: 36478 | J32: 460769 | K32: 90615
A33: 2017 | B33: 42368 | C33: 375 | D33: 200 | E33: 175 | F33: 364 | G33: 78 | H33: 286 | I33: 41629 | J33: 482796 | K33: 97042
A34: 2018 | B34: 49302 | C34: 401 | D34: 216 | E34: 185 | F34: 365 | G34: 79 | H34: 286 | I34: 48536 | J34: 514170 | K34: 104728
A35: 2019 | B35: 53005 | C35: 419 | D35: 228 | E35: 191 | F35: 368 | G35: 77 | H35: 291 | I35: 52218 | J35: 538136 | K35: 113187
A36: 2020 | B36: 56223 | C36: 415 | D36: 221 | E36: 194 | F36: 363 | G36: 77 | H36: 286 | I36: 55445 | J36: 558045 | K36: 119551
A37: 구성비(%) Percent distribution
A38: 1991 | B38: =B7/$B7*100 -> 100 | C38: 7.993197279 | D38: 0 | E38: 0 | F38: 9.396258503 | G38: 2.253401361 | H38: 7.142857143 | I38: 82.61054422 | J38: =J7/$J7*100 -> 100 | K38: 5.656245082
A39: 1992 | B39: =B8/$B8*100 -> 100 | C39: 6.825499034 | D39: 0 | E39: 0 | F39: 7.630392788 | G39: 1.706374759 | H39: 5.92401803 | I39: 85.54410818 | J39: 100 | K39: 6.493623541
A40: 1993 | B40: =B9/$B9*100 -> 100 | C40: 6.329113924 | D40: 0 | E40: 0 | F40: 7.353827607 | G40: 1.537070524 | H40: 5.816757083 | I40: 86.31705847 | J40: 100 | K40: 6.672471751
A41: 1994 | B41: =B10/$B10*100 -> 100 | C41: 8.21969697 | D41: 0 | E41: 0 | F41: 9.242424242 | G41: 1.893939394 | H41: 7.348484848 | I41: 82.53787879 | J41: 100 | K41: 7.707371899
A42: 1995 | B42: =B11/$B11*100 -> 100 | C42: 6.880556629 | D42: 0 | E42: 0 | F42: 9.934286819 | G42: 2.048705064 | H42: 7.885581755 | I42: 83.18515655 | J42: 100 | K42: 7.97646417
A43: 1996 | B43: =B12/$B12*100 -> 100 | C43: 5.707282913 | D43: 0 | E43: 0 | F43: 9.033613445 | G43: 1.855742297 | H43: 7.177871148 | I43: 85.25910364 | J43: 100 | K43: 8.457617233
A44: 1997 | B44: =B13/$B13*100 -> 100 | C44: 6.212018906 | D44: 0 | E44: 0 | F44: 9.149223498 | G44: 1.620526671 | H44: 7.528696826 | I44: 84.6387576 | J44: 100 | K44: 9.062080125
A45: 1998 | B45: 100 | C45: 6.378529104 | D45: 0 | E45: 0 | F45: 9.306378529 | G45: 1.707912165 | H45: 7.598466365 | I45: 84.31509237 | J45: 100 | K45: 9.491627301
A46: 1999 | B46: 100 | C46: 5.524681268 | D46: 0 | E46: 0 | F46: 9.316770186 | G46: 1.830663616 | H46: 7.486106571 | I46: 85.15854855 | J46: 100 | K46: 9.667231437
A47: 2000 | B47: 100 | C47: 3.732470334 | D47: 0 | E47: 0 | F47: 5.782092772 | G47: 1.20819849 | H47: 4.573894283 | I47: 90.48543689 | J47: 100 | K47: 10.2423534
A48: 2001 | B48: 100 | C48: 2.764299368 | D48: 0 | E48: 0 | F48: 4.058226731 | G48: 0.9116306426 | H48: 3.146596089 | I48: 93.1774739 | J48: 100 | K48: 11.13799829
A49: 2002 | B49: 100 | C49: 2.26074896 | D49: 0 | E49: 0 | F49: 4.216366158 | G49: 0.8460471567 | H49: 3.370319001 | I49: 93.52288488 | J49: 100 | K49: 11.61579457
A50: 2003 | B50: 100 | C50: 2.371264207 | D50: 0 | E50: 0 | F50: 4.349656237 | G50: 0.8699312474 | H50: 3.479724989 | I50: 93.27907956 | J50: 100 | K50: 11.41085224
A51: 2004 | B51: 100 | C51: 2.191894127 | D51: 0 | E51: 0 | F51: 4.039150813 | G51: 0.7582023711 | H51: 3.280948442 | I51: 93.76895506 | J51: 100 | K51: 12.00024764
A52: 2005 | B52: 100 | C52: 1.765236439 | D52: 0 | E52: 0 | F52: 3.298544002 | G52: 0.6571318129 | H52: 2.641412189 | I52: 94.93621956 | J52: 100 | K52: 12.85630289
A53: 2006 | B53: 100 | C53: 1.471989834 | D53: 0 | E53: 0 | F53: 2.838081118 | G53: 0.5400826009 | H53: 2.297998517 | I53: 95.68992905 | J53: 100 | K53: 13.12636887
A54: 2007 | B54: 100 | C54: 1.678571429 | D54: 0 | E54: 0 | F54: 2.875 | G54: 0.5446428571 | H54: 2.330357143 | I54: 95.44642857 | J54: 100 | K54: 14.86589323
A55: 2008 | B55: 100 | C55: 1.77819373 | D55: 0 | E55: 0 | F55: 2.636094213 | G55: 0.5069411948 | H55: 2.129153018 | I55: 95.58571206 | J55: 100 | K55: 15.55640727
A56: 2009 | B56: =B25/$B25*100 -> 100 | C56: 1.653868872 | D56: 0 | E56: 0 | F56: 2.356106845 | G56: 0.4397191048 | H56: 1.91638774 | I56: 95.99002428 | J56: 100 | K56: 15.80351203
A57: 2010 | B57: =B26/$B26*100 -> 100 | C57: 1.577039275 | D57: 0.9123867069 | E57: 0.664652568 | F57: 2.126888218 | G57: 0.4048338369 | H57: 1.722054381 | I57: 96.29607251 | J57: 100 | K57: 16.66955758
A58: 2011 | B58: =B27/$B27*100 -> 100 | C58: 1.315531121 | D58: 0.7559395248 | E58: 0.5595915963 | F58: 1.718044375 | G58: 0.3337914785 | H58: 1.384252896 | I58: 96.9664245 | J58: 100 | K58: 17.34306032
A59: 2012 | B59: =B28/$B28*100 -> 100 | C59: 1.155823737 | D59: 0.6671482599 | E59: 0.488675477 | F59: 1.461777079 | G59: 0.3017039901 | H59: 1.160073089 | I59: 97.38239918 | J59: 100 | K59: 17.67307903
A60: 2013 | B60: =B29/$B29*100 -> 100 | C60: 1.25956263 | D60: 0.6838729619 | E60: 0.5756896685 | F60: 1.433428638 | G60: 0.2859129897 | H60: 1.147515648 | I60: 97.30700873 | J60: 100 | K60: 18.18449893
A61: 2014 | B61: =B30/$B30*100 -> 100 | C61: 1.155723822 | D61: 0.621035502 | E61: 0.5346883199 | F61: 1.232107868 | G61: 0.2523994553 | H61: 0.9797084122 | I61: 97.61216831 | J61: 100 | K61: 18.49458334
A62: 2015 | B62: =B31/$B31*100 -> 100 | C62: 1.051471212 | D62: 0.5568274965 | E62: 0.4946437152 | F62: 1.031685463 | G62: 0.2176432347 | H62: 0.8140422284 | I62: 97.91684333 | J62: 100 | K62: 18.896797
A63: 2016 | B63: =B32/$B32*100 -> 100 | C63: 0.9995163631 | D63: 0.5373743887 | E63: 0.4621419743 | F63: 0.9887688753 | G63: 0.2068891397 | H63: 0.7818797356 | I63: 98.01171476 | J63: 100 | K63: 19.66603656
A64: 2017 | B64: =B33/$B33*100 -> 100 | C64: 0.8851019637 | D64: 0.4720543807 | E64: 0.4130475831 | F64: 0.8591389728 | G64: 0.1841012085 | H64: 0.6750377644 | I64: 98.25575906 | J64: 100 | K64: 20.10000083
A65: 2018 | B65: =B34/$B34*100 -> 100 | C65: 0.8133544278 | D65: 0.4381161008 | E65: 0.375238327 | F65: 0.7403350777 | G65: 0.1602369072 | H65: 0.5800981705 | I65: 98.44631049 | J65: 100 | K65: 20.36836066
A66: 2019 | B66: =B35/$B35*100 -> 100 | C66: 0.7904914631 | D66: 0.4301480992 | E66: 0.3603433638 | F66: 0.6942741251 | G66: 0.1452693142 | H66: 0.5490048109 | I66: 98.51523441 | J66: =J35/$J35*100 -> 100 | K66: 21.0331589
A67: 2020 | B67: 100 | C67: 0.7381320812 | D67: 0.3930775661 | E67: 0.3450545151 | F67: 0.6456432421 | G67: 0.1369546271 | H67: 0.508688615 | I67: 98.61622468 | J67: 100 | K67: 21.42318272
A68: 전년대비 증가율(%) Percent change from previous year
A69: 1991 | B69: =(B7/B6-1)*100 -> 
A70: 1992 | B70: =(B8/B7-1)*100 -> 32.05782313 | C70: 12.76595745 | F70: 7.239819005 | G70: 0 | H70: 9.523809524 | I70: 36.74729799 | J70: 16.40874993 | K70: 33.64247623
A71: 1993 | B71: =(B9/B8-1)*100 -> 6.825499034 | C71: -0.9433962264 | F71: 2.953586498 | G71: -3.773584906 | H71: 4.891304348 | I71: 7.790741438 | J71: 11.26582849 | K71: 14.33032616
A72: 1994 | B72: =(B10/B9-1)*100 -> -20.43399638 | C72: 3.333333333 | F72: 0 | G72: -1.960784314 | H72: 0.518134715 | I72: -23.91759777 | J72: 18.91579928 | K72: 37.35963581
A73: 1995 | B73: =(B11/B10-1)*100 -> -2.007575758 | C73: -17.97235023 | F73: 5.327868852 | G73: 6 | H73: 5.154639175 | I73: -1.239100505 | J73: 9.254465882 | K73: 13.06893504
A74: 1996 | B74: =(B12/B11-1)*100 -> 10.39814457 | C74: -8.426966292 | F74: 0.3891050584 | G74: 0 | H74: 0.4901960784 | I74: 13.15055762 | J74: 2.889763473 | K74: 9.096238398
A75: 1997 | B75: =(B13/B12-1)*100 -> 3.711484594 | C75: 12.88343558 | F75: 5.03875969 | G75: -9.433962264 | H75: 8.780487805 | I75: 2.95687885 | J75: 4.855972065 | K75: 12.34999104
A76: 1998 | B76: =(B14/B13-1)*100 -> -3.139770425 | C76: -0.5434782609 | F76: -1.47601476 | G76: 2.083333333 | H76: -2.242152466 | I76: -3.51017152 | J76: -6.260745193 | K76: -1.817457154
A77: 1999 | B77: =(B15/B14-1)*100 -> 6.622516556 | C77: -7.650273224 | F77: 6.741573034 | G77: 14.28571429 | H77: 5.04587156 | I77: 7.689127739 | J77: 3.699707938 | K77: 5.618251198
A78: 2000 | B78: =(B16/B15-1)*100 -> 51.52010461 | C78: 2.366863905 | F78: -5.964912281 | G78: 0 | H78: -7.423580786 | I78: 60.99808061 | J78: 18.8789311 | K78: 25.95126451
A79: 2001 | B79: =(B17/B16-1)*100 -> 46.73139159 | C79: 8.670520231 | F79: 2.985074627 | G79: 10.71428571 | H79: 0.9433962264 | I79: 51.09680496 | J79: 11.85450045 | K79: 21.63564236
A80: 2002 | B80: =(B18/B17-1)*100 -> 6.013821497 | C80: -13.29787234 | F80: 10.14492754 | G80: -1.612903226 | H80: 13.55140187 | I80: 6.406817106 | J80: 6.120031072 | K80: 10.67235324
A81: 2003 | B81: =(B19/B18-1)*100 -> -1.151178918 | C81: 3.680981595 | F81: 1.973684211 | G81: 1.639344262 | H81: 2.057613169 | I81: -1.408868456 | J81: 4.362044995 | K81: 2.520741715
A82: 2004 | B82: =(B20/B19-1)*100 -> 1.781955942 | C82: -5.917159763 | F82: -5.483870968 | G82: -11.29032258 | H82: -4.032258065 | I82: 2.316486161 | J82: 5.958490395 | K82: 11.43147747
A83: 2005 | B83: =(B21/B20-1)*100 -> 6.989247312 | C83: -13.83647799 | F83: -12.62798635 | G83: -7.272727273 | H83: -13.86554622 | I83: 8.321082035 | J83: 11.77403455 | K83: 19.74759902
A84: 2006 | B84: =(B22/B21-1)*100 -> 21.67246489 | C84: 1.459854015 | F84: 4.6875 | G84: 0 | H84: 5.853658537 | I84: 22.63843648 | J84: 9.329277126 | K84: 11.6259031
A85: 2007 | B85: =(B23/B22-1)*100 -> 18.60637509 | C85: 35.25179856 | F85: 20.14925373 | G85: 19.60784314 | H85: 20.2764977 | I85: 18.30455954 | J85: 12.66572616 | K85: 27.59634226
A86: 2008 | B86: =(B24/B23-1)*100 -> 14.48214286 | C86: 21.27659574 | F86: 4.968944099 | G86: 6.557377049 | H86: 4.597701149 | I86: 14.64920486 | J86: 3.788334752 | K86: 8.609256114
A87: 2009 | B87: =(B25/B24-1)*100 -> 18.83481516 | C87: 10.52631579 | F87: 6.213017751 | G87: 3.076923077 | H87: 6.95970696 | I87: 19.33746736 | J87: 7.707048825 | K87: 9.417914605
A88: 2010 | B88: =(B26/B25-1)*100 -> 8.61718186 | C88: 3.571428571 | F88: -1.949860724 | G88: 0 | H88: -2.397260274 | I88: 8.963489676 | J88: 7.035507078 | K88: 12.9011415
A89: 2011 | B89: =(B27/B26-1)*100 -> 23.09365559 | C89: 2.681992337 | D89: 1.986754967 | E89: 3.636363636 | F89: -0.5681818182 | G89: 1.492537313 | H89: -1.052631579 | I89: 23.95055531 | J89: 8.459955133 | K89: 12.84207971
A90: 2012 | B90: =(B28/B27-1)*100 -> 15.51639505 | C90: 1.492537313 | D90: 1.948051948 | E90: 0.8771929825 | F90: -1.714285714 | G90: 4.411764706 | H90: -3.191489362 | I90: 16.01194695 | J90: 7.076145596 | K90: 9.113682819
A91: 2013 | B91: =(B29/B28-1)*100 -> 9.981727787 | C91: 19.85294118 | D91: 12.7388535 | E91: 29.56521739 | F91: 7.848837209 | G91: 4.225352113 | H91: 8.791208791 | I91: 9.896583322 | J91: 2.143013611 | K91: 5.098806992
A92: 2014 | B92: =(B30/B29-1)*100 -> 16.33954099 | C92: 6.748466258 | D92: 5.649717514 | E92: 8.053691275 | F92: 0 | G92: 2.702702703 | H92: -0.6734006734 | I92: 16.70438753 | J92: 6.607803906 | K92: 8.425693877
A93: 2015 | B93: =(B31/B30-1)*100 -> 17.49526751 | C93: 6.896551724 | D93: 5.347593583 | E93: 8.695652174 | F93: -1.617250674 | G93: 1.315789474 | H93: -2.372881356 | I93: 17.86200327 | J93: 3.61529511 | K93: 5.868683872
A94: 2016 | B94: =(B32/B31-1)*100 -> 5.197998813 | C94: 0 | D94: 1.52284264 | E94: -1.714285714 | F94: 0.8219178082 | G94: 0 | H94: 1.041666667 | I94: 5.299924947 | J94: 1.656216493 | K94: 5.794377247
A95: 2017 | B95: =(B33/B32-1)*100 -> 13.83739051 | C95: 0.8064516129 | D95: 0 | E95: 1.744186047 | F95: -1.086956522 | G95: 1.298701299 | H95: -1.718213058 | I95: 14.12083996 | J95: 4.780486534 | K95: 7.092644706
A96: 2018 | B96: =(B34/B33-1)*100 -> 16.36612538 | C96: 6.933333333 | D96: 8 | E96: 5.714285714 | F96: 0.2747252747 | G96: 1.282051282 | H96: 0 | I96: 16.59179899 | J96: 6.498396838 | K96: 7.92028194
A97: 2019 | B97: =(B35/B34-1)*100 -> 7.510851487 | C97: 4.488778055 | D97: 5.555555556 | E97: 3.243243243 | F97: 0.8219178082 | G97: -2.53164557 | H97: 1.748251748 | I97: 7.586121642 | J97: 4.661104304 | K97: 8.077114048
A98: 2020 | B98: =(B36/B35-1)*100 -> 6.071125366 | C98: -0.9546539379 | D98: -3.070175439 | E98: 1.570680628 | F98: -1.358695652 | G98: 0 | H98: -1.718213058 | I98: 6.17986135 | J98: 3.6996224 | K98: 5.622553827
A100: 주 : 1. 공공연구기관 중 '국립·공립·출연(연)'은 '국·공립 연구기관', '국·공립 병원','정부 출연(연)', '지자체 출연(연)'을 포함하며, 나머지는 모두 '비영리법인'으로 분류
A101: 2. 대학의 '국·공립'은 국·공립대학과 국·공립대학 부속 병원을 포함하며, '사립'은 사립대학과 사립대학 부속병원을 포함

Sheet 2-10
A1: 2-10) 2020년도 연구수행주체별 연구개발비(재원, 비목, 연구개발단계)
A2: R&D expenditure(source of funds, type of costs, type of R&D) by sector of performance, 2020
S4: (단위 : 백만원 Unit : Won, Millions)
A5: 연구수행주체 Sector of performance | B5: 연구개발 수행기관 R&D performing inst. | C5: 총계 Total | D5: 재원 Source of funds | H5: 비목 Type of costs | Q5: 연구개발단계 Type of R&D
D6: 정부 Government | E6: 공공 Other national sources | F6: 민간 Business enterprise | G6: 외국 Rest of the world | H6: 경상비 Current costs | K6: 자본적 지출 Capital costs | Q6: 기초연구 Basic research | R6: 응용연구 Applied research | S6: 개발연구 Experimental development
H7: 소계 Sub total | I7: 인건비 Labour costs | J7: 기타 Other current costs | K7: 소계 Sub total | L7: 기계〮장치 Machinery | M7: 토지 Land | N7: 건물 Buildings | O7: 컴퓨터 소프트웨어 Computer software | P7: 기타지식재산물 Other intellectual properties
A8: 총계 Total | B8: 56223 | C8: 93071686.49 | D8: 21059006.5 | E8: 522221.3346 | F8: 71269260.33 | G8: 221198.3323 | H8: 84516135.4 | I8: 40475587.14 | J8: 44040548.26 | K8: 8555551.092 | L8: 5851287.944 | M8: 600313.82 | N8: 1092484.36 | O8: 557070.363 | P8: 454394.6051 | Q8: 13448098.63 | R8: 20078628.7 | S8: 59544959.16
A9: 공공연구기관 Public research institutes | B9: 415 | C9: 11118558 | D9: 10318438.66 | E9: 184775.0472 | F9: 518083.1589 | G9: 97261.13257 | H9: 8311408 | I9: 3183813 | J9: 5127595 | K9: 2807150 | L9: 2329250 | M9: 4285 | N9: 404017 | O9: 59106 | P9: 10492 | Q9: 2577697 | R9: 2780583 | S9: 5760278
A10: 국·공립 National & Pub. | B10: 79 | C10: 851349 | D10: 851051.3652 | E10: 64.77430556 | F10: 232.8604468 | G10: 0 | H10: 711434 | I10: 262481 | J10: 448953 | K10: 139915 | L10: 61467 | M10: 3020 | N10: 70514 | O10: 2328 | P10: 2586 | Q10: 355130 | R10: 328109 | S10: 168110
A11: 정부출연 Gov't funded | B11: 72 | C11: 8284476 | D11: 7892444.468 | E11: 50666.16964 | F11: 310743.6795 | G11: 30621.68323 | H11: 5903044 | I11: 2342891 | J11: 3560153 | K11: 2381432 | L11: 2058913 | M11: 0 | N11: 263875 | O11: 51530 | P11: 7114 | Q11: 2006178 | R11: 2017694 | S11: 4260604
A12: 지방자치단체출연 Local gov't funded | B12: 56 | C12: 254212 | D12: 251393.4503 | E12: 393.6581868 | F12: 2424.891558 | G12: 0 | H12: 195600 | I12: 65611 | J12: 129989 | K12: 58612 | L12: 24301 | M12: 0 | N12: 33871 | O12: 325 | P12: 115 | Q12: 46553 | R12: 17183 | S12: 190476
A13: 기타비영리 Other non-profit corporation | B13: 177 | C13: 1556050 | D13: 1248009.937 | E13: 101312.3215 | F13: 178832.3023 | G13: 27895.43953 | H13: 1331363 | I13: 494942 | J13: 836421 | K13: 224687 | L13: 182075 | M13: 1265 | N13: 35757 | O13: 4918 | P13: 672 | Q13: 131736 | R13: 381824 | S13: 1042490
A14: 국·공립병원 National & Pub. Hospital | B14: 14 | C14: 17644 | D14: 10638.7048 | E14: 88 | F14: 6917.295205 | G14: 0 | H14: 17436 | I14: 5511 | J14: 11925 | K14: 208 | L14: 208 | M14: 0 | N14: 0 | O14: 0 | P14: 0 | Q14: 10646 | R14: 5334 | S14: 1664
A15: 사립병원 Private hospital | B15: 17 | C15: 154827 | D15: 64900.73663 | E15: 32250.12359 | F15: 18932.12997 | G15: 38744.00981 | H15: 152531 | I15: 12377 | J15: 140154 | K15: 2296 | L15: 2286 | M15: 0 | N15: 0 | O15: 5 | P15: 5 | Q15: 27454 | R15: 30439 | S15: 96934
A16: 대학 Higher educations | B16: 363 | C16: 8353350.45 | D16: 6845905.565 | E16: 309762.8935 | F16: 1150919.392 | G16: 46762.59978 | H16: 7762913.961 | I16: 3220233.655 | J16: 4542680.306 | K16: 590436.4894 | L16: 561406.054 | M16: 34 | N16: 2315 | O16: 15385.43532 | P16: 11296 | Q16: 3132144.798 | R16: 2568755.766 | S16: 2652449.886
A17: 국·공립 National & Pub. | B17: 77 | C17: 3774963.45 | D17: 3163075.563 | E17: 34402.53446 | F17: 555991.3454 | G17: 21494.0071 | H17: 3446590.961 | I17: 1308254.655 | J17: 2138336.306 | K17: 328372.4894 | L17: 315545.054 | M17: 34 | N17: 1729 | O17: 8270.43532 | P17: 2794 | Q17: 1554694.798 | R17: 939262.7664 | S17: 1281005.886
A18: 사립 Private | B18: 286 | C18: 4578387 | D18: 3682830.001 | E18: 275360.3591 | F18: 594928.0469 | G18: 25268.59267 | H18: 4316323 | I18: 1911979 | J18: 2404344 | K18: 262064 | L18: 245861 | M18: 0 | N18: 586 | O18: 7115 | P18: 8502 | Q18: 1577450 | R18: 1629493 | S18: 1371444
A19: 기업체 Business enterprises | B19: 55445 | C19: 73599778.04 | D19: 3894662.271 | E19: 27683.39382 | F19: 69600257.77 | G19: 77174.6 | H19: 68441813.44 | I19: 34071540.48 | J19: 34370272.96 | K19: 5157964.603 | L19: 2960631.89 | M19: 595994.82 | N19: 686152.36 | O19: 482578.9277 | P19: 432606.6051 | Q19: 7738256.831 | R19: 14729289.93 | S19: 51132231.28
A20: 정부투자기관 Gov't investment | B20: 47 | C20: 876019 | D20: 64994 | E20: 387 | F20: 809294 | G20: 1344 | H20: 751597 | I20: 332536 | J20: 419061 | K20: 124422 | L20: 59677 | M20: 1310 | N20: 30991 | O20: 30860 | P20: 1584 | Q20: 80727.96 | R20: 158668.81 | S20: 636622.23
A21: 민간기업 Private companies | B21: 55398 | C21: 72723759.04 | D21: 3829668.271 | E21: 27296.39382 | F21: 68790963.77 | G21: 75830.6 | H21: 67690216.44 | I21: 33739004.48 | J21: 33951211.96 | K21: 5033542.603 | L21: 2900954.89 | M21: 594684.82 | N21: 655161.36 | O21: 451718.9277 | P21: 431022.6051 | Q21: 7657528.871 | R21: 14570621.12 | S21: 50495609.05

Sheet 2-11
A1: 2-11) 2020년도 연구수행주체별 외부로부터 받은 연구개발비 및 외부로 지출한 연구개발비
A2: R&D expenditure received and paid to outside by sector of performance, 2020
S4: (단위 : 백만원 Unit : Won, Millions)
A5: 연구수행주체 Sector of performance 재원 Source of funds | B5: 총계 Total | D5: 국·공립연구기관 (의료기관 포함) Nat'l & Pub. Research inst. | F5: 정부출연 Gov't funded | H5: 지방자치단체출연 Local gov't funded | J5: 비영리법인 Non-profit corporation | L5: 국·공립대학 Nat'l & Pub. univ. | N5: 사립대학 Private univ. | P5: 정부투자기관 Gov't investment | R5: 민간기업체 Private companies
B6: 수취 Received | C6: 지불 Paid | D6: 수취 Received | E6: 지불 Paid | F6: 수취 Received | G6: 지불 Paid | H6: 수취 Received | I6: 지불 Paid | J6: 수취 Received | K6: 지불 Paid | L6: 수취 Received | M6: 지불 Paid | N6: 수취 Received | O6: 지불 Paid | P6: 수취 Received | Q6: 지불 Paid | R6: 수취 Received | S6: 지불 Paid
A7: 총계 Total | B7: 25098977.85 | C7: 5410074.254 | D7: 732391 | E7: 110693 | F7: 8465285 | G7: 611321 | H7: 251756 | I7: 23209 | J7: 1859982 | K7: 268159 | L7: 3686406.166 | M7: 99130.7159 | N7: 4508123 | O7: 128772 | P7: 97236 | Q7: 132076 | R7: 5497798.685 | S7: 4036713.538
A8: 정부·지방자치단체 Gov't · Local gov't | B8: 21306080.73 | C8: 771328.0969 | D8: 724818 | E8: 44030 | F8: 8056922 | G8: 183897 | H8: 248646 | I8: 4917 | J8: 1539760 | K8: 52476 | L8: 3056474.457 | M8: 36191.53305 | N8: 3784798 | O8: 44292 | P8: 64994 | Q8: 32675 | R8: 3829668.271 | S8: 372849.5638
A9: 중앙행정기관 Central gov't | B9: 18065822.67 | C9: 0 | D9: 526015 | E9: 0 | F9: 7722325 | G9: 0 | H9: 98190 | I9: 0 | J9: 1383190 | K9: 0 | L9: 2621333.438 | M9: 0 | N9: 3259081 | O9: 0 | P9: 62576 | Q9: 0 | R9: 2393112.23 | S9: 0
A10: 지방자치단체 Local gov't | B10: 924840.3167 | C10: 0 | D10: 49998 | E10: 0 | F10: 123697 | G10: 0 | H10: 142420 | I10: 0 | J10: 133240 | K10: 0 | L10: 130907.6364 | M10: 0 | N10: 204123 | O10: 0 | P10: 2072 | Q10: 0 | R10: 138382.6803 | S10: 0
A11: 국·공립대학교 Nat'l & Pub. univ. | B11: 27418.68411 | C11: 392399.6466 | D11: 189 | E11: 29963 | F11: 1173 | G11: 122081 | H11: 109 | I11: 2427 | J11: 939 | K11: 17937 | L11: 6150 | M11: 22370.93305 | N11: 5345 | O11: 19285 | P11: 0 | Q11: 14256 | R11: 13513.68411 | S11: 164079.7135
A12: 정부출연연구기관 Gov't funded | B12: 1980668.927 | C12: 250801.2203 | D12: 4324 | E12: 8648 | F12: 193094 | G12: 45012 | H12: 1851 | I12: 1748 | J12: 19696 | K12: 21708 | L12: 273137.383 | M12: 12040.6 | N12: 281596 | O12: 15759 | P12: 346 | Q12: 9053 | R12: 1206624.543 | S12: 136832.6203
A13: 지방자치단체출연연구기관 Local gov't funded | B13: 71620.77353 | C13: 35003.63 | D13: 68 | E13: 161 | F13: 1027 | G13: 8403 | H13: 3251 | I13: 569 | J13: 784 | K13: 2781 | L13: 10418 | M13: 530 | N13: 10669 | O13: 2145 | P13: 0 | Q13: 409 | R13: 45403.77353 | S13: 20005.63
A14: 국·공립연구기관(의료기관 포함) Nat'l & Pub. Research inst. | B14: 235709.36 | C14: 93123.6 | D14: 144224 | E14: 5258 | F14: 15606 | G14: 8401 | H14: 2825 | I14: 173 | J14: 1911 | K14: 10050 | L14: 14528 | M14: 1250 | N14: 23984 | O14: 7103 | P14: 0 | Q14: 8957 | R14: 32631.36 | S14: 51931.6
A15: 공공 Public | B15: 225408.0997 | C15: 622312.2201 | D15: 153 | E15: 38826 | F15: 55639 | G15: 135772 | H15: 449 | I15: 3137 | J15: 23038 | K15: 66518 | L15: 36004.70587 | M15: 22905.6963 | N15: 82441 | O15: 38079 | P15: 387 | Q15: 15385 | R15: 27296.39382 | S15: 301689.5238
A16: 사립대학(교) Private univ. | B16: 38306.25 | C16: 362757.7563 | D16: 66 | E16: 25712 | F16: 2111 | G16: 89373 | H16: 0 | I16: 1827 | J16: 819 | K16: 33552 | L16: 2831 | M16: 18050.6963 | N16: 26046 | O16: 32503 | P16: 0 | Q16: 11770 | R16: 6433.25 | S16: 149970.06
A17: 비영리 법인 Non-profit corporation | B17: 187101.8497 | C17: 259554.4638 | D17: 87 | E17: 13114 | F17: 53528 | G17: 46399 | H17: 449 | I17: 1310 | J17: 22219 | K17: 32966 | L17: 33173.70587 | M17: 4855 | N17: 56395 | O17: 5576 | P17: 387 | Q17: 3615 | R17: 20863.14382 | S17: 151719.4638
A18: 민간 Business enterprises | B18: 3327752.14 | C18: 2412886.257 | D18: 7420 | E18: 25930 | F18: 320729 | G18: 278085 | H18: 2661 | I18: 15130 | J18: 214334 | K18: 135134 | L18: 571902.7204 | M18: 27188.48659 | N18: 615191 | O18: 43748 | P18: 30511 | Q18: 81940 | R18: 1565003.42 | S18: 1805730.77
A19: 민간기업체 Private companies | B19: 3190332.66 | C19: 2396764.927 | D19: 7420 | E19: 25930 | F19: 285764 | G19: 275716 | H19: 2339 | I19: 15130 | J19: 206848 | K19: 133667 | L19: 526003.7204 | M19: 27124.48659 | N19: 588955 | O19: 43593 | P19: 30511 | Q19: 74936 | R19: 1542491.94 | S19: 1800668.44
A20: 정부투자〮재투자기관 Gov't investment | B20: 137419.48 | C20: 16121.33 | D20: 0 | E20: 0 | F20: 34965 | G20: 2369 | H20: 322 | I20: 0 | J20: 7486 | K20: 1467 | L20: 45899 | M20: 64 | N20: 26236 | O20: 155 | P20: 0 | Q20: 7004 | R20: 22511.48 | S20: 5062.33
A21: 외국 Rest of the world | B21: 239736.8828 | C21: 1603547.68 | D21: 0 | E21: 1907 | F21: 31995 | G21: 13567 | H21: 0 | I21: 25 | J21: 82850 | K21: 14031 | L21: 22024.28277 | M21: 12844.99996 | N21: 25693 | O21: 2653 | P21: 1344 | Q21: 2076 | R21: 75830.6 | S21: 1556443.68
A23: 주 : 1. 연구수행주체 중 '국·공립연구기관(의료기관 포함)'은 '국·공립연구기관'과 '국·공립병원'의 합
A24: 2. 연구수행주체 중 '비영리 법인'는 '기타 비영리'와 '사립병원'의 합

Sheet 2-12
A1: 2-12) 2020년도 연구수행주체별 연구개발인력, 연구원(전공, 학위), 연구원 1인당 연구개발비
A2: R&D personnel, researchers(major field of study, degree) and R&D expenditure per researcher by sector of performance, 2020
Q4: (단위 : 명, 백만원 Unit : Headcount, Won, Millions)
A5: 연구수행주체 Sector of performance | B5: 연구개발인력 R&D personnel | F5: 전공별 연구원 Researchers by major field of study | L5: 학위별 연구원 Researchers by degree | P5: 연구개발비 R&D expenditures
B6: 총계 Total | C6: 연구원 Researchers | D6: 연구보조원 Other R&D personnel | F6: 이학 Natural sciences | G6: 공학 Engineering & technology | H6: 의〮약보건학 Medical & health sciences | I6: 농업과학 Agricultural sciences | J6: 인문학 Humanities | K6: 사회과학 Social sciences | L6: 박사 Doctoral | M6: 석사 Master's | N6: 학사 Bachelor's | O6: 기타 Others | P6: 계 Total | Q6: 연구원1인당 (1,000 won) Per researcher
D7: 연구지원·기능 Technicians and equivalent staff | E7: 연구행정·기타 Other supporting staff
A8: 총계 Total | B8: 747288 | C8: 558045 | D8: 128805 | E8: 60438 | F8: 81152 | G8: 371068 | H8: 33262 | I8: 10853 | J8: 30213 | K8: 31497 | L8: 116784 | M8: 153878 | N8: 256264 | O8: 31119 | P8: 93071686.49 | Q8: =IFERROR(P8*1000/C8,"-") -> 166781.6869
A9: 공공연구기관 Public research institutes | B9: 64134 | C9: 41005 | D9: 13236 | E9: 9893 | F9: 8001 | G9: 21650 | H9: 2095 | I9: 2583 | J9: 813 | K9: 5863 | L9: 20867 | M9: 14666 | N9: 5137 | O9: 335 | P9: 11118558 | Q9: =IFERROR(P9*1000/C9,"-") -> 271151.2742
A10: 국·공립 National & Pub. | B10: 12823 | C10: 5982 | D10: 5267 | E10: 1574 | F10: 1829 | G10: 1149 | H10: 333 | I10: 2119 | J10: 326 | K10: 226 | L10: 2890 | M10: 2310 | N10: 757 | O10: 25 | P10: 851349 | Q10: 142318.4554
A11: 정부출연 Gov't funded | B11: 33940 | C11: 22898 | D11: 4968 | E11: 6074 | F11: 4296 | G11: 13924 | H11: 453 | I11: 230 | J11: 177 | K11: 3818 | L11: 14024 | M11: 7518 | N11: 1318 | O11: 38 | P11: 8284476 | Q11: 361799.1091
A12: 지방자치단체출연 Local gov't funded | B12: 2494 | C12: 1556 | D12: 467 | E12: 471 | F12: 196 | G12: 673 | H12: 44 | I12: 79 | J12: 79 | K12: 485 | L12: 843 | M12: 522 | N12: 188 | O12: 3 | P12: 254212 | Q12: 163375.3213
A13: 기타비영리 Other non-profit corporation | B13: 12951 | C13: 9537 | D13: 1743 | E13: 1671 | F13: 1486 | G13: 5839 | H13: 556 | I13: 132 | J13: 230 | K13: 1294 | L13: 2635 | M13: 4011 | N13: 2645 | O13: 246 | P13: 1556050 | Q13: 163159.2744
A14: 국·공립병원 National & Pub. hospital | B14: 418 | C14: 386 | D14: 13 | E14: 19 | F14: 16 | G14: 11 | H14: 328 | I14: 3 | J14: 1 | K14: 27 | L14: 150 | M14: 150 | N14: 85 | O14: 1 | P14: 17644 | Q14: 45709.84456
A15: 사립병원 Private hospital | B15: 1508 | C15: 646 | D15: 778 | E15: 84 | F15: 178 | G15: 54 | H15: 381 | I15: 20 | J15: 0 | K15: 13 | L15: 325 | M15: 155 | N15: 144 | O15: 22 | P15: 154827 | Q15: 239670.2786
A16: 대학 Higher educations | B16: 207025 | C16: 115924 | D16: 57868 | E16: 33233 | F16: 16974 | G16: 41489 | H16: 24803 | I16: 4489 | J16: 11543 | K16: 16626 | L16: 66114 | M16: 38997 | N16: 9101 | O16: 1712 | P16: 8353350.45 | Q16: 72058.85279
A17: 국·공립 National & Pub. | B17: 86621 | C17: 46831 | D17: 22853 | E17: 16937 | F17: 7563 | G17: 18284 | H17: 8942 | I17: 3493 | J17: 3524 | K17: 5025 | L17: 25513 | M17: 16176 | N17: 4622 | O17: 520 | P17: 3774963.45 | Q17: 80608.21785
A18: 사립 Private | B18: 120404 | C18: 69093 | D18: 35015 | E18: 16296 | F18: 9411 | G18: 23205 | H18: 15861 | I18: 996 | J18: 8019 | K18: 11601 | L18: 40601 | M18: 22821 | N18: 4479 | O18: 1192 | P18: 4578387 | Q18: 66264.12227
A19: 기업체 Business enterprises | B19: 476129 | C19: 401116 | D19: 57701 | E19: 17312 | F19: 56177 | G19: 307929 | H19: 6364 | I19: 3781 | J19: 17857 | K19: 9008 | L19: 29803 | M19: 100215 | N19: 242026 | O19: 29072 | P19: 73599778.04 | Q19: 183487.5149
A20: 정부투자기관 Gov't investment | B20: 3743 | C20: 2679 | D20: 435 | E20: 629 | F20: 265 | G20: 2187 | H20: 48 | I20: 44 | J20: 19 | K20: 116 | L20: 857 | M20: 1140 | N20: 657 | O20: 25 | P20: 876019 | Q20: 326994.7742
A21: 민간기업 Private companies | B21: 472386 | C21: 398437 | D21: 57266 | E21: 16683 | F21: 55912 | G21: 305742 | H21: 6316 | I21: 3737 | J21: 17838 | K21: 8892 | L21: 28946 | M21: 99075 | N21: 241369 | O21: 29047 | P21: 72723759.04 | Q21: 182522.6047

Sheet 2-13
A1: 2-13) 2020년도 전공별 연구원(학위·성)
A2: Researchers(degree & gender) by major field of study, 2020
A5: 전공 Major field of study | B5: 계 Total | E5: 박사 Doctoral | H5: 석사 Master's | K5: 학사 Bachelor's | N5: 기타 Others
C6: 남성 Male | D6: 여성 Female | F6: 남성 Male | G6: 여성 Female | I6: 남성 Male | J6: 여성 Female | L6: 남성 Male | M6: 여성 Female | O6: 남성 Male | P6: 여성 Female
A7: 총계 Total | B7: 558045 | C7: 438494 | D7: 119551 | E7: 116784 | F7: 90167 | G7: 26617 | H7: 153878 | I7: 115748 | J7: 38130 | K7: 256264 | L7: 206325 | M7: 49939 | N7: 31119 | O7: 26254 | P7: 4865
A8: 이학 Natural sciences | B8: 81152 | C8: 56836 | D8: 24316 | E8: 20200 | F8: 15234 | G8: 4966 | H8: 26386 | I8: 16458 | J8: 9928 | K8: 30315 | L8: 21657 | M8: 8658 | N8: 4251 | O8: 3487 | P8: 764
A9: 공학 Engineering & technology | B9: 371068 | C9: 324668 | D9: 46400 | E9: 52138 | F9: 46910 | G9: 5228 | H9: 100893 | I9: 86547 | J9: 14346 | K9: 196013 | L9: 171023 | M9: 24990 | N9: 22024 | O9: 20188 | P9: 1836
A10: 의〮약〮보건학 Medical & health sciences | B10: 33262 | C10: 16995 | D10: 16267 | E10: 16837 | F10: 10052 | G10: 6785 | H10: 10335 | I10: 4496 | J10: 5839 | K10: 4925 | L10: 1747 | M10: 3178 | N10: 1165 | O10: 700 | P10: 465
A11: 농업과학 Agricultural sciences | B11: 10853 | C11: 7512 | D11: 3341 | E11: 4816 | F11: 3676 | G11: 1140 | H11: 3409 | I11: 2035 | J11: 1374 | K11: 2335 | L11: 1579 | M11: 756 | N11: 293 | O11: 222 | P11: 71
A12: 인문학 Humanities | B12: 30213 | C12: 13933 | D12: 16280 | E12: 8618 | F12: 4975 | G12: 3643 | H12: 4716 | I12: 2192 | J12: 2524 | K12: 14695 | L12: 5833 | M12: 8862 | N12: 2184 | O12: 933 | P12: 1251
A13: 사회과학 Social sciences | B13: 31497 | C13: 18550 | D13: 12947 | E13: 14175 | F13: 9320 | G13: 4855 | H13: 8139 | I13: 4020 | J13: 4119 | K13: 7981 | L13: 4486 | M13: 3495 | N13: 1202 | O13: 724 | P13: 478
A14: 공공연구기관 Public research institutes | B14: 41005 | C14: 29926 | D14: 11079 | E14: 20867 | F14: 16794 | G14: 4073 | H14: 14666 | I14: 9767 | J14: 4899 | K14: 5137 | L14: 3137 | M14: 2000 | N14: 335 | O14: 228 | P14: 107
A15: 이학 Natural sciences | B15: 8001 | C15: 5356 | D15: 2645 | E15: 4977 | F15: 3772 | G15: 1205 | H15: 2211 | I15: 1167 | J15: 1044 | K15: 778 | L15: 393 | M15: 385 | N15: 35 | O15: 24 | P15: 11
A16: 공학 Engineering & technology | B16: 21650 | C16: 18338 | D16: 3312 | E16: 10555 | F16: 9508 | G16: 1047 | H16: 8243 | I16: 6663 | J16: 1580 | K16: 2642 | L16: 2012 | M16: 630 | N16: 210 | O16: 155 | P16: 55
A17: 의〮약〮보건학 Medical & health sciences | B17: 2095 | C17: 935 | D17: 1160 | E17: 945 | F17: 513 | G17: 432 | H17: 683 | I17: 295 | J17: 388 | K17: 435 | L17: 116 | M17: 319 | N17: 32 | O17: 11 | P17: 21
A18: 농업과학 Agricultural sciences | B18: 2583 | C18: 1766 | D18: 817 | E18: 1529 | F18: 1166 | G18: 363 | H18: 764 | I18: 426 | J18: 338 | K18: 286 | L18: 170 | M18: 116 | N18: 4 | O18: 4 | P18: 0
A19: 인문학 Humanities | B19: 813 | C19: 340 | D19: 473 | E19: 141 | F19: 64 | G19: 77 | H19: 335 | I19: 142 | J19: 193 | K19: 321 | L19: 125 | M19: 196 | N19: 16 | O19: 9 | P19: 7
A20: 사회과학 Social sciences | B20: 5863 | C20: 3191 | D20: 2672 | E20: 2720 | F20: 1771 | G20: 949 | H20: 2430 | I20: 1074 | J20: 1356 | K20: 675 | L20: 321 | M20: 354 | N20: 38 | O20: 25 | P20: 13
A21: 대학 Higher educations | B21: 115924 | C21: 77519 | D21: 38405 | E21: 66114 | F21: 47259 | G21: 18855 | H21: 38997 | I21: 24420 | J21: 14577 | K21: 9101 | L21: 4707 | M21: 4394 | N21: 1712 | O21: 1133 | P21: 579
A22: 이학 Natural sciences | B22: 16974 | C22: 11657 | D22: 5317 | E22: 8807 | F22: 6531 | G22: 2276 | H22: 6320 | I22: 3920 | J22: 2400 | K22: 1575 | L22: 997 | M22: 578 | N22: 272 | O22: 209 | P22: 63
A23: 공학 Engineering & technology | B23: 41489 | C23: 34191 | D23: 7298 | E23: 20281 | F23: 17661 | G23: 2620 | H23: 17551 | I23: 13830 | J23: 3721 | K23: 3194 | L23: 2349 | M23: 845 | N23: 463 | O23: 351 | P23: 112
A24: 의〮약〮보건학 Medical & health sciences | B24: 24803 | C24: 12817 | D24: 11986 | E24: 14876 | F24: 8919 | G24: 5957 | H24: 6975 | I24: 2916 | J24: 4059 | K24: 2423 | L24: 676 | M24: 1747 | N24: 529 | O24: 306 | P24: 223
A25: 농업과학 Agricultural sciences | B25: 4489 | C25: 3034 | D25: 1455 | E25: 2798 | F25: 2106 | G25: 692 | H25: 1446 | I25: 810 | J25: 636 | K25: 195 | L25: 92 | M25: 103 | N25: 50 | O25: 26 | P25: 24
A26: 인문학 Humanities | B26: 11543 | C26: 6208 | D26: 5335 | E26: 8235 | F26: 4754 | G26: 3481 | H26: 2734 | I26: 1235 | J26: 1499 | K26: 382 | L26: 110 | M26: 272 | N26: 192 | O26: 109 | P26: 83
A27: 사회과학 Social sciences | B27: 16626 | C27: 9612 | D27: 7014 | E27: 11117 | F27: 7288 | G27: 3829 | H27: 3971 | I27: 1709 | J27: 2262 | K27: 1332 | L27: 483 | M27: 849 | N27: 206 | O27: 132 | P27: 74
A28: 기업체 Business enterprises | B28: 401116 | C28: 331049 | D28: 70067 | E28: 29803 | F28: 26114 | G28: 3689 | H28: 100215 | I28: 81561 | J28: 18654 | K28: 242026 | L28: 198481 | M28: 43545 | N28: 29072 | O28: 24893 | P28: 4179
A29: 이학 Natural sciences | B29: 56177 | C29: 39823 | D29: 16354 | E29: 6416 | F29: 4931 | G29: 1485 | H29: 17855 | I29: 11371 | J29: 6484 | K29: 27962 | L29: 20267 | M29: 7695 | N29: 3944 | O29: 3254 | P29: 690
A30: 공학 Engineering & technology | B30: 307929 | C30: 272139 | D30: 35790 | E30: 21302 | F30: 19741 | G30: 1561 | H30: 75099 | I30: 66054 | J30: 9045 | K30: 190177 | L30: 166662 | M30: 23515 | N30: 21351 | O30: 19682 | P30: 1669
A31: 의〮약〮보건학 Medical & health sciences | B31: 6364 | C31: 3243 | D31: 3121 | E31: 1016 | F31: 620 | G31: 396 | H31: 2677 | I31: 1285 | J31: 1392 | K31: 2067 | L31: 955 | M31: 1112 | N31: 604 | O31: 383 | P31: 221
A32: 농업과학 Agricultural sciences | B32: 3781 | C32: 2712 | D32: 1069 | E32: 489 | F32: 404 | G32: 85 | H32: 1199 | I32: 799 | J32: 400 | K32: 1854 | L32: 1317 | M32: 537 | N32: 239 | O32: 192 | P32: 47
A33: 인문학 Humanities | B33: 17857 | C33: 7385 | D33: 10472 | E33: 242 | F33: 157 | G33: 85 | H33: 1647 | I33: 815 | J33: 832 | K33: 13992 | L33: 5598 | M33: 8394 | N33: 1976 | O33: 815 | P33: 1161
A34: 사회과학 Social sciences | B34: 9008 | C34: 5747 | D34: 3261 | E34: 338 | F34: 261 | G34: 77 | H34: 1738 | I34: 1237 | J34: 501 | K34: 5974 | L34: 3682 | M34: 2292 | N34: 958 | O34: 567 | P34: 391

Sheet 2-14
A1: 2-14) 2020년도 연구수행주체별 연구원(연령·성)
A2: Researchers(age & gender) by sector of performance, 2020
M4: (단위 : 명 Unit : Headcount)
A5: 연구수행주체 Sector of performance | B5: 계 Total | D5: 29세이하 ~ 29years | F5: 30∼39세 30∼39 years | H5: 40∼49세 40∼49 years | J5: 50∼59세 50∼59 years | L5: 60세이상 60~ years
C6: 여성 Female | E6: 여성 Female | G6: 여성 Female | I6: 여성 Female | K6: 여성 Female | M6: 여성 Female
A7: 총계 Total | B7: 558045 | C7: 119551 | D7: 81386 | E7: 32182 | F7: 214991 | G7: 52367 | H7: 168434 | I7: 25001 | J7: 72534 | K7: 8399 | L7: 20700 | M7: 1602
A8: 공공연구기관 Public research institutes | B8: 41005 | C8: 11079 | D8: 3833 | E8: 2035 | F8: 14893 | G8: 5174 | H8: 12643 | I8: 2858 | J8: 7798 | K8: 930 | L8: 1838 | M8: 82
A9: 국·공립 National & Pub. | B9: 5982 | C9: 2286 | D9: 481 | E9: 322 | F9: 2096 | G9: 985 | H9: 1884 | I9: 694 | J9: 1449 | K9: 280 | L9: 72 | M9: 5
A10: 정부출연 Gov't funded | B10: 22898 | C10: 5071 | D10: 1755 | E10: 831 | F10: 7879 | G10: 2397 | H10: 6969 | I10: 1297 | J10: 4799 | K10: 483 | L10: 1496 | M10: 63
A11: 지방자치단체출연 Local gov't funded | B11: 1556 | C11: 531 | D11: 140 | E11: 81 | F11: 548 | G11: 226 | H11: 558 | I11: 173 | J11: 286 | K11: 51 | L11: 24 | M11: 0
A12: 기타비영리 Other non-profit corporation | B12: 9537 | C12: 2649 | D12: 1391 | E12: 749 | F12: 3981 | G12: 1308 | H12: 2834 | I12: 512 | J12: 1110 | K12: 71 | L12: 221 | M12: 9
A13: 국·공립병원 National & Pub. hospital | B13: 386 | C13: 200 | D13: 24 | E13: 16 | F13: 149 | G13: 93 | H13: 142 | I13: 69 | J13: 55 | K13: 20 | L13: 16 | M13: 2
A14: 사립병원 Private hospital | B14: 646 | C14: 342 | D14: 42 | E14: 36 | F14: 240 | G14: 165 | H14: 256 | I14: 113 | J14: 99 | K14: 25 | L14: 9 | M14: 3
A15: 대학 Higher educations | B15: 115924 | C15: 38405 | D15: 19982 | E15: 7476 | F15: 36805 | G15: 14149 | H15: 27274 | I15: 10233 | J15: 21754 | K15: 5284 | L15: 10109 | M15: 1263
A16: 국·공립 National & Pub. | B16: 46831 | C16: 14394 | D16: 8956 | E16: 3043 | F16: 15628 | G16: 5641 | H16: 10444 | I16: 3589 | J16: 7627 | K16: 1707 | L16: 4176 | M16: 414
A17: 사립 Private | B17: 69093 | C17: 24011 | D17: 11026 | E17: 4433 | F17: 21177 | G17: 8508 | H17: 16830 | I17: 6644 | J17: 14127 | K17: 3577 | L17: 5933 | M17: 849
A18: 기업체 Business enterprises | B18: 401116 | C18: 70067 | D18: 57571 | E18: 22671 | F18: 163293 | G18: 33044 | H18: 128517 | I18: 11910 | J18: 42982 | K18: 2185 | L18: 8753 | M18: 257
A19: 정부투자기관 Gov't investment | B19: 2679 | C19: 364 | D19: 150 | E19: 55 | F19: 828 | G19: 167 | H19: 860 | I19: 93 | J19: 814 | K19: 49 | L19: 27 | M19: 0
A20: 민간기업 Private companies | B20: 398437 | C20: 69703 | D20: 57421 | E20: 22616 | F20: 162465 | G20: 32877 | H20: 127657 | I20: 11817 | J20: 42168 | K20: 2136 | L20: 8726 | M20: 257

Sheet 2-15
A1: 2-15) 2020년도 연구수행주체별 연구개발인력(총수, 상근상당)
A2: R&D personnel(Headcount, FTE) by sector of performance, 2020
J4: (단위 : 명 Unit : Headcount, FTE)
A5: 연구수행주체 Sector of performance | B5: 연구원 Researchers | E5: 연구보조원 Other R&D personnel
E6: 연구지원·기능 Technicians and equivalent staff | H6: 연구행정·기타 Other supporting staff
B7: 총수(A) Headcount(A) | C7: 상근상당(B) FTE(B) | D7: B/A | E7: 총수(A) Headcount(A) | F7: 상근상당(B) FTE(B) | G7: B/A | H7: 총수(A) Headcount(A) | I7: 상근상당(B) FTE(B) | J7: B/A
A8: 총계 Total | B8: 558045 | C8: 446738.854 | D8: 0.8005427053 | E8: 128805 | F8: 73286.60228 | G8: 0.5689732718 | H8: 60438 | I8: 25409.37059 | J8: 0.4204204406
A9: 공공연구기관 Public research institutes | B9: 41005 | C9: 36285.37094 | D9: 0.8849011325 | E9: 13236 | F9: 9630.752531 | G9: 0.7276180516 | H9: 9893 | I9: 4950.016692 | J9: 0.5003554728
A10: 국·공립 National & Pub. | B10: 5982 | C10: 4617.217231 | D10: 0.7718517604 | E10: 5267 | F10: 3497.336 | G10: 0.6640091133 | H10: 1574 | I10: 462.5242308 | J10: 0.2938527514
A11: 정부출연 Gov't funded | B11: 22898 | C11: 21800.649 | D11: 0.9520765569 | E11: 4968 | F11: 4048.9868 | G11: 0.8150134461 | H11: 6074 | I11: 3509.577 | J11: 0.5778032598
A12: 지방자치단체출연 Local gov't funded | B12: 1556 | C12: 1336.768 | D12: 0.8591053985 | E12: 467 | F12: 321.576 | G12: 0.6885995717 | H12: 471 | I12: 165.562 | J12: 0.3515116773
A13: 기타비영리 Other non-profit corporation | B13: 9537 | C13: 7896.194706 | D13: 0.8279537282 | E13: 1743 | F13: 1352.453731 | G13: 0.7759344414 | H13: 1671 | I13: 766.7034615 | J13: 0.4588291212
A14: 국·공립병원 National & Pub. hospital | B14: 386 | C14: 136.7 | D14: 0.3541450777 | E14: 13 | F14: 7.9 | G14: 0.6076923077 | H14: 19 | I14: 13.8 | J14: 0.7263157895
A15: 사립병원 Private hospital | B15: 646 | C15: 497.842 | D15: 0.7706532508 | E15: 778 | F15: 402.5 | G15: 0.5173521851 | H15: 84 | I15: 31.85 | J15: 0.3791666667
A16: 대학 Higher educations | B16: 115924 | C16: 44894.65304 | D16: 0.387276604 | E16: 57868 | F16: 20489.82975 | G16: 0.3540787611 | H16: 33233 | I16: 12289.0639 | J16: 0.3697849697
A17: 국·공립 National & Pub. | B17: 46831 | C17: 18311.87254 | D17: 0.3910203187 | E17: 22853 | F17: 7691.831598 | G17: 0.3365786373 | H17: 16937 | I17: 6263.911982 | J17: 0.3698359793
A18: 사립 Private | B18: 69093 | C18: 26582.7805 | D18: 0.384739127 | E18: 35015 | F18: 12797.99815 | G18: 0.3655004469 | H18: 16296 | I18: 6025.151915 | J18: 0.3697319535
A19: 기업체 Business enterprises | B19: 401116 | C19: 365558.83 | D19: 0.9113543962 | E19: 57701 | F19: 43166.02 | G19: 0.7480982999 | H19: 17312 | I19: 8170.29 | J19: 0.4719437384
A20: 정부투자기관 Gov't investment | B20: 2679 | C20: 2070.55 | D20: 0.7728816723 | E20: 435 | F20: 287.77 | G20: 0.6615402299 | H20: 629 | I20: 252.88 | J20: 0.4020349762
A21: 민간기업 Private companies | B21: 398437 | C21: 363488.28 | D21: 0.9122854554 | E21: 57266 | F21: 42878.25 | G21: 0.7487558062 | H21: 16683 | I21: 7917.41 | J21: 0.4745795121

Sheet 2-16
A1: 2-16) 2020년도 연구수행주체별 연구개발비(지입, 부담, 지출, 사용)
A2: R&D expenditure(internal and external funds) by sector of performance, 2020
G4: (단위 : 백만원 Unit : Won, Millions)
A5: 연구수행주체 Sector of performance | B5: 연구개발 수행기관 R&D performing inst. | C5: 외부로부터 받은 연구개발비(A) Received outside | D5: 자체부담 연구개발비(B) Financed by own funds | E5: 외부로 지출한 연구개발비(C) Paid outside | F5: 자체사용 연구개발비 (D=A+B-C) Intramural expenditure | G5: 자체부담대비 자체사용비율 D/B(%)
A6: 총계 Total | B6: 56223 | C6: 25098977.85 | D6: 73382782.89 | E6: 5410074.254 | F6: 93071686.49 | G6: 126.8304128
A7: 공공연구기관 Public research institutes | B7: 415 | C7: 11309414 | D7: 822526 | E7: 1013382 | F7: 11118558 | G7: 1351.757634
A8: 국·공립 National & Pub. | B8: 79 | C8: 711076 | D8: 246136 | E8: 105863 | F8: 851349 | G8: 345.885608
A9: 정부출연 Gov't funded | B9: 72 | C9: 8465285 | D9: 430512 | E9: 611321 | F9: 8284476 | G9: 1924.331029
A10: 지방자치단체출연 Local gov't funded | B10: 56 | C10: 251756 | D10: 25665 | E10: 23209 | F10: 254212 | G10: 990.5006819
A11: 기타비영리 Other non-profit corporation | B11: 177 | C11: 1717925 | D11: 85577 | E11: 247452 | F11: 1556050 | G11: 1818.303984
A12: 국·공립병원 National & Pub. hospital | B12: 14 | C12: 21315 | D12: 1159 | E12: 4830 | F12: 17644 | G12: 1522.346851
A13: 사립병원 Private hospital | B13: 17 | C13: 142057 | D13: 33477 | E13: 20707 | F13: 154827 | G13: 462.4876781
A14: 대학 Higher educations | B14: 363 | C14: 8194529.166 | D14: 386724.0001 | E14: 227902.7159 | F14: 8353350.45 | G14: 2160.028974
A15: 국·공립 National & Pub. | B15: 77 | C15: 3686406.166 | D15: 187688.0001 | E15: 99130.7159 | F15: 3774963.45 | G15: 2011.297179
A16: 사립 Private | B16: 286 | C16: 4508123 | D16: 199036 | E16: 128772 | F16: 4578387 | G16: 2300.280854
A17: 기업체 Business enterprises | B17: 55445 | C17: 5595034.685 | D17: 72173532.89 | E17: 4168789.538 | F17: 73599778.04 | G17: 101.9761332
A18: 정부투자기관 Gov't investment | B18: 47 | C18: 97236 | D18: 910859 | E18: 132076 | F18: 876019 | G18: 96.17503917
A19: 민간기업 Private companies | B19: 55398 | C19: 5497798.685 | D19: 71262673.89 | E19: 4036713.538 | F19: 72723759.04 | G19: 102.0502811

Sheet 2-17-1
A1: 2-17-1) 2020년도 연구수행주체별 연구개발비(경제사회목적)
A2: R&D expenditure(socio-economic objectives) by sector of performance, 2020
O4: (단위 : 백만원 Unit : Won, Millions)
A5: 연구수행주체 Sector of performance | B5: 연구개발비 R&D expenditure | C5: 경제사회목적 Socio-economic objectives
C7: 지구개발 및 탐사 Exploration and exploitation of the Earth | D7: 환경 Environment | E7: 우주개발 및 탐사 Exploration and exploitation of space | F7: 교통, 전기통신 등 기반시설 Transport, telecommunication and other infrastructures | G7: 에너지 Energy | H7: 산업생산 및 기술 Industrial production and technology | I7: 건강 Health | J7: 농업 Agriculture | K7: 교육 Education | L7: 문화, 휴양, 종교 및 매스미디어 Culture, recreation religion and mass media | M7: 정치·사회시스템, 조직 및 과정 Political and social systems, structures and processes | N7: 지식의 전반적 진보 General advancement of knowledge | O7: 국방 Defence
A9: 총계 Total | B9: 93071686.49 | C9: 573909.2934 | D9: 2221068.82 | E9: 1049510.866 | F9: 9196366.403 | G9: 5081461.058 | H9: 55482881.21 | I9: 8009878.311 | J9: 1763719.045 | K9: 829961.2966 | L9: 1119041.057 | M9: 853092.2793 | N9: 3008957.751 | O9: 3881839.098
A10: 공공연구기관 Public research institutes | B10: 11118558 | C10: 348579.485 | D10: 402177.9545 | E10: 638490.42 | F10: 609645.2001 | G10: 1015095.193 | H10: 2611687.451 | I10: 983749.2033 | J10: 750721.922 | K10: 195067.5919 | L10: 66134.047 | M10: 431304.515 | N10: 692035.128 | O10: 2373869.89
A11: 국·공립 National & Pub. | B11: 851349 | C11: 14677.945 | D11: 131618.629 | E11: 0 | F11: 742.525 | G11: 1155.378 | H11: 32393.623 | I11: 31923.534 | J11: 587864.708 | K11: 1712.063 | L11: 26808.69 | M11: 12039.875 | N11: 10412.03 | O11: 0
A12: 정부출연 Gov't funded | B12: 8284476 | C12: 325889.281 | D12: 194103.8141 | E12: 623799.72 | F12: 527109.489 | G12: 897599.2446 | H12: 1531851.686 | I12: 566519.6876 | J12: 129529.8427 | K12: 147318.836 | L12: 4858.388 | M12: 343518.954 | N12: 626598.923 | O12: 2365778.134
A13: 지방자치단체출연 Local gov't funded | B13: 254212 | C13: 307.224 | D13: 10876.217 | E13: 0 | F13: 13123.777 | G13: 35553.223 | H13: 97985.365 | I13: 16040.676 | J13: 23000.404 | K13: 14009.116 | L13: 11431.365 | M13: 26683.843 | N13: 5200.79 | O13: 0
A14: 기타비영리 Other non-profit corporation | B14: 1556050 | C14: 7705.035 | D14: 65579.29446 | E14: 14690.7 | F14: 68669.40906 | G14: 80787.34697 | H14: 949280.8368 | I14: 197076.2457 | J14: 10326.96728 | K14: 32027.57686 | L14: 23035.604 | M14: 49061.843 | N14: 49717.38505 | O14: 8091.755855
A15: 국·공립병원 National & Pub. hospital | B15: 17644 | C15: 0 | D15: 0 | E15: 0 | F15: 0 | G15: 0 | H15: 0 | I15: 17538 | J15: 0 | K15: 0 | L15: 0 | M15: 0 | N15: 106 | O15: 0
A16: 사립병원 Private hospital | B16: 154827 | C16: 0 | D16: 0 | E16: 0 | F16: 0 | G16: 0 | H16: 175.94 | I16: 154651.06 | J16: 0 | K16: 0 | L16: 0 | M16: 0 | N16: 0 | O16: 0
A17: 대학 Higher educations | B17: 8353350.45 | C17: 141573.3824 | D17: 322105.4807 | E17: 120079.1307 | F17: 651650.7892 | G17: 555357.148 | H17: 1687660.878 | I17: 2289427.789 | J17: 367779.0513 | K17: 355053.3091 | L17: 245106.2423 | M17: 299920.1288 | N17: 1248635.935 | O17: 69001.18535
A18: 국·공립 National & Pub. | B18: 3774963.45 | C18: 84918.00412 | D18: 166228.9592 | E18: 71860.23741 | F18: 246747.0855 | G18: 364997.3612 | H18: 790673.8288 | I18: 934530.6644 | J18: 293893.2046 | K18: 155185.7833 | L18: 85857.48592 | M18: 110377.3034 | N18: 434543.1119 | O18: 35150.42066
A19: 사립 Private | B19: 4578387 | C19: 56655.37827 | D19: 155876.5214 | E19: 48218.8933 | F19: 404903.7037 | G19: 190359.7868 | H19: 896987.0496 | I19: 1354897.124 | J19: 73885.84667 | K19: 199867.5258 | L19: 159248.7564 | M19: 189542.8254 | N19: 814092.8235 | O19: 33850.76469
A20: 기업체 Business enterprises | B20: 73599778.04 | C20: 83756.426 | D20: 1496785.385 | E20: 290941.315 | F20: 7935070.414 | G20: 3511008.717 | H20: 51183532.88 | I20: 4736701.319 | J20: 645218.0716 | K20: 279840.3956 | L20: 807800.7673 | M20: 121867.6355 | N20: 1068286.687 | O20: 1438968.023
A21: 정부투자기관 Gov't investment | B21: 876019 | C21: 5574.34 | D21: 56819.26 | E21: 2177 | F21: 88144.31 | G21: 632216.77 | H21: 16435.9 | I21: 34096.03 | J21: 16588.55 | K21: 569.84 | L21: 1468 | M21: 19343.6 | N21: 2585.4 | O21: 0
A22: 민간기업 Private companies | B22: 72723759.04 | C22: 78182.086 | D22: 1439966.125 | E22: 288764.315 | F22: 7846926.104 | G22: 2878791.947 | H22: 51167096.98 | I22: 4702605.289 | J22: 628629.5216 | K22: 279270.5556 | L22: 806332.7673 | M22: 102524.0355 | N22: 1065701.287 | O22: 1438968.023

Sheet 2-17-2
A1: 2-17-2) 2020년도 연구수행주체별 연구개발비 비율(경제사회목적)
A2: R&D expenditure rate(socio-economic objectives) by sector of performance, 2020
O4: (단위 : % Unit : %)
A5: 연구수행주체 Sector of performance | B5: 연구개발비 (백만원) R&D expenditure (Won, Millions) | C5: 경제사회목적 Socio-economic objectives
C7: 지구개발 및 탐사 Exploration and exploitation of the Earth | D7: 환경 Environment | E7: 우주개발 및 탐사 Exploration and exploitation of space | F7: 교통, 전기통신 등 기반시설 Transport, telecommunication and other infrastructures | G7: 에너지 Energy | H7: 산업생산 및 기술 Industrial production and technology | I7: 건강 Health | J7: 농업 Agriculture | K7: 교육 Education | L7: 문화, 휴양, 종교 및 매스미디어 Culture, recreation religion and mass media | M7: 정치·사회시스템, 조직 및 과정 Political and social systems, structures and processes | N7: 지식의 전반적 진보 General advancement of knowledge | O7: 국방 Defence
A9: 총계 Total | B9: ='2-17-1'!B9 -> 93071686.49 | C9: ='2-17-1'!C9/'2-17-2'!$B9*100 -> 0.6166314537 | D9: ='2-17-1'!D9/'2-17-2'!$B9*100 -> 2.386406548 | E9: ='2-17-1'!E9/'2-17-2'!$B9*100 -> 1.127637099 | F9: ='2-17-1'!F9/'2-17-2'!$B9*100 -> 9.880949567 | G9: ='2-17-1'!G9/'2-17-2'!$B9*100 -> 5.45972814 | H9: ='2-17-1'!H9/'2-17-2'!$B9*100 -> 59.61306097 | I9: ='2-17-1'!I9/'2-17-2'!$B9*100 -> 8.606138572 | J9: ='2-17-1'!J9/'2-17-2'!$B9*100 -> 1.895011374 | K9: ='2-17-1'!K9/'2-17-2'!$B9*100 -> 0.8917441253 | L9: ='2-17-1'!L9/'2-17-2'!$B9*100 -> 1.20234316 | M9: ='2-17-1'!M9/'2-17-2'!$B9*100 -> 0.9165969926 | N9: ='2-17-1'!N9/'2-17-2'!$B9*100 -> 3.232946414 | O9: ='2-17-1'!O9/'2-17-2'!$B9*100 -> 4.170805585
A10: 공공연구기관 Public research institutes | B10: ='2-17-1'!B10 -> 11118558 | C10: ='2-17-1'!C10/'2-17-2'!$B10*100 -> 3.135114149 | D10: ='2-17-1'!D10/'2-17-2'!$B10*100 -> 3.617177286 | E10: ='2-17-1'!E10/'2-17-2'!$B10*100 -> 5.742564998 | F10: ='2-17-1'!F10/'2-17-2'!$B10*100 -> 5.483131896 | G10: ='2-17-1'!G10/'2-17-2'!$B10*100 -> 9.1297378 | H10: ='2-17-1'!H10/'2-17-2'!$B10*100 -> 23.48944396 | I10: ='2-17-1'!I10/'2-17-2'!$B10*100 -> 8.847812849 | J10: ='2-17-1'!J10/'2-17-2'!$B10*100 -> 6.751971991 | K10: ='2-17-1'!K10/'2-17-2'!$B10*100 -> 1.754432471 | L10: ='2-17-1'!L10/'2-17-2'!$B10*100 -> 0.5948077709 | M10: ='2-17-1'!M10/'2-17-2'!$B10*100 -> 3.879140757 | N10: ='2-17-1'!N10/'2-17-2'!$B10*100 -> 6.224144606 | O10: ='2-17-1'!O10/'2-17-2'!$B10*100 -> 21.35051946
A11: 국·공립 National & Pub. | B11: ='2-17-1'!B11 -> 851349 | C11: ='2-17-1'!C11/'2-17-2'!$B11*100 -> 1.724080841 | D11: ='2-17-1'!D11/'2-17-2'!$B11*100 -> 15.46000865 | E11: ='2-17-1'!E11/'2-17-2'!$B11*100 -> 0 | F11: ='2-17-1'!F11/'2-17-2'!$B11*100 -> 0.08721746311 | G11: ='2-17-1'!G11/'2-17-2'!$B11*100 -> 0.1357114415 | H11: ='2-17-1'!H11/'2-17-2'!$B11*100 -> 3.80497575 | I11: ='2-17-1'!I11/'2-17-2'!$B11*100 -> 3.749758795 | J11: ='2-17-1'!J11/'2-17-2'!$B11*100 -> 69.05096594 | K11: ='2-17-1'!K11/'2-17-2'!$B11*100 -> 0.2011000189 | L11: ='2-17-1'!L11/'2-17-2'!$B11*100 -> 3.148965935 | M11: ='2-17-1'!M11/'2-17-2'!$B11*100 -> 1.414211446 | N11: ='2-17-1'!N11/'2-17-2'!$B11*100 -> 1.223003727 | O11: ='2-17-1'!O11/'2-17-2'!$B11*100 -> 0
A12: 정부출연 Gov't funded | B12: ='2-17-1'!B12 -> 8284476 | C12: ='2-17-1'!C12/'2-17-2'!$B12*100 -> 3.933734385 | D12: ='2-17-1'!D12/'2-17-2'!$B12*100 -> 2.342982393 | E12: ='2-17-1'!E12/'2-17-2'!$B12*100 -> 7.529742617 | F12: ='2-17-1'!F12/'2-17-2'!$B12*100 -> 6.362617129 | G12: ='2-17-1'!G12/'2-17-2'!$B12*100 -> 10.83471356 | H12: ='2-17-1'!H12/'2-17-2'!$B12*100 -> 18.49062857 | I12: ='2-17-1'!I12/'2-17-2'!$B12*100 -> 6.838328551 | J12: ='2-17-1'!J12/'2-17-2'!$B12*100 -> 1.563524871 | K12: ='2-17-1'!K12/'2-17-2'!$B12*100 -> 1.778251708 | L12: ='2-17-1'!L12/'2-17-2'!$B12*100 -> 0.05864448156 | M12: ='2-17-1'!M12/'2-17-2'!$B12*100 -> 4.146538103 | N12: ='2-17-1'!N12/'2-17-2'!$B12*100 -> 7.563531152 | O12: ='2-17-1'!O12/'2-17-2'!$B12*100 -> 28.55676248
A13: 지방자치단체출연 Local gov't funded | B13: ='2-17-1'!B13 -> 254212 | C13: ='2-17-1'!C13/'2-17-2'!$B13*100 -> 0.1208534609 | D13: ='2-17-1'!D13/'2-17-2'!$B13*100 -> 4.278404245 | E13: ='2-17-1'!E13/'2-17-2'!$B13*100 -> 0 | F13: ='2-17-1'!F13/'2-17-2'!$B13*100 -> 5.162532453 | G13: ='2-17-1'!G13/'2-17-2'!$B13*100 -> 13.98565882 | H13: ='2-17-1'!H13/'2-17-2'!$B13*100 -> 38.54474415 | I13: ='2-17-1'!I13/'2-17-2'!$B13*100 -> 6.309960191 | J13: ='2-17-1'!J13/'2-17-2'!$B13*100 -> 9.04772552 | K13: ='2-17-1'!K13/'2-17-2'!$B13*100 -> 5.510800434 | L13: ='2-17-1'!L13/'2-17-2'!$B13*100 -> 4.49678418 | M13: ='2-17-1'!M13/'2-17-2'!$B13*100 -> 10.49668898 | N13: ='2-17-1'!N13/'2-17-2'!$B13*100 -> 2.04584756 | O13: ='2-17-1'!O13/'2-17-2'!$B13*100 -> 0
A14: 기타비영리 Other non-profit corporation | B14: ='2-17-1'!B14 -> 1556050 | C14: ='2-17-1'!C14/'2-17-2'!$B14*100 -> 0.4951662864 | D14: ='2-17-1'!D14/'2-17-2'!$B14*100 -> 4.214472186 | E14: ='2-17-1'!E14/'2-17-2'!$B14*100 -> 0.9441020533 | F14: ='2-17-1'!F14/'2-17-2'!$B14*100 -> 4.413059288 | G14: ='2-17-1'!G14/'2-17-2'!$B14*100 -> 5.191822047 | H14: ='2-17-1'!H14/'2-17-2'!$B14*100 -> 61.00580552 | I14: ='2-17-1'!I14/'2-17-2'!$B14*100 -> 12.66516151 | J14: ='2-17-1'!J14/'2-17-2'!$B14*100 -> 0.6636655172 | K14: ='2-17-1'!K14/'2-17-2'!$B14*100 -> 2.058261422 | L14: ='2-17-1'!L14/'2-17-2'!$B14*100 -> 1.480389705 | M14: ='2-17-1'!M14/'2-17-2'!$B14*100 -> 3.152973426 | N14: ='2-17-1'!N14/'2-17-2'!$B14*100 -> 3.195102024 | O14: ='2-17-1'!O14/'2-17-2'!$B14*100 -> 0.5200190132
A15: 국·공립병원 National & Pub. hospital | B15: ='2-17-1'!B15 -> 17644 | C15: ='2-17-1'!C15/'2-17-2'!$B15*100 -> 0 | D15: ='2-17-1'!D15/'2-17-2'!$B15*100 -> 0 | E15: ='2-17-1'!E15/'2-17-2'!$B15*100 -> 0 | F15: ='2-17-1'!F15/'2-17-2'!$B15*100 -> 0 | G15: ='2-17-1'!G15/'2-17-2'!$B15*100 -> 0 | H15: ='2-17-1'!H15/'2-17-2'!$B15*100 -> 0 | I15: ='2-17-1'!I15/'2-17-2'!$B15*100 -> 99.3992292 | J15: ='2-17-1'!J15/'2-17-2'!$B15*100 -> 0 | K15: ='2-17-1'!K15/'2-17-2'!$B15*100 -> 0 | L15: ='2-17-1'!L15/'2-17-2'!$B15*100 -> 0 | M15: ='2-17-1'!M15/'2-17-2'!$B15*100 -> 0 | N15: ='2-17-1'!N15/'2-17-2'!$B15*100 -> 0.6007708003 | O15: ='2-17-1'!O15/'2-17-2'!$B15*100 -> 0
A16: 사립병원 Private hospital | B16: ='2-17-1'!B16 -> 154827 | C16: ='2-17-1'!C16/'2-17-2'!$B16*100 -> 0 | D16: ='2-17-1'!D16/'2-17-2'!$B16*100 -> 0 | E16: ='2-17-1'!E16/'2-17-2'!$B16*100 -> 0 | F16: ='2-17-1'!F16/'2-17-2'!$B16*100 -> 0 | G16: ='2-17-1'!G16/'2-17-2'!$B16*100 -> 0 | H16: ='2-17-1'!H16/'2-17-2'!$B16*100 -> 0.1136365104 | I16: ='2-17-1'!I16/'2-17-2'!$B16*100 -> 99.88636349 | J16: ='2-17-1'!J16/'2-17-2'!$B16*100 -> 0 | K16: ='2-17-1'!K16/'2-17-2'!$B16*100 -> 0 | L16: ='2-17-1'!L16/'2-17-2'!$B16*100 -> 0 | M16: ='2-17-1'!M16/'2-17-2'!$B16*100 -> 0 | N16: ='2-17-1'!N16/'2-17-2'!$B16*100 -> 0 | O16: ='2-17-1'!O16/'2-17-2'!$B16*100 -> 0
A17: 대학 Higher educations | B17: ='2-17-1'!B17 -> 8353350.45 | C17: ='2-17-1'!C17/'2-17-2'!$B17*100 -> 1.694809565 | D17: ='2-17-1'!D17/'2-17-2'!$B17*100 -> 3.856003439 | E17: ='2-17-1'!E17/'2-17-2'!$B17*100 -> 1.437496624 | F17: ='2-17-1'!F17/'2-17-2'!$B17*100 -> 7.801070876 | G17: ='2-17-1'!G17/'2-17-2'!$B17*100 -> 6.648316162 | H17: ='2-17-1'!H17/'2-17-2'!$B17*100 -> 20.20340088 | I17: ='2-17-1'!I17/'2-17-2'!$B17*100 -> 27.40729965 | J17: ='2-17-1'!J17/'2-17-2'!$B17*100 -> 4.402772917 | K17: ='2-17-1'!K17/'2-17-2'!$B17*100 -> 4.250429947 | L17: ='2-17-1'!L17/'2-17-2'!$B17*100 -> 2.934226737 | M17: ='2-17-1'!M17/'2-17-2'!$B17*100 -> 3.59041717 | N17: ='2-17-1'!N17/'2-17-2'!$B17*100 -> 14.94772598 | O17: ='2-17-1'!O17/'2-17-2'!$B17*100 -> 0.8260300553
A18: 국·공립 National & Pub. | B18: ='2-17-1'!B18 -> 3774963.45 | C18: ='2-17-1'!C18/'2-17-2'!$B18*100 -> 2.249505333 | D18: ='2-17-1'!D18/'2-17-2'!$B18*100 -> 4.403458773 | E18: ='2-17-1'!E18/'2-17-2'!$B18*100 -> 1.903600879 | F18: ='2-17-1'!F18/'2-17-2'!$B18*100 -> 6.53640992 | G18: ='2-17-1'!G18/'2-17-2'!$B18*100 -> 9.668897884 | H18: ='2-17-1'!H18/'2-17-2'!$B18*100 -> 20.94520488 | I18: ='2-17-1'!I18/'2-17-2'!$B18*100 -> 24.75601888 | J18: ='2-17-1'!J18/'2-17-2'!$B18*100 -> 7.785325831 | K18: ='2-17-1'!K18/'2-17-2'!$B18*100 -> 4.110921478 | L18: ='2-17-1'!L18/'2-17-2'!$B18*100 -> 2.274392509 | M18: ='2-17-1'!M18/'2-17-2'!$B18*100 -> 2.923930387 | N18: ='2-17-1'!N18/'2-17-2'!$B18*100 -> 11.51118726 | O18: ='2-17-1'!O18/'2-17-2'!$B18*100 -> 0.9311459864
A19: 사립 Private | B19: ='2-17-1'!B19 -> 4578387 | C19: ='2-17-1'!C19/'2-17-2'!$B19*100 -> 1.237452803 | D19: ='2-17-1'!D19/'2-17-2'!$B19*100 -> 3.404616548 | E19: ='2-17-1'!E19/'2-17-2'!$B19*100 -> 1.053185179 | F19: ='2-17-1'!F19/'2-17-2'!$B19*100 -> 8.843806863 | G19: ='2-17-1'!G19/'2-17-2'!$B19*100 -> 4.157791529 | H19: ='2-17-1'!H19/'2-17-2'!$B19*100 -> 19.59176997 | I19: ='2-17-1'!I19/'2-17-2'!$B19*100 -> 29.59332893 | J19: ='2-17-1'!J19/'2-17-2'!$B19*100 -> 1.613796446 | K19: ='2-17-1'!K19/'2-17-2'!$B19*100 -> 4.36545722 | L19: ='2-17-1'!L19/'2-17-2'!$B19*100 -> 3.478272073 | M19: ='2-17-1'!M19/'2-17-2'!$B19*100 -> 4.139947659 | N19: ='2-17-1'!N19/'2-17-2'!$B19*100 -> 17.78121473 | O19: ='2-17-1'!O19/'2-17-2'!$B19*100 -> 0.7393600561
A20: 기업체 Business enterprises | B20: ='2-17-1'!B20 -> 73599778.04 | C20: ='2-17-1'!C20/'2-17-2'!$B20*100 -> 0.113799835 | D20: ='2-17-1'!D20/'2-17-2'!$B20*100 -> 2.033681928 | E20: ='2-17-1'!E20/'2-17-2'!$B20*100 -> 0.3953018919 | F20: ='2-17-1'!F20/'2-17-2'!$B20*100 -> 10.78137819 | G20: ='2-17-1'!G20/'2-17-2'!$B20*100 -> 4.770406666 | H20: ='2-17-1'!H20/'2-17-2'!$B20*100 -> 69.54305332 | I20: ='2-17-1'!I20/'2-17-2'!$B20*100 -> 6.435754896 | J20: ='2-17-1'!J20/'2-17-2'!$B20*100 -> 0.8766576324 | K20: ='2-17-1'!K20/'2-17-2'!$B20*100 -> 0.3802190755 | L20: ='2-17-1'!L20/'2-17-2'!$B20*100 -> 1.0975587 | M20: ='2-17-1'!M20/'2-17-2'!$B20*100 -> 0.1655815258 | N20: ='2-17-1'!N20/'2-17-2'!$B20*100 -> 1.451480855 | O20: ='2-17-1'!O20/'2-17-2'!$B20*100 -> 1.955125493
A21: 정부투자기관 Gov't investment | B21: ='2-17-1'!B21 -> 876019 | C21: ='2-17-1'!C21/'2-17-2'!$B21*100 -> 0.636326381 | D21: ='2-17-1'!D21/'2-17-2'!$B21*100 -> 6.486076215 | E21: ='2-17-1'!E21/'2-17-2'!$B21*100 -> 0.2485105917 | F21: ='2-17-1'!F21/'2-17-2'!$B21*100 -> 10.06191761 | G21: ='2-17-1'!G21/'2-17-2'!$B21*100 -> 72.16929884 | H21: ='2-17-1'!H21/'2-17-2'!$B21*100 -> 1.876203598 | I21: ='2-17-1'!I21/'2-17-2'!$B21*100 -> 3.892156449 | J21: ='2-17-1'!J21/'2-17-2'!$B21*100 -> 1.893629019 | K21: ='2-17-1'!K21/'2-17-2'!$B21*100 -> 0.06504881743 | L21: ='2-17-1'!L21/'2-17-2'!$B21*100 -> 0.167576274 | M21: ='2-17-1'!M21/'2-17-2'!$B21*100 -> 2.208125623 | N21: ='2-17-1'!N21/'2-17-2'!$B21*100 -> 0.2951305851 | O21: ='2-17-1'!O21/'2-17-2'!$B21*100 -> 0
A22: 민간기업 Private companies | B22: ='2-17-1'!B22 -> 72723759.04 | C22: ='2-17-1'!C22/'2-17-2'!$B22*100 -> 0.1075055622 | D22: ='2-17-1'!D22/'2-17-2'!$B22*100 -> 1.980049085 | E22: ='2-17-1'!E22/'2-17-2'!$B22*100 -> 0.3970701169 | F22: ='2-17-1'!F22/'2-17-2'!$B22*100 -> 10.79004469 | G22: ='2-17-1'!G22/'2-17-2'!$B22*100 -> 3.958530177 | H22: ='2-17-1'!H22/'2-17-2'!$B22*100 -> 70.35815758 | I22: ='2-17-1'!I22/'2-17-2'!$B22*100 -> 6.466394684 | J22: ='2-17-1'!J22/'2-17-2'!$B22*100 -> 0.8644073545 | K22: ='2-17-1'!K22/'2-17-2'!$B22*100 -> 0.384015567 | L22: ='2-17-1'!L22/'2-17-2'!$B22*100 -> 1.108761123 | M22: ='2-17-1'!M22/'2-17-2'!$B22*100 -> 0.1409773599 | N22: ='2-17-1'!N22/'2-17-2'!$B22*100 -> 1.465410069 | O22: ='2-17-1'!O22/'2-17-2'!$B22*100 -> 1.978676628

Sheet 2-18-1
A1: 2-18-1) 2020년도 연구수행주체별 연구개발비(지역)
A2: R&D expenditure(region) by sector of performance, 2020
S4: (단위 : 백만원 Unit : Won, Millions)
A5: 연구수행주체 Sector of performance | B5: 연구개발비 R&D expenditure | C5: 지역 Region
C6: 서울 Seoul | D6: 부산 Busan | E6: 대구 Daegu | F6: 인천 Incheon | G6: 광주 Gwangju | H6: 대전 Daejeon | I6: 울산 Ulsan | J6: 세종 Sejong | K6: 경기 Gyeonggi | L6: 강원 Gangwon | M6: 충북 Chungbuk | N6: 충남 Chungnam | O6: 전북 Jeonbuk | P6: 전남 Jeonnam | Q6: 경북 Gyeongbuk | R6: 경남 Gyeongnam | S6: 제주 Jeju
A7: 총계 Total | B7: 93071686.49 | C7: 14431991.45 | D7: 1696834 | E7: 1364106.57 | F7: 2936628.96 | G7: 953946.02 | H7: 8873691.423 | I7: 1067196.37 | J7: 611543.8 | K7: 47045126.66 | L7: 555089.83 | M7: 1921719.68 | N7: 3665088.42 | O7: 1236097.15 | P7: 704141.74 | Q7: 2687056.15 | R7: 3089817.09 | S7: 231611.18
A8: 공공연구기관 Public research institutes | B8: 11118558 | C8: 1032113.3 | D8: 459805.3 | E8: 224681.4 | F8: 287472.4 | G8: 195437.4 | H8: 4988330.9 | I8: 108655.7 | J8: 350981 | K8: 887467.6 | L8: 106830 | M8: 381338.7 | N8: 396362 | O8: 396104.4 | P8: 194961.6 | Q8: 327369.6 | R8: 710300.7 | S8: 70346
A9: 국·공립 National & Pub. | B9: 851349 | C9: 39676.5 | D9: 139378 | E9: 10291.5 | F9: 79866 | G9: 1147 | H9: 20292 | I9: 11199 | J9: 1285 | K9: 58902 | L9: 38381 | M9: 72011 | N9: 47283 | O9: 145635 | P9: 25863 | Q9: 73435 | R9: 46492 | S9: 40212
A10: 정부출연 Gov't funded | B10: 8284476 | C10: 555703 | D10: 231453 | E10: 69818.9 | F10: 141466 | G10: 71466 | H10: 4941595.4 | I10: 77640.4 | J10: 346640 | K10: 385310 | L10: 37007 | M10: 269459.7 | N10: 246047 | O10: 167378 | P10: 78636 | Q10: 47774.3 | R10: 601748.3 | S10: 15333
A11: 지방자치단체출연 Local gov't funded | B11: 254212 | C11: 909 | D11: 1954 | E11: 8600 | F11: 12274 | G11: 42673 | H11: 0 | I11: 3374 | J11: 0 | K11: 15775 | L11: 20511 | M11: 3796 | N11: 2722 | O11: 24485 | P11: 27832 | Q11: 77268 | R11: 11099 | S11: 940
A12: 기타비영리 Other non-profit corporation | B12: 1556050 | C12: 275576.8 | D12: 86983.3 | E12: 135414 | F12: 53700.4 | G12: 80151.4 | H12: 26443.5 | I12: 16442.3 | J12: 3056 | K12: 418519.6 | L12: 9535 | M12: 36053 | N12: 100210 | O12: 58606.4 | P12: 62421.6 | Q12: 128892.3 | R12: 50183.4 | S12: 13861
A13: 국·공립병원 National & Pub. hospital | B13: 17644 | C13: 16353 | D13: 12 | E13: 0 | F13: 15 | G13: 0 | H13: 0 | I13: 0 | J13: 0 | K13: 106 | L13: 52 | M13: 19 | N13: 100 | O13: 0 | P13: 209 | Q13: 0 | R13: 778 | S13: 0
A14: 사립병원 Private hospital | B14: 154827 | C14: 143895 | D14: 25 | E14: 557 | F14: 151 | G14: 0 | H14: 0 | I14: 0 | J14: 0 | K14: 8855 | L14: 1344 | M14: 0 | N14: 0 | O14: 0 | P14: 0 | Q14: 0 | R14: 0 | S14: 0
A15: 대학 Higher educations | B15: 8353350.45 | C15: 2994225.9 | D15: 422003 | E15: 391422 | F15: 259823.8 | G15: 374822 | H15: 691423 | I15: 179862.4503 | J15: 52352 | K15: 1201774.3 | L15: 200785 | M15: 199119 | N15: 231838 | O15: 317355 | P15: 133176 | Q15: 379579 | R15: 218661 | S15: 105129
A16: 국·공립 National & Pub. | B16: 3774963.45 | C16: 956024 | D16: 294383 | E16: 330633 | F16: 38934 | G16: 307241 | H16: 609300 | I16: 140901.4503 | J16: 0 | K16: 87482 | L16: 110209 | M16: 152818 | N16: 54662 | O16: 244308 | P16: 117947 | Q16: 32168 | R16: 193580 | S16: 104373
A17: 사립 Private | B17: 4578387 | C17: 2038201.9 | D17: 127620 | E17: 60789 | F17: 220889.8 | G17: 67581 | H17: 82123 | I17: 38961 | J17: 52352 | K17: 1114292.3 | L17: 90576 | M17: 46301 | N17: 177176 | O17: 73047 | P17: 15229 | Q17: 347411 | R17: 25081 | S17: 756
A18: 기업체 Business enterprises | B18: 73599778.04 | C18: 10405652.25 | D18: 815025.7 | E18: 748003.17 | F18: 2389332.76 | G18: 383686.62 | H18: 3193937.523 | I18: 778678.22 | J18: 208210.8 | K18: 44955884.76 | L18: 247474.83 | M18: 1341261.98 | N18: 3036888.42 | O18: 522637.75 | P18: 376004.14 | Q18: 1980107.55 | R18: 2160855.39 | S18: 56136.18
A19: 정부투자기관 Gov't investment | B19: 876019 | C19: 23121 | D19: 2208 | E19: 5396 | F19: 27311 | G19: 69 | H19: 617295 | I19: 3312 | J19: 0 | K19: 98012 | L19: 6976 | M19: 7039 | N19: 1816 | O19: 16248 | P19: 29878 | Q19: 32114 | R19: 1762 | S19: 3462
A20: 민간기업 Private companies | B20: 72723759.04 | C20: 10382531.25 | D20: 812817.7 | E20: 742607.17 | F20: 2362021.76 | G20: 383617.62 | H20: 2576642.523 | I20: 775366.22 | J20: 208210.8 | K20: 44857872.76 | L20: 240498.83 | M20: 1334222.98 | N20: 3035072.42 | O20: 506389.75 | P20: 346126.14 | Q20: 1947993.55 | R20: 2159093.39 | S20: 52674.18

Sheet 2-18-2
A1: 2-18-2) 2020년도 연구수행주체별 연구개발비 비율(지역)
A2: R&D expenditure rate(region) by sector of performance, 2020
S4: (단위 : % Unit : %)
A5: 연구수행주체 Sector of performance | B5: 연구개발비 (백만원) R&D expenditure (Won, Millions) | C5: 지역 Region
C6: 서울 Seoul | D6: 부산 Busan | E6: 대구 Daegu | F6: 인천 Incheon | G6: 광주 Gwangju | H6: 대전 Daejeon | I6: 울산 Ulsan | J6: 세종 Sejong | K6: 경기 Gyeonggi | L6: 강원 Gangwon | M6: 충북 Chungbuk | N6: 충남 Chungnam | O6: 전북 Jeonbuk | P6: 전남 Jeonnam | Q6: 경북 Gyeongbuk | R6: 경남 Gyeongnam | S6: 제주 Jeju
A7: 총계 Total | B7: ='2-18-1'!B7 -> 93071686.49 | C7: ='2-18-1'!C7/'2-18-2'!$B7*100 -> 15.50631776 | D7: ='2-18-1'!D7/'2-18-2'!$B7*100 -> 1.823147365 | E7: ='2-18-1'!E7/'2-18-2'!$B7*100 -> 1.465651501 | F7: ='2-18-1'!F7/'2-18-2'!$B7*100 -> 3.155233424 | G7: ='2-18-1'!G7/'2-18-2'!$B7*100 -> 1.024958348 | H7: ='2-18-1'!H7/'2-18-2'!$B7*100 -> 9.534254463 | I7: ='2-18-1'!I7/'2-18-2'!$B7*100 -> 1.146639124 | J7: ='2-18-1'!J7/'2-18-2'!$B7*100 -> 0.6570674961 | K7: ='2-18-1'!K7/'2-18-2'!$B7*100 -> 50.54719478 | L7: ='2-18-1'!L7/'2-18-2'!$B7*100 -> 0.5964110579 | M7: ='2-18-1'!M7/'2-18-2'!$B7*100 -> 2.064773673 | N7: ='2-18-1'!N7/'2-18-2'!$B7*100 -> 3.937919853 | O7: ='2-18-1'!O7/'2-18-2'!$B7*100 -> 1.328112981 | P7: ='2-18-1'!P7/'2-18-2'!$B7*100 -> 0.7565584836 | Q7: ='2-18-1'!Q7/'2-18-2'!$B7*100 -> 2.88708226 | R7: ='2-18-1'!R7/'2-18-2'!$B7*100 -> 3.319824972 | S7: ='2-18-1'!S7/'2-18-2'!$B7*100 -> 0.2488524585
A8: 공공연구기관 Public research institutes | B8: ='2-18-1'!B8 -> 11118558 | C8: ='2-18-1'!C8/'2-18-2'!$B8*100 -> 9.282798183 | D8: ='2-18-1'!D8/'2-18-2'!$B8*100 -> 4.135476021 | E8: ='2-18-1'!E8/'2-18-2'!$B8*100 -> 2.020778234 | F8: ='2-18-1'!F8/'2-18-2'!$B8*100 -> 2.585518734 | G8: ='2-18-1'!G8/'2-18-2'!$B8*100 -> 1.757758515 | H8: ='2-18-1'!H8/'2-18-2'!$B8*100 -> 44.86490874 | I8: ='2-18-1'!I8/'2-18-2'!$B8*100 -> 0.97724633 | J8: ='2-18-1'!J8/'2-18-2'!$B8*100 -> 3.156713308 | K8: ='2-18-1'!K8/'2-18-2'!$B8*100 -> 7.981858799 | L8: ='2-18-1'!L8/'2-18-2'!$B8*100 -> 0.9608260352 | M8: ='2-18-1'!M8/'2-18-2'!$B8*100 -> 3.429749613 | N8: ='2-18-1'!N8/'2-18-2'!$B8*100 -> 3.564868754 | O8: ='2-18-1'!O8/'2-18-2'!$B8*100 -> 3.562551906 | P8: ='2-18-1'!P8/'2-18-2'!$B8*100 -> 1.753479183 | Q8: ='2-18-1'!Q8/'2-18-2'!$B8*100 -> 2.944353036 | R8: ='2-18-1'!R8/'2-18-2'!$B8*100 -> 6.38842465 | S8: ='2-18-1'!S8/'2-18-2'!$B8*100 -> 0.6326899585
A9: 국·공립 National & Pub. | B9: ='2-18-1'!B9 -> 851349 | C9: ='2-18-1'!C9/'2-18-2'!$B9*100 -> 4.660427157 | D9: ='2-18-1'!D9/'2-18-2'!$B9*100 -> 16.37142934 | E9: ='2-18-1'!E9/'2-18-2'!$B9*100 -> 1.208846196 | F9: ='2-18-1'!F9/'2-18-2'!$B9*100 -> 9.381111624 | G9: ='2-18-1'!G9/'2-18-2'!$B9*100 -> 0.1347273562 | H9: ='2-18-1'!H9/'2-18-2'!$B9*100 -> 2.383511345 | I9: ='2-18-1'!I9/'2-18-2'!$B9*100 -> 1.315441728 | J9: ='2-18-1'!J9/'2-18-2'!$B9*100 -> 0.1509369248 | K9: ='2-18-1'!K9/'2-18-2'!$B9*100 -> 6.918666728 | L9: ='2-18-1'!L9/'2-18-2'!$B9*100 -> 4.508256896 | M9: ='2-18-1'!M9/'2-18-2'!$B9*100 -> 8.458458282 | N9: ='2-18-1'!N9/'2-18-2'!$B9*100 -> 5.55389153 | O9: ='2-18-1'!O9/'2-18-2'!$B9*100 -> 17.10638058 | P9: ='2-18-1'!P9/'2-18-2'!$B9*100 -> 3.037884581 | Q9: ='2-18-1'!Q9/'2-18-2'!$B9*100 -> 8.625722236 | R9: ='2-18-1'!R9/'2-18-2'!$B9*100 -> 5.460980162 | S9: ='2-18-1'!S9/'2-18-2'!$B9*100 -> 4.723327331
A10: 정부출연 Gov't funded | B10: ='2-18-1'!B10 -> 8284476 | C10: ='2-18-1'!C10/'2-18-2'!$B10*100 -> 6.707762808 | D10: ='2-18-1'!D10/'2-18-2'!$B10*100 -> 2.793815807 | E10: ='2-18-1'!E10/'2-18-2'!$B10*100 -> 0.8427678468 | F10: ='2-18-1'!F10/'2-18-2'!$B10*100 -> 1.707603474 | G10: ='2-18-1'!G10/'2-18-2'!$B10*100 -> 0.8626496112 | H10: ='2-18-1'!H10/'2-18-2'!$B10*100 -> 59.6488589 | I10: ='2-18-1'!I10/'2-18-2'!$B10*100 -> 0.9371793702 | J10: ='2-18-1'!J10/'2-18-2'!$B10*100 -> 4.18421153 | K10: ='2-18-1'!K10/'2-18-2'!$B10*100 -> 4.650988186 | L10: ='2-18-1'!L10/'2-18-2'!$B10*100 -> 0.4467029659 | M10: ='2-18-1'!M10/'2-18-2'!$B10*100 -> 3.252585921 | N10: ='2-18-1'!N10/'2-18-2'!$B10*100 -> 2.969976617 | O10: ='2-18-1'!O10/'2-18-2'!$B10*100 -> 2.020381253 | P10: ='2-18-1'!P10/'2-18-2'!$B10*100 -> 0.9491970283 | Q10: ='2-18-1'!Q10/'2-18-2'!$B10*100 -> 0.576672562 | R10: ='2-18-1'!R10/'2-18-2'!$B10*100 -> 7.26356501 | S10: ='2-18-1'!S10/'2-18-2'!$B10*100 -> 0.1850811083
A11: 지방자치단체출연 Local gov't funded | B11: ='2-18-1'!B11 -> 254212 | C11: ='2-18-1'!C11/'2-18-2'!$B11*100 -> 0.3575755668 | D11: ='2-18-1'!D11/'2-18-2'!$B11*100 -> 0.7686497884 | E11: ='2-18-1'!E11/'2-18-2'!$B11*100 -> 3.383003163 | F11: ='2-18-1'!F11/'2-18-2'!$B11*100 -> 4.828253584 | G11: ='2-18-1'!G11/'2-18-2'!$B11*100 -> 16.78638302 | H11: ='2-18-1'!H11/'2-18-2'!$B11*100 -> 0 | I11: ='2-18-1'!I11/'2-18-2'!$B11*100 -> 1.327238683 | J11: ='2-18-1'!J11/'2-18-2'!$B11*100 -> 0 | K11: ='2-18-1'!K11/'2-18-2'!$B11*100 -> 6.205450569 | L11: ='2-18-1'!L11/'2-18-2'!$B11*100 -> 8.068462543 | M11: ='2-18-1'!M11/'2-18-2'!$B11*100 -> 1.493241861 | N11: ='2-18-1'!N11/'2-18-2'!$B11*100 -> 1.070759838 | O11: ='2-18-1'!O11/'2-18-2'!$B11*100 -> 9.631724702 | P11: ='2-18-1'!P11/'2-18-2'!$B11*100 -> 10.94834233 | Q11: ='2-18-1'!Q11/'2-18-2'!$B11*100 -> 30.3951033 | R11: ='2-18-1'!R11/'2-18-2'!$B11*100 -> 4.366040942 | S11: ='2-18-1'!S11/'2-18-2'!$B11*100 -> 0.3697701131
A12: 기타비영리 Other non-profit corporation | B12: ='2-18-1'!B12 -> 1556050 | C12: ='2-18-1'!C12/'2-18-2'!$B12*100 -> 17.71002217 | D12: ='2-18-1'!D12/'2-18-2'!$B12*100 -> 5.590006748 | E12: ='2-18-1'!E12/'2-18-2'!$B12*100 -> 8.702419588 | F12: ='2-18-1'!F12/'2-18-2'!$B12*100 -> 3.451071624 | G12: ='2-18-1'!G12/'2-18-2'!$B12*100 -> 5.150952733 | H12: ='2-18-1'!H12/'2-18-2'!$B12*100 -> 1.69939912 | I12: ='2-18-1'!I12/'2-18-2'!$B12*100 -> 1.05666913 | J12: ='2-18-1'!J12/'2-18-2'!$B12*100 -> 0.1963947174 | K12: ='2-18-1'!K12/'2-18-2'!$B12*100 -> 26.89628225 | L12: ='2-18-1'!L12/'2-18-2'!$B12*100 -> 0.6127695125 | M12: ='2-18-1'!M12/'2-18-2'!$B12*100 -> 2.316956396 | N12: ='2-18-1'!N12/'2-18-2'!$B12*100 -> 6.440024421 | O12: ='2-18-1'!O12/'2-18-2'!$B12*100 -> 3.766357122 | P12: ='2-18-1'!P12/'2-18-2'!$B12*100 -> 4.011542046 | Q12: ='2-18-1'!Q12/'2-18-2'!$B12*100 -> 8.283300665 | R12: ='2-18-1'!R12/'2-18-2'!$B12*100 -> 3.225050609 | S12: ='2-18-1'!S12/'2-18-2'!$B12*100 -> 0.8907811446
A13: 국·공립병원 National & Pub.hospital | B13: ='2-18-1'!B13 -> 17644 | C13: ='2-18-1'!C13/'2-18-2'!$B13*100 -> 92.68306506 | D13: ='2-18-1'!D13/'2-18-2'!$B13*100 -> 0.06801178871 | E13: ='2-18-1'!E13/'2-18-2'!$B13*100 -> 0 | F13: ='2-18-1'!F13/'2-18-2'!$B13*100 -> 0.08501473589 | G13: ='2-18-1'!G13/'2-18-2'!$B13*100 -> 0 | H13: ='2-18-1'!H13/'2-18-2'!$B13*100 -> 0 | I13: ='2-18-1'!I13/'2-18-2'!$B13*100 -> 0 | J13: ='2-18-1'!J13/'2-18-2'!$B13*100 -> 0 | K13: ='2-18-1'!K13/'2-18-2'!$B13*100 -> 0.6007708003 | L13: ='2-18-1'!L13/'2-18-2'!$B13*100 -> 0.2947177511 | M13: ='2-18-1'!M13/'2-18-2'!$B13*100 -> 0.1076853321 | N13: ='2-18-1'!N13/'2-18-2'!$B13*100 -> 0.5667649059 | O13: ='2-18-1'!O13/'2-18-2'!$B13*100 -> 0 | P13: ='2-18-1'!P13/'2-18-2'!$B13*100 -> 1.184538653 | Q13: ='2-18-1'!Q13/'2-18-2'!$B13*100 -> 0 | R13: ='2-18-1'!R13/'2-18-2'!$B13*100 -> 4.409430968 | S13: ='2-18-1'!S13/'2-18-2'!$B13*100 -> 0
A14: 사립병원 Private hospital | B14: ='2-18-1'!B14 -> 154827 | C14: ='2-18-1'!C14/'2-18-2'!$B14*100 -> 92.93921603 | D14: ='2-18-1'!D14/'2-18-2'!$B14*100 -> 0.01614705445 | E14: ='2-18-1'!E14/'2-18-2'!$B14*100 -> 0.3597563732 | F14: ='2-18-1'!F14/'2-18-2'!$B14*100 -> 0.0975282089 | G14: ='2-18-1'!G14/'2-18-2'!$B14*100 -> 0 | H14: ='2-18-1'!H14/'2-18-2'!$B14*100 -> 0 | I14: ='2-18-1'!I14/'2-18-2'!$B14*100 -> 0 | J14: ='2-18-1'!J14/'2-18-2'!$B14*100 -> 0 | K14: ='2-18-1'!K14/'2-18-2'!$B14*100 -> 5.719286688 | L14: ='2-18-1'!L14/'2-18-2'!$B14*100 -> 0.8680656475 | M14: ='2-18-1'!M14/'2-18-2'!$B14*100 -> 0 | N14: ='2-18-1'!N14/'2-18-2'!$B14*100 -> 0 | O14: ='2-18-1'!O14/'2-18-2'!$B14*100 -> 0 | P14: ='2-18-1'!P14/'2-18-2'!$B14*100 -> 0 | Q14: ='2-18-1'!Q14/'2-18-2'!$B14*100 -> 0 | R14: ='2-18-1'!R14/'2-18-2'!$B14*100 -> 0 | S14: ='2-18-1'!S14/'2-18-2'!$B14*100 -> 0
A15: 대학 Higher educations | B15: ='2-18-1'!B15 -> 8353350.45 | C15: ='2-18-1'!C15/'2-18-2'!$B15*100 -> 35.84461011 | D15: ='2-18-1'!D15/'2-18-2'!$B15*100 -> 5.051901061 | E15: ='2-18-1'!E15/'2-18-2'!$B15*100 -> 4.685808435 | F15: ='2-18-1'!F15/'2-18-2'!$B15*100 -> 3.110414217 | G15: ='2-18-1'!G15/'2-18-2'!$B15*100 -> 4.487085777 | H15: ='2-18-1'!H15/'2-18-2'!$B15*100 -> 8.277193733 | I15: ='2-18-1'!I15/'2-18-2'!$B15*100 -> 2.153177356 | J15: ='2-18-1'!J15/'2-18-2'!$B15*100 -> 0.6267185881 | K15: ='2-18-1'!K15/'2-18-2'!$B15*100 -> 14.38673389 | L15: ='2-18-1'!L15/'2-18-2'!$B15*100 -> 2.403646312 | M15: ='2-18-1'!M15/'2-18-2'!$B15*100 -> 2.383702218 | N15: ='2-18-1'!N15/'2-18-2'!$B15*100 -> 2.775389365 | O15: ='2-18-1'!O15/'2-18-2'!$B15*100 -> 3.799134274 | P15: ='2-18-1'!P15/'2-18-2'!$B15*100 -> 1.594282447 | Q15: ='2-18-1'!Q15/'2-18-2'!$B15*100 -> 4.544032987 | R15: ='2-18-1'!R15/'2-18-2'!$B15*100 -> 2.617644277 | S15: ='2-18-1'!S15/'2-18-2'!$B15*100 -> 1.258524955
A16: 국·공립 National & Pub. | B16: ='2-18-1'!B16 -> 3774963.45 | C16: ='2-18-1'!C16/'2-18-2'!$B16*100 -> 25.32538427 | D16: ='2-18-1'!D16/'2-18-2'!$B16*100 -> 7.798300669 | E16: ='2-18-1'!E16/'2-18-2'!$B16*100 -> 8.758574867 | F16: ='2-18-1'!F16/'2-18-2'!$B16*100 -> 1.031374224 | G16: ='2-18-1'!G16/'2-18-2'!$B16*100 -> 8.138913238 | H16: ='2-18-1'!H16/'2-18-2'!$B16*100 -> 16.14055362 | I16: ='2-18-1'!I16/'2-18-2'!$B16*100 -> 3.732524889 | J16: ='2-18-1'!J16/'2-18-2'!$B16*100 -> 0 | K16: ='2-18-1'!K16/'2-18-2'!$B16*100 -> 2.317426411 | L16: ='2-18-1'!L16/'2-18-2'!$B16*100 -> 2.919471975 | M16: ='2-18-1'!M16/'2-18-2'!$B16*100 -> 4.048198135 | N16: ='2-18-1'!N16/'2-18-2'!$B16*100 -> 1.44801402 | O16: ='2-18-1'!O16/'2-18-2'!$B16*100 -> 6.471797759 | P16: ='2-18-1'!P16/'2-18-2'!$B16*100 -> 3.124454092 | Q16: ='2-18-1'!Q16/'2-18-2'!$B16*100 -> 0.8521407008 | R16: ='2-18-1'!R16/'2-18-2'!$B16*100 -> 5.127996669 | S16: ='2-18-1'!S16/'2-18-2'!$B16*100 -> 2.764874452
A17: 사립 Private | B17: ='2-18-1'!B17 -> 4578387 | C17: ='2-18-1'!C17/'2-18-2'!$B17*100 -> 44.51790336 | D17: ='2-18-1'!D17/'2-18-2'!$B17*100 -> 2.787444574 | E17: ='2-18-1'!E17/'2-18-2'!$B17*100 -> 1.32773835 | F17: ='2-18-1'!F17/'2-18-2'!$B17*100 -> 4.824620549 | G17: ='2-18-1'!G17/'2-18-2'!$B17*100 -> 1.476087539 | H17: ='2-18-1'!H17/'2-18-2'!$B17*100 -> 1.793710318 | I17: ='2-18-1'!I17/'2-18-2'!$B17*100 -> 0.8509765557 | J17: ='2-18-1'!J17/'2-18-2'!$B17*100 -> 1.143459476 | K17: ='2-18-1'!K17/'2-18-2'!$B17*100 -> 24.33809768 | L17: ='2-18-1'!L17/'2-18-2'!$B17*100 -> 1.978338659 | M17: ='2-18-1'!M17/'2-18-2'!$B17*100 -> 1.011295026 | N17: ='2-18-1'!N17/'2-18-2'!$B17*100 -> 3.869834507 | O17: ='2-18-1'!O17/'2-18-2'!$B17*100 -> 1.595474563 | P17: ='2-18-1'!P17/'2-18-2'!$B17*100 -> 0.3326280631 | Q17: ='2-18-1'!Q17/'2-18-2'!$B17*100 -> 7.588065404 | R17: ='2-18-1'!R17/'2-18-2'!$B17*100 -> 0.547813018 | S17: ='2-18-1'!S17/'2-18-2'!$B17*100 -> 0.0165123656
A18: 기업체 Business enterprises | B18: ='2-18-1'!B18 -> 73599778.04 | C18: ='2-18-1'!C18/'2-18-2'!$B18*100 -> 14.13815711 | D18: ='2-18-1'!D18/'2-18-2'!$B18*100 -> 1.107375215 | E18: ='2-18-1'!E18/'2-18-2'!$B18*100 -> 1.01631172 | F18: ='2-18-1'!F18/'2-18-2'!$B18*100 -> 3.246385823 | G18: ='2-18-1'!G18/'2-18-2'!$B18*100 -> 0.5213149146 | H18: ='2-18-1'!H18/'2-18-2'!$B18*100 -> 4.339602113 | I18: ='2-18-1'!I18/'2-18-2'!$B18*100 -> 1.057989903 | J18: ='2-18-1'!J18/'2-18-2'!$B18*100 -> 0.2828959618 | K18: ='2-18-1'!K18/'2-18-2'!$B18*100 -> 61.08154936 | L18: ='2-18-1'!L18/'2-18-2'!$B18*100 -> 0.3362439896 | M18: ='2-18-1'!M18/'2-18-2'!$B18*100 -> 1.822372316 | N18: ='2-18-1'!N18/'2-18-2'!$B18*100 -> 4.126219536 | O18: ='2-18-1'!O18/'2-18-2'!$B18*100 -> 0.7101077801 | P18: ='2-18-1'!P18/'2-18-2'!$B18*100 -> 0.5108767309 | Q18: ='2-18-1'!Q18/'2-18-2'!$B18*100 -> 2.690371633 | R18: ='2-18-1'!R18/'2-18-2'!$B18*100 -> 2.935953678 | S18: ='2-18-1'!S18/'2-18-2'!$B18*100 -> 0.07627221371
A19: 정부투자기관 Gov't investment | B19: ='2-18-1'!B19 -> 876019 | C19: ='2-18-1'!C19/'2-18-2'!$B19*100 -> 2.639326316 | D19: ='2-18-1'!D19/'2-18-2'!$B19*100 -> 0.2520493277 | E19: ='2-18-1'!E19/'2-18-2'!$B19*100 -> 0.6159683751 | F19: ='2-18-1'!F19/'2-18-2'!$B19*100 -> 3.117626444 | G19: ='2-18-1'!G19/'2-18-2'!$B19*100 -> 0.007876541491 | H19: ='2-18-1'!H19/'2-18-2'!$B19*100 -> 70.46593738 | I19: ='2-18-1'!I19/'2-18-2'!$B19*100 -> 0.3780739915 | J19: ='2-18-1'!J19/'2-18-2'!$B19*100 -> 0 | K19: ='2-18-1'!K19/'2-18-2'!$B19*100 -> 11.18834181 | L19: ='2-18-1'!L19/'2-18-2'!$B19*100 -> 0.79632976 | M19: ='2-18-1'!M19/'2-18-2'!$B19*100 -> 0.8035213848 | N19: ='2-18-1'!N19/'2-18-2'!$B19*100 -> 0.2073014398 | O19: ='2-18-1'!O19/'2-18-2'!$B19*100 -> 1.854754292 | P19: ='2-18-1'!P19/'2-18-2'!$B19*100 -> 3.410656618 | Q19: ='2-18-1'!Q19/'2-18-2'!$B19*100 -> 3.665902224 | R19: ='2-18-1'!R19/'2-18-2'!$B19*100 -> 0.2011371899 | S19: ='2-18-1'!S19/'2-18-2'!$B19*100 -> 0.3951969078
A20: 민간기업 Private companies | B20: ='2-18-1'!B20 -> 72723759.04 | C20: ='2-18-1'!C20/'2-18-2'!$B20*100 -> 14.27667022 | D20: ='2-18-1'!D20/'2-18-2'!$B20*100 -> 1.117678336 | E20: ='2-18-1'!E20/'2-18-2'!$B20*100 -> 1.021134193 | F20: ='2-18-1'!F20/'2-18-2'!$B20*100 -> 3.247936838 | G20: ='2-18-1'!G20/'2-18-2'!$B20*100 -> 0.5274997127 | H20: ='2-18-1'!H20/'2-18-2'!$B20*100 -> 3.543054645 | I20: ='2-18-1'!I20/'2-18-2'!$B20*100 -> 1.066180063 | J20: ='2-18-1'!J20/'2-18-2'!$B20*100 -> 0.2863036822 | K20: ='2-18-1'!K20/'2-18-2'!$B20*100 -> 61.68255512 | L20: ='2-18-1'!L20/'2-18-2'!$B20*100 -> 0.3307018685 | M20: ='2-18-1'!M20/'2-18-2'!$B20*100 -> 1.834645235 | N20: ='2-18-1'!N20/'2-18-2'!$B20*100 -> 4.173426209 | O20: ='2-18-1'!O20/'2-18-2'!$B20*100 -> 0.6963195477 | P20: ='2-18-1'!P20/'2-18-2'!$B20*100 -> 0.475946437 | Q20: ='2-18-1'!Q20/'2-18-2'!$B20*100 -> 2.678620544 | R20: ='2-18-1'!R20/'2-18-2'!$B20*100 -> 2.968896848 | S20: ='2-18-1'!S20/'2-18-2'!$B20*100 -> 0.07243049685

Sheet 2-19-1
A1: 2-19-1) 2020년도 연구수행주체별 연구개발인력(지역)
A2: R&D personnel(region) by sector of performance, 2020
S4: (단위 : 명 Unit : Headcount)
A5: 연구수행주체 Sector of performance | B5: 연구개발 인력 R&D personnel | C5: 지역 Region
C6: 서울 Seoul | D6: 부산 Busan | E6: 대구 Daegu | F6: 인천 Incheon | G6: 광주 Gwangju | H6: 대전 Daejeon | I6: 울산 Ulsan | J6: 세종 Sejong | K6: 경기 Gyeonggi | L6: 강원 Gangwon | M6: 충북 Chungbuk | N6: 충남 Chungnam | O6: 전북 Jeonbuk | P6: 전남 Jeonnam | Q6: 경북 Gyeongbuk | R6: 경남 Gyeongnam | S6: 제주 Jeju
A7: 총계 Total | B7: 747288 | C7: 190617 | D7: 24569 | E7: 20496 | F7: 28965 | G7: 15165 | H7: 52030 | I7: 10283 | J7: 6603 | K7: 250652 | L7: 12195 | M7: 20431 | N7: 25542 | O7: 16438 | P7: 9133 | Q7: 26027 | R7: 34302 | S7: 3840
A8: 공공연구기관 Public research institutes | B8: 64134 | C8: 7638 | D8: 2688 | E8: 1799 | F8: 2267 | G8: 1032 | H8: 15983 | I8: 1084 | J8: 3610 | K8: 6769 | L8: 1712 | M8: 3972 | N8: 1813 | O8: 4210 | P8: 1704 | Q8: 2529 | R8: 4386 | S8: 938
A9: 국·공립 National & Pub. | B9: 12823 | C9: 365 | D9: 391 | E9: 155 | F9: 1096 | G9: 158 | H9: 276 | I9: 221 | J9: 18 | K9: 967 | L9: 985 | M9: 1242 | N9: 680 | O9: 2737 | P9: 764 | Q9: 1113 | R9: 1079 | S9: 576
A10: 정부출연 Gov't funded | B10: 33940 | C10: 2997 | D10: 1248 | E10: 523 | F10: 558 | G10: 392 | H10: 15402 | I10: 485 | J10: 3519 | K10: 1855 | L10: 222 | M10: 2060 | N10: 641 | O10: 883 | P10: 419 | Q10: 246 | R10: 2400 | S10: 90
A11: 지방자치단체출연 Local gov't funded | B11: 2494 | C11: 41 | D11: 199 | E11: 106 | F11: 124 | G11: 67 | H11: 0 | I11: 81 | J11: 0 | K11: 320 | L11: 239 | M11: 128 | N11: 36 | O11: 287 | P11: 248 | Q11: 319 | R11: 201 | S11: 98
A12: 기타비영리 Other non-profit corporation | B12: 12951 | C12: 2664 | D12: 843 | E12: 1004 | F12: 451 | G12: 414 | H12: 304 | I12: 296 | J12: 73 | K12: 3526 | L12: 173 | M12: 526 | N12: 445 | O12: 302 | P12: 235 | Q12: 850 | R12: 671 | S12: 174
A13: 국·공립병원 National & Pub. hospital | B13: 418 | C13: 263 | D13: 4 | E13: 0 | F13: 15 | G13: 1 | H13: 1 | I13: 1 | J13: 0 | K13: 23 | L13: 8 | M13: 16 | N13: 11 | O13: 1 | P13: 38 | Q13: 1 | R13: 35 | S13: 0
A14: 사립병원 Private hospital | B14: 1508 | C14: 1308 | D14: 3 | E14: 11 | F14: 23 | G14: 0 | H14: 0 | I14: 0 | J14: 0 | K14: 78 | L14: 85 | M14: 0 | N14: 0 | O14: 0 | P14: 0 | Q14: 0 | R14: 0 | S14: 0
A15: 대학 Higher educations | B15: 207025 | C15: 74086 | D15: 9943 | E15: 8633 | F15: 5255 | G15: 9199 | H15: 17068 | I15: 3720 | J15: 1351 | K15: 25883 | L15: 7404 | M15: 5629 | N15: 7193 | O15: 6388 | P15: 3327 | Q15: 9463 | R15: 10379 | S15: 2104
A16: 국·공립 National & Pub. | B16: 86621 | C16: 18022 | D16: 5245 | E16: 6489 | F16: 1189 | G16: 7148 | H16: 14385 | I16: 2522 | J16: 108 | K16: 1781 | L16: 4581 | M16: 3861 | N16: 1844 | O16: 4622 | P16: 2570 | Q16: 1068 | R16: 9140 | S16: 2046
A17: 사립 Private | B17: 120404 | C17: 56064 | D17: 4698 | E17: 2144 | F17: 4066 | G17: 2051 | H17: 2683 | I17: 1198 | J17: 1243 | K17: 24102 | L17: 2823 | M17: 1768 | N17: 5349 | O17: 1766 | P17: 757 | Q17: 8395 | R17: 1239 | S17: 58
